Workbook

Sheet Guidelines
A1: 1. Purpose
A2: This cost/benefit analysis template provides the main support for the economic analysis of project alternatives. The template uses the Net Present Value (NPV) to perform economic or financial analyses as part of the justification of a project. The completed cost/benefit analysis spreadsheet should be stored electronically with other project documentation, and a summary of the results should be included as part of the project justification. This template is used for consistency across Nalcor Energy as part of the decision making process in evaluating project alternatives.
A4: Cost/benefit analysis shall be prepared for the following:
A5: • Capital projects that have investing or financing alternatives associated with them;
A6: • All projects considered financially justifiable where the capital spending is discretionary and/or based on achieving a future benefit that justifies the expenditure.
A8: Cost/benefit analysis is not relevant and the template does not require preparation if either of the conditions outlined below are met:
A9: • There are no investing or financing alternatives available to complete the project. Note, however, that financially justifiable projects require a cost/benefit analysis.
A10: • The capital is for purchase of tools and similar equipment and the value is less than $50,000.
A11: • The project involves the provision of town services for residents of the town of Churchill Falls, and there are no investing or financing alternatives available to complete the project.
A12: • The primary purpose of the project is to satisfy safety, or legal/compliance requirements and no alternative approach exists to satisfy such requirements.
A14: 2. Description of Input to the Template
A15: 2.1 Home Page
A16: Current Year - This is the year in which the evaluation is being done.
A17: Project Title - Choose an appropriate project title and enter it in this space. This should be consistent with the title used in the Proposal Summary Sheet.
A18: Project In-service Year - This is the year in which the project is completed and brought into service. This should be consistent with the year used in the Proposal Summary Sheet.
A19: Number of Years in Study Analysis - This is the length of time determined to evaluate the project and should reflect the period of time over which cash flows are expected to occur. The number of years should be between 1 and 50. A value chosen outside of this range will cause the cell to appear red in color highlighting an error.
A20: Discount Rate - The discount rate used in the NPV calculation is issued in the Nalcor Corporate Planning assumptions located here:
A21: X:\Investment Evaluation
A22: Present Worth Year - Often the present worth year is the same as the current year but can be a different year if desired. All costs are assumed to be discounted to January 1st of that year. (For all practical purposes January 1st of the year is the same as December 31st of the previous year).
A24: 2.2 The Alternatives
A25: Alternative # and Name - Place a suitable alternative name in cell AM4. This will display on the Summary Table and the Chart legend.
A26: Total In-service Year Project Cost - The total cost of the project the year it goes in-service.
A27: Other Project Cost After In-service - Often during the study period of the project other project costs may need to be evaluated.
A28: Other Project Year - This is the year in which the other project cost is realized (if applicable).
A29: Replacement Cost - During the study period of the project, replacement of whole or partial components may be required.
A30: Replacement Cost Year - This is the year the replacement is brought in-service (if applicable).
A31: Project Cost in Ending (E) or Beginning (B) Year $$ - Although most projects are deemed to come in service towards the end of the year, there are times when the in-service is early in the year and the project cost estimate may be stated in beginning year dollars rather than normally in end of year dollars. Enter E if the cost estimate is in ending year dollars or B if the cost estimate is in beginning year dollars.
A32: O&M Costs - The Investment Evaluation department provides a series of annual O&M escalation indices to accommodate the ratio of materials and labor in the expected costs:
A33: 1. If the proportion of materials is higher than labour select “More Material Less Labour” .
A34: 2. If the proportion of materials and labour is approximately equal choose “Same Material Same Labour”.
A35: 3. If the proportion of materials is lower than labour select “More Labour Less Material” .
A36: 4. If the O&M costs are related to Labour only, select “Labour Only”.
A37: 5. The option is provided for the user to enter O&M rates that may be used in rare cases after consulting with Investment Evaluation. These rates would be entered in column 12 of the table in the ‘Scratch pad area for annual O&M costs’. If this option is chosen, the user chooses “User Defined”.
A40: 2.3 The Scratch Pad Areas
A41: Use the buttons located at the top of each Alternative worksheet to access each Scratch Pad area.
A43: O&M Costs: Total annual O&M costs should be entered in Column 9 in current year dollar amounts. Column 10 of the table automatically calculates the expected O&M costs for each year by multiplying the values from Column 9 by the appropriate escalation indices to reflect the value in the year in which the expenditure is to occur. The main template table copies the data from column 10 to its Annual O&M cost column.
A45: Fuel Costs: Various fuel prices for different delivery points are provided in the Nalcor Corporate Planning assumptions. The fuel prices are expressed as cents/litre or dollars/barrel depending on fuel type. The fuel price series for the analysis are to be input into column D in the main template table. This scratch pad annual fuel costs table accesses the fuel series in the main table and places them in column 3. The user may use the chosen fuel series to calculate the cost of fuel for each year in column 9 of the annual fuel cost table. The main template table copies the data from column 9 to its Annual Fuel cost column (column E).
A47: Other Costs: The costs entered are to be constant dollar values, that is, at today’s value. Seven columns are provided to enter the costs to be escalated and an eight column is provided for costs that need no escalation. Depending on which of the columns is chosen from the table, the costs will be escalated automatically using one of Nalcor Energy’s utility escalation indices. The tenth column is provided for costs that are not escalated (ex., rental costs that remain the same over a period of time). The main template table copies the data from column eleven to its Other cost column (column F) of the main table.
A49: Project Benefits: There are two areas that provide tables that may be utilized by the user to state any financial or economic benefits from the project. The benefits entered are to be constant dollar values, that is, at today’s value. Depending on the entry column chosen from the table by the user, the costs will be escalated automatically using one of Nalcor Energy’s utility escalation indices. The main template table copies the data from column eleven to its Benefit column (column H and/or I) of the main table.
A51: 3. Graph and Summary Table in the Template
A52: 3.1 The Graph
A53: The graph plots the cumulative present worth (CPW) for all alternatives where the CPW is non-zero. Below are a few points to remember in adjusting the graph:
A54: • The chart divides the CPW input data by 1000. Thus, the default units for the vertical axis is thousands (000s). The user may change the title of the axis to reflect units as required.
A55: • The chart dynamically removes alternatives where the cumulative present worth is zero. If all alternatives have a CPW of zero, the graph will not be visible.
A56: • The user has the option to alter the years of data which are graphed. User's may override the default values for the following parameters:
A57: - Start Year: The default start year is the current year. The user may define the start year as any year between the current year and the last year of the study analysis.
A58: - End Year: The default end year is the last year in the study analysis. The user may define the end year as any year between the start year and the last year of the study analyses.
A59: - Compress output years: By default the graph displays every year of the study analysis. The user may choose to show every year for the initial period and then only periodic years for the latter period.
A61: 3.2 The Summary Table
A62: The summary table is populated automatically by the alternative names and costs from their respective spreadsheets. Only the number of alternatives used in the analysis is listed in the table, i.e., if only three alternatives exist for the project, then these three will be automatically listed in the table. For the remainder of the six alternative spreadsheets that are not used, the cell for “Alternative # and Description” should be left blank.
A64: Contact the Investment Evaluation Department should you need assistance.

Sheet Home Page
A1: Project Cost/Benefit Analysis Template
AA2: NLH's Official O&M Indices | AL2: NLH's Official Utility Escalation Indices
G3: Home Page
AA4: Electric Utility Escalation Indices
G5: Current year | AB5: Operating & Maintenance
G6: 2019
AB7: =Escalation!M6 -> More Material Less Labour | AD7: =Escalation!N6 -> Same Material Same Labour | AF7: =Escalation!O6 -> More Labor Less Material | AH7: =Escalation!P6 -> Labor Only | AM7: Electric Utility Escalation Indices
AM8: =Escalation!C6 -> GDP Implicit Price Deflator | AO8: =Escalation!F6 -> Combustion Turbine Plant Construction | AQ8: =Escalation!G6 -> CCCT Plant Construction | AS8: =Escalation!H6 -> Hydraulic Plant Construction | AU8: =Escalation!I6 -> Transmission Line Construction | AW8: =Escalation!J6 -> Transformer Station Construction | AY8: =Escalation!K6 -> Distribution Line Construction
AA9: Year | AB9: Annual | AC9: Cumulative | AD9: Annual | AE9: Cumulative | AF9: Annual | AG9: Cumulative | AH9: Annual | AI9: Cumulative | AL9: Year
E10: Project Title | G10: Labrador East - Network Addition Policy - 10 MW Addition | AB10: Percentage | AC10: Change | AD10: Percentage | AE10: Change | AF10: Percentage | AG10: Change | AH10: Percentage | AI10: Change | AM10: Annual | AN10: Cumulative | AO10: Annual | AP10: Cumulative | AQ10: Annual | AR10: Cumulative | AS10: Annual | AT10: Cumulative | AU10: Annual | AV10: Cumulative | AW10: Annual | AX10: Cumulative | AY10: Annual | AZ10: Cumulative
AB11: Change | AC11: Factor | AD11: Change | AE11: Factor | AF11: Change | AG11: Factor | AH11: Change | AI11: Factor | AM11: Change | AN11: Change | AO11: Change | AP11: Change | AQ11: Change | AR11: Change | AS11: Change | AT11: Change | AU11: Change | AV11: Change | AW11: Change | AX11: Change | AY11: Change | AZ11: Change
E12: Project In-Service Year | G12: 2019
AA13: =G6 -> 2019 | AC13: 1 | AE13: 1 | AG13: 1 | AI13: 1 | AL13: =AA13 -> 2019 | AN13: 1 | AP13: 1 | AR13: 1 | AT13: 1 | AV13: 1 | AX13: 1 | AZ13: 1
E14: Number of Years in Study Analysis | G14: 25 | AA14: =AA13+1 -> 2020 | AB14: =IF(ISNA(VLOOKUP($AA14,Escalation!$A$7:$R$54,MATCH(AB$7,Escalation!$6:$6,0),FALSE)*100),VLOOKUP(CONCATENATE("Post ",MAX(Escalation!$A:$A)),Escalation!$A$7:$R$54,MATCH(AB$7,Escalation!$6:$6,0),FALSE)*100,VLOOKUP($AA14,Escalation!$A$7:$R$54,MATCH(AB$7,Escalation!$6:$6,0),FALSE)*100) -> 2.401609058 | AC14: =(1+AB14/100)*AC13 -> 1.024016091 | AD14: =IF(ISNA(VLOOKUP($AA14,Escalation!$A$7:$R$54,MATCH(AD$7,Escalation!$6:$6,0),FALSE)*100),VLOOKUP(CONCATENATE("Post ",MAX(Escalation!$A:$A)),Escalation!$A$7:$R$54,MATCH(AD$7,Escalation!$6:$6,0),FALSE)*100,VLOOKUP($AA14,Escalation!$A$7:$R$54,MATCH(AD$7,Escalation!$6:$6,0),FALSE)*100) -> 2.601072705 | AE14: =(1+AD14/100)*AE13 -> 1.026010727 | AF14: =IF(ISNA(VLOOKUP($AA14,Escalation!$A$7:$R$54,MATCH(AF$7,Escalation!$6:$6,0),FALSE)*100),VLOOKUP(CONCATENATE("Post ",MAX(Escalation!$A:$A)),Escalation!$A$7:$R$54,MATCH(AF$7,Escalation!$6:$6,0),FALSE)*100,VLOOKUP($AA14,Escalation!$A$7:$R$54,MATCH(AF$7,Escalation!$6:$6,0),FALSE)*100) -> 2.800536353 | AG14: =(1+AF14/100)*AG13 -> 1.028005364 | AH14: =IF(ISNA(VLOOKUP($AA14,Escalation!$A$7:$R$54,MATCH(AH$7,Escalation!$6:$6,0),FALSE)*100),VLOOKUP(CONCATENATE("Post ",MAX(Escalation!$A:$A)),Escalation!$A$7:$R$54,MATCH(AH$7,Escalation!$6:$6,0),FALSE)*100,VLOOKUP($AA14,Escalation!$A$7:$R$54,MATCH(AH$7,Escalation!$6:$6,0),FALSE)*100) -> 3 | AI14: =(1+AH14/100)*AI13 -> 1.03 | AL14: =AL13+1 -> 2020 | AM14: =IF(ISNA(VLOOKUP($AA14,Escalation!$A$7:$R$54,MATCH(AM$8,Escalation!$6:$6,0),FALSE)*100),VLOOKUP(CONCATENATE("Post ",MAX(Escalation!$A:$A)),Escalation!$A$7:$R$54,MATCH(AM$8,Escalation!$6:$6,0),FALSE)*100,VLOOKUP($AA14,Escalation!$A$7:$R$54,MATCH(AM$8,Escalation!$6:$6,0),FALSE)*100) -> 2.202145411 | AN14: =(1+AM14/100)*AN13 -> 1.022021454 | AO14: =IF(ISNA(VLOOKUP($AA14,Escalation!$A$7:$R$54,MATCH(AO$8,Escalation!$6:$6,0),FALSE)*100),VLOOKUP(CONCATENATE("Post ",MAX(Escalation!$A:$A)),Escalation!$A$7:$R$54,MATCH(AO$8,Escalation!$6:$6,0),FALSE)*100,VLOOKUP($AA14,Escalation!$A$7:$R$54,MATCH(AO$8,Escalation!$6:$6,0),FALSE)*100) -> 3.058545146 | AP14: =(1+AO14/100)*AP13 -> 1.030585451 | AQ14: =IF(ISNA(VLOOKUP($AA14,Escalation!$A$7:$R$54,MATCH(AQ$8,Escalation!$6:$6,0),FALSE)*100),VLOOKUP(CONCATENATE("Post ",MAX(Escalation!$A:$A)),Escalation!$A$7:$R$54,MATCH(AQ$8,Escalation!$6:$6,0),FALSE)*100,VLOOKUP($AA14,Escalation!$A$7:$R$54,MATCH(AQ$8,Escalation!$6:$6,0),FALSE)*100) -> 3.058545146 | AR14: =(1+AQ14/100)*AR13 -> 1.030585451 | AS14: =IF(ISNA(VLOOKUP($AA14,Escalation!$A$7:$R$54,MATCH(AS$8,Escalation!$6:$6,0),FALSE)*100),VLOOKUP(CONCATENATE("Post ",MAX(Escalation!$A:$A)),Escalation!$A$7:$R$54,MATCH(AS$8,Escalation!$6:$6,0),FALSE)*100,VLOOKUP($AA14,Escalation!$A$7:$R$54,MATCH(AS$8,Escalation!$6:$6,0),FALSE)*100) -> 2.901670975 | AT14: =(1+AS14/100)*AT13 -> 1.02901671 | AU14: =IF(ISNA(VLOOKUP($AA14,Escalation!$A$7:$R$54,MATCH(AU$8,Escalation!$6:$6,0),FALSE)*100),VLOOKUP(CONCATENATE("Post ",MAX(Escalation!$A:$A)),Escalation!$A$7:$R$54,MATCH(AU$8,Escalation!$6:$6,0),FALSE)*100,VLOOKUP($AA14,Escalation!$A$7:$R$54,MATCH(AU$8,Escalation!$6:$6,0),FALSE)*100) -> 2.780990043 | AV14: =(1+AU14/100)*AV13 -> 1.0278099 | AW14: =IF(ISNA(VLOOKUP($AA14,Escalation!$A$7:$R$54,MATCH(AW$8,Escalation!$6:$6,0),FALSE)*100),VLOOKUP(CONCATENATE("Post ",MAX(Escalation!$A:$A)),Escalation!$A$7:$R$54,MATCH(AW$8,Escalation!$6:$6,0),FALSE)*100,VLOOKUP($AA14,Escalation!$A$7:$R$54,MATCH(AW$8,Escalation!$6:$6,0),FALSE)*100) -> 2.002530857 | AX14: =(1+AW14/100)*AX13 -> 1.020025309 | AY14: =IF(ISNA(VLOOKUP($AA14,Escalation!$A$7:$R$54,MATCH(AY$8,Escalation!$6:$6,0),FALSE)*100),VLOOKUP(CONCATENATE("Post ",MAX(Escalation!$A:$A)),Escalation!$A$7:$R$54,MATCH(AY$8,Escalation!$6:$6,0),FALSE)*100,VLOOKUP($AA14,Escalation!$A$7:$R$54,MATCH(AY$8,Escalation!$6:$6,0),FALSE)*100) -> 2.002530857 | AZ14: =(1+AY14/100)*AZ13 -> 1.020025309
AA15: =AA14+1 -> 2021 | AB15: =IF(ISNA(VLOOKUP($AA15,Escalation!$A$7:$R$54,MATCH(AB$7,Escalation!$6:$6,0),FALSE)*100),VLOOKUP(CONCATENATE("Post ",MAX(Escalation!$A:$A)),Escalation!$A$7:$R$54,MATCH(AB$7,Escalation!$6:$6,0),FALSE)*100,VLOOKUP($AA15,Escalation!$A$7:$R$54,MATCH(AB$7,Escalation!$6:$6,0),FALSE)*100) -> 2.281301118 | AC15: =(1+AB15/100)*AC14 -> 1.047376981 | AD15: =IF(ISNA(VLOOKUP($AA15,Escalation!$A$7:$R$54,MATCH(AD$7,Escalation!$6:$6,0),FALSE)*100),VLOOKUP(CONCATENATE("Post ",MAX(Escalation!$A:$A)),Escalation!$A$7:$R$54,MATCH(AD$7,Escalation!$6:$6,0),FALSE)*100,VLOOKUP($AA15,Escalation!$A$7:$R$54,MATCH(AD$7,Escalation!$6:$6,0),FALSE)*100) -> 2.520867412 | AE15: 1.051875097 | AF15: =IF(ISNA(VLOOKUP($AA15,Escalation!$A$7:$R$54,MATCH(AF$7,Escalation!$6:$6,0),FALSE)*100),VLOOKUP(CONCATENATE("Post ",MAX(Escalation!$A:$A)),Escalation!$A$7:$R$54,MATCH(AF$7,Escalation!$6:$6,0),FALSE)*100,VLOOKUP($AA15,Escalation!$A$7:$R$54,MATCH(AF$7,Escalation!$6:$6,0),FALSE)*100) -> 2.760433706 | AG15: =(1+AF15/100)*AG14 -> 1.05638277 | AH15: =IF(ISNA(VLOOKUP($AA15,Escalation!$A$7:$R$54,MATCH(AH$7,Escalation!$6:$6,0),FALSE)*100),VLOOKUP(CONCATENATE("Post ",MAX(Escalation!$A:$A)),Escalation!$A$7:$R$54,MATCH(AH$7,Escalation!$6:$6,0),FALSE)*100,VLOOKUP($AA15,Escalation!$A$7:$R$54,MATCH(AH$7,Escalation!$6:$6,0),FALSE)*100) -> 3 | AI15: 1.0609 | AL15: =AL14+1 -> 2021 | AM15: =IF(ISNA(VLOOKUP($AA15,Escalation!$A$7:$R$54,MATCH(AM$8,Escalation!$6:$6,0),FALSE)*100),VLOOKUP(CONCATENATE("Post ",MAX(Escalation!$A:$A)),Escalation!$A$7:$R$54,MATCH(AM$8,Escalation!$6:$6,0),FALSE)*100,VLOOKUP($AA15,Escalation!$A$7:$R$54,MATCH(AM$8,Escalation!$6:$6,0),FALSE)*100) -> 2.041734824 | AN15: 1.042888422 | AO15: =IF(ISNA(VLOOKUP($AA15,Escalation!$A$7:$R$54,MATCH(AO$8,Escalation!$6:$6,0),FALSE)*100),VLOOKUP(CONCATENATE("Post ",MAX(Escalation!$A:$A)),Escalation!$A$7:$R$54,MATCH(AO$8,Escalation!$6:$6,0),FALSE)*100,VLOOKUP($AA15,Escalation!$A$7:$R$54,MATCH(AO$8,Escalation!$6:$6,0),FALSE)*100) -> 2.898134559 | AP15: 1.060453205 | AQ15: =IF(ISNA(VLOOKUP($AA15,Escalation!$A$7:$R$54,MATCH(AQ$8,Escalation!$6:$6,0),FALSE)*100),VLOOKUP(CONCATENATE("Post ",MAX(Escalation!$A:$A)),Escalation!$A$7:$R$54,MATCH(AQ$8,Escalation!$6:$6,0),FALSE)*100,VLOOKUP($AA15,Escalation!$A$7:$R$54,MATCH(AQ$8,Escalation!$6:$6,0),FALSE)*100) -> 2.898134559 | AR15: 1.060453205 | AS15: =IF(ISNA(VLOOKUP($AA15,Escalation!$A$7:$R$54,MATCH(AS$8,Escalation!$6:$6,0),FALSE)*100),VLOOKUP(CONCATENATE("Post ",MAX(Escalation!$A:$A)),Escalation!$A$7:$R$54,MATCH(AS$8,Escalation!$6:$6,0),FALSE)*100,VLOOKUP($AA15,Escalation!$A$7:$R$54,MATCH(AS$8,Escalation!$6:$6,0),FALSE)*100) -> 2.741260388 | AT15: 1.057224737 | AU15: =IF(ISNA(VLOOKUP($AA15,Escalation!$A$7:$R$54,MATCH(AU$8,Escalation!$6:$6,0),FALSE)*100),VLOOKUP(CONCATENATE("Post ",MAX(Escalation!$A:$A)),Escalation!$A$7:$R$54,MATCH(AU$8,Escalation!$6:$6,0),FALSE)*100,VLOOKUP($AA15,Escalation!$A$7:$R$54,MATCH(AU$8,Escalation!$6:$6,0),FALSE)*100) -> 2.620579456 | AV15: 1.054744476 | AW15: =IF(ISNA(VLOOKUP($AA15,Escalation!$A$7:$R$54,MATCH(AW$8,Escalation!$6:$6,0),FALSE)*100),VLOOKUP(CONCATENATE("Post ",MAX(Escalation!$A:$A)),Escalation!$A$7:$R$54,MATCH(AW$8,Escalation!$6:$6,0),FALSE)*100,VLOOKUP($AA15,Escalation!$A$7:$R$54,MATCH(AW$8,Escalation!$6:$6,0),FALSE)*100) -> 2.000127699 | AX15: 1.040427117 | AY15: =IF(ISNA(VLOOKUP($AA15,Escalation!$A$7:$R$54,MATCH(AY$8,Escalation!$6:$6,0),FALSE)*100),VLOOKUP(CONCATENATE("Post ",MAX(Escalation!$A:$A)),Escalation!$A$7:$R$54,MATCH(AY$8,Escalation!$6:$6,0),FALSE)*100,VLOOKUP($AA15,Escalation!$A$7:$R$54,MATCH(AY$8,Escalation!$6:$6,0),FALSE)*100) -> 2.000127699 | AZ15: 1.040427117
E16: Discount Rate | G16: 0.065 | AA16: 2022 | AB16: =IF(ISNA(VLOOKUP($AA16,Escalation!$A$7:$R$54,MATCH(AB$7,Escalation!$6:$6,0),FALSE)*100),VLOOKUP(CONCATENATE("Post ",MAX(Escalation!$A:$A)),Escalation!$A$7:$R$54,MATCH(AB$7,Escalation!$6:$6,0),FALSE)*100,VLOOKUP($AA16,Escalation!$A$7:$R$54,MATCH(AB$7,Escalation!$6:$6,0),FALSE)*100) -> 2.253671778 | AC16: 1.070981421 | AD16: =IF(ISNA(VLOOKUP($AA16,Escalation!$A$7:$R$54,MATCH(AD$7,Escalation!$6:$6,0),FALSE)*100),VLOOKUP(CONCATENATE("Post ",MAX(Escalation!$A:$A)),Escalation!$A$7:$R$54,MATCH(AD$7,Escalation!$6:$6,0),FALSE)*100,VLOOKUP($AA16,Escalation!$A$7:$R$54,MATCH(AD$7,Escalation!$6:$6,0),FALSE)*100) -> 2.502447852 | AE16: 1.078197723 | AF16: =IF(ISNA(VLOOKUP($AA16,Escalation!$A$7:$R$54,MATCH(AF$7,Escalation!$6:$6,0),FALSE)*100),VLOOKUP(CONCATENATE("Post ",MAX(Escalation!$A:$A)),Escalation!$A$7:$R$54,MATCH(AF$7,Escalation!$6:$6,0),FALSE)*100,VLOOKUP($AA16,Escalation!$A$7:$R$54,MATCH(AF$7,Escalation!$6:$6,0),FALSE)*100) -> 2.751223926 | AG16: 1.085446226 | AH16: =IF(ISNA(VLOOKUP($AA16,Escalation!$A$7:$R$54,MATCH(AH$7,Escalation!$6:$6,0),FALSE)*100),VLOOKUP(CONCATENATE("Post ",MAX(Escalation!$A:$A)),Escalation!$A$7:$R$54,MATCH(AH$7,Escalation!$6:$6,0),FALSE)*100,VLOOKUP($AA16,Escalation!$A$7:$R$54,MATCH(AH$7,Escalation!$6:$6,0),FALSE)*100) -> 3 | AI16: 1.092727 | AL16: 2022 | AM16: =IF(ISNA(VLOOKUP($AA16,Escalation!$A$7:$R$54,MATCH(AM$8,Escalation!$6:$6,0),FALSE)*100),VLOOKUP(CONCATENATE("Post ",MAX(Escalation!$A:$A)),Escalation!$A$7:$R$54,MATCH(AM$8,Escalation!$6:$6,0),FALSE)*100,VLOOKUP($AA16,Escalation!$A$7:$R$54,MATCH(AM$8,Escalation!$6:$6,0),FALSE)*100) -> 2.004895703 | AN16: 1.063797247 | AO16: =IF(ISNA(VLOOKUP($AA16,Escalation!$A$7:$R$54,MATCH(AO$8,Escalation!$6:$6,0),FALSE)*100),VLOOKUP(CONCATENATE("Post ",MAX(Escalation!$A:$A)),Escalation!$A$7:$R$54,MATCH(AO$8,Escalation!$6:$6,0),FALSE)*100,VLOOKUP($AA16,Escalation!$A$7:$R$54,MATCH(AO$8,Escalation!$6:$6,0),FALSE)*100) -> 2.861295439 | AP16: 1.090795904 | AQ16: =IF(ISNA(VLOOKUP($AA16,Escalation!$A$7:$R$54,MATCH(AQ$8,Escalation!$6:$6,0),FALSE)*100),VLOOKUP(CONCATENATE("Post ",MAX(Escalation!$A:$A)),Escalation!$A$7:$R$54,MATCH(AQ$8,Escalation!$6:$6,0),FALSE)*100,VLOOKUP($AA16,Escalation!$A$7:$R$54,MATCH(AQ$8,Escalation!$6:$6,0),FALSE)*100) -> 2.861295439 | AR16: 1.090795904 | AS16: =IF(ISNA(VLOOKUP($AA16,Escalation!$A$7:$R$54,MATCH(AS$8,Escalation!$6:$6,0),FALSE)*100),VLOOKUP(CONCATENATE("Post ",MAX(Escalation!$A:$A)),Escalation!$A$7:$R$54,MATCH(AS$8,Escalation!$6:$6,0),FALSE)*100,VLOOKUP($AA16,Escalation!$A$7:$R$54,MATCH(AS$8,Escalation!$6:$6,0),FALSE)*100) -> 2.704421267 | AT16: 1.085816548 | AU16: =IF(ISNA(VLOOKUP($AA16,Escalation!$A$7:$R$54,MATCH(AU$8,Escalation!$6:$6,0),FALSE)*100),VLOOKUP(CONCATENATE("Post ",MAX(Escalation!$A:$A)),Escalation!$A$7:$R$54,MATCH(AU$8,Escalation!$6:$6,0),FALSE)*100,VLOOKUP($AA16,Escalation!$A$7:$R$54,MATCH(AU$8,Escalation!$6:$6,0),FALSE)*100) -> 2.583740336 | AV16: 1.081996334 | AW16: =IF(ISNA(VLOOKUP($AA16,Escalation!$A$7:$R$54,MATCH(AW$8,Escalation!$6:$6,0),FALSE)*100),VLOOKUP(CONCATENATE("Post ",MAX(Escalation!$A:$A)),Escalation!$A$7:$R$54,MATCH(AW$8,Escalation!$6:$6,0),FALSE)*100,VLOOKUP($AA16,Escalation!$A$7:$R$54,MATCH(AW$8,Escalation!$6:$6,0),FALSE)*100) -> 2.010106006 | AX16: 1.061340805 | AY16: =IF(ISNA(VLOOKUP($AA16,Escalation!$A$7:$R$54,MATCH(AY$8,Escalation!$6:$6,0),FALSE)*100),VLOOKUP(CONCATENATE("Post ",MAX(Escalation!$A:$A)),Escalation!$A$7:$R$54,MATCH(AY$8,Escalation!$6:$6,0),FALSE)*100,VLOOKUP($AA16,Escalation!$A$7:$R$54,MATCH(AY$8,Escalation!$6:$6,0),FALSE)*100) -> 2.010106006 | AZ16: 1.061340805
AA17: 2023 | AB17: =IF(ISNA(VLOOKUP($AA17,Escalation!$A$7:$R$54,MATCH(AB$7,Escalation!$6:$6,0),FALSE)*100),VLOOKUP(CONCATENATE("Post ",MAX(Escalation!$A:$A)),Escalation!$A$7:$R$54,MATCH(AB$7,Escalation!$6:$6,0),FALSE)*100,VLOOKUP($AA17,Escalation!$A$7:$R$54,MATCH(AB$7,Escalation!$6:$6,0),FALSE)*100) -> 2.255953052 | AC17: 1.095142259 | AD17: =IF(ISNA(VLOOKUP($AA17,Escalation!$A$7:$R$54,MATCH(AD$7,Escalation!$6:$6,0),FALSE)*100),VLOOKUP(CONCATENATE("Post ",MAX(Escalation!$A:$A)),Escalation!$A$7:$R$54,MATCH(AD$7,Escalation!$6:$6,0),FALSE)*100,VLOOKUP($AA17,Escalation!$A$7:$R$54,MATCH(AD$7,Escalation!$6:$6,0),FALSE)*100) -> 2.503968701 | AE17: 1.105195456 | AF17: =IF(ISNA(VLOOKUP($AA17,Escalation!$A$7:$R$54,MATCH(AF$7,Escalation!$6:$6,0),FALSE)*100),VLOOKUP(CONCATENATE("Post ",MAX(Escalation!$A:$A)),Escalation!$A$7:$R$54,MATCH(AF$7,Escalation!$6:$6,0),FALSE)*100,VLOOKUP($AA17,Escalation!$A$7:$R$54,MATCH(AF$7,Escalation!$6:$6,0),FALSE)*100) -> 2.751984351 | AG17: 1.115317536 | AH17: =IF(ISNA(VLOOKUP($AA17,Escalation!$A$7:$R$54,MATCH(AH$7,Escalation!$6:$6,0),FALSE)*100),VLOOKUP(CONCATENATE("Post ",MAX(Escalation!$A:$A)),Escalation!$A$7:$R$54,MATCH(AH$7,Escalation!$6:$6,0),FALSE)*100,VLOOKUP($AA17,Escalation!$A$7:$R$54,MATCH(AH$7,Escalation!$6:$6,0),FALSE)*100) -> 3 | AI17: 1.12550881 | AL17: 2023 | AM17: =IF(ISNA(VLOOKUP($AA17,Escalation!$A$7:$R$54,MATCH(AM$8,Escalation!$6:$6,0),FALSE)*100),VLOOKUP(CONCATENATE("Post ",MAX(Escalation!$A:$A)),Escalation!$A$7:$R$54,MATCH(AM$8,Escalation!$6:$6,0),FALSE)*100,VLOOKUP($AA17,Escalation!$A$7:$R$54,MATCH(AM$8,Escalation!$6:$6,0),FALSE)*100) -> 2.007937402 | AN17: 1.08515763 | AO17: =IF(ISNA(VLOOKUP($AA17,Escalation!$A$7:$R$54,MATCH(AO$8,Escalation!$6:$6,0),FALSE)*100),VLOOKUP(CONCATENATE("Post ",MAX(Escalation!$A:$A)),Escalation!$A$7:$R$54,MATCH(AO$8,Escalation!$6:$6,0),FALSE)*100,VLOOKUP($AA17,Escalation!$A$7:$R$54,MATCH(AO$8,Escalation!$6:$6,0),FALSE)*100) -> 2.864337138 | AP17: 1.122039976 | AQ17: =IF(ISNA(VLOOKUP($AA17,Escalation!$A$7:$R$54,MATCH(AQ$8,Escalation!$6:$6,0),FALSE)*100),VLOOKUP(CONCATENATE("Post ",MAX(Escalation!$A:$A)),Escalation!$A$7:$R$54,MATCH(AQ$8,Escalation!$6:$6,0),FALSE)*100,VLOOKUP($AA17,Escalation!$A$7:$R$54,MATCH(AQ$8,Escalation!$6:$6,0),FALSE)*100) -> 2.864337138 | AR17: 1.122039976 | AS17: =IF(ISNA(VLOOKUP($AA17,Escalation!$A$7:$R$54,MATCH(AS$8,Escalation!$6:$6,0),FALSE)*100),VLOOKUP(CONCATENATE("Post ",MAX(Escalation!$A:$A)),Escalation!$A$7:$R$54,MATCH(AS$8,Escalation!$6:$6,0),FALSE)*100,VLOOKUP($AA17,Escalation!$A$7:$R$54,MATCH(AS$8,Escalation!$6:$6,0),FALSE)*100) -> 2.707462966 | AT17: 1.115214629 | AU17: =IF(ISNA(VLOOKUP($AA17,Escalation!$A$7:$R$54,MATCH(AU$8,Escalation!$6:$6,0),FALSE)*100),VLOOKUP(CONCATENATE("Post ",MAX(Escalation!$A:$A)),Escalation!$A$7:$R$54,MATCH(AU$8,Escalation!$6:$6,0),FALSE)*100,VLOOKUP($AA17,Escalation!$A$7:$R$54,MATCH(AU$8,Escalation!$6:$6,0),FALSE)*100) -> 2.586782034 | AV17: 1.109985221 | AW17: =IF(ISNA(VLOOKUP($AA17,Escalation!$A$7:$R$54,MATCH(AW$8,Escalation!$6:$6,0),FALSE)*100),VLOOKUP(CONCATENATE("Post ",MAX(Escalation!$A:$A)),Escalation!$A$7:$R$54,MATCH(AW$8,Escalation!$6:$6,0),FALSE)*100,VLOOKUP($AA17,Escalation!$A$7:$R$54,MATCH(AW$8,Escalation!$6:$6,0),FALSE)*100) -> 1.98544152 | AX17: 1.082413106 | AY17: =IF(ISNA(VLOOKUP($AA17,Escalation!$A$7:$R$54,MATCH(AY$8,Escalation!$6:$6,0),FALSE)*100),VLOOKUP(CONCATENATE("Post ",MAX(Escalation!$A:$A)),Escalation!$A$7:$R$54,MATCH(AY$8,Escalation!$6:$6,0),FALSE)*100,VLOOKUP($AA17,Escalation!$A$7:$R$54,MATCH(AY$8,Escalation!$6:$6,0),FALSE)*100) -> 1.98544152 | AZ17: 1.082413106
E18: Present Worth Year | G18: 2019 | AA18: 2024 | AB18: =IF(ISNA(VLOOKUP($AA18,Escalation!$A$7:$R$54,MATCH(AB$7,Escalation!$6:$6,0),FALSE)*100),VLOOKUP(CONCATENATE("Post ",MAX(Escalation!$A:$A)),Escalation!$A$7:$R$54,MATCH(AB$7,Escalation!$6:$6,0),FALSE)*100,VLOOKUP($AA18,Escalation!$A$7:$R$54,MATCH(AB$7,Escalation!$6:$6,0),FALSE)*100) -> 2.255953052 | AC18: 1.119848154 | AD18: =IF(ISNA(VLOOKUP($AA18,Escalation!$A$7:$R$54,MATCH(AD$7,Escalation!$6:$6,0),FALSE)*100),VLOOKUP(CONCATENATE("Post ",MAX(Escalation!$A:$A)),Escalation!$A$7:$R$54,MATCH(AD$7,Escalation!$6:$6,0),FALSE)*100,VLOOKUP($AA18,Escalation!$A$7:$R$54,MATCH(AD$7,Escalation!$6:$6,0),FALSE)*100) -> 2.503968701 | AE18: 1.132869205 | AF18: =IF(ISNA(VLOOKUP($AA18,Escalation!$A$7:$R$54,MATCH(AF$7,Escalation!$6:$6,0),FALSE)*100),VLOOKUP(CONCATENATE("Post ",MAX(Escalation!$A:$A)),Escalation!$A$7:$R$54,MATCH(AF$7,Escalation!$6:$6,0),FALSE)*100,VLOOKUP($AA18,Escalation!$A$7:$R$54,MATCH(AF$7,Escalation!$6:$6,0),FALSE)*100) -> 2.751984351 | AG18: 1.1460109 | AH18: =IF(ISNA(VLOOKUP($AA18,Escalation!$A$7:$R$54,MATCH(AH$7,Escalation!$6:$6,0),FALSE)*100),VLOOKUP(CONCATENATE("Post ",MAX(Escalation!$A:$A)),Escalation!$A$7:$R$54,MATCH(AH$7,Escalation!$6:$6,0),FALSE)*100,VLOOKUP($AA18,Escalation!$A$7:$R$54,MATCH(AH$7,Escalation!$6:$6,0),FALSE)*100) -> 3 | AI18: 1.159274074 | AL18: 2024 | AM18: =IF(ISNA(VLOOKUP($AA18,Escalation!$A$7:$R$54,MATCH(AM$8,Escalation!$6:$6,0),FALSE)*100),VLOOKUP(CONCATENATE("Post ",MAX(Escalation!$A:$A)),Escalation!$A$7:$R$54,MATCH(AM$8,Escalation!$6:$6,0),FALSE)*100,VLOOKUP($AA18,Escalation!$A$7:$R$54,MATCH(AM$8,Escalation!$6:$6,0),FALSE)*100) -> 2.007937402 | AN18: 1.106946916 | AO18: =IF(ISNA(VLOOKUP($AA18,Escalation!$A$7:$R$54,MATCH(AO$8,Escalation!$6:$6,0),FALSE)*100),VLOOKUP(CONCATENATE("Post ",MAX(Escalation!$A:$A)),Escalation!$A$7:$R$54,MATCH(AO$8,Escalation!$6:$6,0),FALSE)*100,VLOOKUP($AA18,Escalation!$A$7:$R$54,MATCH(AO$8,Escalation!$6:$6,0),FALSE)*100) -> 2.864337138 | AP18: 1.154178984 | AQ18: =IF(ISNA(VLOOKUP($AA18,Escalation!$A$7:$R$54,MATCH(AQ$8,Escalation!$6:$6,0),FALSE)*100),VLOOKUP(CONCATENATE("Post ",MAX(Escalation!$A:$A)),Escalation!$A$7:$R$54,MATCH(AQ$8,Escalation!$6:$6,0),FALSE)*100,VLOOKUP($AA18,Escalation!$A$7:$R$54,MATCH(AQ$8,Escalation!$6:$6,0),FALSE)*100) -> 2.864337138 | AR18: 1.154178984 | AS18: =IF(ISNA(VLOOKUP($AA18,Escalation!$A$7:$R$54,MATCH(AS$8,Escalation!$6:$6,0),FALSE)*100),VLOOKUP(CONCATENATE("Post ",MAX(Escalation!$A:$A)),Escalation!$A$7:$R$54,MATCH(AS$8,Escalation!$6:$6,0),FALSE)*100,VLOOKUP($AA18,Escalation!$A$7:$R$54,MATCH(AS$8,Escalation!$6:$6,0),FALSE)*100) -> 2.707462966 | AT18: 1.145408652 | AU18: =IF(ISNA(VLOOKUP($AA18,Escalation!$A$7:$R$54,MATCH(AU$8,Escalation!$6:$6,0),FALSE)*100),VLOOKUP(CONCATENATE("Post ",MAX(Escalation!$A:$A)),Escalation!$A$7:$R$54,MATCH(AU$8,Escalation!$6:$6,0),FALSE)*100,VLOOKUP($AA18,Escalation!$A$7:$R$54,MATCH(AU$8,Escalation!$6:$6,0),FALSE)*100) -> 2.586782034 | AV18: 1.138698119 | AW18: =IF(ISNA(VLOOKUP($AA18,Escalation!$A$7:$R$54,MATCH(AW$8,Escalation!$6:$6,0),FALSE)*100),VLOOKUP(CONCATENATE("Post ",MAX(Escalation!$A:$A)),Escalation!$A$7:$R$54,MATCH(AW$8,Escalation!$6:$6,0),FALSE)*100,VLOOKUP($AA18,Escalation!$A$7:$R$54,MATCH(AW$8,Escalation!$6:$6,0),FALSE)*100) -> 1.98544152 | AX18: 1.103903786 | AY18: =IF(ISNA(VLOOKUP($AA18,Escalation!$A$7:$R$54,MATCH(AY$8,Escalation!$6:$6,0),FALSE)*100),VLOOKUP(CONCATENATE("Post ",MAX(Escalation!$A:$A)),Escalation!$A$7:$R$54,MATCH(AY$8,Escalation!$6:$6,0),FALSE)*100,VLOOKUP($AA18,Escalation!$A$7:$R$54,MATCH(AY$8,Escalation!$6:$6,0),FALSE)*100) -> 1.98544152 | AZ18: 1.103903786
D19: (costs are present worthed to January of that year) | AA19: 2025 | AB19: =IF(ISNA(VLOOKUP($AA19,Escalation!$A$7:$R$54,MATCH(AB$7,Escalation!$6:$6,0),FALSE)*100),VLOOKUP(CONCATENATE("Post ",MAX(Escalation!$A:$A)),Escalation!$A$7:$R$54,MATCH(AB$7,Escalation!$6:$6,0),FALSE)*100,VLOOKUP($AA19,Escalation!$A$7:$R$54,MATCH(AB$7,Escalation!$6:$6,0),FALSE)*100) -> 2.255953052 | AC19: 1.145111402 | AD19: =IF(ISNA(VLOOKUP($AA19,Escalation!$A$7:$R$54,MATCH(AD$7,Escalation!$6:$6,0),FALSE)*100),VLOOKUP(CONCATENATE("Post ",MAX(Escalation!$A:$A)),Escalation!$A$7:$R$54,MATCH(AD$7,Escalation!$6:$6,0),FALSE)*100,VLOOKUP($AA19,Escalation!$A$7:$R$54,MATCH(AD$7,Escalation!$6:$6,0),FALSE)*100) -> 2.503968701 | AE19: 1.161235895 | AF19: =IF(ISNA(VLOOKUP($AA19,Escalation!$A$7:$R$54,MATCH(AF$7,Escalation!$6:$6,0),FALSE)*100),VLOOKUP(CONCATENATE("Post ",MAX(Escalation!$A:$A)),Escalation!$A$7:$R$54,MATCH(AF$7,Escalation!$6:$6,0),FALSE)*100,VLOOKUP($AA19,Escalation!$A$7:$R$54,MATCH(AF$7,Escalation!$6:$6,0),FALSE)*100) -> 2.751984351 | AG19: 1.177548941 | AH19: =IF(ISNA(VLOOKUP($AA19,Escalation!$A$7:$R$54,MATCH(AH$7,Escalation!$6:$6,0),FALSE)*100),VLOOKUP(CONCATENATE("Post ",MAX(Escalation!$A:$A)),Escalation!$A$7:$R$54,MATCH(AH$7,Escalation!$6:$6,0),FALSE)*100,VLOOKUP($AA19,Escalation!$A$7:$R$54,MATCH(AH$7,Escalation!$6:$6,0),FALSE)*100) -> 3 | AI19: 1.194052297 | AL19: 2025 | AM19: =IF(ISNA(VLOOKUP($AA19,Escalation!$A$7:$R$54,MATCH(AM$8,Escalation!$6:$6,0),FALSE)*100),VLOOKUP(CONCATENATE("Post ",MAX(Escalation!$A:$A)),Escalation!$A$7:$R$54,MATCH(AM$8,Escalation!$6:$6,0),FALSE)*100,VLOOKUP($AA19,Escalation!$A$7:$R$54,MATCH(AM$8,Escalation!$6:$6,0),FALSE)*100) -> 2.007937402 | AN19: 1.129173717 | AO19: =IF(ISNA(VLOOKUP($AA19,Escalation!$A$7:$R$54,MATCH(AO$8,Escalation!$6:$6,0),FALSE)*100),VLOOKUP(CONCATENATE("Post ",MAX(Escalation!$A:$A)),Escalation!$A$7:$R$54,MATCH(AO$8,Escalation!$6:$6,0),FALSE)*100,VLOOKUP($AA19,Escalation!$A$7:$R$54,MATCH(AO$8,Escalation!$6:$6,0),FALSE)*100) -> 2.864337138 | AP19: 1.187238561 | AQ19: =IF(ISNA(VLOOKUP($AA19,Escalation!$A$7:$R$54,MATCH(AQ$8,Escalation!$6:$6,0),FALSE)*100),VLOOKUP(CONCATENATE("Post ",MAX(Escalation!$A:$A)),Escalation!$A$7:$R$54,MATCH(AQ$8,Escalation!$6:$6,0),FALSE)*100,VLOOKUP($AA19,Escalation!$A$7:$R$54,MATCH(AQ$8,Escalation!$6:$6,0),FALSE)*100) -> 2.864337138 | AR19: 1.187238561 | AS19: =IF(ISNA(VLOOKUP($AA19,Escalation!$A$7:$R$54,MATCH(AS$8,Escalation!$6:$6,0),FALSE)*100),VLOOKUP(CONCATENATE("Post ",MAX(Escalation!$A:$A)),Escalation!$A$7:$R$54,MATCH(AS$8,Escalation!$6:$6,0),FALSE)*100,VLOOKUP($AA19,Escalation!$A$7:$R$54,MATCH(AS$8,Escalation!$6:$6,0),FALSE)*100) -> 2.707462966 | AT19: 1.176420167 | AU19: =IF(ISNA(VLOOKUP($AA19,Escalation!$A$7:$R$54,MATCH(AU$8,Escalation!$6:$6,0),FALSE)*100),VLOOKUP(CONCATENATE("Post ",MAX(Escalation!$A:$A)),Escalation!$A$7:$R$54,MATCH(AU$8,Escalation!$6:$6,0),FALSE)*100,VLOOKUP($AA19,Escalation!$A$7:$R$54,MATCH(AU$8,Escalation!$6:$6,0),FALSE)*100) -> 2.586782034 | AV19: 1.168153757 | AW19: =IF(ISNA(VLOOKUP($AA19,Escalation!$A$7:$R$54,MATCH(AW$8,Escalation!$6:$6,0),FALSE)*100),VLOOKUP(CONCATENATE("Post ",MAX(Escalation!$A:$A)),Escalation!$A$7:$R$54,MATCH(AW$8,Escalation!$6:$6,0),FALSE)*100,VLOOKUP($AA19,Escalation!$A$7:$R$54,MATCH(AW$8,Escalation!$6:$6,0),FALSE)*100) -> 1.98544152 | AX19: 1.12582115 | AY19: =IF(ISNA(VLOOKUP($AA19,Escalation!$A$7:$R$54,MATCH(AY$8,Escalation!$6:$6,0),FALSE)*100),VLOOKUP(CONCATENATE("Post ",MAX(Escalation!$A:$A)),Escalation!$A$7:$R$54,MATCH(AY$8,Escalation!$6:$6,0),FALSE)*100,VLOOKUP($AA19,Escalation!$A$7:$R$54,MATCH(AY$8,Escalation!$6:$6,0),FALSE)*100) -> 1.98544152 | AZ19: 1.12582115
AA20: 2026 | AB20: =IF(ISNA(VLOOKUP($AA20,Escalation!$A$7:$R$54,MATCH(AB$7,Escalation!$6:$6,0),FALSE)*100),VLOOKUP(CONCATENATE("Post ",MAX(Escalation!$A:$A)),Escalation!$A$7:$R$54,MATCH(AB$7,Escalation!$6:$6,0),FALSE)*100,VLOOKUP($AA20,Escalation!$A$7:$R$54,MATCH(AB$7,Escalation!$6:$6,0),FALSE)*100) -> 2.255953052 | AC20: 1.170944578 | AD20: =IF(ISNA(VLOOKUP($AA20,Escalation!$A$7:$R$54,MATCH(AD$7,Escalation!$6:$6,0),FALSE)*100),VLOOKUP(CONCATENATE("Post ",MAX(Escalation!$A:$A)),Escalation!$A$7:$R$54,MATCH(AD$7,Escalation!$6:$6,0),FALSE)*100,VLOOKUP($AA20,Escalation!$A$7:$R$54,MATCH(AD$7,Escalation!$6:$6,0),FALSE)*100) -> 2.503968701 | AE20: 1.190312878 | AF20: =IF(ISNA(VLOOKUP($AA20,Escalation!$A$7:$R$54,MATCH(AF$7,Escalation!$6:$6,0),FALSE)*100),VLOOKUP(CONCATENATE("Post ",MAX(Escalation!$A:$A)),Escalation!$A$7:$R$54,MATCH(AF$7,Escalation!$6:$6,0),FALSE)*100,VLOOKUP($AA20,Escalation!$A$7:$R$54,MATCH(AF$7,Escalation!$6:$6,0),FALSE)*100) -> 2.751984351 | AG20: 1.209954903 | AH20: =IF(ISNA(VLOOKUP($AA20,Escalation!$A$7:$R$54,MATCH(AH$7,Escalation!$6:$6,0),FALSE)*100),VLOOKUP(CONCATENATE("Post ",MAX(Escalation!$A:$A)),Escalation!$A$7:$R$54,MATCH(AH$7,Escalation!$6:$6,0),FALSE)*100,VLOOKUP($AA20,Escalation!$A$7:$R$54,MATCH(AH$7,Escalation!$6:$6,0),FALSE)*100) -> 3 | AI20: 1.229873865 | AL20: 2026 | AM20: =IF(ISNA(VLOOKUP($AA20,Escalation!$A$7:$R$54,MATCH(AM$8,Escalation!$6:$6,0),FALSE)*100),VLOOKUP(CONCATENATE("Post ",MAX(Escalation!$A:$A)),Escalation!$A$7:$R$54,MATCH(AM$8,Escalation!$6:$6,0),FALSE)*100,VLOOKUP($AA20,Escalation!$A$7:$R$54,MATCH(AM$8,Escalation!$6:$6,0),FALSE)*100) -> 2.007937402 | AN20: 1.151846818 | AO20: =IF(ISNA(VLOOKUP($AA20,Escalation!$A$7:$R$54,MATCH(AO$8,Escalation!$6:$6,0),FALSE)*100),VLOOKUP(CONCATENATE("Post ",MAX(Escalation!$A:$A)),Escalation!$A$7:$R$54,MATCH(AO$8,Escalation!$6:$6,0),FALSE)*100,VLOOKUP($AA20,Escalation!$A$7:$R$54,MATCH(AO$8,Escalation!$6:$6,0),FALSE)*100) -> 2.864337138 | AP20: 1.221245076 | AQ20: =IF(ISNA(VLOOKUP($AA20,Escalation!$A$7:$R$54,MATCH(AQ$8,Escalation!$6:$6,0),FALSE)*100),VLOOKUP(CONCATENATE("Post ",MAX(Escalation!$A:$A)),Escalation!$A$7:$R$54,MATCH(AQ$8,Escalation!$6:$6,0),FALSE)*100,VLOOKUP($AA20,Escalation!$A$7:$R$54,MATCH(AQ$8,Escalation!$6:$6,0),FALSE)*100) -> 2.864337138 | AR20: 1.221245076 | AS20: =IF(ISNA(VLOOKUP($AA20,Escalation!$A$7:$R$54,MATCH(AS$8,Escalation!$6:$6,0),FALSE)*100),VLOOKUP(CONCATENATE("Post ",MAX(Escalation!$A:$A)),Escalation!$A$7:$R$54,MATCH(AS$8,Escalation!$6:$6,0),FALSE)*100,VLOOKUP($AA20,Escalation!$A$7:$R$54,MATCH(AS$8,Escalation!$6:$6,0),FALSE)*100) -> 2.707462966 | AT20: 1.208271307 | AU20: =IF(ISNA(VLOOKUP($AA20,Escalation!$A$7:$R$54,MATCH(AU$8,Escalation!$6:$6,0),FALSE)*100),VLOOKUP(CONCATENATE("Post ",MAX(Escalation!$A:$A)),Escalation!$A$7:$R$54,MATCH(AU$8,Escalation!$6:$6,0),FALSE)*100,VLOOKUP($AA20,Escalation!$A$7:$R$54,MATCH(AU$8,Escalation!$6:$6,0),FALSE)*100) -> 2.586782034 | AV20: 1.198371349 | AW20: =IF(ISNA(VLOOKUP($AA20,Escalation!$A$7:$R$54,MATCH(AW$8,Escalation!$6:$6,0),FALSE)*100),VLOOKUP(CONCATENATE("Post ",MAX(Escalation!$A:$A)),Escalation!$A$7:$R$54,MATCH(AW$8,Escalation!$6:$6,0),FALSE)*100,VLOOKUP($AA20,Escalation!$A$7:$R$54,MATCH(AW$8,Escalation!$6:$6,0),FALSE)*100) -> 1.98544152 | AX20: 1.14817367 | AY20: =IF(ISNA(VLOOKUP($AA20,Escalation!$A$7:$R$54,MATCH(AY$8,Escalation!$6:$6,0),FALSE)*100),VLOOKUP(CONCATENATE("Post ",MAX(Escalation!$A:$A)),Escalation!$A$7:$R$54,MATCH(AY$8,Escalation!$6:$6,0),FALSE)*100,VLOOKUP($AA20,Escalation!$A$7:$R$54,MATCH(AY$8,Escalation!$6:$6,0),FALSE)*100) -> 1.98544152 | AZ20: 1.14817367
AA21: 2027 | AB21: =IF(ISNA(VLOOKUP($AA21,Escalation!$A$7:$R$54,MATCH(AB$7,Escalation!$6:$6,0),FALSE)*100),VLOOKUP(CONCATENATE("Post ",MAX(Escalation!$A:$A)),Escalation!$A$7:$R$54,MATCH(AB$7,Escalation!$6:$6,0),FALSE)*100,VLOOKUP($AA21,Escalation!$A$7:$R$54,MATCH(AB$7,Escalation!$6:$6,0),FALSE)*100) -> 2.255953052 | AC21: 1.197360538 | AD21: =IF(ISNA(VLOOKUP($AA21,Escalation!$A$7:$R$54,MATCH(AD$7,Escalation!$6:$6,0),FALSE)*100),VLOOKUP(CONCATENATE("Post ",MAX(Escalation!$A:$A)),Escalation!$A$7:$R$54,MATCH(AD$7,Escalation!$6:$6,0),FALSE)*100,VLOOKUP($AA21,Escalation!$A$7:$R$54,MATCH(AD$7,Escalation!$6:$6,0),FALSE)*100) -> 2.503968701 | AE21: 1.22011794 | AF21: =IF(ISNA(VLOOKUP($AA21,Escalation!$A$7:$R$54,MATCH(AF$7,Escalation!$6:$6,0),FALSE)*100),VLOOKUP(CONCATENATE("Post ",MAX(Escalation!$A:$A)),Escalation!$A$7:$R$54,MATCH(AF$7,Escalation!$6:$6,0),FALSE)*100,VLOOKUP($AA21,Escalation!$A$7:$R$54,MATCH(AF$7,Escalation!$6:$6,0),FALSE)*100) -> 2.751984351 | AG21: 1.243252673 | AH21: =IF(ISNA(VLOOKUP($AA21,Escalation!$A$7:$R$54,MATCH(AH$7,Escalation!$6:$6,0),FALSE)*100),VLOOKUP(CONCATENATE("Post ",MAX(Escalation!$A:$A)),Escalation!$A$7:$R$54,MATCH(AH$7,Escalation!$6:$6,0),FALSE)*100,VLOOKUP($AA21,Escalation!$A$7:$R$54,MATCH(AH$7,Escalation!$6:$6,0),FALSE)*100) -> 3 | AI21: 1.266770081 | AL21: 2027 | AM21: =IF(ISNA(VLOOKUP($AA21,Escalation!$A$7:$R$54,MATCH(AM$8,Escalation!$6:$6,0),FALSE)*100),VLOOKUP(CONCATENATE("Post ",MAX(Escalation!$A:$A)),Escalation!$A$7:$R$54,MATCH(AM$8,Escalation!$6:$6,0),FALSE)*100,VLOOKUP($AA21,Escalation!$A$7:$R$54,MATCH(AM$8,Escalation!$6:$6,0),FALSE)*100) -> 2.007937402 | AN21: 1.174975182 | AO21: =IF(ISNA(VLOOKUP($AA21,Escalation!$A$7:$R$54,MATCH(AO$8,Escalation!$6:$6,0),FALSE)*100),VLOOKUP(CONCATENATE("Post ",MAX(Escalation!$A:$A)),Escalation!$A$7:$R$54,MATCH(AO$8,Escalation!$6:$6,0),FALSE)*100,VLOOKUP($AA21,Escalation!$A$7:$R$54,MATCH(AO$8,Escalation!$6:$6,0),FALSE)*100) -> 2.864337138 | AP21: 1.256225652 | AQ21: =IF(ISNA(VLOOKUP($AA21,Escalation!$A$7:$R$54,MATCH(AQ$8,Escalation!$6:$6,0),FALSE)*100),VLOOKUP(CONCATENATE("Post ",MAX(Escalation!$A:$A)),Escalation!$A$7:$R$54,MATCH(AQ$8,Escalation!$6:$6,0),FALSE)*100,VLOOKUP($AA21,Escalation!$A$7:$R$54,MATCH(AQ$8,Escalation!$6:$6,0),FALSE)*100) -> 2.864337138 | AR21: 1.256225652 | AS21: =IF(ISNA(VLOOKUP($AA21,Escalation!$A$7:$R$54,MATCH(AS$8,Escalation!$6:$6,0),FALSE)*100),VLOOKUP(CONCATENATE("Post ",MAX(Escalation!$A:$A)),Escalation!$A$7:$R$54,MATCH(AS$8,Escalation!$6:$6,0),FALSE)*100,VLOOKUP($AA21,Escalation!$A$7:$R$54,MATCH(AS$8,Escalation!$6:$6,0),FALSE)*100) -> 2.707462966 | AT21: 1.240984805 | AU21: =IF(ISNA(VLOOKUP($AA21,Escalation!$A$7:$R$54,MATCH(AU$8,Escalation!$6:$6,0),FALSE)*100),VLOOKUP(CONCATENATE("Post ",MAX(Escalation!$A:$A)),Escalation!$A$7:$R$54,MATCH(AU$8,Escalation!$6:$6,0),FALSE)*100,VLOOKUP($AA21,Escalation!$A$7:$R$54,MATCH(AU$8,Escalation!$6:$6,0),FALSE)*100) -> 2.586782034 | AV21: 1.229370604 | AW21: =IF(ISNA(VLOOKUP($AA21,Escalation!$A$7:$R$54,MATCH(AW$8,Escalation!$6:$6,0),FALSE)*100),VLOOKUP(CONCATENATE("Post ",MAX(Escalation!$A:$A)),Escalation!$A$7:$R$54,MATCH(AW$8,Escalation!$6:$6,0),FALSE)*100,VLOOKUP($AA21,Escalation!$A$7:$R$54,MATCH(AW$8,Escalation!$6:$6,0),FALSE)*100) -> 1.98544152 | AX21: 1.170969987 | AY21: =IF(ISNA(VLOOKUP($AA21,Escalation!$A$7:$R$54,MATCH(AY$8,Escalation!$6:$6,0),FALSE)*100),VLOOKUP(CONCATENATE("Post ",MAX(Escalation!$A:$A)),Escalation!$A$7:$R$54,MATCH(AY$8,Escalation!$6:$6,0),FALSE)*100,VLOOKUP($AA21,Escalation!$A$7:$R$54,MATCH(AY$8,Escalation!$6:$6,0),FALSE)*100) -> 1.98544152 | AZ21: 1.170969987
AA22: 2028 | AB22: =IF(ISNA(VLOOKUP($AA22,Escalation!$A$7:$R$54,MATCH(AB$7,Escalation!$6:$6,0),FALSE)*100),VLOOKUP(CONCATENATE("Post ",MAX(Escalation!$A:$A)),Escalation!$A$7:$R$54,MATCH(AB$7,Escalation!$6:$6,0),FALSE)*100,VLOOKUP($AA22,Escalation!$A$7:$R$54,MATCH(AB$7,Escalation!$6:$6,0),FALSE)*100) -> 2.255953052 | AC22: 1.22437243 | AD22: =IF(ISNA(VLOOKUP($AA22,Escalation!$A$7:$R$54,MATCH(AD$7,Escalation!$6:$6,0),FALSE)*100),VLOOKUP(CONCATENATE("Post ",MAX(Escalation!$A:$A)),Escalation!$A$7:$R$54,MATCH(AD$7,Escalation!$6:$6,0),FALSE)*100,VLOOKUP($AA22,Escalation!$A$7:$R$54,MATCH(AD$7,Escalation!$6:$6,0),FALSE)*100) -> 2.503968701 | AE22: 1.250669312 | AF22: =IF(ISNA(VLOOKUP($AA22,Escalation!$A$7:$R$54,MATCH(AF$7,Escalation!$6:$6,0),FALSE)*100),VLOOKUP(CONCATENATE("Post ",MAX(Escalation!$A:$A)),Escalation!$A$7:$R$54,MATCH(AF$7,Escalation!$6:$6,0),FALSE)*100,VLOOKUP($AA22,Escalation!$A$7:$R$54,MATCH(AF$7,Escalation!$6:$6,0),FALSE)*100) -> 2.751984351 | AG22: 1.277466792 | AH22: =IF(ISNA(VLOOKUP($AA22,Escalation!$A$7:$R$54,MATCH(AH$7,Escalation!$6:$6,0),FALSE)*100),VLOOKUP(CONCATENATE("Post ",MAX(Escalation!$A:$A)),Escalation!$A$7:$R$54,MATCH(AH$7,Escalation!$6:$6,0),FALSE)*100,VLOOKUP($AA22,Escalation!$A$7:$R$54,MATCH(AH$7,Escalation!$6:$6,0),FALSE)*100) -> 3 | AI22: 1.304773184 | AL22: 2028 | AM22: =IF(ISNA(VLOOKUP($AA22,Escalation!$A$7:$R$54,MATCH(AM$8,Escalation!$6:$6,0),FALSE)*100),VLOOKUP(CONCATENATE("Post ",MAX(Escalation!$A:$A)),Escalation!$A$7:$R$54,MATCH(AM$8,Escalation!$6:$6,0),FALSE)*100,VLOOKUP($AA22,Escalation!$A$7:$R$54,MATCH(AM$8,Escalation!$6:$6,0),FALSE)*100) -> 2.007937402 | AN22: 1.198567948 | AO22: =IF(ISNA(VLOOKUP($AA22,Escalation!$A$7:$R$54,MATCH(AO$8,Escalation!$6:$6,0),FALSE)*100),VLOOKUP(CONCATENATE("Post ",MAX(Escalation!$A:$A)),Escalation!$A$7:$R$54,MATCH(AO$8,Escalation!$6:$6,0),FALSE)*100,VLOOKUP($AA22,Escalation!$A$7:$R$54,MATCH(AO$8,Escalation!$6:$6,0),FALSE)*100) -> 2.864337138 | AP22: 1.29220819 | AQ22: =IF(ISNA(VLOOKUP($AA22,Escalation!$A$7:$R$54,MATCH(AQ$8,Escalation!$6:$6,0),FALSE)*100),VLOOKUP(CONCATENATE("Post ",MAX(Escalation!$A:$A)),Escalation!$A$7:$R$54,MATCH(AQ$8,Escalation!$6:$6,0),FALSE)*100,VLOOKUP($AA22,Escalation!$A$7:$R$54,MATCH(AQ$8,Escalation!$6:$6,0),FALSE)*100) -> 2.864337138 | AR22: 1.29220819 | AS22: =IF(ISNA(VLOOKUP($AA22,Escalation!$A$7:$R$54,MATCH(AS$8,Escalation!$6:$6,0),FALSE)*100),VLOOKUP(CONCATENATE("Post ",MAX(Escalation!$A:$A)),Escalation!$A$7:$R$54,MATCH(AS$8,Escalation!$6:$6,0),FALSE)*100,VLOOKUP($AA22,Escalation!$A$7:$R$54,MATCH(AS$8,Escalation!$6:$6,0),FALSE)*100) -> 2.707462966 | AT22: 1.274584009 | AU22: =IF(ISNA(VLOOKUP($AA22,Escalation!$A$7:$R$54,MATCH(AU$8,Escalation!$6:$6,0),FALSE)*100),VLOOKUP(CONCATENATE("Post ",MAX(Escalation!$A:$A)),Escalation!$A$7:$R$54,MATCH(AU$8,Escalation!$6:$6,0),FALSE)*100,VLOOKUP($AA22,Escalation!$A$7:$R$54,MATCH(AU$8,Escalation!$6:$6,0),FALSE)*100) -> 2.586782034 | AV22: 1.261171742 | AW22: =IF(ISNA(VLOOKUP($AA22,Escalation!$A$7:$R$54,MATCH(AW$8,Escalation!$6:$6,0),FALSE)*100),VLOOKUP(CONCATENATE("Post ",MAX(Escalation!$A:$A)),Escalation!$A$7:$R$54,MATCH(AW$8,Escalation!$6:$6,0),FALSE)*100,VLOOKUP($AA22,Escalation!$A$7:$R$54,MATCH(AW$8,Escalation!$6:$6,0),FALSE)*100) -> 1.98544152 | AX22: 1.194218911 | AY22: =IF(ISNA(VLOOKUP($AA22,Escalation!$A$7:$R$54,MATCH(AY$8,Escalation!$6:$6,0),FALSE)*100),VLOOKUP(CONCATENATE("Post ",MAX(Escalation!$A:$A)),Escalation!$A$7:$R$54,MATCH(AY$8,Escalation!$6:$6,0),FALSE)*100,VLOOKUP($AA22,Escalation!$A$7:$R$54,MATCH(AY$8,Escalation!$6:$6,0),FALSE)*100) -> 1.98544152 | AZ22: 1.194218911
AA23: 2029 | AB23: =IF(ISNA(VLOOKUP($AA23,Escalation!$A$7:$R$54,MATCH(AB$7,Escalation!$6:$6,0),FALSE)*100),VLOOKUP(CONCATENATE("Post ",MAX(Escalation!$A:$A)),Escalation!$A$7:$R$54,MATCH(AB$7,Escalation!$6:$6,0),FALSE)*100,VLOOKUP($AA23,Escalation!$A$7:$R$54,MATCH(AB$7,Escalation!$6:$6,0),FALSE)*100) -> 2.255953052 | AC23: 1.251993697 | AD23: =IF(ISNA(VLOOKUP($AA23,Escalation!$A$7:$R$54,MATCH(AD$7,Escalation!$6:$6,0),FALSE)*100),VLOOKUP(CONCATENATE("Post ",MAX(Escalation!$A:$A)),Escalation!$A$7:$R$54,MATCH(AD$7,Escalation!$6:$6,0),FALSE)*100,VLOOKUP($AA23,Escalation!$A$7:$R$54,MATCH(AD$7,Escalation!$6:$6,0),FALSE)*100) -> 2.503968701 | AE23: 1.28198568 | AF23: =IF(ISNA(VLOOKUP($AA23,Escalation!$A$7:$R$54,MATCH(AF$7,Escalation!$6:$6,0),FALSE)*100),VLOOKUP(CONCATENATE("Post ",MAX(Escalation!$A:$A)),Escalation!$A$7:$R$54,MATCH(AF$7,Escalation!$6:$6,0),FALSE)*100,VLOOKUP($AA23,Escalation!$A$7:$R$54,MATCH(AF$7,Escalation!$6:$6,0),FALSE)*100) -> 2.751984351 | AG23: 1.312622478 | AH23: =IF(ISNA(VLOOKUP($AA23,Escalation!$A$7:$R$54,MATCH(AH$7,Escalation!$6:$6,0),FALSE)*100),VLOOKUP(CONCATENATE("Post ",MAX(Escalation!$A:$A)),Escalation!$A$7:$R$54,MATCH(AH$7,Escalation!$6:$6,0),FALSE)*100,VLOOKUP($AA23,Escalation!$A$7:$R$54,MATCH(AH$7,Escalation!$6:$6,0),FALSE)*100) -> 3 | AI23: 1.343916379 | AL23: 2029 | AM23: =IF(ISNA(VLOOKUP($AA23,Escalation!$A$7:$R$54,MATCH(AM$8,Escalation!$6:$6,0),FALSE)*100),VLOOKUP(CONCATENATE("Post ",MAX(Escalation!$A:$A)),Escalation!$A$7:$R$54,MATCH(AM$8,Escalation!$6:$6,0),FALSE)*100,VLOOKUP($AA23,Escalation!$A$7:$R$54,MATCH(AM$8,Escalation!$6:$6,0),FALSE)*100) -> 2.007937402 | AN23: 1.222634442 | AO23: =IF(ISNA(VLOOKUP($AA23,Escalation!$A$7:$R$54,MATCH(AO$8,Escalation!$6:$6,0),FALSE)*100),VLOOKUP(CONCATENATE("Post ",MAX(Escalation!$A:$A)),Escalation!$A$7:$R$54,MATCH(AO$8,Escalation!$6:$6,0),FALSE)*100,VLOOKUP($AA23,Escalation!$A$7:$R$54,MATCH(AO$8,Escalation!$6:$6,0),FALSE)*100) -> 2.864337138 | AP23: 1.329221389 | AQ23: =IF(ISNA(VLOOKUP($AA23,Escalation!$A$7:$R$54,MATCH(AQ$8,Escalation!$6:$6,0),FALSE)*100),VLOOKUP(CONCATENATE("Post ",MAX(Escalation!$A:$A)),Escalation!$A$7:$R$54,MATCH(AQ$8,Escalation!$6:$6,0),FALSE)*100,VLOOKUP($AA23,Escalation!$A$7:$R$54,MATCH(AQ$8,Escalation!$6:$6,0),FALSE)*100) -> 2.864337138 | AR23: 1.329221389 | AS23: =IF(ISNA(VLOOKUP($AA23,Escalation!$A$7:$R$54,MATCH(AS$8,Escalation!$6:$6,0),FALSE)*100),VLOOKUP(CONCATENATE("Post ",MAX(Escalation!$A:$A)),Escalation!$A$7:$R$54,MATCH(AS$8,Escalation!$6:$6,0),FALSE)*100,VLOOKUP($AA23,Escalation!$A$7:$R$54,MATCH(AS$8,Escalation!$6:$6,0),FALSE)*100) -> 2.707462966 | AT23: 1.309092899 | AU23: =IF(ISNA(VLOOKUP($AA23,Escalation!$A$7:$R$54,MATCH(AU$8,Escalation!$6:$6,0),FALSE)*100),VLOOKUP(CONCATENATE("Post ",MAX(Escalation!$A:$A)),Escalation!$A$7:$R$54,MATCH(AU$8,Escalation!$6:$6,0),FALSE)*100,VLOOKUP($AA23,Escalation!$A$7:$R$54,MATCH(AU$8,Escalation!$6:$6,0),FALSE)*100) -> 2.586782034 | AV23: 1.293795506 | AW23: =IF(ISNA(VLOOKUP($AA23,Escalation!$A$7:$R$54,MATCH(AW$8,Escalation!$6:$6,0),FALSE)*100),VLOOKUP(CONCATENATE("Post ",MAX(Escalation!$A:$A)),Escalation!$A$7:$R$54,MATCH(AW$8,Escalation!$6:$6,0),FALSE)*100,VLOOKUP($AA23,Escalation!$A$7:$R$54,MATCH(AW$8,Escalation!$6:$6,0),FALSE)*100) -> 1.98544152 | AX23: 1.217929429 | AY23: =IF(ISNA(VLOOKUP($AA23,Escalation!$A$7:$R$54,MATCH(AY$8,Escalation!$6:$6,0),FALSE)*100),VLOOKUP(CONCATENATE("Post ",MAX(Escalation!$A:$A)),Escalation!$A$7:$R$54,MATCH(AY$8,Escalation!$6:$6,0),FALSE)*100,VLOOKUP($AA23,Escalation!$A$7:$R$54,MATCH(AY$8,Escalation!$6:$6,0),FALSE)*100) -> 1.98544152 | AZ23: 1.217929429
AA24: =AA23+1 -> 2030 | AB24: =IF(ISNA(VLOOKUP($AA24,Escalation!$A$7:$R$54,MATCH(AB$7,Escalation!$6:$6,0),FALSE)*100),VLOOKUP(CONCATENATE("Post ",MAX(Escalation!$A:$A)),Escalation!$A$7:$R$54,MATCH(AB$7,Escalation!$6:$6,0),FALSE)*100,VLOOKUP($AA24,Escalation!$A$7:$R$54,MATCH(AB$7,Escalation!$6:$6,0),FALSE)*100) -> 2.255953052 | AC24: 1.280238087 | AD24: =IF(ISNA(VLOOKUP($AA24,Escalation!$A$7:$R$54,MATCH(AD$7,Escalation!$6:$6,0),FALSE)*100),VLOOKUP(CONCATENATE("Post ",MAX(Escalation!$A:$A)),Escalation!$A$7:$R$54,MATCH(AD$7,Escalation!$6:$6,0),FALSE)*100,VLOOKUP($AA24,Escalation!$A$7:$R$54,MATCH(AD$7,Escalation!$6:$6,0),FALSE)*100) -> 2.503968701 | AE24: 1.3140862 | AF24: =IF(ISNA(VLOOKUP($AA24,Escalation!$A$7:$R$54,MATCH(AF$7,Escalation!$6:$6,0),FALSE)*100),VLOOKUP(CONCATENATE("Post ",MAX(Escalation!$A:$A)),Escalation!$A$7:$R$54,MATCH(AF$7,Escalation!$6:$6,0),FALSE)*100,VLOOKUP($AA24,Escalation!$A$7:$R$54,MATCH(AF$7,Escalation!$6:$6,0),FALSE)*100) -> 2.751984351 | AG24: 1.348745643 | AH24: =IF(ISNA(VLOOKUP($AA24,Escalation!$A$7:$R$54,MATCH(AH$7,Escalation!$6:$6,0),FALSE)*100),VLOOKUP(CONCATENATE("Post ",MAX(Escalation!$A:$A)),Escalation!$A$7:$R$54,MATCH(AH$7,Escalation!$6:$6,0),FALSE)*100,VLOOKUP($AA24,Escalation!$A$7:$R$54,MATCH(AH$7,Escalation!$6:$6,0),FALSE)*100) -> 3 | AI24: 1.384233871 | AL24: 2030 | AM24: =IF(ISNA(VLOOKUP($AA24,Escalation!$A$7:$R$54,MATCH(AM$8,Escalation!$6:$6,0),FALSE)*100),VLOOKUP(CONCATENATE("Post ",MAX(Escalation!$A:$A)),Escalation!$A$7:$R$54,MATCH(AM$8,Escalation!$6:$6,0),FALSE)*100,VLOOKUP($AA24,Escalation!$A$7:$R$54,MATCH(AM$8,Escalation!$6:$6,0),FALSE)*100) -> 2.007937402 | AN24: 1.247184176 | AO24: =IF(ISNA(VLOOKUP($AA24,Escalation!$A$7:$R$54,MATCH(AO$8,Escalation!$6:$6,0),FALSE)*100),VLOOKUP(CONCATENATE("Post ",MAX(Escalation!$A:$A)),Escalation!$A$7:$R$54,MATCH(AO$8,Escalation!$6:$6,0),FALSE)*100,VLOOKUP($AA24,Escalation!$A$7:$R$54,MATCH(AO$8,Escalation!$6:$6,0),FALSE)*100) -> 2.864337138 | AP24: 1.367294771 | AQ24: =IF(ISNA(VLOOKUP($AA24,Escalation!$A$7:$R$54,MATCH(AQ$8,Escalation!$6:$6,0),FALSE)*100),VLOOKUP(CONCATENATE("Post ",MAX(Escalation!$A:$A)),Escalation!$A$7:$R$54,MATCH(AQ$8,Escalation!$6:$6,0),FALSE)*100,VLOOKUP($AA24,Escalation!$A$7:$R$54,MATCH(AQ$8,Escalation!$6:$6,0),FALSE)*100) -> 2.864337138 | AR24: 1.367294771 | AS24: =IF(ISNA(VLOOKUP($AA24,Escalation!$A$7:$R$54,MATCH(AS$8,Escalation!$6:$6,0),FALSE)*100),VLOOKUP(CONCATENATE("Post ",MAX(Escalation!$A:$A)),Escalation!$A$7:$R$54,MATCH(AS$8,Escalation!$6:$6,0),FALSE)*100,VLOOKUP($AA24,Escalation!$A$7:$R$54,MATCH(AS$8,Escalation!$6:$6,0),FALSE)*100) -> 2.707462966 | AT24: 1.344536105 | AU24: =IF(ISNA(VLOOKUP($AA24,Escalation!$A$7:$R$54,MATCH(AU$8,Escalation!$6:$6,0),FALSE)*100),VLOOKUP(CONCATENATE("Post ",MAX(Escalation!$A:$A)),Escalation!$A$7:$R$54,MATCH(AU$8,Escalation!$6:$6,0),FALSE)*100,VLOOKUP($AA24,Escalation!$A$7:$R$54,MATCH(AU$8,Escalation!$6:$6,0),FALSE)*100) -> 2.586782034 | AV24: 1.327263175 | AW24: =IF(ISNA(VLOOKUP($AA24,Escalation!$A$7:$R$54,MATCH(AW$8,Escalation!$6:$6,0),FALSE)*100),VLOOKUP(CONCATENATE("Post ",MAX(Escalation!$A:$A)),Escalation!$A$7:$R$54,MATCH(AW$8,Escalation!$6:$6,0),FALSE)*100,VLOOKUP($AA24,Escalation!$A$7:$R$54,MATCH(AW$8,Escalation!$6:$6,0),FALSE)*100) -> 1.98544152 | AX24: 1.242110706 | AY24: =IF(ISNA(VLOOKUP($AA24,Escalation!$A$7:$R$54,MATCH(AY$8,Escalation!$6:$6,0),FALSE)*100),VLOOKUP(CONCATENATE("Post ",MAX(Escalation!$A:$A)),Escalation!$A$7:$R$54,MATCH(AY$8,Escalation!$6:$6,0),FALSE)*100,VLOOKUP($AA24,Escalation!$A$7:$R$54,MATCH(AY$8,Escalation!$6:$6,0),FALSE)*100) -> 1.98544152 | AZ24: 1.242110706
AA25: =AA24+1 -> 2031 | AB25: =IF(ISNA(VLOOKUP($AA25,Escalation!$A$7:$R$54,MATCH(AB$7,Escalation!$6:$6,0),FALSE)*100),VLOOKUP(CONCATENATE("Post ",MAX(Escalation!$A:$A)),Escalation!$A$7:$R$54,MATCH(AB$7,Escalation!$6:$6,0),FALSE)*100,VLOOKUP($AA25,Escalation!$A$7:$R$54,MATCH(AB$7,Escalation!$6:$6,0),FALSE)*100) -> 2.255953052 | AC25: 1.309119657 | AD25: =IF(ISNA(VLOOKUP($AA25,Escalation!$A$7:$R$54,MATCH(AD$7,Escalation!$6:$6,0),FALSE)*100),VLOOKUP(CONCATENATE("Post ",MAX(Escalation!$A:$A)),Escalation!$A$7:$R$54,MATCH(AD$7,Escalation!$6:$6,0),FALSE)*100,VLOOKUP($AA25,Escalation!$A$7:$R$54,MATCH(AD$7,Escalation!$6:$6,0),FALSE)*100) -> 2.503968701 | AE25: 1.346990507 | AF25: =IF(ISNA(VLOOKUP($AA25,Escalation!$A$7:$R$54,MATCH(AF$7,Escalation!$6:$6,0),FALSE)*100),VLOOKUP(CONCATENATE("Post ",MAX(Escalation!$A:$A)),Escalation!$A$7:$R$54,MATCH(AF$7,Escalation!$6:$6,0),FALSE)*100,VLOOKUP($AA25,Escalation!$A$7:$R$54,MATCH(AF$7,Escalation!$6:$6,0),FALSE)*100) -> 2.751984351 | AG25: 1.385862912 | AH25: =IF(ISNA(VLOOKUP($AA25,Escalation!$A$7:$R$54,MATCH(AH$7,Escalation!$6:$6,0),FALSE)*100),VLOOKUP(CONCATENATE("Post ",MAX(Escalation!$A:$A)),Escalation!$A$7:$R$54,MATCH(AH$7,Escalation!$6:$6,0),FALSE)*100,VLOOKUP($AA25,Escalation!$A$7:$R$54,MATCH(AH$7,Escalation!$6:$6,0),FALSE)*100) -> 3 | AI25: 1.425760887 | AL25: 2031 | AM25: =IF(ISNA(VLOOKUP($AA25,Escalation!$A$7:$R$54,MATCH(AM$8,Escalation!$6:$6,0),FALSE)*100),VLOOKUP(CONCATENATE("Post ",MAX(Escalation!$A:$A)),Escalation!$A$7:$R$54,MATCH(AM$8,Escalation!$6:$6,0),FALSE)*100,VLOOKUP($AA25,Escalation!$A$7:$R$54,MATCH(AM$8,Escalation!$6:$6,0),FALSE)*100) -> 2.007937402 | AN25: 1.272226854 | AO25: =IF(ISNA(VLOOKUP($AA25,Escalation!$A$7:$R$54,MATCH(AO$8,Escalation!$6:$6,0),FALSE)*100),VLOOKUP(CONCATENATE("Post ",MAX(Escalation!$A:$A)),Escalation!$A$7:$R$54,MATCH(AO$8,Escalation!$6:$6,0),FALSE)*100,VLOOKUP($AA25,Escalation!$A$7:$R$54,MATCH(AO$8,Escalation!$6:$6,0),FALSE)*100) -> 2.864337138 | AP25: 1.406458703 | AQ25: =IF(ISNA(VLOOKUP($AA25,Escalation!$A$7:$R$54,MATCH(AQ$8,Escalation!$6:$6,0),FALSE)*100),VLOOKUP(CONCATENATE("Post ",MAX(Escalation!$A:$A)),Escalation!$A$7:$R$54,MATCH(AQ$8,Escalation!$6:$6,0),FALSE)*100,VLOOKUP($AA25,Escalation!$A$7:$R$54,MATCH(AQ$8,Escalation!$6:$6,0),FALSE)*100) -> 2.864337138 | AR25: 1.406458703 | AS25: =IF(ISNA(VLOOKUP($AA25,Escalation!$A$7:$R$54,MATCH(AS$8,Escalation!$6:$6,0),FALSE)*100),VLOOKUP(CONCATENATE("Post ",MAX(Escalation!$A:$A)),Escalation!$A$7:$R$54,MATCH(AS$8,Escalation!$6:$6,0),FALSE)*100,VLOOKUP($AA25,Escalation!$A$7:$R$54,MATCH(AS$8,Escalation!$6:$6,0),FALSE)*100) -> 2.707462966 | AT25: 1.380938922 | AU25: =IF(ISNA(VLOOKUP($AA25,Escalation!$A$7:$R$54,MATCH(AU$8,Escalation!$6:$6,0),FALSE)*100),VLOOKUP(CONCATENATE("Post ",MAX(Escalation!$A:$A)),Escalation!$A$7:$R$54,MATCH(AU$8,Escalation!$6:$6,0),FALSE)*100,VLOOKUP($AA25,Escalation!$A$7:$R$54,MATCH(AU$8,Escalation!$6:$6,0),FALSE)*100) -> 2.586782034 | AV25: 1.361596581 | AW25: =IF(ISNA(VLOOKUP($AA25,Escalation!$A$7:$R$54,MATCH(AW$8,Escalation!$6:$6,0),FALSE)*100),VLOOKUP(CONCATENATE("Post ",MAX(Escalation!$A:$A)),Escalation!$A$7:$R$54,MATCH(AW$8,Escalation!$6:$6,0),FALSE)*100,VLOOKUP($AA25,Escalation!$A$7:$R$54,MATCH(AW$8,Escalation!$6:$6,0),FALSE)*100) -> 1.98544152 | AX25: 1.266772088 | AY25: =IF(ISNA(VLOOKUP($AA25,Escalation!$A$7:$R$54,MATCH(AY$8,Escalation!$6:$6,0),FALSE)*100),VLOOKUP(CONCATENATE("Post ",MAX(Escalation!$A:$A)),Escalation!$A$7:$R$54,MATCH(AY$8,Escalation!$6:$6,0),FALSE)*100,VLOOKUP($AA25,Escalation!$A$7:$R$54,MATCH(AY$8,Escalation!$6:$6,0),FALSE)*100) -> 1.98544152 | AZ25: 1.266772088
AA26: =AA25+1 -> 2032 | AB26: =IF(ISNA(VLOOKUP($AA26,Escalation!$A$7:$R$54,MATCH(AB$7,Escalation!$6:$6,0),FALSE)*100),VLOOKUP(CONCATENATE("Post ",MAX(Escalation!$A:$A)),Escalation!$A$7:$R$54,MATCH(AB$7,Escalation!$6:$6,0),FALSE)*100,VLOOKUP($AA26,Escalation!$A$7:$R$54,MATCH(AB$7,Escalation!$6:$6,0),FALSE)*100) -> 2.255953052 | AC26: =(1+AB26/100)*AC25 -> 1.338652782 | AD26: =IF(ISNA(VLOOKUP($AA26,Escalation!$A$7:$R$54,MATCH(AD$7,Escalation!$6:$6,0),FALSE)*100),VLOOKUP(CONCATENATE("Post ",MAX(Escalation!$A:$A)),Escalation!$A$7:$R$54,MATCH(AD$7,Escalation!$6:$6,0),FALSE)*100,VLOOKUP($AA26,Escalation!$A$7:$R$54,MATCH(AD$7,Escalation!$6:$6,0),FALSE)*100) -> 2.503968701 | AE26: =(1+AD26/100)*AE25 -> 1.380718728 | AF26: =IF(ISNA(VLOOKUP($AA26,Escalation!$A$7:$R$54,MATCH(AF$7,Escalation!$6:$6,0),FALSE)*100),VLOOKUP(CONCATENATE("Post ",MAX(Escalation!$A:$A)),Escalation!$A$7:$R$54,MATCH(AF$7,Escalation!$6:$6,0),FALSE)*100,VLOOKUP($AA26,Escalation!$A$7:$R$54,MATCH(AF$7,Escalation!$6:$6,0),FALSE)*100) -> 2.751984351 | AG26: =(1+AF26/100)*AG25 -> 1.424001643 | AH26: =IF(ISNA(VLOOKUP($AA26,Escalation!$A$7:$R$54,MATCH(AH$7,Escalation!$6:$6,0),FALSE)*100),VLOOKUP(CONCATENATE("Post ",MAX(Escalation!$A:$A)),Escalation!$A$7:$R$54,MATCH(AH$7,Escalation!$6:$6,0),FALSE)*100,VLOOKUP($AA26,Escalation!$A$7:$R$54,MATCH(AH$7,Escalation!$6:$6,0),FALSE)*100) -> 3 | AI26: =(1+AH26/100)*AI25 -> 1.468533713 | AL26: =AL25+1 -> 2032 | AM26: =IF(ISNA(VLOOKUP($AA26,Escalation!$A$7:$R$54,MATCH(AM$8,Escalation!$6:$6,0),FALSE)*100),VLOOKUP(CONCATENATE("Post ",MAX(Escalation!$A:$A)),Escalation!$A$7:$R$54,MATCH(AM$8,Escalation!$6:$6,0),FALSE)*100,VLOOKUP($AA26,Escalation!$A$7:$R$54,MATCH(AM$8,Escalation!$6:$6,0),FALSE)*100) -> 2.007937402 | AN26: =(1+AM26/100)*AN25 -> 1.297772372 | AO26: =IF(ISNA(VLOOKUP($AA26,Escalation!$A$7:$R$54,MATCH(AO$8,Escalation!$6:$6,0),FALSE)*100),VLOOKUP(CONCATENATE("Post ",MAX(Escalation!$A:$A)),Escalation!$A$7:$R$54,MATCH(AO$8,Escalation!$6:$6,0),FALSE)*100,VLOOKUP($AA26,Escalation!$A$7:$R$54,MATCH(AO$8,Escalation!$6:$6,0),FALSE)*100) -> 2.864337138 | AP26: =(1+AO26/100)*AP25 -> 1.446744422 | AQ26: =IF(ISNA(VLOOKUP($AA26,Escalation!$A$7:$R$54,MATCH(AQ$8,Escalation!$6:$6,0),FALSE)*100),VLOOKUP(CONCATENATE("Post ",MAX(Escalation!$A:$A)),Escalation!$A$7:$R$54,MATCH(AQ$8,Escalation!$6:$6,0),FALSE)*100,VLOOKUP($AA26,Escalation!$A$7:$R$54,MATCH(AQ$8,Escalation!$6:$6,0),FALSE)*100) -> 2.864337138 | AR26: =(1+AQ26/100)*AR25 -> 1.446744422 | AS26: =IF(ISNA(VLOOKUP($AA26,Escalation!$A$7:$R$54,MATCH(AS$8,Escalation!$6:$6,0),FALSE)*100),VLOOKUP(CONCATENATE("Post ",MAX(Escalation!$A:$A)),Escalation!$A$7:$R$54,MATCH(AS$8,Escalation!$6:$6,0),FALSE)*100,VLOOKUP($AA26,Escalation!$A$7:$R$54,MATCH(AS$8,Escalation!$6:$6,0),FALSE)*100) -> 2.707462966 | AT26: =(1+AS26/100)*AT25 -> 1.418327332 | AU26: =IF(ISNA(VLOOKUP($AA26,Escalation!$A$7:$R$54,MATCH(AU$8,Escalation!$6:$6,0),FALSE)*100),VLOOKUP(CONCATENATE("Post ",MAX(Escalation!$A:$A)),Escalation!$A$7:$R$54,MATCH(AU$8,Escalation!$6:$6,0),FALSE)*100,VLOOKUP($AA26,Escalation!$A$7:$R$54,MATCH(AU$8,Escalation!$6:$6,0),FALSE)*100) -> 2.586782034 | AV26: =(1+AU26/100)*AV25 -> 1.396818116 | AW26: =IF(ISNA(VLOOKUP($AA26,Escalation!$A$7:$R$54,MATCH(AW$8,Escalation!$6:$6,0),FALSE)*100),VLOOKUP(CONCATENATE("Post ",MAX(Escalation!$A:$A)),Escalation!$A$7:$R$54,MATCH(AW$8,Escalation!$6:$6,0),FALSE)*100,VLOOKUP($AA26,Escalation!$A$7:$R$54,MATCH(AW$8,Escalation!$6:$6,0),FALSE)*100) -> 1.98544152 | AX26: =(1+AW26/100)*AX25 -> 1.291923107 | AY26: =IF(ISNA(VLOOKUP($AA26,Escalation!$A$7:$R$54,MATCH(AY$8,Escalation!$6:$6,0),FALSE)*100),VLOOKUP(CONCATENATE("Post ",MAX(Escalation!$A:$A)),Escalation!$A$7:$R$54,MATCH(AY$8,Escalation!$6:$6,0),FALSE)*100,VLOOKUP($AA26,Escalation!$A$7:$R$54,MATCH(AY$8,Escalation!$6:$6,0),FALSE)*100) -> 1.98544152 | AZ26: =(1+AY26/100)*AZ25 -> 1.291923107
A27: =CONCATENATE("NOTE: This Template is not Valid after December 31, ",G6,". Get updated Template from Project Proposal Forms Database.") -> NOTE: This Template is not Valid after December 31, 2019. Get updated Template from Project Proposal Forms Database. | AA27: =AA26+1 -> 2033 | AB27: =IF(ISNA(VLOOKUP($AA27,Escalation!$A$7:$R$54,MATCH(AB$7,Escalation!$6:$6,0),FALSE)*100),VLOOKUP(CONCATENATE("Post ",MAX(Escalation!$A:$A)),Escalation!$A$7:$R$54,MATCH(AB$7,Escalation!$6:$6,0),FALSE)*100,VLOOKUP($AA27,Escalation!$A$7:$R$54,MATCH(AB$7,Escalation!$6:$6,0),FALSE)*100) -> 2.255953052 | AC27: =(1+AB27/100)*AC26 -> 1.36885216 | AD27: =IF(ISNA(VLOOKUP($AA27,Escalation!$A$7:$R$54,MATCH(AD$7,Escalation!$6:$6,0),FALSE)*100),VLOOKUP(CONCATENATE("Post ",MAX(Escalation!$A:$A)),Escalation!$A$7:$R$54,MATCH(AD$7,Escalation!$6:$6,0),FALSE)*100,VLOOKUP($AA27,Escalation!$A$7:$R$54,MATCH(AD$7,Escalation!$6:$6,0),FALSE)*100) -> 2.503968701 | AE27: =(1+AD27/100)*AE26 -> 1.415291493 | AF27: =IF(ISNA(VLOOKUP($AA27,Escalation!$A$7:$R$54,MATCH(AF$7,Escalation!$6:$6,0),FALSE)*100),VLOOKUP(CONCATENATE("Post ",MAX(Escalation!$A:$A)),Escalation!$A$7:$R$54,MATCH(AF$7,Escalation!$6:$6,0),FALSE)*100,VLOOKUP($AA27,Escalation!$A$7:$R$54,MATCH(AF$7,Escalation!$6:$6,0),FALSE)*100) -> 2.751984351 | AG27: =(1+AF27/100)*AG26 -> 1.463189945 | AH27: =IF(ISNA(VLOOKUP($AA27,Escalation!$A$7:$R$54,MATCH(AH$7,Escalation!$6:$6,0),FALSE)*100),VLOOKUP(CONCATENATE("Post ",MAX(Escalation!$A:$A)),Escalation!$A$7:$R$54,MATCH(AH$7,Escalation!$6:$6,0),FALSE)*100,VLOOKUP($AA27,Escalation!$A$7:$R$54,MATCH(AH$7,Escalation!$6:$6,0),FALSE)*100) -> 3 | AI27: =(1+AH27/100)*AI26 -> 1.512589725 | AL27: =AL26+1 -> 2033 | AM27: =IF(ISNA(VLOOKUP($AA27,Escalation!$A$7:$R$54,MATCH(AM$8,Escalation!$6:$6,0),FALSE)*100),VLOOKUP(CONCATENATE("Post ",MAX(Escalation!$A:$A)),Escalation!$A$7:$R$54,MATCH(AM$8,Escalation!$6:$6,0),FALSE)*100,VLOOKUP($AA27,Escalation!$A$7:$R$54,MATCH(AM$8,Escalation!$6:$6,0),FALSE)*100) -> 2.007937402 | AN27: =(1+AM27/100)*AN26 -> 1.323830829 | AO27: =IF(ISNA(VLOOKUP($AA27,Escalation!$A$7:$R$54,MATCH(AO$8,Escalation!$6:$6,0),FALSE)*100),VLOOKUP(CONCATENATE("Post ",MAX(Escalation!$A:$A)),Escalation!$A$7:$R$54,MATCH(AO$8,Escalation!$6:$6,0),FALSE)*100,VLOOKUP($AA27,Escalation!$A$7:$R$54,MATCH(AO$8,Escalation!$6:$6,0),FALSE)*100) -> 2.864337138 | AP27: =(1+AO27/100)*AP26 -> 1.48818406 | AQ27: =IF(ISNA(VLOOKUP($AA27,Escalation!$A$7:$R$54,MATCH(AQ$8,Escalation!$6:$6,0),FALSE)*100),VLOOKUP(CONCATENATE("Post ",MAX(Escalation!$A:$A)),Escalation!$A$7:$R$54,MATCH(AQ$8,Escalation!$6:$6,0),FALSE)*100,VLOOKUP($AA27,Escalation!$A$7:$R$54,MATCH(AQ$8,Escalation!$6:$6,0),FALSE)*100) -> 2.864337138 | AR27: =(1+AQ27/100)*AR26 -> 1.48818406 | AS27: =IF(ISNA(VLOOKUP($AA27,Escalation!$A$7:$R$54,MATCH(AS$8,Escalation!$6:$6,0),FALSE)*100),VLOOKUP(CONCATENATE("Post ",MAX(Escalation!$A:$A)),Escalation!$A$7:$R$54,MATCH(AS$8,Escalation!$6:$6,0),FALSE)*100,VLOOKUP($AA27,Escalation!$A$7:$R$54,MATCH(AS$8,Escalation!$6:$6,0),FALSE)*100) -> 2.707462966 | AT27: =(1+AS27/100)*AT26 -> 1.456728019 | AU27: =IF(ISNA(VLOOKUP($AA27,Escalation!$A$7:$R$54,MATCH(AU$8,Escalation!$6:$6,0),FALSE)*100),VLOOKUP(CONCATENATE("Post ",MAX(Escalation!$A:$A)),Escalation!$A$7:$R$54,MATCH(AU$8,Escalation!$6:$6,0),FALSE)*100,VLOOKUP($AA27,Escalation!$A$7:$R$54,MATCH(AU$8,Escalation!$6:$6,0),FALSE)*100) -> 2.586782034 | AV27: =(1+AU27/100)*AV26 -> 1.432950757 | AW27: =IF(ISNA(VLOOKUP($AA27,Escalation!$A$7:$R$54,MATCH(AW$8,Escalation!$6:$6,0),FALSE)*100),VLOOKUP(CONCATENATE("Post ",MAX(Escalation!$A:$A)),Escalation!$A$7:$R$54,MATCH(AW$8,Escalation!$6:$6,0),FALSE)*100,VLOOKUP($AA27,Escalation!$A$7:$R$54,MATCH(AW$8,Escalation!$6:$6,0),FALSE)*100) -> 1.98544152 | AX27: =(1+AW27/100)*AX26 -> 1.317573484 | AY27: =IF(ISNA(VLOOKUP($AA27,Escalation!$A$7:$R$54,MATCH(AY$8,Escalation!$6:$6,0),FALSE)*100),VLOOKUP(CONCATENATE("Post ",MAX(Escalation!$A:$A)),Escalation!$A$7:$R$54,MATCH(AY$8,Escalation!$6:$6,0),FALSE)*100,VLOOKUP($AA27,Escalation!$A$7:$R$54,MATCH(AY$8,Escalation!$6:$6,0),FALSE)*100) -> 1.98544152 | AZ27: =(1+AY27/100)*AZ26 -> 1.317573484
AA28: =AA27+1 -> 2034 | AB28: =IF(ISNA(VLOOKUP($AA28,Escalation!$A$7:$R$54,MATCH(AB$7,Escalation!$6:$6,0),FALSE)*100),VLOOKUP(CONCATENATE("Post ",MAX(Escalation!$A:$A)),Escalation!$A$7:$R$54,MATCH(AB$7,Escalation!$6:$6,0),FALSE)*100,VLOOKUP($AA28,Escalation!$A$7:$R$54,MATCH(AB$7,Escalation!$6:$6,0),FALSE)*100) -> 2.255953052 | AC28: =(1+AB28/100)*AC27 -> 1.399732822 | AD28: =IF(ISNA(VLOOKUP($AA28,Escalation!$A$7:$R$54,MATCH(AD$7,Escalation!$6:$6,0),FALSE)*100),VLOOKUP(CONCATENATE("Post ",MAX(Escalation!$A:$A)),Escalation!$A$7:$R$54,MATCH(AD$7,Escalation!$6:$6,0),FALSE)*100,VLOOKUP($AA28,Escalation!$A$7:$R$54,MATCH(AD$7,Escalation!$6:$6,0),FALSE)*100) -> 2.503968701 | AE28: =(1+AD28/100)*AE27 -> 1.450729949 | AF28: =IF(ISNA(VLOOKUP($AA28,Escalation!$A$7:$R$54,MATCH(AF$7,Escalation!$6:$6,0),FALSE)*100),VLOOKUP(CONCATENATE("Post ",MAX(Escalation!$A:$A)),Escalation!$A$7:$R$54,MATCH(AF$7,Escalation!$6:$6,0),FALSE)*100,VLOOKUP($AA28,Escalation!$A$7:$R$54,MATCH(AF$7,Escalation!$6:$6,0),FALSE)*100) -> 2.751984351 | AG28: =(1+AF28/100)*AG27 -> 1.503456703 | AH28: =IF(ISNA(VLOOKUP($AA28,Escalation!$A$7:$R$54,MATCH(AH$7,Escalation!$6:$6,0),FALSE)*100),VLOOKUP(CONCATENATE("Post ",MAX(Escalation!$A:$A)),Escalation!$A$7:$R$54,MATCH(AH$7,Escalation!$6:$6,0),FALSE)*100,VLOOKUP($AA28,Escalation!$A$7:$R$54,MATCH(AH$7,Escalation!$6:$6,0),FALSE)*100) -> 3 | AI28: =(1+AH28/100)*AI27 -> 1.557967417 | AL28: =AL27+1 -> 2034 | AM28: =IF(ISNA(VLOOKUP($AA28,Escalation!$A$7:$R$54,MATCH(AM$8,Escalation!$6:$6,0),FALSE)*100),VLOOKUP(CONCATENATE("Post ",MAX(Escalation!$A:$A)),Escalation!$A$7:$R$54,MATCH(AM$8,Escalation!$6:$6,0),FALSE)*100,VLOOKUP($AA28,Escalation!$A$7:$R$54,MATCH(AM$8,Escalation!$6:$6,0),FALSE)*100) -> 2.007937402 | AN28: =(1+AM28/100)*AN27 -> 1.350412524 | AO28: =IF(ISNA(VLOOKUP($AA28,Escalation!$A$7:$R$54,MATCH(AO$8,Escalation!$6:$6,0),FALSE)*100),VLOOKUP(CONCATENATE("Post ",MAX(Escalation!$A:$A)),Escalation!$A$7:$R$54,MATCH(AO$8,Escalation!$6:$6,0),FALSE)*100,VLOOKUP($AA28,Escalation!$A$7:$R$54,MATCH(AO$8,Escalation!$6:$6,0),FALSE)*100) -> 2.864337138 | AP28: =(1+AO28/100)*AP27 -> 1.530810668 | AQ28: =IF(ISNA(VLOOKUP($AA28,Escalation!$A$7:$R$54,MATCH(AQ$8,Escalation!$6:$6,0),FALSE)*100),VLOOKUP(CONCATENATE("Post ",MAX(Escalation!$A:$A)),Escalation!$A$7:$R$54,MATCH(AQ$8,Escalation!$6:$6,0),FALSE)*100,VLOOKUP($AA28,Escalation!$A$7:$R$54,MATCH(AQ$8,Escalation!$6:$6,0),FALSE)*100) -> 2.864337138 | AR28: =(1+AQ28/100)*AR27 -> 1.530810668 | AS28: =IF(ISNA(VLOOKUP($AA28,Escalation!$A$7:$R$54,MATCH(AS$8,Escalation!$6:$6,0),FALSE)*100),VLOOKUP(CONCATENATE("Post ",MAX(Escalation!$A:$A)),Escalation!$A$7:$R$54,MATCH(AS$8,Escalation!$6:$6,0),FALSE)*100,VLOOKUP($AA28,Escalation!$A$7:$R$54,MATCH(AS$8,Escalation!$6:$6,0),FALSE)*100) -> 2.707462966 | AT28: =(1+AS28/100)*AT27 -> 1.496168391 | AU28: =IF(ISNA(VLOOKUP($AA28,Escalation!$A$7:$R$54,MATCH(AU$8,Escalation!$6:$6,0),FALSE)*100),VLOOKUP(CONCATENATE("Post ",MAX(Escalation!$A:$A)),Escalation!$A$7:$R$54,MATCH(AU$8,Escalation!$6:$6,0),FALSE)*100,VLOOKUP($AA28,Escalation!$A$7:$R$54,MATCH(AU$8,Escalation!$6:$6,0),FALSE)*100) -> 2.586782034 | AV28: =(1+AU28/100)*AV27 -> 1.470018069 | AW28: =IF(ISNA(VLOOKUP($AA28,Escalation!$A$7:$R$54,MATCH(AW$8,Escalation!$6:$6,0),FALSE)*100),VLOOKUP(CONCATENATE("Post ",MAX(Escalation!$A:$A)),Escalation!$A$7:$R$54,MATCH(AW$8,Escalation!$6:$6,0),FALSE)*100,VLOOKUP($AA28,Escalation!$A$7:$R$54,MATCH(AW$8,Escalation!$6:$6,0),FALSE)*100) -> 1.98544152 | AX28: =(1+AW28/100)*AX27 -> 1.343733135 | AY28: =IF(ISNA(VLOOKUP($AA28,Escalation!$A$7:$R$54,MATCH(AY$8,Escalation!$6:$6,0),FALSE)*100),VLOOKUP(CONCATENATE("Post ",MAX(Escalation!$A:$A)),Escalation!$A$7:$R$54,MATCH(AY$8,Escalation!$6:$6,0),FALSE)*100,VLOOKUP($AA28,Escalation!$A$7:$R$54,MATCH(AY$8,Escalation!$6:$6,0),FALSE)*100) -> 1.98544152 | AZ28: =(1+AY28/100)*AZ27 -> 1.343733135
B29: Date Printed: | D29: =NOW() -> 2019-02-26T11:13:45.660 | E29: =NOW() -> 43522.46789 | O29: REV 09.01 | AA29: 2035 | AB29: =IF(ISNA(VLOOKUP($AA29,Escalation!$A$7:$R$54,MATCH(AB$7,Escalation!$6:$6,0),FALSE)*100),VLOOKUP(CONCATENATE("Post ",MAX(Escalation!$A:$A)),Escalation!$A$7:$R$54,MATCH(AB$7,Escalation!$6:$6,0),FALSE)*100,VLOOKUP($AA29,Escalation!$A$7:$R$54,MATCH(AB$7,Escalation!$6:$6,0),FALSE)*100) -> 2.255953052 | AC29: 1.431310137 | AD29: =IF(ISNA(VLOOKUP($AA29,Escalation!$A$7:$R$54,MATCH(AD$7,Escalation!$6:$6,0),FALSE)*100),VLOOKUP(CONCATENATE("Post ",MAX(Escalation!$A:$A)),Escalation!$A$7:$R$54,MATCH(AD$7,Escalation!$6:$6,0),FALSE)*100,VLOOKUP($AA29,Escalation!$A$7:$R$54,MATCH(AD$7,Escalation!$6:$6,0),FALSE)*100) -> 2.503968701 | AE29: 1.487055772 | AF29: =IF(ISNA(VLOOKUP($AA29,Escalation!$A$7:$R$54,MATCH(AF$7,Escalation!$6:$6,0),FALSE)*100),VLOOKUP(CONCATENATE("Post ",MAX(Escalation!$A:$A)),Escalation!$A$7:$R$54,MATCH(AF$7,Escalation!$6:$6,0),FALSE)*100,VLOOKUP($AA29,Escalation!$A$7:$R$54,MATCH(AF$7,Escalation!$6:$6,0),FALSE)*100) -> 2.751984351 | AG29: 1.544831596 | AH29: =IF(ISNA(VLOOKUP($AA29,Escalation!$A$7:$R$54,MATCH(AH$7,Escalation!$6:$6,0),FALSE)*100),VLOOKUP(CONCATENATE("Post ",MAX(Escalation!$A:$A)),Escalation!$A$7:$R$54,MATCH(AH$7,Escalation!$6:$6,0),FALSE)*100,VLOOKUP($AA29,Escalation!$A$7:$R$54,MATCH(AH$7,Escalation!$6:$6,0),FALSE)*100) -> 3 | AI29: 1.604706439 | AL29: 2035 | AM29: =IF(ISNA(VLOOKUP($AA29,Escalation!$A$7:$R$54,MATCH(AM$8,Escalation!$6:$6,0),FALSE)*100),VLOOKUP(CONCATENATE("Post ",MAX(Escalation!$A:$A)),Escalation!$A$7:$R$54,MATCH(AM$8,Escalation!$6:$6,0),FALSE)*100,VLOOKUP($AA29,Escalation!$A$7:$R$54,MATCH(AM$8,Escalation!$6:$6,0),FALSE)*100) -> 2.007937402 | AN29: 1.377527962 | AO29: =IF(ISNA(VLOOKUP($AA29,Escalation!$A$7:$R$54,MATCH(AO$8,Escalation!$6:$6,0),FALSE)*100),VLOOKUP(CONCATENATE("Post ",MAX(Escalation!$A:$A)),Escalation!$A$7:$R$54,MATCH(AO$8,Escalation!$6:$6,0),FALSE)*100,VLOOKUP($AA29,Escalation!$A$7:$R$54,MATCH(AO$8,Escalation!$6:$6,0),FALSE)*100) -> 2.864337138 | AP29: 1.574658247 | AQ29: =IF(ISNA(VLOOKUP($AA29,Escalation!$A$7:$R$54,MATCH(AQ$8,Escalation!$6:$6,0),FALSE)*100),VLOOKUP(CONCATENATE("Post ",MAX(Escalation!$A:$A)),Escalation!$A$7:$R$54,MATCH(AQ$8,Escalation!$6:$6,0),FALSE)*100,VLOOKUP($AA29,Escalation!$A$7:$R$54,MATCH(AQ$8,Escalation!$6:$6,0),FALSE)*100) -> 2.864337138 | AR29: 1.574658247 | AS29: =IF(ISNA(VLOOKUP($AA29,Escalation!$A$7:$R$54,MATCH(AS$8,Escalation!$6:$6,0),FALSE)*100),VLOOKUP(CONCATENATE("Post ",MAX(Escalation!$A:$A)),Escalation!$A$7:$R$54,MATCH(AS$8,Escalation!$6:$6,0),FALSE)*100,VLOOKUP($AA29,Escalation!$A$7:$R$54,MATCH(AS$8,Escalation!$6:$6,0),FALSE)*100) -> 2.707462966 | AT29: 1.536676596 | AU29: =IF(ISNA(VLOOKUP($AA29,Escalation!$A$7:$R$54,MATCH(AU$8,Escalation!$6:$6,0),FALSE)*100),VLOOKUP(CONCATENATE("Post ",MAX(Escalation!$A:$A)),Escalation!$A$7:$R$54,MATCH(AU$8,Escalation!$6:$6,0),FALSE)*100,VLOOKUP($AA29,Escalation!$A$7:$R$54,MATCH(AU$8,Escalation!$6:$6,0),FALSE)*100) -> 2.586782034 | AV29: 1.508044233 | AW29: =IF(ISNA(VLOOKUP($AA29,Escalation!$A$7:$R$54,MATCH(AW$8,Escalation!$6:$6,0),FALSE)*100),VLOOKUP(CONCATENATE("Post ",MAX(Escalation!$A:$A)),Escalation!$A$7:$R$54,MATCH(AW$8,Escalation!$6:$6,0),FALSE)*100,VLOOKUP($AA29,Escalation!$A$7:$R$54,MATCH(AW$8,Escalation!$6:$6,0),FALSE)*100) -> 1.98544152 | AX29: 1.370412171 | AY29: =IF(ISNA(VLOOKUP($AA29,Escalation!$A$7:$R$54,MATCH(AY$8,Escalation!$6:$6,0),FALSE)*100),VLOOKUP(CONCATENATE("Post ",MAX(Escalation!$A:$A)),Escalation!$A$7:$R$54,MATCH(AY$8,Escalation!$6:$6,0),FALSE)*100,VLOOKUP($AA29,Escalation!$A$7:$R$54,MATCH(AY$8,Escalation!$6:$6,0),FALSE)*100) -> 1.98544152 | AZ29: 1.370412171
AA30: =AA29+1 -> 2036 | AB30: =IF(ISNA(VLOOKUP($AA30,Escalation!$A$7:$R$54,MATCH(AB$7,Escalation!$6:$6,0),FALSE)*100),VLOOKUP(CONCATENATE("Post ",MAX(Escalation!$A:$A)),Escalation!$A$7:$R$54,MATCH(AB$7,Escalation!$6:$6,0),FALSE)*100,VLOOKUP($AA30,Escalation!$A$7:$R$54,MATCH(AB$7,Escalation!$6:$6,0),FALSE)*100) -> 2.255953052 | AC30: =(1+AB30/100)*AC29 -> 1.463599822 | AD30: =IF(ISNA(VLOOKUP($AA30,Escalation!$A$7:$R$54,MATCH(AD$7,Escalation!$6:$6,0),FALSE)*100),VLOOKUP(CONCATENATE("Post ",MAX(Escalation!$A:$A)),Escalation!$A$7:$R$54,MATCH(AD$7,Escalation!$6:$6,0),FALSE)*100,VLOOKUP($AA30,Escalation!$A$7:$R$54,MATCH(AD$7,Escalation!$6:$6,0),FALSE)*100) -> 2.503968701 | AE30: =(1+AD30/100)*AE29 -> 1.524291184 | AF30: =IF(ISNA(VLOOKUP($AA30,Escalation!$A$7:$R$54,MATCH(AF$7,Escalation!$6:$6,0),FALSE)*100),VLOOKUP(CONCATENATE("Post ",MAX(Escalation!$A:$A)),Escalation!$A$7:$R$54,MATCH(AF$7,Escalation!$6:$6,0),FALSE)*100,VLOOKUP($AA30,Escalation!$A$7:$R$54,MATCH(AF$7,Escalation!$6:$6,0),FALSE)*100) -> 2.751984351 | AG30: =(1+AF30/100)*AG29 -> 1.58734512 | AH30: =IF(ISNA(VLOOKUP($AA30,Escalation!$A$7:$R$54,MATCH(AH$7,Escalation!$6:$6,0),FALSE)*100),VLOOKUP(CONCATENATE("Post ",MAX(Escalation!$A:$A)),Escalation!$A$7:$R$54,MATCH(AH$7,Escalation!$6:$6,0),FALSE)*100,VLOOKUP($AA30,Escalation!$A$7:$R$54,MATCH(AH$7,Escalation!$6:$6,0),FALSE)*100) -> 3 | AI30: =(1+AH30/100)*AI29 -> 1.652847632 | AL30: =AL29+1 -> 2036 | AM30: =IF(ISNA(VLOOKUP($AA30,Escalation!$A$7:$R$54,MATCH(AM$8,Escalation!$6:$6,0),FALSE)*100),VLOOKUP(CONCATENATE("Post ",MAX(Escalation!$A:$A)),Escalation!$A$7:$R$54,MATCH(AM$8,Escalation!$6:$6,0),FALSE)*100,VLOOKUP($AA30,Escalation!$A$7:$R$54,MATCH(AM$8,Escalation!$6:$6,0),FALSE)*100) -> 2.007937402 | AN30: =(1+AM30/100)*AN29 -> 1.405187861 | AO30: =IF(ISNA(VLOOKUP($AA30,Escalation!$A$7:$R$54,MATCH(AO$8,Escalation!$6:$6,0),FALSE)*100),VLOOKUP(CONCATENATE("Post ",MAX(Escalation!$A:$A)),Escalation!$A$7:$R$54,MATCH(AO$8,Escalation!$6:$6,0),FALSE)*100,VLOOKUP($AA30,Escalation!$A$7:$R$54,MATCH(AO$8,Escalation!$6:$6,0),FALSE)*100) -> 2.864337138 | AP30: =(1+AO30/100)*AP29 -> 1.619761768 | AQ30: =IF(ISNA(VLOOKUP($AA30,Escalation!$A$7:$R$54,MATCH(AQ$8,Escalation!$6:$6,0),FALSE)*100),VLOOKUP(CONCATENATE("Post ",MAX(Escalation!$A:$A)),Escalation!$A$7:$R$54,MATCH(AQ$8,Escalation!$6:$6,0),FALSE)*100,VLOOKUP($AA30,Escalation!$A$7:$R$54,MATCH(AQ$8,Escalation!$6:$6,0),FALSE)*100) -> 2.864337138 | AR30: =(1+AQ30/100)*AR29 -> 1.619761768 | AS30: =IF(ISNA(VLOOKUP($AA30,Escalation!$A$7:$R$54,MATCH(AS$8,Escalation!$6:$6,0),FALSE)*100),VLOOKUP(CONCATENATE("Post ",MAX(Escalation!$A:$A)),Escalation!$A$7:$R$54,MATCH(AS$8,Escalation!$6:$6,0),FALSE)*100,VLOOKUP($AA30,Escalation!$A$7:$R$54,MATCH(AS$8,Escalation!$6:$6,0),FALSE)*100) -> 2.707462966 | AT30: =(1+AS30/100)*AT29 -> 1.578281546 | AU30: =IF(ISNA(VLOOKUP($AA30,Escalation!$A$7:$R$54,MATCH(AU$8,Escalation!$6:$6,0),FALSE)*100),VLOOKUP(CONCATENATE("Post ",MAX(Escalation!$A:$A)),Escalation!$A$7:$R$54,MATCH(AU$8,Escalation!$6:$6,0),FALSE)*100,VLOOKUP($AA30,Escalation!$A$7:$R$54,MATCH(AU$8,Escalation!$6:$6,0),FALSE)*100) -> 2.586782034 | AV30: =(1+AU30/100)*AV29 -> 1.54705405 | AW30: =IF(ISNA(VLOOKUP($AA30,Escalation!$A$7:$R$54,MATCH(AW$8,Escalation!$6:$6,0),FALSE)*100),VLOOKUP(CONCATENATE("Post ",MAX(Escalation!$A:$A)),Escalation!$A$7:$R$54,MATCH(AW$8,Escalation!$6:$6,0),FALSE)*100,VLOOKUP($AA30,Escalation!$A$7:$R$54,MATCH(AW$8,Escalation!$6:$6,0),FALSE)*100) -> 1.98544152 | AX30: =(1+AW30/100)*AX29 -> 1.397620903 | AY30: =IF(ISNA(VLOOKUP($AA30,Escalation!$A$7:$R$54,MATCH(AY$8,Escalation!$6:$6,0),FALSE)*100),VLOOKUP(CONCATENATE("Post ",MAX(Escalation!$A:$A)),Escalation!$A$7:$R$54,MATCH(AY$8,Escalation!$6:$6,0),FALSE)*100,VLOOKUP($AA30,Escalation!$A$7:$R$54,MATCH(AY$8,Escalation!$6:$6,0),FALSE)*100) -> 1.98544152 | AZ30: =(1+AY30/100)*AZ29 -> 1.397620903
AA31: 2037 | AB31: =IF(ISNA(VLOOKUP($AA31,Escalation!$A$7:$R$54,MATCH(AB$7,Escalation!$6:$6,0),FALSE)*100),VLOOKUP(CONCATENATE("Post ",MAX(Escalation!$A:$A)),Escalation!$A$7:$R$54,MATCH(AB$7,Escalation!$6:$6,0),FALSE)*100,VLOOKUP($AA31,Escalation!$A$7:$R$54,MATCH(AB$7,Escalation!$6:$6,0),FALSE)*100) -> 2.255953052 | AC31: 1.496617947 | AD31: =IF(ISNA(VLOOKUP($AA31,Escalation!$A$7:$R$54,MATCH(AD$7,Escalation!$6:$6,0),FALSE)*100),VLOOKUP(CONCATENATE("Post ",MAX(Escalation!$A:$A)),Escalation!$A$7:$R$54,MATCH(AD$7,Escalation!$6:$6,0),FALSE)*100,VLOOKUP($AA31,Escalation!$A$7:$R$54,MATCH(AD$7,Escalation!$6:$6,0),FALSE)*100) -> 2.503968701 | AE31: 1.562458958 | AF31: =IF(ISNA(VLOOKUP($AA31,Escalation!$A$7:$R$54,MATCH(AF$7,Escalation!$6:$6,0),FALSE)*100),VLOOKUP(CONCATENATE("Post ",MAX(Escalation!$A:$A)),Escalation!$A$7:$R$54,MATCH(AF$7,Escalation!$6:$6,0),FALSE)*100,VLOOKUP($AA31,Escalation!$A$7:$R$54,MATCH(AF$7,Escalation!$6:$6,0),FALSE)*100) -> 2.751984351 | AG31: 1.631028609 | AH31: =IF(ISNA(VLOOKUP($AA31,Escalation!$A$7:$R$54,MATCH(AH$7,Escalation!$6:$6,0),FALSE)*100),VLOOKUP(CONCATENATE("Post ",MAX(Escalation!$A:$A)),Escalation!$A$7:$R$54,MATCH(AH$7,Escalation!$6:$6,0),FALSE)*100,VLOOKUP($AA31,Escalation!$A$7:$R$54,MATCH(AH$7,Escalation!$6:$6,0),FALSE)*100) -> 3 | AI31: 1.702433061 | AL31: 2037 | AM31: =IF(ISNA(VLOOKUP($AA31,Escalation!$A$7:$R$54,MATCH(AM$8,Escalation!$6:$6,0),FALSE)*100),VLOOKUP(CONCATENATE("Post ",MAX(Escalation!$A:$A)),Escalation!$A$7:$R$54,MATCH(AM$8,Escalation!$6:$6,0),FALSE)*100,VLOOKUP($AA31,Escalation!$A$7:$R$54,MATCH(AM$8,Escalation!$6:$6,0),FALSE)*100) -> 2.007937402 | AN31: 1.433403154 | AO31: =IF(ISNA(VLOOKUP($AA31,Escalation!$A$7:$R$54,MATCH(AO$8,Escalation!$6:$6,0),FALSE)*100),VLOOKUP(CONCATENATE("Post ",MAX(Escalation!$A:$A)),Escalation!$A$7:$R$54,MATCH(AO$8,Escalation!$6:$6,0),FALSE)*100,VLOOKUP($AA31,Escalation!$A$7:$R$54,MATCH(AO$8,Escalation!$6:$6,0),FALSE)*100) -> 2.864337138 | AP31: 1.666157206 | AQ31: =IF(ISNA(VLOOKUP($AA31,Escalation!$A$7:$R$54,MATCH(AQ$8,Escalation!$6:$6,0),FALSE)*100),VLOOKUP(CONCATENATE("Post ",MAX(Escalation!$A:$A)),Escalation!$A$7:$R$54,MATCH(AQ$8,Escalation!$6:$6,0),FALSE)*100,VLOOKUP($AA31,Escalation!$A$7:$R$54,MATCH(AQ$8,Escalation!$6:$6,0),FALSE)*100) -> 2.864337138 | AR31: 1.666157206 | AS31: =IF(ISNA(VLOOKUP($AA31,Escalation!$A$7:$R$54,MATCH(AS$8,Escalation!$6:$6,0),FALSE)*100),VLOOKUP(CONCATENATE("Post ",MAX(Escalation!$A:$A)),Escalation!$A$7:$R$54,MATCH(AS$8,Escalation!$6:$6,0),FALSE)*100,VLOOKUP($AA31,Escalation!$A$7:$R$54,MATCH(AS$8,Escalation!$6:$6,0),FALSE)*100) -> 2.707462966 | AT31: 1.621012934 | AU31: =IF(ISNA(VLOOKUP($AA31,Escalation!$A$7:$R$54,MATCH(AU$8,Escalation!$6:$6,0),FALSE)*100),VLOOKUP(CONCATENATE("Post ",MAX(Escalation!$A:$A)),Escalation!$A$7:$R$54,MATCH(AU$8,Escalation!$6:$6,0),FALSE)*100,VLOOKUP($AA31,Escalation!$A$7:$R$54,MATCH(AU$8,Escalation!$6:$6,0),FALSE)*100) -> 2.586782034 | AV31: 1.587072966 | AW31: =IF(ISNA(VLOOKUP($AA31,Escalation!$A$7:$R$54,MATCH(AW$8,Escalation!$6:$6,0),FALSE)*100),VLOOKUP(CONCATENATE("Post ",MAX(Escalation!$A:$A)),Escalation!$A$7:$R$54,MATCH(AW$8,Escalation!$6:$6,0),FALSE)*100,VLOOKUP($AA31,Escalation!$A$7:$R$54,MATCH(AW$8,Escalation!$6:$6,0),FALSE)*100) -> 1.98544152 | AX31: 1.425369849 | AY31: =IF(ISNA(VLOOKUP($AA31,Escalation!$A$7:$R$54,MATCH(AY$8,Escalation!$6:$6,0),FALSE)*100),VLOOKUP(CONCATENATE("Post ",MAX(Escalation!$A:$A)),Escalation!$A$7:$R$54,MATCH(AY$8,Escalation!$6:$6,0),FALSE)*100,VLOOKUP($AA31,Escalation!$A$7:$R$54,MATCH(AY$8,Escalation!$6:$6,0),FALSE)*100) -> 1.98544152 | AZ31: 1.425369849
AA32: 2038 | AB32: =IF(ISNA(VLOOKUP($AA32,Escalation!$A$7:$R$54,MATCH(AB$7,Escalation!$6:$6,0),FALSE)*100),VLOOKUP(CONCATENATE("Post ",MAX(Escalation!$A:$A)),Escalation!$A$7:$R$54,MATCH(AB$7,Escalation!$6:$6,0),FALSE)*100,VLOOKUP($AA32,Escalation!$A$7:$R$54,MATCH(AB$7,Escalation!$6:$6,0),FALSE)*100) -> 2.255953052 | AC32: 1.530380945 | AD32: =IF(ISNA(VLOOKUP($AA32,Escalation!$A$7:$R$54,MATCH(AD$7,Escalation!$6:$6,0),FALSE)*100),VLOOKUP(CONCATENATE("Post ",MAX(Escalation!$A:$A)),Escalation!$A$7:$R$54,MATCH(AD$7,Escalation!$6:$6,0),FALSE)*100,VLOOKUP($AA32,Escalation!$A$7:$R$54,MATCH(AD$7,Escalation!$6:$6,0),FALSE)*100) -> 2.503968701 | AE32: 1.601582441 | AF32: =IF(ISNA(VLOOKUP($AA32,Escalation!$A$7:$R$54,MATCH(AF$7,Escalation!$6:$6,0),FALSE)*100),VLOOKUP(CONCATENATE("Post ",MAX(Escalation!$A:$A)),Escalation!$A$7:$R$54,MATCH(AF$7,Escalation!$6:$6,0),FALSE)*100,VLOOKUP($AA32,Escalation!$A$7:$R$54,MATCH(AF$7,Escalation!$6:$6,0),FALSE)*100) -> 2.751984351 | AG32: 1.675914262 | AH32: =IF(ISNA(VLOOKUP($AA32,Escalation!$A$7:$R$54,MATCH(AH$7,Escalation!$6:$6,0),FALSE)*100),VLOOKUP(CONCATENATE("Post ",MAX(Escalation!$A:$A)),Escalation!$A$7:$R$54,MATCH(AH$7,Escalation!$6:$6,0),FALSE)*100,VLOOKUP($AA32,Escalation!$A$7:$R$54,MATCH(AH$7,Escalation!$6:$6,0),FALSE)*100) -> 3 | AI32: 1.753506053 | AL32: 2038 | AM32: =IF(ISNA(VLOOKUP($AA32,Escalation!$A$7:$R$54,MATCH(AM$8,Escalation!$6:$6,0),FALSE)*100),VLOOKUP(CONCATENATE("Post ",MAX(Escalation!$A:$A)),Escalation!$A$7:$R$54,MATCH(AM$8,Escalation!$6:$6,0),FALSE)*100,VLOOKUP($AA32,Escalation!$A$7:$R$54,MATCH(AM$8,Escalation!$6:$6,0),FALSE)*100) -> 2.007937402 | AN32: 1.462184992 | AO32: =IF(ISNA(VLOOKUP($AA32,Escalation!$A$7:$R$54,MATCH(AO$8,Escalation!$6:$6,0),FALSE)*100),VLOOKUP(CONCATENATE("Post ",MAX(Escalation!$A:$A)),Escalation!$A$7:$R$54,MATCH(AO$8,Escalation!$6:$6,0),FALSE)*100,VLOOKUP($AA32,Escalation!$A$7:$R$54,MATCH(AO$8,Escalation!$6:$6,0),FALSE)*100) -> 2.864337138 | AP32: 1.713881565 | AQ32: =IF(ISNA(VLOOKUP($AA32,Escalation!$A$7:$R$54,MATCH(AQ$8,Escalation!$6:$6,0),FALSE)*100),VLOOKUP(CONCATENATE("Post ",MAX(Escalation!$A:$A)),Escalation!$A$7:$R$54,MATCH(AQ$8,Escalation!$6:$6,0),FALSE)*100,VLOOKUP($AA32,Escalation!$A$7:$R$54,MATCH(AQ$8,Escalation!$6:$6,0),FALSE)*100) -> 2.864337138 | AR32: 1.713881565 | AS32: =IF(ISNA(VLOOKUP($AA32,Escalation!$A$7:$R$54,MATCH(AS$8,Escalation!$6:$6,0),FALSE)*100),VLOOKUP(CONCATENATE("Post ",MAX(Escalation!$A:$A)),Escalation!$A$7:$R$54,MATCH(AS$8,Escalation!$6:$6,0),FALSE)*100,VLOOKUP($AA32,Escalation!$A$7:$R$54,MATCH(AS$8,Escalation!$6:$6,0),FALSE)*100) -> 2.707462966 | AT32: 1.664901259 | AU32: =IF(ISNA(VLOOKUP($AA32,Escalation!$A$7:$R$54,MATCH(AU$8,Escalation!$6:$6,0),FALSE)*100),VLOOKUP(CONCATENATE("Post ",MAX(Escalation!$A:$A)),Escalation!$A$7:$R$54,MATCH(AU$8,Escalation!$6:$6,0),FALSE)*100,VLOOKUP($AA32,Escalation!$A$7:$R$54,MATCH(AU$8,Escalation!$6:$6,0),FALSE)*100) -> 2.586782034 | AV32: 1.628127084 | AW32: =IF(ISNA(VLOOKUP($AA32,Escalation!$A$7:$R$54,MATCH(AW$8,Escalation!$6:$6,0),FALSE)*100),VLOOKUP(CONCATENATE("Post ",MAX(Escalation!$A:$A)),Escalation!$A$7:$R$54,MATCH(AW$8,Escalation!$6:$6,0),FALSE)*100,VLOOKUP($AA32,Escalation!$A$7:$R$54,MATCH(AW$8,Escalation!$6:$6,0),FALSE)*100) -> 1.98544152 | AX32: 1.453669734 | AY32: =IF(ISNA(VLOOKUP($AA32,Escalation!$A$7:$R$54,MATCH(AY$8,Escalation!$6:$6,0),FALSE)*100),VLOOKUP(CONCATENATE("Post ",MAX(Escalation!$A:$A)),Escalation!$A$7:$R$54,MATCH(AY$8,Escalation!$6:$6,0),FALSE)*100,VLOOKUP($AA32,Escalation!$A$7:$R$54,MATCH(AY$8,Escalation!$6:$6,0),FALSE)*100) -> 1.98544152 | AZ32: 1.453669734
AA33: 2039 | AB33: =IF(ISNA(VLOOKUP($AA33,Escalation!$A$7:$R$54,MATCH(AB$7,Escalation!$6:$6,0),FALSE)*100),VLOOKUP(CONCATENATE("Post ",MAX(Escalation!$A:$A)),Escalation!$A$7:$R$54,MATCH(AB$7,Escalation!$6:$6,0),FALSE)*100,VLOOKUP($AA33,Escalation!$A$7:$R$54,MATCH(AB$7,Escalation!$6:$6,0),FALSE)*100) -> 2.255953052 | AC33: 1.564905621 | AD33: =IF(ISNA(VLOOKUP($AA33,Escalation!$A$7:$R$54,MATCH(AD$7,Escalation!$6:$6,0),FALSE)*100),VLOOKUP(CONCATENATE("Post ",MAX(Escalation!$A:$A)),Escalation!$A$7:$R$54,MATCH(AD$7,Escalation!$6:$6,0),FALSE)*100,VLOOKUP($AA33,Escalation!$A$7:$R$54,MATCH(AD$7,Escalation!$6:$6,0),FALSE)*100) -> 2.503968701 | AE33: 1.641685564 | AF33: =IF(ISNA(VLOOKUP($AA33,Escalation!$A$7:$R$54,MATCH(AF$7,Escalation!$6:$6,0),FALSE)*100),VLOOKUP(CONCATENATE("Post ",MAX(Escalation!$A:$A)),Escalation!$A$7:$R$54,MATCH(AF$7,Escalation!$6:$6,0),FALSE)*100,VLOOKUP($AA33,Escalation!$A$7:$R$54,MATCH(AF$7,Escalation!$6:$6,0),FALSE)*100) -> 2.751984351 | AG33: 1.72203516 | AH33: =IF(ISNA(VLOOKUP($AA33,Escalation!$A$7:$R$54,MATCH(AH$7,Escalation!$6:$6,0),FALSE)*100),VLOOKUP(CONCATENATE("Post ",MAX(Escalation!$A:$A)),Escalation!$A$7:$R$54,MATCH(AH$7,Escalation!$6:$6,0),FALSE)*100,VLOOKUP($AA33,Escalation!$A$7:$R$54,MATCH(AH$7,Escalation!$6:$6,0),FALSE)*100) -> 3 | AI33: 1.806111235 | AL33: 2039 | AM33: =IF(ISNA(VLOOKUP($AA33,Escalation!$A$7:$R$54,MATCH(AM$8,Escalation!$6:$6,0),FALSE)*100),VLOOKUP(CONCATENATE("Post ",MAX(Escalation!$A:$A)),Escalation!$A$7:$R$54,MATCH(AM$8,Escalation!$6:$6,0),FALSE)*100,VLOOKUP($AA33,Escalation!$A$7:$R$54,MATCH(AM$8,Escalation!$6:$6,0),FALSE)*100) -> 2.007937402 | AN33: 1.491544751 | AO33: =IF(ISNA(VLOOKUP($AA33,Escalation!$A$7:$R$54,MATCH(AO$8,Escalation!$6:$6,0),FALSE)*100),VLOOKUP(CONCATENATE("Post ",MAX(Escalation!$A:$A)),Escalation!$A$7:$R$54,MATCH(AO$8,Escalation!$6:$6,0),FALSE)*100,VLOOKUP($AA33,Escalation!$A$7:$R$54,MATCH(AO$8,Escalation!$6:$6,0),FALSE)*100) -> 2.864337138 | AP33: 1.762972911 | AQ33: =IF(ISNA(VLOOKUP($AA33,Escalation!$A$7:$R$54,MATCH(AQ$8,Escalation!$6:$6,0),FALSE)*100),VLOOKUP(CONCATENATE("Post ",MAX(Escalation!$A:$A)),Escalation!$A$7:$R$54,MATCH(AQ$8,Escalation!$6:$6,0),FALSE)*100,VLOOKUP($AA33,Escalation!$A$7:$R$54,MATCH(AQ$8,Escalation!$6:$6,0),FALSE)*100) -> 2.864337138 | AR33: 1.762972911 | AS33: =IF(ISNA(VLOOKUP($AA33,Escalation!$A$7:$R$54,MATCH(AS$8,Escalation!$6:$6,0),FALSE)*100),VLOOKUP(CONCATENATE("Post ",MAX(Escalation!$A:$A)),Escalation!$A$7:$R$54,MATCH(AS$8,Escalation!$6:$6,0),FALSE)*100,VLOOKUP($AA33,Escalation!$A$7:$R$54,MATCH(AS$8,Escalation!$6:$6,0),FALSE)*100) -> 2.707462966 | AT33: 1.709977844 | AU33: =IF(ISNA(VLOOKUP($AA33,Escalation!$A$7:$R$54,MATCH(AU$8,Escalation!$6:$6,0),FALSE)*100),VLOOKUP(CONCATENATE("Post ",MAX(Escalation!$A:$A)),Escalation!$A$7:$R$54,MATCH(AU$8,Escalation!$6:$6,0),FALSE)*100,VLOOKUP($AA33,Escalation!$A$7:$R$54,MATCH(AU$8,Escalation!$6:$6,0),FALSE)*100) -> 2.586782034 | AV33: 1.670243183 | AW33: =IF(ISNA(VLOOKUP($AA33,Escalation!$A$7:$R$54,MATCH(AW$8,Escalation!$6:$6,0),FALSE)*100),VLOOKUP(CONCATENATE("Post ",MAX(Escalation!$A:$A)),Escalation!$A$7:$R$54,MATCH(AW$8,Escalation!$6:$6,0),FALSE)*100,VLOOKUP($AA33,Escalation!$A$7:$R$54,MATCH(AW$8,Escalation!$6:$6,0),FALSE)*100) -> 1.98544152 | AX33: 1.482531496 | AY33: =IF(ISNA(VLOOKUP($AA33,Escalation!$A$7:$R$54,MATCH(AY$8,Escalation!$6:$6,0),FALSE)*100),VLOOKUP(CONCATENATE("Post ",MAX(Escalation!$A:$A)),Escalation!$A$7:$R$54,MATCH(AY$8,Escalation!$6:$6,0),FALSE)*100,VLOOKUP($AA33,Escalation!$A$7:$R$54,MATCH(AY$8,Escalation!$6:$6,0),FALSE)*100) -> 1.98544152 | AZ33: 1.482531496
AA34: 2040 | AB34: =IF(ISNA(VLOOKUP($AA34,Escalation!$A$7:$R$54,MATCH(AB$7,Escalation!$6:$6,0),FALSE)*100),VLOOKUP(CONCATENATE("Post ",MAX(Escalation!$A:$A)),Escalation!$A$7:$R$54,MATCH(AB$7,Escalation!$6:$6,0),FALSE)*100,VLOOKUP($AA34,Escalation!$A$7:$R$54,MATCH(AB$7,Escalation!$6:$6,0),FALSE)*100) -> 2.255953052 | AC34: 1.600209157 | AD34: =IF(ISNA(VLOOKUP($AA34,Escalation!$A$7:$R$54,MATCH(AD$7,Escalation!$6:$6,0),FALSE)*100),VLOOKUP(CONCATENATE("Post ",MAX(Escalation!$A:$A)),Escalation!$A$7:$R$54,MATCH(AD$7,Escalation!$6:$6,0),FALSE)*100,VLOOKUP($AA34,Escalation!$A$7:$R$54,MATCH(AD$7,Escalation!$6:$6,0),FALSE)*100) -> 2.503968701 | AE34: 1.682792857 | AF34: =IF(ISNA(VLOOKUP($AA34,Escalation!$A$7:$R$54,MATCH(AF$7,Escalation!$6:$6,0),FALSE)*100),VLOOKUP(CONCATENATE("Post ",MAX(Escalation!$A:$A)),Escalation!$A$7:$R$54,MATCH(AF$7,Escalation!$6:$6,0),FALSE)*100,VLOOKUP($AA34,Escalation!$A$7:$R$54,MATCH(AF$7,Escalation!$6:$6,0),FALSE)*100) -> 2.751984351 | AG34: 1.769425298 | AH34: =IF(ISNA(VLOOKUP($AA34,Escalation!$A$7:$R$54,MATCH(AH$7,Escalation!$6:$6,0),FALSE)*100),VLOOKUP(CONCATENATE("Post ",MAX(Escalation!$A:$A)),Escalation!$A$7:$R$54,MATCH(AH$7,Escalation!$6:$6,0),FALSE)*100,VLOOKUP($AA34,Escalation!$A$7:$R$54,MATCH(AH$7,Escalation!$6:$6,0),FALSE)*100) -> 3 | AI34: 1.860294572 | AL34: 2040 | AM34: =IF(ISNA(VLOOKUP($AA34,Escalation!$A$7:$R$54,MATCH(AM$8,Escalation!$6:$6,0),FALSE)*100),VLOOKUP(CONCATENATE("Post ",MAX(Escalation!$A:$A)),Escalation!$A$7:$R$54,MATCH(AM$8,Escalation!$6:$6,0),FALSE)*100,VLOOKUP($AA34,Escalation!$A$7:$R$54,MATCH(AM$8,Escalation!$6:$6,0),FALSE)*100) -> 2.007937402 | AN34: 1.521494036 | AO34: =IF(ISNA(VLOOKUP($AA34,Escalation!$A$7:$R$54,MATCH(AO$8,Escalation!$6:$6,0),FALSE)*100),VLOOKUP(CONCATENATE("Post ",MAX(Escalation!$A:$A)),Escalation!$A$7:$R$54,MATCH(AO$8,Escalation!$6:$6,0),FALSE)*100,VLOOKUP($AA34,Escalation!$A$7:$R$54,MATCH(AO$8,Escalation!$6:$6,0),FALSE)*100) -> 2.864337138 | AP34: 1.813470399 | AQ34: =IF(ISNA(VLOOKUP($AA34,Escalation!$A$7:$R$54,MATCH(AQ$8,Escalation!$6:$6,0),FALSE)*100),VLOOKUP(CONCATENATE("Post ",MAX(Escalation!$A:$A)),Escalation!$A$7:$R$54,MATCH(AQ$8,Escalation!$6:$6,0),FALSE)*100,VLOOKUP($AA34,Escalation!$A$7:$R$54,MATCH(AQ$8,Escalation!$6:$6,0),FALSE)*100) -> 2.864337138 | AR34: 1.813470399 | AS34: =IF(ISNA(VLOOKUP($AA34,Escalation!$A$7:$R$54,MATCH(AS$8,Escalation!$6:$6,0),FALSE)*100),VLOOKUP(CONCATENATE("Post ",MAX(Escalation!$A:$A)),Escalation!$A$7:$R$54,MATCH(AS$8,Escalation!$6:$6,0),FALSE)*100,VLOOKUP($AA34,Escalation!$A$7:$R$54,MATCH(AS$8,Escalation!$6:$6,0),FALSE)*100) -> 2.707462966 | AT34: 1.756274861 | AU34: =IF(ISNA(VLOOKUP($AA34,Escalation!$A$7:$R$54,MATCH(AU$8,Escalation!$6:$6,0),FALSE)*100),VLOOKUP(CONCATENATE("Post ",MAX(Escalation!$A:$A)),Escalation!$A$7:$R$54,MATCH(AU$8,Escalation!$6:$6,0),FALSE)*100,VLOOKUP($AA34,Escalation!$A$7:$R$54,MATCH(AU$8,Escalation!$6:$6,0),FALSE)*100) -> 2.586782034 | AV34: 1.713448734 | AW34: =IF(ISNA(VLOOKUP($AA34,Escalation!$A$7:$R$54,MATCH(AW$8,Escalation!$6:$6,0),FALSE)*100),VLOOKUP(CONCATENATE("Post ",MAX(Escalation!$A:$A)),Escalation!$A$7:$R$54,MATCH(AW$8,Escalation!$6:$6,0),FALSE)*100,VLOOKUP($AA34,Escalation!$A$7:$R$54,MATCH(AW$8,Escalation!$6:$6,0),FALSE)*100) -> 1.98544152 | AX34: 1.511966292 | AY34: =IF(ISNA(VLOOKUP($AA34,Escalation!$A$7:$R$54,MATCH(AY$8,Escalation!$6:$6,0),FALSE)*100),VLOOKUP(CONCATENATE("Post ",MAX(Escalation!$A:$A)),Escalation!$A$7:$R$54,MATCH(AY$8,Escalation!$6:$6,0),FALSE)*100,VLOOKUP($AA34,Escalation!$A$7:$R$54,MATCH(AY$8,Escalation!$6:$6,0),FALSE)*100) -> 1.98544152 | AZ34: 1.511966292
AA35: 2041 | AB35: =IF(ISNA(VLOOKUP($AA35,Escalation!$A$7:$R$54,MATCH(AB$7,Escalation!$6:$6,0),FALSE)*100),VLOOKUP(CONCATENATE("Post ",MAX(Escalation!$A:$A)),Escalation!$A$7:$R$54,MATCH(AB$7,Escalation!$6:$6,0),FALSE)*100,VLOOKUP($AA35,Escalation!$A$7:$R$54,MATCH(AB$7,Escalation!$6:$6,0),FALSE)*100) -> 2.255953052 | AC35: 1.636309124 | AD35: =IF(ISNA(VLOOKUP($AA35,Escalation!$A$7:$R$54,MATCH(AD$7,Escalation!$6:$6,0),FALSE)*100),VLOOKUP(CONCATENATE("Post ",MAX(Escalation!$A:$A)),Escalation!$A$7:$R$54,MATCH(AD$7,Escalation!$6:$6,0),FALSE)*100,VLOOKUP($AA35,Escalation!$A$7:$R$54,MATCH(AD$7,Escalation!$6:$6,0),FALSE)*100) -> 2.503968701 | AE35: 1.724929463 | AF35: =IF(ISNA(VLOOKUP($AA35,Escalation!$A$7:$R$54,MATCH(AF$7,Escalation!$6:$6,0),FALSE)*100),VLOOKUP(CONCATENATE("Post ",MAX(Escalation!$A:$A)),Escalation!$A$7:$R$54,MATCH(AF$7,Escalation!$6:$6,0),FALSE)*100,VLOOKUP($AA35,Escalation!$A$7:$R$54,MATCH(AF$7,Escalation!$6:$6,0),FALSE)*100) -> 2.751984351 | AG35: 1.818119605 | AH35: =IF(ISNA(VLOOKUP($AA35,Escalation!$A$7:$R$54,MATCH(AH$7,Escalation!$6:$6,0),FALSE)*100),VLOOKUP(CONCATENATE("Post ",MAX(Escalation!$A:$A)),Escalation!$A$7:$R$54,MATCH(AH$7,Escalation!$6:$6,0),FALSE)*100,VLOOKUP($AA35,Escalation!$A$7:$R$54,MATCH(AH$7,Escalation!$6:$6,0),FALSE)*100) -> 3 | AI35: 1.916103409 | AL35: 2041 | AM35: =IF(ISNA(VLOOKUP($AA35,Escalation!$A$7:$R$54,MATCH(AM$8,Escalation!$6:$6,0),FALSE)*100),VLOOKUP(CONCATENATE("Post ",MAX(Escalation!$A:$A)),Escalation!$A$7:$R$54,MATCH(AM$8,Escalation!$6:$6,0),FALSE)*100,VLOOKUP($AA35,Escalation!$A$7:$R$54,MATCH(AM$8,Escalation!$6:$6,0),FALSE)*100) -> 2.007937402 | AN35: 1.552044684 | AO35: =IF(ISNA(VLOOKUP($AA35,Escalation!$A$7:$R$54,MATCH(AO$8,Escalation!$6:$6,0),FALSE)*100),VLOOKUP(CONCATENATE("Post ",MAX(Escalation!$A:$A)),Escalation!$A$7:$R$54,MATCH(AO$8,Escalation!$6:$6,0),FALSE)*100,VLOOKUP($AA35,Escalation!$A$7:$R$54,MATCH(AO$8,Escalation!$6:$6,0),FALSE)*100) -> 2.864337138 | AP35: 1.865414305 | AQ35: =IF(ISNA(VLOOKUP($AA35,Escalation!$A$7:$R$54,MATCH(AQ$8,Escalation!$6:$6,0),FALSE)*100),VLOOKUP(CONCATENATE("Post ",MAX(Escalation!$A:$A)),Escalation!$A$7:$R$54,MATCH(AQ$8,Escalation!$6:$6,0),FALSE)*100,VLOOKUP($AA35,Escalation!$A$7:$R$54,MATCH(AQ$8,Escalation!$6:$6,0),FALSE)*100) -> 2.864337138 | AR35: 1.865414305 | AS35: =IF(ISNA(VLOOKUP($AA35,Escalation!$A$7:$R$54,MATCH(AS$8,Escalation!$6:$6,0),FALSE)*100),VLOOKUP(CONCATENATE("Post ",MAX(Escalation!$A:$A)),Escalation!$A$7:$R$54,MATCH(AS$8,Escalation!$6:$6,0),FALSE)*100,VLOOKUP($AA35,Escalation!$A$7:$R$54,MATCH(AS$8,Escalation!$6:$6,0),FALSE)*100) -> 2.707462966 | AT35: 1.803825352 | AU35: =IF(ISNA(VLOOKUP($AA35,Escalation!$A$7:$R$54,MATCH(AU$8,Escalation!$6:$6,0),FALSE)*100),VLOOKUP(CONCATENATE("Post ",MAX(Escalation!$A:$A)),Escalation!$A$7:$R$54,MATCH(AU$8,Escalation!$6:$6,0),FALSE)*100,VLOOKUP($AA35,Escalation!$A$7:$R$54,MATCH(AU$8,Escalation!$6:$6,0),FALSE)*100) -> 2.586782034 | AV35: 1.757771918 | AW35: =IF(ISNA(VLOOKUP($AA35,Escalation!$A$7:$R$54,MATCH(AW$8,Escalation!$6:$6,0),FALSE)*100),VLOOKUP(CONCATENATE("Post ",MAX(Escalation!$A:$A)),Escalation!$A$7:$R$54,MATCH(AW$8,Escalation!$6:$6,0),FALSE)*100,VLOOKUP($AA35,Escalation!$A$7:$R$54,MATCH(AW$8,Escalation!$6:$6,0),FALSE)*100) -> 1.98544152 | AX35: 1.541985499 | AY35: =IF(ISNA(VLOOKUP($AA35,Escalation!$A$7:$R$54,MATCH(AY$8,Escalation!$6:$6,0),FALSE)*100),VLOOKUP(CONCATENATE("Post ",MAX(Escalation!$A:$A)),Escalation!$A$7:$R$54,MATCH(AY$8,Escalation!$6:$6,0),FALSE)*100,VLOOKUP($AA35,Escalation!$A$7:$R$54,MATCH(AY$8,Escalation!$6:$6,0),FALSE)*100) -> 1.98544152 | AZ35: 1.541985499
AA36: 2042 | AB36: =IF(ISNA(VLOOKUP($AA36,Escalation!$A$7:$R$54,MATCH(AB$7,Escalation!$6:$6,0),FALSE)*100),VLOOKUP(CONCATENATE("Post ",MAX(Escalation!$A:$A)),Escalation!$A$7:$R$54,MATCH(AB$7,Escalation!$6:$6,0),FALSE)*100,VLOOKUP($AA36,Escalation!$A$7:$R$54,MATCH(AB$7,Escalation!$6:$6,0),FALSE)*100) -> 2.255953052 | AC36: 1.67322349 | AD36: =IF(ISNA(VLOOKUP($AA36,Escalation!$A$7:$R$54,MATCH(AD$7,Escalation!$6:$6,0),FALSE)*100),VLOOKUP(CONCATENATE("Post ",MAX(Escalation!$A:$A)),Escalation!$A$7:$R$54,MATCH(AD$7,Escalation!$6:$6,0),FALSE)*100,VLOOKUP($AA36,Escalation!$A$7:$R$54,MATCH(AD$7,Escalation!$6:$6,0),FALSE)*100) -> 2.503968701 | AE36: 1.768121157 | AF36: =IF(ISNA(VLOOKUP($AA36,Escalation!$A$7:$R$54,MATCH(AF$7,Escalation!$6:$6,0),FALSE)*100),VLOOKUP(CONCATENATE("Post ",MAX(Escalation!$A:$A)),Escalation!$A$7:$R$54,MATCH(AF$7,Escalation!$6:$6,0),FALSE)*100,VLOOKUP($AA36,Escalation!$A$7:$R$54,MATCH(AF$7,Escalation!$6:$6,0),FALSE)*100) -> 2.751984351 | AG36: 1.868153972 | AH36: =IF(ISNA(VLOOKUP($AA36,Escalation!$A$7:$R$54,MATCH(AH$7,Escalation!$6:$6,0),FALSE)*100),VLOOKUP(CONCATENATE("Post ",MAX(Escalation!$A:$A)),Escalation!$A$7:$R$54,MATCH(AH$7,Escalation!$6:$6,0),FALSE)*100,VLOOKUP($AA36,Escalation!$A$7:$R$54,MATCH(AH$7,Escalation!$6:$6,0),FALSE)*100) -> 3 | AI36: 1.973586511 | AL36: 2042 | AM36: =IF(ISNA(VLOOKUP($AA36,Escalation!$A$7:$R$54,MATCH(AM$8,Escalation!$6:$6,0),FALSE)*100),VLOOKUP(CONCATENATE("Post ",MAX(Escalation!$A:$A)),Escalation!$A$7:$R$54,MATCH(AM$8,Escalation!$6:$6,0),FALSE)*100,VLOOKUP($AA36,Escalation!$A$7:$R$54,MATCH(AM$8,Escalation!$6:$6,0),FALSE)*100) -> 2.007937402 | AN36: 1.58320877 | AO36: =IF(ISNA(VLOOKUP($AA36,Escalation!$A$7:$R$54,MATCH(AO$8,Escalation!$6:$6,0),FALSE)*100),VLOOKUP(CONCATENATE("Post ",MAX(Escalation!$A:$A)),Escalation!$A$7:$R$54,MATCH(AO$8,Escalation!$6:$6,0),FALSE)*100,VLOOKUP($AA36,Escalation!$A$7:$R$54,MATCH(AO$8,Escalation!$6:$6,0),FALSE)*100) -> 2.864337138 | AP36: 1.91884606 | AQ36: =IF(ISNA(VLOOKUP($AA36,Escalation!$A$7:$R$54,MATCH(AQ$8,Escalation!$6:$6,0),FALSE)*100),VLOOKUP(CONCATENATE("Post ",MAX(Escalation!$A:$A)),Escalation!$A$7:$R$54,MATCH(AQ$8,Escalation!$6:$6,0),FALSE)*100,VLOOKUP($AA36,Escalation!$A$7:$R$54,MATCH(AQ$8,Escalation!$6:$6,0),FALSE)*100) -> 2.864337138 | AR36: 1.91884606 | AS36: =IF(ISNA(VLOOKUP($AA36,Escalation!$A$7:$R$54,MATCH(AS$8,Escalation!$6:$6,0),FALSE)*100),VLOOKUP(CONCATENATE("Post ",MAX(Escalation!$A:$A)),Escalation!$A$7:$R$54,MATCH(AS$8,Escalation!$6:$6,0),FALSE)*100,VLOOKUP($AA36,Escalation!$A$7:$R$54,MATCH(AS$8,Escalation!$6:$6,0),FALSE)*100) -> 2.707462966 | AT36: 1.852663256 | AU36: =IF(ISNA(VLOOKUP($AA36,Escalation!$A$7:$R$54,MATCH(AU$8,Escalation!$6:$6,0),FALSE)*100),VLOOKUP(CONCATENATE("Post ",MAX(Escalation!$A:$A)),Escalation!$A$7:$R$54,MATCH(AU$8,Escalation!$6:$6,0),FALSE)*100,VLOOKUP($AA36,Escalation!$A$7:$R$54,MATCH(AU$8,Escalation!$6:$6,0),FALSE)*100) -> 2.586782034 | AV36: 1.803241646 | AW36: =IF(ISNA(VLOOKUP($AA36,Escalation!$A$7:$R$54,MATCH(AW$8,Escalation!$6:$6,0),FALSE)*100),VLOOKUP(CONCATENATE("Post ",MAX(Escalation!$A:$A)),Escalation!$A$7:$R$54,MATCH(AW$8,Escalation!$6:$6,0),FALSE)*100,VLOOKUP($AA36,Escalation!$A$7:$R$54,MATCH(AW$8,Escalation!$6:$6,0),FALSE)*100) -> 1.98544152 | AX36: 1.572600719 | AY36: =IF(ISNA(VLOOKUP($AA36,Escalation!$A$7:$R$54,MATCH(AY$8,Escalation!$6:$6,0),FALSE)*100),VLOOKUP(CONCATENATE("Post ",MAX(Escalation!$A:$A)),Escalation!$A$7:$R$54,MATCH(AY$8,Escalation!$6:$6,0),FALSE)*100,VLOOKUP($AA36,Escalation!$A$7:$R$54,MATCH(AY$8,Escalation!$6:$6,0),FALSE)*100) -> 1.98544152 | AZ36: 1.572600719
AA37: 2043 | AB37: =IF(ISNA(VLOOKUP($AA37,Escalation!$A$7:$R$54,MATCH(AB$7,Escalation!$6:$6,0),FALSE)*100),VLOOKUP(CONCATENATE("Post ",MAX(Escalation!$A:$A)),Escalation!$A$7:$R$54,MATCH(AB$7,Escalation!$6:$6,0),FALSE)*100,VLOOKUP($AA37,Escalation!$A$7:$R$54,MATCH(AB$7,Escalation!$6:$6,0),FALSE)*100) -> 2.255953052 | AC37: 1.710970626 | AD37: =IF(ISNA(VLOOKUP($AA37,Escalation!$A$7:$R$54,MATCH(AD$7,Escalation!$6:$6,0),FALSE)*100),VLOOKUP(CONCATENATE("Post ",MAX(Escalation!$A:$A)),Escalation!$A$7:$R$54,MATCH(AD$7,Escalation!$6:$6,0),FALSE)*100,VLOOKUP($AA37,Escalation!$A$7:$R$54,MATCH(AD$7,Escalation!$6:$6,0),FALSE)*100) -> 2.503968701 | AE37: 1.812394357 | AF37: =IF(ISNA(VLOOKUP($AA37,Escalation!$A$7:$R$54,MATCH(AF$7,Escalation!$6:$6,0),FALSE)*100),VLOOKUP(CONCATENATE("Post ",MAX(Escalation!$A:$A)),Escalation!$A$7:$R$54,MATCH(AF$7,Escalation!$6:$6,0),FALSE)*100,VLOOKUP($AA37,Escalation!$A$7:$R$54,MATCH(AF$7,Escalation!$6:$6,0),FALSE)*100) -> 2.751984351 | AG37: 1.919565277 | AH37: =IF(ISNA(VLOOKUP($AA37,Escalation!$A$7:$R$54,MATCH(AH$7,Escalation!$6:$6,0),FALSE)*100),VLOOKUP(CONCATENATE("Post ",MAX(Escalation!$A:$A)),Escalation!$A$7:$R$54,MATCH(AH$7,Escalation!$6:$6,0),FALSE)*100,VLOOKUP($AA37,Escalation!$A$7:$R$54,MATCH(AH$7,Escalation!$6:$6,0),FALSE)*100) -> 3 | AI37: 2.032794106 | AL37: 2043 | AM37: =IF(ISNA(VLOOKUP($AA37,Escalation!$A$7:$R$54,MATCH(AM$8,Escalation!$6:$6,0),FALSE)*100),VLOOKUP(CONCATENATE("Post ",MAX(Escalation!$A:$A)),Escalation!$A$7:$R$54,MATCH(AM$8,Escalation!$6:$6,0),FALSE)*100,VLOOKUP($AA37,Escalation!$A$7:$R$54,MATCH(AM$8,Escalation!$6:$6,0),FALSE)*100) -> 2.007937402 | AN37: 1.614998611 | AO37: =IF(ISNA(VLOOKUP($AA37,Escalation!$A$7:$R$54,MATCH(AO$8,Escalation!$6:$6,0),FALSE)*100),VLOOKUP(CONCATENATE("Post ",MAX(Escalation!$A:$A)),Escalation!$A$7:$R$54,MATCH(AO$8,Escalation!$6:$6,0),FALSE)*100,VLOOKUP($AA37,Escalation!$A$7:$R$54,MATCH(AO$8,Escalation!$6:$6,0),FALSE)*100) -> 2.864337138 | AP37: 1.97380828 | AQ37: =IF(ISNA(VLOOKUP($AA37,Escalation!$A$7:$R$54,MATCH(AQ$8,Escalation!$6:$6,0),FALSE)*100),VLOOKUP(CONCATENATE("Post ",MAX(Escalation!$A:$A)),Escalation!$A$7:$R$54,MATCH(AQ$8,Escalation!$6:$6,0),FALSE)*100,VLOOKUP($AA37,Escalation!$A$7:$R$54,MATCH(AQ$8,Escalation!$6:$6,0),FALSE)*100) -> 2.864337138 | AR37: 1.97380828 | AS37: =IF(ISNA(VLOOKUP($AA37,Escalation!$A$7:$R$54,MATCH(AS$8,Escalation!$6:$6,0),FALSE)*100),VLOOKUP(CONCATENATE("Post ",MAX(Escalation!$A:$A)),Escalation!$A$7:$R$54,MATCH(AS$8,Escalation!$6:$6,0),FALSE)*100,VLOOKUP($AA37,Escalation!$A$7:$R$54,MATCH(AS$8,Escalation!$6:$6,0),FALSE)*100) -> 2.707462966 | AT37: 1.902823427 | AU37: =IF(ISNA(VLOOKUP($AA37,Escalation!$A$7:$R$54,MATCH(AU$8,Escalation!$6:$6,0),FALSE)*100),VLOOKUP(CONCATENATE("Post ",MAX(Escalation!$A:$A)),Escalation!$A$7:$R$54,MATCH(AU$8,Escalation!$6:$6,0),FALSE)*100,VLOOKUP($AA37,Escalation!$A$7:$R$54,MATCH(AU$8,Escalation!$6:$6,0),FALSE)*100) -> 2.586782034 | AV37: 1.849887577 | AW37: =IF(ISNA(VLOOKUP($AA37,Escalation!$A$7:$R$54,MATCH(AW$8,Escalation!$6:$6,0),FALSE)*100),VLOOKUP(CONCATENATE("Post ",MAX(Escalation!$A:$A)),Escalation!$A$7:$R$54,MATCH(AW$8,Escalation!$6:$6,0),FALSE)*100,VLOOKUP($AA37,Escalation!$A$7:$R$54,MATCH(AW$8,Escalation!$6:$6,0),FALSE)*100) -> 1.98544152 | AX37: 1.603823787 | AY37: =IF(ISNA(VLOOKUP($AA37,Escalation!$A$7:$R$54,MATCH(AY$8,Escalation!$6:$6,0),FALSE)*100),VLOOKUP(CONCATENATE("Post ",MAX(Escalation!$A:$A)),Escalation!$A$7:$R$54,MATCH(AY$8,Escalation!$6:$6,0),FALSE)*100,VLOOKUP($AA37,Escalation!$A$7:$R$54,MATCH(AY$8,Escalation!$6:$6,0),FALSE)*100) -> 1.98544152 | AZ37: 1.603823787
AA38: 2044 | AB38: =IF(ISNA(VLOOKUP($AA38,Escalation!$A$7:$R$54,MATCH(AB$7,Escalation!$6:$6,0),FALSE)*100),VLOOKUP(CONCATENATE("Post ",MAX(Escalation!$A:$A)),Escalation!$A$7:$R$54,MATCH(AB$7,Escalation!$6:$6,0),FALSE)*100,VLOOKUP($AA38,Escalation!$A$7:$R$54,MATCH(AB$7,Escalation!$6:$6,0),FALSE)*100) -> 2.255953052 | AC38: 1.74956932 | AD38: =IF(ISNA(VLOOKUP($AA38,Escalation!$A$7:$R$54,MATCH(AD$7,Escalation!$6:$6,0),FALSE)*100),VLOOKUP(CONCATENATE("Post ",MAX(Escalation!$A:$A)),Escalation!$A$7:$R$54,MATCH(AD$7,Escalation!$6:$6,0),FALSE)*100,VLOOKUP($AA38,Escalation!$A$7:$R$54,MATCH(AD$7,Escalation!$6:$6,0),FALSE)*100) -> 2.503968701 | AE38: 1.857776145 | AF38: =IF(ISNA(VLOOKUP($AA38,Escalation!$A$7:$R$54,MATCH(AF$7,Escalation!$6:$6,0),FALSE)*100),VLOOKUP(CONCATENATE("Post ",MAX(Escalation!$A:$A)),Escalation!$A$7:$R$54,MATCH(AF$7,Escalation!$6:$6,0),FALSE)*100,VLOOKUP($AA38,Escalation!$A$7:$R$54,MATCH(AF$7,Escalation!$6:$6,0),FALSE)*100) -> 2.751984351 | AG38: 1.972391413 | AH38: =IF(ISNA(VLOOKUP($AA38,Escalation!$A$7:$R$54,MATCH(AH$7,Escalation!$6:$6,0),FALSE)*100),VLOOKUP(CONCATENATE("Post ",MAX(Escalation!$A:$A)),Escalation!$A$7:$R$54,MATCH(AH$7,Escalation!$6:$6,0),FALSE)*100,VLOOKUP($AA38,Escalation!$A$7:$R$54,MATCH(AH$7,Escalation!$6:$6,0),FALSE)*100) -> 3 | AI38: 2.09377793 | AL38: 2044 | AM38: =IF(ISNA(VLOOKUP($AA38,Escalation!$A$7:$R$54,MATCH(AM$8,Escalation!$6:$6,0),FALSE)*100),VLOOKUP(CONCATENATE("Post ",MAX(Escalation!$A:$A)),Escalation!$A$7:$R$54,MATCH(AM$8,Escalation!$6:$6,0),FALSE)*100,VLOOKUP($AA38,Escalation!$A$7:$R$54,MATCH(AM$8,Escalation!$6:$6,0),FALSE)*100) -> 2.007937402 | AN38: 1.647426772 | AO38: =IF(ISNA(VLOOKUP($AA38,Escalation!$A$7:$R$54,MATCH(AO$8,Escalation!$6:$6,0),FALSE)*100),VLOOKUP(CONCATENATE("Post ",MAX(Escalation!$A:$A)),Escalation!$A$7:$R$54,MATCH(AO$8,Escalation!$6:$6,0),FALSE)*100,VLOOKUP($AA38,Escalation!$A$7:$R$54,MATCH(AO$8,Escalation!$6:$6,0),FALSE)*100) -> 2.864337138 | AP38: 2.030344804 | AQ38: =IF(ISNA(VLOOKUP($AA38,Escalation!$A$7:$R$54,MATCH(AQ$8,Escalation!$6:$6,0),FALSE)*100),VLOOKUP(CONCATENATE("Post ",MAX(Escalation!$A:$A)),Escalation!$A$7:$R$54,MATCH(AQ$8,Escalation!$6:$6,0),FALSE)*100,VLOOKUP($AA38,Escalation!$A$7:$R$54,MATCH(AQ$8,Escalation!$6:$6,0),FALSE)*100) -> 2.864337138 | AR38: 2.030344804 | AS38: =IF(ISNA(VLOOKUP($AA38,Escalation!$A$7:$R$54,MATCH(AS$8,Escalation!$6:$6,0),FALSE)*100),VLOOKUP(CONCATENATE("Post ",MAX(Escalation!$A:$A)),Escalation!$A$7:$R$54,MATCH(AS$8,Escalation!$6:$6,0),FALSE)*100,VLOOKUP($AA38,Escalation!$A$7:$R$54,MATCH(AS$8,Escalation!$6:$6,0),FALSE)*100) -> 2.707462966 | AT38: 1.954341667 | AU38: =IF(ISNA(VLOOKUP($AA38,Escalation!$A$7:$R$54,MATCH(AU$8,Escalation!$6:$6,0),FALSE)*100),VLOOKUP(CONCATENATE("Post ",MAX(Escalation!$A:$A)),Escalation!$A$7:$R$54,MATCH(AU$8,Escalation!$6:$6,0),FALSE)*100,VLOOKUP($AA38,Escalation!$A$7:$R$54,MATCH(AU$8,Escalation!$6:$6,0),FALSE)*100) -> 2.586782034 | AV38: 1.897740137 | AW38: =IF(ISNA(VLOOKUP($AA38,Escalation!$A$7:$R$54,MATCH(AW$8,Escalation!$6:$6,0),FALSE)*100),VLOOKUP(CONCATENATE("Post ",MAX(Escalation!$A:$A)),Escalation!$A$7:$R$54,MATCH(AW$8,Escalation!$6:$6,0),FALSE)*100,VLOOKUP($AA38,Escalation!$A$7:$R$54,MATCH(AW$8,Escalation!$6:$6,0),FALSE)*100) -> 1.98544152 | AX38: 1.63566677 | AY38: =IF(ISNA(VLOOKUP($AA38,Escalation!$A$7:$R$54,MATCH(AY$8,Escalation!$6:$6,0),FALSE)*100),VLOOKUP(CONCATENATE("Post ",MAX(Escalation!$A:$A)),Escalation!$A$7:$R$54,MATCH(AY$8,Escalation!$6:$6,0),FALSE)*100,VLOOKUP($AA38,Escalation!$A$7:$R$54,MATCH(AY$8,Escalation!$6:$6,0),FALSE)*100) -> 1.98544152 | AZ38: 1.63566677
AA39: 2045 | AB39: =IF(ISNA(VLOOKUP($AA39,Escalation!$A$7:$R$54,MATCH(AB$7,Escalation!$6:$6,0),FALSE)*100),VLOOKUP(CONCATENATE("Post ",MAX(Escalation!$A:$A)),Escalation!$A$7:$R$54,MATCH(AB$7,Escalation!$6:$6,0),FALSE)*100,VLOOKUP($AA39,Escalation!$A$7:$R$54,MATCH(AB$7,Escalation!$6:$6,0),FALSE)*100) -> 2.255953052 | AC39: 1.789038783 | AD39: =IF(ISNA(VLOOKUP($AA39,Escalation!$A$7:$R$54,MATCH(AD$7,Escalation!$6:$6,0),FALSE)*100),VLOOKUP(CONCATENATE("Post ",MAX(Escalation!$A:$A)),Escalation!$A$7:$R$54,MATCH(AD$7,Escalation!$6:$6,0),FALSE)*100,VLOOKUP($AA39,Escalation!$A$7:$R$54,MATCH(AD$7,Escalation!$6:$6,0),FALSE)*100) -> 2.503968701 | AE39: 1.904294278 | AF39: =IF(ISNA(VLOOKUP($AA39,Escalation!$A$7:$R$54,MATCH(AF$7,Escalation!$6:$6,0),FALSE)*100),VLOOKUP(CONCATENATE("Post ",MAX(Escalation!$A:$A)),Escalation!$A$7:$R$54,MATCH(AF$7,Escalation!$6:$6,0),FALSE)*100,VLOOKUP($AA39,Escalation!$A$7:$R$54,MATCH(AF$7,Escalation!$6:$6,0),FALSE)*100) -> 2.751984351 | AG39: 2.026671316 | AH39: =IF(ISNA(VLOOKUP($AA39,Escalation!$A$7:$R$54,MATCH(AH$7,Escalation!$6:$6,0),FALSE)*100),VLOOKUP(CONCATENATE("Post ",MAX(Escalation!$A:$A)),Escalation!$A$7:$R$54,MATCH(AH$7,Escalation!$6:$6,0),FALSE)*100,VLOOKUP($AA39,Escalation!$A$7:$R$54,MATCH(AH$7,Escalation!$6:$6,0),FALSE)*100) -> 3 | AI39: 2.156591268 | AL39: 2045 | AM39: =IF(ISNA(VLOOKUP($AA39,Escalation!$A$7:$R$54,MATCH(AM$8,Escalation!$6:$6,0),FALSE)*100),VLOOKUP(CONCATENATE("Post ",MAX(Escalation!$A:$A)),Escalation!$A$7:$R$54,MATCH(AM$8,Escalation!$6:$6,0),FALSE)*100,VLOOKUP($AA39,Escalation!$A$7:$R$54,MATCH(AM$8,Escalation!$6:$6,0),FALSE)*100) -> 2.007937402 | AN39: 1.68050607 | AO39: =IF(ISNA(VLOOKUP($AA39,Escalation!$A$7:$R$54,MATCH(AO$8,Escalation!$6:$6,0),FALSE)*100),VLOOKUP(CONCATENATE("Post ",MAX(Escalation!$A:$A)),Escalation!$A$7:$R$54,MATCH(AO$8,Escalation!$6:$6,0),FALSE)*100,VLOOKUP($AA39,Escalation!$A$7:$R$54,MATCH(AO$8,Escalation!$6:$6,0),FALSE)*100) -> 2.864337138 | AP39: 2.088500724 | AQ39: =IF(ISNA(VLOOKUP($AA39,Escalation!$A$7:$R$54,MATCH(AQ$8,Escalation!$6:$6,0),FALSE)*100),VLOOKUP(CONCATENATE("Post ",MAX(Escalation!$A:$A)),Escalation!$A$7:$R$54,MATCH(AQ$8,Escalation!$6:$6,0),FALSE)*100,VLOOKUP($AA39,Escalation!$A$7:$R$54,MATCH(AQ$8,Escalation!$6:$6,0),FALSE)*100) -> 2.864337138 | AR39: 2.088500724 | AS39: =IF(ISNA(VLOOKUP($AA39,Escalation!$A$7:$R$54,MATCH(AS$8,Escalation!$6:$6,0),FALSE)*100),VLOOKUP(CONCATENATE("Post ",MAX(Escalation!$A:$A)),Escalation!$A$7:$R$54,MATCH(AS$8,Escalation!$6:$6,0),FALSE)*100,VLOOKUP($AA39,Escalation!$A$7:$R$54,MATCH(AS$8,Escalation!$6:$6,0),FALSE)*100) -> 2.707462966 | AT39: 2.007254744 | AU39: =IF(ISNA(VLOOKUP($AA39,Escalation!$A$7:$R$54,MATCH(AU$8,Escalation!$6:$6,0),FALSE)*100),VLOOKUP(CONCATENATE("Post ",MAX(Escalation!$A:$A)),Escalation!$A$7:$R$54,MATCH(AU$8,Escalation!$6:$6,0),FALSE)*100,VLOOKUP($AA39,Escalation!$A$7:$R$54,MATCH(AU$8,Escalation!$6:$6,0),FALSE)*100) -> 2.586782034 | AV39: 1.946830538 | AW39: =IF(ISNA(VLOOKUP($AA39,Escalation!$A$7:$R$54,MATCH(AW$8,Escalation!$6:$6,0),FALSE)*100),VLOOKUP(CONCATENATE("Post ",MAX(Escalation!$A:$A)),Escalation!$A$7:$R$54,MATCH(AW$8,Escalation!$6:$6,0),FALSE)*100,VLOOKUP($AA39,Escalation!$A$7:$R$54,MATCH(AW$8,Escalation!$6:$6,0),FALSE)*100) -> 1.98544152 | AX39: 1.668141977 | AY39: =IF(ISNA(VLOOKUP($AA39,Escalation!$A$7:$R$54,MATCH(AY$8,Escalation!$6:$6,0),FALSE)*100),VLOOKUP(CONCATENATE("Post ",MAX(Escalation!$A:$A)),Escalation!$A$7:$R$54,MATCH(AY$8,Escalation!$6:$6,0),FALSE)*100,VLOOKUP($AA39,Escalation!$A$7:$R$54,MATCH(AY$8,Escalation!$6:$6,0),FALSE)*100) -> 1.98544152 | AZ39: 1.668141977
AA40: 2046 | AB40: =IF(ISNA(VLOOKUP($AA40,Escalation!$A$7:$R$54,MATCH(AB$7,Escalation!$6:$6,0),FALSE)*100),VLOOKUP(CONCATENATE("Post ",MAX(Escalation!$A:$A)),Escalation!$A$7:$R$54,MATCH(AB$7,Escalation!$6:$6,0),FALSE)*100,VLOOKUP($AA40,Escalation!$A$7:$R$54,MATCH(AB$7,Escalation!$6:$6,0),FALSE)*100) -> 2.255953052 | AC40: 1.829398658 | AD40: =IF(ISNA(VLOOKUP($AA40,Escalation!$A$7:$R$54,MATCH(AD$7,Escalation!$6:$6,0),FALSE)*100),VLOOKUP(CONCATENATE("Post ",MAX(Escalation!$A:$A)),Escalation!$A$7:$R$54,MATCH(AD$7,Escalation!$6:$6,0),FALSE)*100,VLOOKUP($AA40,Escalation!$A$7:$R$54,MATCH(AD$7,Escalation!$6:$6,0),FALSE)*100) -> 2.503968701 | AE40: 1.951977211 | AF40: =IF(ISNA(VLOOKUP($AA40,Escalation!$A$7:$R$54,MATCH(AF$7,Escalation!$6:$6,0),FALSE)*100),VLOOKUP(CONCATENATE("Post ",MAX(Escalation!$A:$A)),Escalation!$A$7:$R$54,MATCH(AF$7,Escalation!$6:$6,0),FALSE)*100,VLOOKUP($AA40,Escalation!$A$7:$R$54,MATCH(AF$7,Escalation!$6:$6,0),FALSE)*100) -> 2.751984351 | AG40: 2.082444994 | AH40: =IF(ISNA(VLOOKUP($AA40,Escalation!$A$7:$R$54,MATCH(AH$7,Escalation!$6:$6,0),FALSE)*100),VLOOKUP(CONCATENATE("Post ",MAX(Escalation!$A:$A)),Escalation!$A$7:$R$54,MATCH(AH$7,Escalation!$6:$6,0),FALSE)*100,VLOOKUP($AA40,Escalation!$A$7:$R$54,MATCH(AH$7,Escalation!$6:$6,0),FALSE)*100) -> 3 | AI40: 2.221289006 | AL40: 2046 | AM40: =IF(ISNA(VLOOKUP($AA40,Escalation!$A$7:$R$54,MATCH(AM$8,Escalation!$6:$6,0),FALSE)*100),VLOOKUP(CONCATENATE("Post ",MAX(Escalation!$A:$A)),Escalation!$A$7:$R$54,MATCH(AM$8,Escalation!$6:$6,0),FALSE)*100,VLOOKUP($AA40,Escalation!$A$7:$R$54,MATCH(AM$8,Escalation!$6:$6,0),FALSE)*100) -> 2.007937402 | AN40: 1.71424958 | AO40: =IF(ISNA(VLOOKUP($AA40,Escalation!$A$7:$R$54,MATCH(AO$8,Escalation!$6:$6,0),FALSE)*100),VLOOKUP(CONCATENATE("Post ",MAX(Escalation!$A:$A)),Escalation!$A$7:$R$54,MATCH(AO$8,Escalation!$6:$6,0),FALSE)*100,VLOOKUP($AA40,Escalation!$A$7:$R$54,MATCH(AO$8,Escalation!$6:$6,0),FALSE)*100) -> 2.864337138 | AP40: 2.148322426 | AQ40: =IF(ISNA(VLOOKUP($AA40,Escalation!$A$7:$R$54,MATCH(AQ$8,Escalation!$6:$6,0),FALSE)*100),VLOOKUP(CONCATENATE("Post ",MAX(Escalation!$A:$A)),Escalation!$A$7:$R$54,MATCH(AQ$8,Escalation!$6:$6,0),FALSE)*100,VLOOKUP($AA40,Escalation!$A$7:$R$54,MATCH(AQ$8,Escalation!$6:$6,0),FALSE)*100) -> 2.864337138 | AR40: 2.148322426 | AS40: =IF(ISNA(VLOOKUP($AA40,Escalation!$A$7:$R$54,MATCH(AS$8,Escalation!$6:$6,0),FALSE)*100),VLOOKUP(CONCATENATE("Post ",MAX(Escalation!$A:$A)),Escalation!$A$7:$R$54,MATCH(AS$8,Escalation!$6:$6,0),FALSE)*100,VLOOKUP($AA40,Escalation!$A$7:$R$54,MATCH(AS$8,Escalation!$6:$6,0),FALSE)*100) -> 2.707462966 | AT40: 2.061600422 | AU40: =IF(ISNA(VLOOKUP($AA40,Escalation!$A$7:$R$54,MATCH(AU$8,Escalation!$6:$6,0),FALSE)*100),VLOOKUP(CONCATENATE("Post ",MAX(Escalation!$A:$A)),Escalation!$A$7:$R$54,MATCH(AU$8,Escalation!$6:$6,0),FALSE)*100,VLOOKUP($AA40,Escalation!$A$7:$R$54,MATCH(AU$8,Escalation!$6:$6,0),FALSE)*100) -> 2.586782034 | AV40: 1.9971908 | AW40: =IF(ISNA(VLOOKUP($AA40,Escalation!$A$7:$R$54,MATCH(AW$8,Escalation!$6:$6,0),FALSE)*100),VLOOKUP(CONCATENATE("Post ",MAX(Escalation!$A:$A)),Escalation!$A$7:$R$54,MATCH(AW$8,Escalation!$6:$6,0),FALSE)*100,VLOOKUP($AA40,Escalation!$A$7:$R$54,MATCH(AW$8,Escalation!$6:$6,0),FALSE)*100) -> 1.98544152 | AX40: 1.701261961 | AY40: =IF(ISNA(VLOOKUP($AA40,Escalation!$A$7:$R$54,MATCH(AY$8,Escalation!$6:$6,0),FALSE)*100),VLOOKUP(CONCATENATE("Post ",MAX(Escalation!$A:$A)),Escalation!$A$7:$R$54,MATCH(AY$8,Escalation!$6:$6,0),FALSE)*100,VLOOKUP($AA40,Escalation!$A$7:$R$54,MATCH(AY$8,Escalation!$6:$6,0),FALSE)*100) -> 1.98544152 | AZ40: 1.701261961
AA41: 2047 | AB41: =IF(ISNA(VLOOKUP($AA41,Escalation!$A$7:$R$54,MATCH(AB$7,Escalation!$6:$6,0),FALSE)*100),VLOOKUP(CONCATENATE("Post ",MAX(Escalation!$A:$A)),Escalation!$A$7:$R$54,MATCH(AB$7,Escalation!$6:$6,0),FALSE)*100,VLOOKUP($AA41,Escalation!$A$7:$R$54,MATCH(AB$7,Escalation!$6:$6,0),FALSE)*100) -> 2.255953052 | AC41: 1.870669033 | AD41: =IF(ISNA(VLOOKUP($AA41,Escalation!$A$7:$R$54,MATCH(AD$7,Escalation!$6:$6,0),FALSE)*100),VLOOKUP(CONCATENATE("Post ",MAX(Escalation!$A:$A)),Escalation!$A$7:$R$54,MATCH(AD$7,Escalation!$6:$6,0),FALSE)*100,VLOOKUP($AA41,Escalation!$A$7:$R$54,MATCH(AD$7,Escalation!$6:$6,0),FALSE)*100) -> 2.503968701 | AE41: 2.000854109 | AF41: =IF(ISNA(VLOOKUP($AA41,Escalation!$A$7:$R$54,MATCH(AF$7,Escalation!$6:$6,0),FALSE)*100),VLOOKUP(CONCATENATE("Post ",MAX(Escalation!$A:$A)),Escalation!$A$7:$R$54,MATCH(AF$7,Escalation!$6:$6,0),FALSE)*100,VLOOKUP($AA41,Escalation!$A$7:$R$54,MATCH(AF$7,Escalation!$6:$6,0),FALSE)*100) -> 2.751984351 | AG41: 2.139753554 | AH41: =IF(ISNA(VLOOKUP($AA41,Escalation!$A$7:$R$54,MATCH(AH$7,Escalation!$6:$6,0),FALSE)*100),VLOOKUP(CONCATENATE("Post ",MAX(Escalation!$A:$A)),Escalation!$A$7:$R$54,MATCH(AH$7,Escalation!$6:$6,0),FALSE)*100,VLOOKUP($AA41,Escalation!$A$7:$R$54,MATCH(AH$7,Escalation!$6:$6,0),FALSE)*100) -> 3 | AI41: 2.287927676 | AL41: 2047 | AM41: =IF(ISNA(VLOOKUP($AA41,Escalation!$A$7:$R$54,MATCH(AM$8,Escalation!$6:$6,0),FALSE)*100),VLOOKUP(CONCATENATE("Post ",MAX(Escalation!$A:$A)),Escalation!$A$7:$R$54,MATCH(AM$8,Escalation!$6:$6,0),FALSE)*100,VLOOKUP($AA41,Escalation!$A$7:$R$54,MATCH(AM$8,Escalation!$6:$6,0),FALSE)*100) -> 2.007937402 | AN41: 1.748670638 | AO41: =IF(ISNA(VLOOKUP($AA41,Escalation!$A$7:$R$54,MATCH(AO$8,Escalation!$6:$6,0),FALSE)*100),VLOOKUP(CONCATENATE("Post ",MAX(Escalation!$A:$A)),Escalation!$A$7:$R$54,MATCH(AO$8,Escalation!$6:$6,0),FALSE)*100,VLOOKUP($AA41,Escalation!$A$7:$R$54,MATCH(AO$8,Escalation!$6:$6,0),FALSE)*100) -> 2.864337138 | AP41: 2.209857623 | AQ41: =IF(ISNA(VLOOKUP($AA41,Escalation!$A$7:$R$54,MATCH(AQ$8,Escalation!$6:$6,0),FALSE)*100),VLOOKUP(CONCATENATE("Post ",MAX(Escalation!$A:$A)),Escalation!$A$7:$R$54,MATCH(AQ$8,Escalation!$6:$6,0),FALSE)*100,VLOOKUP($AA41,Escalation!$A$7:$R$54,MATCH(AQ$8,Escalation!$6:$6,0),FALSE)*100) -> 2.864337138 | AR41: 2.209857623 | AS41: =IF(ISNA(VLOOKUP($AA41,Escalation!$A$7:$R$54,MATCH(AS$8,Escalation!$6:$6,0),FALSE)*100),VLOOKUP(CONCATENATE("Post ",MAX(Escalation!$A:$A)),Escalation!$A$7:$R$54,MATCH(AS$8,Escalation!$6:$6,0),FALSE)*100,VLOOKUP($AA41,Escalation!$A$7:$R$54,MATCH(AS$8,Escalation!$6:$6,0),FALSE)*100) -> 2.707462966 | AT41: 2.11741749 | AU41: =IF(ISNA(VLOOKUP($AA41,Escalation!$A$7:$R$54,MATCH(AU$8,Escalation!$6:$6,0),FALSE)*100),VLOOKUP(CONCATENATE("Post ",MAX(Escalation!$A:$A)),Escalation!$A$7:$R$54,MATCH(AU$8,Escalation!$6:$6,0),FALSE)*100,VLOOKUP($AA41,Escalation!$A$7:$R$54,MATCH(AU$8,Escalation!$6:$6,0),FALSE)*100) -> 2.586782034 | AV41: 2.048853773 | AW41: =IF(ISNA(VLOOKUP($AA41,Escalation!$A$7:$R$54,MATCH(AW$8,Escalation!$6:$6,0),FALSE)*100),VLOOKUP(CONCATENATE("Post ",MAX(Escalation!$A:$A)),Escalation!$A$7:$R$54,MATCH(AW$8,Escalation!$6:$6,0),FALSE)*100,VLOOKUP($AA41,Escalation!$A$7:$R$54,MATCH(AW$8,Escalation!$6:$6,0),FALSE)*100) -> 1.98544152 | AX41: 1.735039522 | AY41: =IF(ISNA(VLOOKUP($AA41,Escalation!$A$7:$R$54,MATCH(AY$8,Escalation!$6:$6,0),FALSE)*100),VLOOKUP(CONCATENATE("Post ",MAX(Escalation!$A:$A)),Escalation!$A$7:$R$54,MATCH(AY$8,Escalation!$6:$6,0),FALSE)*100,VLOOKUP($AA41,Escalation!$A$7:$R$54,MATCH(AY$8,Escalation!$6:$6,0),FALSE)*100) -> 1.98544152 | AZ41: 1.735039522
AA42: 2048 | AB42: =IF(ISNA(VLOOKUP($AA42,Escalation!$A$7:$R$54,MATCH(AB$7,Escalation!$6:$6,0),FALSE)*100),VLOOKUP(CONCATENATE("Post ",MAX(Escalation!$A:$A)),Escalation!$A$7:$R$54,MATCH(AB$7,Escalation!$6:$6,0),FALSE)*100,VLOOKUP($AA42,Escalation!$A$7:$R$54,MATCH(AB$7,Escalation!$6:$6,0),FALSE)*100) -> 2.255953052 | AC42: 1.912870448 | AD42: =IF(ISNA(VLOOKUP($AA42,Escalation!$A$7:$R$54,MATCH(AD$7,Escalation!$6:$6,0),FALSE)*100),VLOOKUP(CONCATENATE("Post ",MAX(Escalation!$A:$A)),Escalation!$A$7:$R$54,MATCH(AD$7,Escalation!$6:$6,0),FALSE)*100,VLOOKUP($AA42,Escalation!$A$7:$R$54,MATCH(AD$7,Escalation!$6:$6,0),FALSE)*100) -> 2.503968701 | AE42: 2.05095487 | AF42: =IF(ISNA(VLOOKUP($AA42,Escalation!$A$7:$R$54,MATCH(AF$7,Escalation!$6:$6,0),FALSE)*100),VLOOKUP(CONCATENATE("Post ",MAX(Escalation!$A:$A)),Escalation!$A$7:$R$54,MATCH(AF$7,Escalation!$6:$6,0),FALSE)*100,VLOOKUP($AA42,Escalation!$A$7:$R$54,MATCH(AF$7,Escalation!$6:$6,0),FALSE)*100) -> 2.751984351 | AG42: 2.198639237 | AH42: =IF(ISNA(VLOOKUP($AA42,Escalation!$A$7:$R$54,MATCH(AH$7,Escalation!$6:$6,0),FALSE)*100),VLOOKUP(CONCATENATE("Post ",MAX(Escalation!$A:$A)),Escalation!$A$7:$R$54,MATCH(AH$7,Escalation!$6:$6,0),FALSE)*100,VLOOKUP($AA42,Escalation!$A$7:$R$54,MATCH(AH$7,Escalation!$6:$6,0),FALSE)*100) -> 3 | AI42: 2.356565506 | AL42: 2048 | AM42: =IF(ISNA(VLOOKUP($AA42,Escalation!$A$7:$R$54,MATCH(AM$8,Escalation!$6:$6,0),FALSE)*100),VLOOKUP(CONCATENATE("Post ",MAX(Escalation!$A:$A)),Escalation!$A$7:$R$54,MATCH(AM$8,Escalation!$6:$6,0),FALSE)*100,VLOOKUP($AA42,Escalation!$A$7:$R$54,MATCH(AM$8,Escalation!$6:$6,0),FALSE)*100) -> 2.007937402 | AN42: 1.78378285 | AO42: =IF(ISNA(VLOOKUP($AA42,Escalation!$A$7:$R$54,MATCH(AO$8,Escalation!$6:$6,0),FALSE)*100),VLOOKUP(CONCATENATE("Post ",MAX(Escalation!$A:$A)),Escalation!$A$7:$R$54,MATCH(AO$8,Escalation!$6:$6,0),FALSE)*100,VLOOKUP($AA42,Escalation!$A$7:$R$54,MATCH(AO$8,Escalation!$6:$6,0),FALSE)*100) -> 2.864337138 | AP42: 2.273155396 | AQ42: =IF(ISNA(VLOOKUP($AA42,Escalation!$A$7:$R$54,MATCH(AQ$8,Escalation!$6:$6,0),FALSE)*100),VLOOKUP(CONCATENATE("Post ",MAX(Escalation!$A:$A)),Escalation!$A$7:$R$54,MATCH(AQ$8,Escalation!$6:$6,0),FALSE)*100,VLOOKUP($AA42,Escalation!$A$7:$R$54,MATCH(AQ$8,Escalation!$6:$6,0),FALSE)*100) -> 2.864337138 | AR42: 2.273155396 | AS42: =IF(ISNA(VLOOKUP($AA42,Escalation!$A$7:$R$54,MATCH(AS$8,Escalation!$6:$6,0),FALSE)*100),VLOOKUP(CONCATENATE("Post ",MAX(Escalation!$A:$A)),Escalation!$A$7:$R$54,MATCH(AS$8,Escalation!$6:$6,0),FALSE)*100,VLOOKUP($AA42,Escalation!$A$7:$R$54,MATCH(AS$8,Escalation!$6:$6,0),FALSE)*100) -> 2.707462966 | AT42: 2.174745785 | AU42: =IF(ISNA(VLOOKUP($AA42,Escalation!$A$7:$R$54,MATCH(AU$8,Escalation!$6:$6,0),FALSE)*100),VLOOKUP(CONCATENATE("Post ",MAX(Escalation!$A:$A)),Escalation!$A$7:$R$54,MATCH(AU$8,Escalation!$6:$6,0),FALSE)*100,VLOOKUP($AA42,Escalation!$A$7:$R$54,MATCH(AU$8,Escalation!$6:$6,0),FALSE)*100) -> 2.586782034 | AV42: 2.101853154 | AW42: =IF(ISNA(VLOOKUP($AA42,Escalation!$A$7:$R$54,MATCH(AW$8,Escalation!$6:$6,0),FALSE)*100),VLOOKUP(CONCATENATE("Post ",MAX(Escalation!$A:$A)),Escalation!$A$7:$R$54,MATCH(AW$8,Escalation!$6:$6,0),FALSE)*100,VLOOKUP($AA42,Escalation!$A$7:$R$54,MATCH(AW$8,Escalation!$6:$6,0),FALSE)*100) -> 1.98544152 | AX42: 1.769487717 | AY42: =IF(ISNA(VLOOKUP($AA42,Escalation!$A$7:$R$54,MATCH(AY$8,Escalation!$6:$6,0),FALSE)*100),VLOOKUP(CONCATENATE("Post ",MAX(Escalation!$A:$A)),Escalation!$A$7:$R$54,MATCH(AY$8,Escalation!$6:$6,0),FALSE)*100,VLOOKUP($AA42,Escalation!$A$7:$R$54,MATCH(AY$8,Escalation!$6:$6,0),FALSE)*100) -> 1.98544152 | AZ42: 1.769487717
AA43: 2049 | AB43: =IF(ISNA(VLOOKUP($AA43,Escalation!$A$7:$R$54,MATCH(AB$7,Escalation!$6:$6,0),FALSE)*100),VLOOKUP(CONCATENATE("Post ",MAX(Escalation!$A:$A)),Escalation!$A$7:$R$54,MATCH(AB$7,Escalation!$6:$6,0),FALSE)*100,VLOOKUP($AA43,Escalation!$A$7:$R$54,MATCH(AB$7,Escalation!$6:$6,0),FALSE)*100) -> 2.255953052 | AC43: 1.956023907 | AD43: =IF(ISNA(VLOOKUP($AA43,Escalation!$A$7:$R$54,MATCH(AD$7,Escalation!$6:$6,0),FALSE)*100),VLOOKUP(CONCATENATE("Post ",MAX(Escalation!$A:$A)),Escalation!$A$7:$R$54,MATCH(AD$7,Escalation!$6:$6,0),FALSE)*100,VLOOKUP($AA43,Escalation!$A$7:$R$54,MATCH(AD$7,Escalation!$6:$6,0),FALSE)*100) -> 2.503968701 | AE43: 2.102310138 | AF43: =IF(ISNA(VLOOKUP($AA43,Escalation!$A$7:$R$54,MATCH(AF$7,Escalation!$6:$6,0),FALSE)*100),VLOOKUP(CONCATENATE("Post ",MAX(Escalation!$A:$A)),Escalation!$A$7:$R$54,MATCH(AF$7,Escalation!$6:$6,0),FALSE)*100,VLOOKUP($AA43,Escalation!$A$7:$R$54,MATCH(AF$7,Escalation!$6:$6,0),FALSE)*100) -> 2.751984351 | AG43: 2.259145445 | AH43: =IF(ISNA(VLOOKUP($AA43,Escalation!$A$7:$R$54,MATCH(AH$7,Escalation!$6:$6,0),FALSE)*100),VLOOKUP(CONCATENATE("Post ",MAX(Escalation!$A:$A)),Escalation!$A$7:$R$54,MATCH(AH$7,Escalation!$6:$6,0),FALSE)*100,VLOOKUP($AA43,Escalation!$A$7:$R$54,MATCH(AH$7,Escalation!$6:$6,0),FALSE)*100) -> 3 | AI43: 2.427262471 | AL43: 2049 | AM43: =IF(ISNA(VLOOKUP($AA43,Escalation!$A$7:$R$54,MATCH(AM$8,Escalation!$6:$6,0),FALSE)*100),VLOOKUP(CONCATENATE("Post ",MAX(Escalation!$A:$A)),Escalation!$A$7:$R$54,MATCH(AM$8,Escalation!$6:$6,0),FALSE)*100,VLOOKUP($AA43,Escalation!$A$7:$R$54,MATCH(AM$8,Escalation!$6:$6,0),FALSE)*100) -> 2.007937402 | AN43: 1.819600093 | AO43: =IF(ISNA(VLOOKUP($AA43,Escalation!$A$7:$R$54,MATCH(AO$8,Escalation!$6:$6,0),FALSE)*100),VLOOKUP(CONCATENATE("Post ",MAX(Escalation!$A:$A)),Escalation!$A$7:$R$54,MATCH(AO$8,Escalation!$6:$6,0),FALSE)*100,VLOOKUP($AA43,Escalation!$A$7:$R$54,MATCH(AO$8,Escalation!$6:$6,0),FALSE)*100) -> 2.864337138 | AP43: 2.33826623 | AQ43: =IF(ISNA(VLOOKUP($AA43,Escalation!$A$7:$R$54,MATCH(AQ$8,Escalation!$6:$6,0),FALSE)*100),VLOOKUP(CONCATENATE("Post ",MAX(Escalation!$A:$A)),Escalation!$A$7:$R$54,MATCH(AQ$8,Escalation!$6:$6,0),FALSE)*100,VLOOKUP($AA43,Escalation!$A$7:$R$54,MATCH(AQ$8,Escalation!$6:$6,0),FALSE)*100) -> 2.864337138 | AR43: 2.33826623 | AS43: =IF(ISNA(VLOOKUP($AA43,Escalation!$A$7:$R$54,MATCH(AS$8,Escalation!$6:$6,0),FALSE)*100),VLOOKUP(CONCATENATE("Post ",MAX(Escalation!$A:$A)),Escalation!$A$7:$R$54,MATCH(AS$8,Escalation!$6:$6,0),FALSE)*100,VLOOKUP($AA43,Escalation!$A$7:$R$54,MATCH(AS$8,Escalation!$6:$6,0),FALSE)*100) -> 2.707462966 | AT43: 2.233626221 | AU43: =IF(ISNA(VLOOKUP($AA43,Escalation!$A$7:$R$54,MATCH(AU$8,Escalation!$6:$6,0),FALSE)*100),VLOOKUP(CONCATENATE("Post ",MAX(Escalation!$A:$A)),Escalation!$A$7:$R$54,MATCH(AU$8,Escalation!$6:$6,0),FALSE)*100,VLOOKUP($AA43,Escalation!$A$7:$R$54,MATCH(AU$8,Escalation!$6:$6,0),FALSE)*100) -> 2.586782034 | AV43: 2.156223514 | AW43: =IF(ISNA(VLOOKUP($AA43,Escalation!$A$7:$R$54,MATCH(AW$8,Escalation!$6:$6,0),FALSE)*100),VLOOKUP(CONCATENATE("Post ",MAX(Escalation!$A:$A)),Escalation!$A$7:$R$54,MATCH(AW$8,Escalation!$6:$6,0),FALSE)*100,VLOOKUP($AA43,Escalation!$A$7:$R$54,MATCH(AW$8,Escalation!$6:$6,0),FALSE)*100) -> 1.98544152 | AX43: 1.804619861 | AY43: =IF(ISNA(VLOOKUP($AA43,Escalation!$A$7:$R$54,MATCH(AY$8,Escalation!$6:$6,0),FALSE)*100),VLOOKUP(CONCATENATE("Post ",MAX(Escalation!$A:$A)),Escalation!$A$7:$R$54,MATCH(AY$8,Escalation!$6:$6,0),FALSE)*100,VLOOKUP($AA43,Escalation!$A$7:$R$54,MATCH(AY$8,Escalation!$6:$6,0),FALSE)*100) -> 1.98544152 | AZ43: 1.804619861
AA44: 2050 | AB44: =IF(ISNA(VLOOKUP($AA44,Escalation!$A$7:$R$54,MATCH(AB$7,Escalation!$6:$6,0),FALSE)*100),VLOOKUP(CONCATENATE("Post ",MAX(Escalation!$A:$A)),Escalation!$A$7:$R$54,MATCH(AB$7,Escalation!$6:$6,0),FALSE)*100,VLOOKUP($AA44,Escalation!$A$7:$R$54,MATCH(AB$7,Escalation!$6:$6,0),FALSE)*100) -> 2.255953052 | AC44: 2.000150888 | AD44: =IF(ISNA(VLOOKUP($AA44,Escalation!$A$7:$R$54,MATCH(AD$7,Escalation!$6:$6,0),FALSE)*100),VLOOKUP(CONCATENATE("Post ",MAX(Escalation!$A:$A)),Escalation!$A$7:$R$54,MATCH(AD$7,Escalation!$6:$6,0),FALSE)*100,VLOOKUP($AA44,Escalation!$A$7:$R$54,MATCH(AD$7,Escalation!$6:$6,0),FALSE)*100) -> 2.503968701 | AE44: 2.154951326 | AF44: =IF(ISNA(VLOOKUP($AA44,Escalation!$A$7:$R$54,MATCH(AF$7,Escalation!$6:$6,0),FALSE)*100),VLOOKUP(CONCATENATE("Post ",MAX(Escalation!$A:$A)),Escalation!$A$7:$R$54,MATCH(AF$7,Escalation!$6:$6,0),FALSE)*100,VLOOKUP($AA44,Escalation!$A$7:$R$54,MATCH(AF$7,Escalation!$6:$6,0),FALSE)*100) -> 2.751984351 | AG44: 2.321316774 | AH44: =IF(ISNA(VLOOKUP($AA44,Escalation!$A$7:$R$54,MATCH(AH$7,Escalation!$6:$6,0),FALSE)*100),VLOOKUP(CONCATENATE("Post ",MAX(Escalation!$A:$A)),Escalation!$A$7:$R$54,MATCH(AH$7,Escalation!$6:$6,0),FALSE)*100,VLOOKUP($AA44,Escalation!$A$7:$R$54,MATCH(AH$7,Escalation!$6:$6,0),FALSE)*100) -> 3 | AI44: 2.500080345 | AL44: 2050 | AM44: =IF(ISNA(VLOOKUP($AA44,Escalation!$A$7:$R$54,MATCH(AM$8,Escalation!$6:$6,0),FALSE)*100),VLOOKUP(CONCATENATE("Post ",MAX(Escalation!$A:$A)),Escalation!$A$7:$R$54,MATCH(AM$8,Escalation!$6:$6,0),FALSE)*100,VLOOKUP($AA44,Escalation!$A$7:$R$54,MATCH(AM$8,Escalation!$6:$6,0),FALSE)*100) -> 2.007937402 | AN44: 1.856136524 | AO44: =IF(ISNA(VLOOKUP($AA44,Escalation!$A$7:$R$54,MATCH(AO$8,Escalation!$6:$6,0),FALSE)*100),VLOOKUP(CONCATENATE("Post ",MAX(Escalation!$A:$A)),Escalation!$A$7:$R$54,MATCH(AO$8,Escalation!$6:$6,0),FALSE)*100,VLOOKUP($AA44,Escalation!$A$7:$R$54,MATCH(AO$8,Escalation!$6:$6,0),FALSE)*100) -> 2.864337138 | AP44: 2.405242058 | AQ44: =IF(ISNA(VLOOKUP($AA44,Escalation!$A$7:$R$54,MATCH(AQ$8,Escalation!$6:$6,0),FALSE)*100),VLOOKUP(CONCATENATE("Post ",MAX(Escalation!$A:$A)),Escalation!$A$7:$R$54,MATCH(AQ$8,Escalation!$6:$6,0),FALSE)*100,VLOOKUP($AA44,Escalation!$A$7:$R$54,MATCH(AQ$8,Escalation!$6:$6,0),FALSE)*100) -> 2.864337138 | AR44: 2.405242058 | AS44: =IF(ISNA(VLOOKUP($AA44,Escalation!$A$7:$R$54,MATCH(AS$8,Escalation!$6:$6,0),FALSE)*100),VLOOKUP(CONCATENATE("Post ",MAX(Escalation!$A:$A)),Escalation!$A$7:$R$54,MATCH(AS$8,Escalation!$6:$6,0),FALSE)*100,VLOOKUP($AA44,Escalation!$A$7:$R$54,MATCH(AS$8,Escalation!$6:$6,0),FALSE)*100) -> 2.707462966 | AT44: 2.294100824 | AU44: =IF(ISNA(VLOOKUP($AA44,Escalation!$A$7:$R$54,MATCH(AU$8,Escalation!$6:$6,0),FALSE)*100),VLOOKUP(CONCATENATE("Post ",MAX(Escalation!$A:$A)),Escalation!$A$7:$R$54,MATCH(AU$8,Escalation!$6:$6,0),FALSE)*100,VLOOKUP($AA44,Escalation!$A$7:$R$54,MATCH(AU$8,Escalation!$6:$6,0),FALSE)*100) -> 2.586782034 | AV44: 2.212000316 | AW44: =IF(ISNA(VLOOKUP($AA44,Escalation!$A$7:$R$54,MATCH(AW$8,Escalation!$6:$6,0),FALSE)*100),VLOOKUP(CONCATENATE("Post ",MAX(Escalation!$A:$A)),Escalation!$A$7:$R$54,MATCH(AW$8,Escalation!$6:$6,0),FALSE)*100,VLOOKUP($AA44,Escalation!$A$7:$R$54,MATCH(AW$8,Escalation!$6:$6,0),FALSE)*100) -> 1.98544152 | AX44: 1.840449533 | AY44: =IF(ISNA(VLOOKUP($AA44,Escalation!$A$7:$R$54,MATCH(AY$8,Escalation!$6:$6,0),FALSE)*100),VLOOKUP(CONCATENATE("Post ",MAX(Escalation!$A:$A)),Escalation!$A$7:$R$54,MATCH(AY$8,Escalation!$6:$6,0),FALSE)*100,VLOOKUP($AA44,Escalation!$A$7:$R$54,MATCH(AY$8,Escalation!$6:$6,0),FALSE)*100) -> 1.98544152 | AZ44: 1.840449533
AA45: 2051 | AB45: =IF(ISNA(VLOOKUP($AA45,Escalation!$A$7:$R$54,MATCH(AB$7,Escalation!$6:$6,0),FALSE)*100),VLOOKUP(CONCATENATE("Post ",MAX(Escalation!$A:$A)),Escalation!$A$7:$R$54,MATCH(AB$7,Escalation!$6:$6,0),FALSE)*100,VLOOKUP($AA45,Escalation!$A$7:$R$54,MATCH(AB$7,Escalation!$6:$6,0),FALSE)*100) -> 2.255953052 | AC45: 2.045273353 | AD45: =IF(ISNA(VLOOKUP($AA45,Escalation!$A$7:$R$54,MATCH(AD$7,Escalation!$6:$6,0),FALSE)*100),VLOOKUP(CONCATENATE("Post ",MAX(Escalation!$A:$A)),Escalation!$A$7:$R$54,MATCH(AD$7,Escalation!$6:$6,0),FALSE)*100,VLOOKUP($AA45,Escalation!$A$7:$R$54,MATCH(AD$7,Escalation!$6:$6,0),FALSE)*100) -> 2.503968701 | AE45: 2.208910632 | AF45: =IF(ISNA(VLOOKUP($AA45,Escalation!$A$7:$R$54,MATCH(AF$7,Escalation!$6:$6,0),FALSE)*100),VLOOKUP(CONCATENATE("Post ",MAX(Escalation!$A:$A)),Escalation!$A$7:$R$54,MATCH(AF$7,Escalation!$6:$6,0),FALSE)*100,VLOOKUP($AA45,Escalation!$A$7:$R$54,MATCH(AF$7,Escalation!$6:$6,0),FALSE)*100) -> 2.751984351 | AG45: 2.385199048 | AH45: =IF(ISNA(VLOOKUP($AA45,Escalation!$A$7:$R$54,MATCH(AH$7,Escalation!$6:$6,0),FALSE)*100),VLOOKUP(CONCATENATE("Post ",MAX(Escalation!$A:$A)),Escalation!$A$7:$R$54,MATCH(AH$7,Escalation!$6:$6,0),FALSE)*100,VLOOKUP($AA45,Escalation!$A$7:$R$54,MATCH(AH$7,Escalation!$6:$6,0),FALSE)*100) -> 3 | AI45: 2.575082756 | AL45: 2051 | AM45: =IF(ISNA(VLOOKUP($AA45,Escalation!$A$7:$R$54,MATCH(AM$8,Escalation!$6:$6,0),FALSE)*100),VLOOKUP(CONCATENATE("Post ",MAX(Escalation!$A:$A)),Escalation!$A$7:$R$54,MATCH(AM$8,Escalation!$6:$6,0),FALSE)*100,VLOOKUP($AA45,Escalation!$A$7:$R$54,MATCH(AM$8,Escalation!$6:$6,0),FALSE)*100) -> 2.007937402 | AN45: 1.893406584 | AO45: =IF(ISNA(VLOOKUP($AA45,Escalation!$A$7:$R$54,MATCH(AO$8,Escalation!$6:$6,0),FALSE)*100),VLOOKUP(CONCATENATE("Post ",MAX(Escalation!$A:$A)),Escalation!$A$7:$R$54,MATCH(AO$8,Escalation!$6:$6,0),FALSE)*100,VLOOKUP($AA45,Escalation!$A$7:$R$54,MATCH(AO$8,Escalation!$6:$6,0),FALSE)*100) -> 2.864337138 | AP45: 2.4741363 | AQ45: =IF(ISNA(VLOOKUP($AA45,Escalation!$A$7:$R$54,MATCH(AQ$8,Escalation!$6:$6,0),FALSE)*100),VLOOKUP(CONCATENATE("Post ",MAX(Escalation!$A:$A)),Escalation!$A$7:$R$54,MATCH(AQ$8,Escalation!$6:$6,0),FALSE)*100,VLOOKUP($AA45,Escalation!$A$7:$R$54,MATCH(AQ$8,Escalation!$6:$6,0),FALSE)*100) -> 2.864337138 | AR45: 2.4741363 | AS45: =IF(ISNA(VLOOKUP($AA45,Escalation!$A$7:$R$54,MATCH(AS$8,Escalation!$6:$6,0),FALSE)*100),VLOOKUP(CONCATENATE("Post ",MAX(Escalation!$A:$A)),Escalation!$A$7:$R$54,MATCH(AS$8,Escalation!$6:$6,0),FALSE)*100,VLOOKUP($AA45,Escalation!$A$7:$R$54,MATCH(AS$8,Escalation!$6:$6,0),FALSE)*100) -> 2.707462966 | AT45: 2.356212754 | AU45: =IF(ISNA(VLOOKUP($AA45,Escalation!$A$7:$R$54,MATCH(AU$8,Escalation!$6:$6,0),FALSE)*100),VLOOKUP(CONCATENATE("Post ",MAX(Escalation!$A:$A)),Escalation!$A$7:$R$54,MATCH(AU$8,Escalation!$6:$6,0),FALSE)*100,VLOOKUP($AA45,Escalation!$A$7:$R$54,MATCH(AU$8,Escalation!$6:$6,0),FALSE)*100) -> 2.586782034 | AV45: 2.269219943 | AW45: =IF(ISNA(VLOOKUP($AA45,Escalation!$A$7:$R$54,MATCH(AW$8,Escalation!$6:$6,0),FALSE)*100),VLOOKUP(CONCATENATE("Post ",MAX(Escalation!$A:$A)),Escalation!$A$7:$R$54,MATCH(AW$8,Escalation!$6:$6,0),FALSE)*100,VLOOKUP($AA45,Escalation!$A$7:$R$54,MATCH(AW$8,Escalation!$6:$6,0),FALSE)*100) -> 1.98544152 | AX45: 1.876990582 | AY45: =IF(ISNA(VLOOKUP($AA45,Escalation!$A$7:$R$54,MATCH(AY$8,Escalation!$6:$6,0),FALSE)*100),VLOOKUP(CONCATENATE("Post ",MAX(Escalation!$A:$A)),Escalation!$A$7:$R$54,MATCH(AY$8,Escalation!$6:$6,0),FALSE)*100,VLOOKUP($AA45,Escalation!$A$7:$R$54,MATCH(AY$8,Escalation!$6:$6,0),FALSE)*100) -> 1.98544152 | AZ45: 1.876990582
AA46: 2052 | AB46: =IF(ISNA(VLOOKUP($AA46,Escalation!$A$7:$R$54,MATCH(AB$7,Escalation!$6:$6,0),FALSE)*100),VLOOKUP(CONCATENATE("Post ",MAX(Escalation!$A:$A)),Escalation!$A$7:$R$54,MATCH(AB$7,Escalation!$6:$6,0),FALSE)*100,VLOOKUP($AA46,Escalation!$A$7:$R$54,MATCH(AB$7,Escalation!$6:$6,0),FALSE)*100) -> 2.255953052 | AC46: 2.09141376 | AD46: =IF(ISNA(VLOOKUP($AA46,Escalation!$A$7:$R$54,MATCH(AD$7,Escalation!$6:$6,0),FALSE)*100),VLOOKUP(CONCATENATE("Post ",MAX(Escalation!$A:$A)),Escalation!$A$7:$R$54,MATCH(AD$7,Escalation!$6:$6,0),FALSE)*100,VLOOKUP($AA46,Escalation!$A$7:$R$54,MATCH(AD$7,Escalation!$6:$6,0),FALSE)*100) -> 2.503968701 | AE46: 2.264221063 | AF46: =IF(ISNA(VLOOKUP($AA46,Escalation!$A$7:$R$54,MATCH(AF$7,Escalation!$6:$6,0),FALSE)*100),VLOOKUP(CONCATENATE("Post ",MAX(Escalation!$A:$A)),Escalation!$A$7:$R$54,MATCH(AF$7,Escalation!$6:$6,0),FALSE)*100,VLOOKUP($AA46,Escalation!$A$7:$R$54,MATCH(AF$7,Escalation!$6:$6,0),FALSE)*100) -> 2.751984351 | AG46: 2.450839353 | AH46: =IF(ISNA(VLOOKUP($AA46,Escalation!$A$7:$R$54,MATCH(AH$7,Escalation!$6:$6,0),FALSE)*100),VLOOKUP(CONCATENATE("Post ",MAX(Escalation!$A:$A)),Escalation!$A$7:$R$54,MATCH(AH$7,Escalation!$6:$6,0),FALSE)*100,VLOOKUP($AA46,Escalation!$A$7:$R$54,MATCH(AH$7,Escalation!$6:$6,0),FALSE)*100) -> 3 | AI46: 2.652335238 | AL46: 2052 | AM46: =IF(ISNA(VLOOKUP($AA46,Escalation!$A$7:$R$54,MATCH(AM$8,Escalation!$6:$6,0),FALSE)*100),VLOOKUP(CONCATENATE("Post ",MAX(Escalation!$A:$A)),Escalation!$A$7:$R$54,MATCH(AM$8,Escalation!$6:$6,0),FALSE)*100,VLOOKUP($AA46,Escalation!$A$7:$R$54,MATCH(AM$8,Escalation!$6:$6,0),FALSE)*100) -> 2.007937402 | AN46: 1.931425003 | AO46: =IF(ISNA(VLOOKUP($AA46,Escalation!$A$7:$R$54,MATCH(AO$8,Escalation!$6:$6,0),FALSE)*100),VLOOKUP(CONCATENATE("Post ",MAX(Escalation!$A:$A)),Escalation!$A$7:$R$54,MATCH(AO$8,Escalation!$6:$6,0),FALSE)*100,VLOOKUP($AA46,Escalation!$A$7:$R$54,MATCH(AO$8,Escalation!$6:$6,0),FALSE)*100) -> 2.864337138 | AP46: 2.545003904 | AQ46: =IF(ISNA(VLOOKUP($AA46,Escalation!$A$7:$R$54,MATCH(AQ$8,Escalation!$6:$6,0),FALSE)*100),VLOOKUP(CONCATENATE("Post ",MAX(Escalation!$A:$A)),Escalation!$A$7:$R$54,MATCH(AQ$8,Escalation!$6:$6,0),FALSE)*100,VLOOKUP($AA46,Escalation!$A$7:$R$54,MATCH(AQ$8,Escalation!$6:$6,0),FALSE)*100) -> 2.864337138 | AR46: 2.545003904 | AS46: =IF(ISNA(VLOOKUP($AA46,Escalation!$A$7:$R$54,MATCH(AS$8,Escalation!$6:$6,0),FALSE)*100),VLOOKUP(CONCATENATE("Post ",MAX(Escalation!$A:$A)),Escalation!$A$7:$R$54,MATCH(AS$8,Escalation!$6:$6,0),FALSE)*100,VLOOKUP($AA46,Escalation!$A$7:$R$54,MATCH(AS$8,Escalation!$6:$6,0),FALSE)*100) -> 2.707462966 | AT46: 2.420006342 | AU46: =IF(ISNA(VLOOKUP($AA46,Escalation!$A$7:$R$54,MATCH(AU$8,Escalation!$6:$6,0),FALSE)*100),VLOOKUP(CONCATENATE("Post ",MAX(Escalation!$A:$A)),Escalation!$A$7:$R$54,MATCH(AU$8,Escalation!$6:$6,0),FALSE)*100,VLOOKUP($AA46,Escalation!$A$7:$R$54,MATCH(AU$8,Escalation!$6:$6,0),FALSE)*100) -> 2.586782034 | AV46: 2.327919717 | AW46: =IF(ISNA(VLOOKUP($AA46,Escalation!$A$7:$R$54,MATCH(AW$8,Escalation!$6:$6,0),FALSE)*100),VLOOKUP(CONCATENATE("Post ",MAX(Escalation!$A:$A)),Escalation!$A$7:$R$54,MATCH(AW$8,Escalation!$6:$6,0),FALSE)*100,VLOOKUP($AA46,Escalation!$A$7:$R$54,MATCH(AW$8,Escalation!$6:$6,0),FALSE)*100) -> 1.98544152 | AX46: 1.914257132 | AY46: =IF(ISNA(VLOOKUP($AA46,Escalation!$A$7:$R$54,MATCH(AY$8,Escalation!$6:$6,0),FALSE)*100),VLOOKUP(CONCATENATE("Post ",MAX(Escalation!$A:$A)),Escalation!$A$7:$R$54,MATCH(AY$8,Escalation!$6:$6,0),FALSE)*100,VLOOKUP($AA46,Escalation!$A$7:$R$54,MATCH(AY$8,Escalation!$6:$6,0),FALSE)*100) -> 1.98544152 | AZ46: 1.914257132
AA47: 2053 | AB47: =IF(ISNA(VLOOKUP($AA47,Escalation!$A$7:$R$54,MATCH(AB$7,Escalation!$6:$6,0),FALSE)*100),VLOOKUP(CONCATENATE("Post ",MAX(Escalation!$A:$A)),Escalation!$A$7:$R$54,MATCH(AB$7,Escalation!$6:$6,0),FALSE)*100,VLOOKUP($AA47,Escalation!$A$7:$R$54,MATCH(AB$7,Escalation!$6:$6,0),FALSE)*100) -> 2.255953052 | AC47: 2.138595072 | AD47: =IF(ISNA(VLOOKUP($AA47,Escalation!$A$7:$R$54,MATCH(AD$7,Escalation!$6:$6,0),FALSE)*100),VLOOKUP(CONCATENATE("Post ",MAX(Escalation!$A:$A)),Escalation!$A$7:$R$54,MATCH(AD$7,Escalation!$6:$6,0),FALSE)*100,VLOOKUP($AA47,Escalation!$A$7:$R$54,MATCH(AD$7,Escalation!$6:$6,0),FALSE)*100) -> 2.503968701 | AE47: 2.32091645 | AF47: =IF(ISNA(VLOOKUP($AA47,Escalation!$A$7:$R$54,MATCH(AF$7,Escalation!$6:$6,0),FALSE)*100),VLOOKUP(CONCATENATE("Post ",MAX(Escalation!$A:$A)),Escalation!$A$7:$R$54,MATCH(AF$7,Escalation!$6:$6,0),FALSE)*100,VLOOKUP($AA47,Escalation!$A$7:$R$54,MATCH(AF$7,Escalation!$6:$6,0),FALSE)*100) -> 2.751984351 | AG47: 2.518286068 | AH47: =IF(ISNA(VLOOKUP($AA47,Escalation!$A$7:$R$54,MATCH(AH$7,Escalation!$6:$6,0),FALSE)*100),VLOOKUP(CONCATENATE("Post ",MAX(Escalation!$A:$A)),Escalation!$A$7:$R$54,MATCH(AH$7,Escalation!$6:$6,0),FALSE)*100,VLOOKUP($AA47,Escalation!$A$7:$R$54,MATCH(AH$7,Escalation!$6:$6,0),FALSE)*100) -> 3 | AI47: 2.731905296 | AL47: 2053 | AM47: =IF(ISNA(VLOOKUP($AA47,Escalation!$A$7:$R$54,MATCH(AM$8,Escalation!$6:$6,0),FALSE)*100),VLOOKUP(CONCATENATE("Post ",MAX(Escalation!$A:$A)),Escalation!$A$7:$R$54,MATCH(AM$8,Escalation!$6:$6,0),FALSE)*100,VLOOKUP($AA47,Escalation!$A$7:$R$54,MATCH(AM$8,Escalation!$6:$6,0),FALSE)*100) -> 2.007937402 | AN47: 1.970206808 | AO47: =IF(ISNA(VLOOKUP($AA47,Escalation!$A$7:$R$54,MATCH(AO$8,Escalation!$6:$6,0),FALSE)*100),VLOOKUP(CONCATENATE("Post ",MAX(Escalation!$A:$A)),Escalation!$A$7:$R$54,MATCH(AO$8,Escalation!$6:$6,0),FALSE)*100,VLOOKUP($AA47,Escalation!$A$7:$R$54,MATCH(AO$8,Escalation!$6:$6,0),FALSE)*100) -> 2.864337138 | AP47: 2.617901396 | AQ47: =IF(ISNA(VLOOKUP($AA47,Escalation!$A$7:$R$54,MATCH(AQ$8,Escalation!$6:$6,0),FALSE)*100),VLOOKUP(CONCATENATE("Post ",MAX(Escalation!$A:$A)),Escalation!$A$7:$R$54,MATCH(AQ$8,Escalation!$6:$6,0),FALSE)*100,VLOOKUP($AA47,Escalation!$A$7:$R$54,MATCH(AQ$8,Escalation!$6:$6,0),FALSE)*100) -> 2.864337138 | AR47: 2.617901396 | AS47: =IF(ISNA(VLOOKUP($AA47,Escalation!$A$7:$R$54,MATCH(AS$8,Escalation!$6:$6,0),FALSE)*100),VLOOKUP(CONCATENATE("Post ",MAX(Escalation!$A:$A)),Escalation!$A$7:$R$54,MATCH(AS$8,Escalation!$6:$6,0),FALSE)*100,VLOOKUP($AA47,Escalation!$A$7:$R$54,MATCH(AS$8,Escalation!$6:$6,0),FALSE)*100) -> 2.707462966 | AT47: 2.485527118 | AU47: =IF(ISNA(VLOOKUP($AA47,Escalation!$A$7:$R$54,MATCH(AU$8,Escalation!$6:$6,0),FALSE)*100),VLOOKUP(CONCATENATE("Post ",MAX(Escalation!$A:$A)),Escalation!$A$7:$R$54,MATCH(AU$8,Escalation!$6:$6,0),FALSE)*100,VLOOKUP($AA47,Escalation!$A$7:$R$54,MATCH(AU$8,Escalation!$6:$6,0),FALSE)*100) -> 2.586782034 | AV47: 2.388137926 | AW47: =IF(ISNA(VLOOKUP($AA47,Escalation!$A$7:$R$54,MATCH(AW$8,Escalation!$6:$6,0),FALSE)*100),VLOOKUP(CONCATENATE("Post ",MAX(Escalation!$A:$A)),Escalation!$A$7:$R$54,MATCH(AW$8,Escalation!$6:$6,0),FALSE)*100,VLOOKUP($AA47,Escalation!$A$7:$R$54,MATCH(AW$8,Escalation!$6:$6,0),FALSE)*100) -> 1.98544152 | AX47: 1.952263588 | AY47: =IF(ISNA(VLOOKUP($AA47,Escalation!$A$7:$R$54,MATCH(AY$8,Escalation!$6:$6,0),FALSE)*100),VLOOKUP(CONCATENATE("Post ",MAX(Escalation!$A:$A)),Escalation!$A$7:$R$54,MATCH(AY$8,Escalation!$6:$6,0),FALSE)*100,VLOOKUP($AA47,Escalation!$A$7:$R$54,MATCH(AY$8,Escalation!$6:$6,0),FALSE)*100) -> 1.98544152 | AZ47: 1.952263588
AA48: 2054 | AB48: =IF(ISNA(VLOOKUP($AA48,Escalation!$A$7:$R$54,MATCH(AB$7,Escalation!$6:$6,0),FALSE)*100),VLOOKUP(CONCATENATE("Post ",MAX(Escalation!$A:$A)),Escalation!$A$7:$R$54,MATCH(AB$7,Escalation!$6:$6,0),FALSE)*100,VLOOKUP($AA48,Escalation!$A$7:$R$54,MATCH(AB$7,Escalation!$6:$6,0),FALSE)*100) -> 2.255953052 | AC48: 2.186840773 | AD48: =IF(ISNA(VLOOKUP($AA48,Escalation!$A$7:$R$54,MATCH(AD$7,Escalation!$6:$6,0),FALSE)*100),VLOOKUP(CONCATENATE("Post ",MAX(Escalation!$A:$A)),Escalation!$A$7:$R$54,MATCH(AD$7,Escalation!$6:$6,0),FALSE)*100,VLOOKUP($AA48,Escalation!$A$7:$R$54,MATCH(AD$7,Escalation!$6:$6,0),FALSE)*100) -> 2.503968701 | AE48: 2.379031472 | AF48: =IF(ISNA(VLOOKUP($AA48,Escalation!$A$7:$R$54,MATCH(AF$7,Escalation!$6:$6,0),FALSE)*100),VLOOKUP(CONCATENATE("Post ",MAX(Escalation!$A:$A)),Escalation!$A$7:$R$54,MATCH(AF$7,Escalation!$6:$6,0),FALSE)*100,VLOOKUP($AA48,Escalation!$A$7:$R$54,MATCH(AF$7,Escalation!$6:$6,0),FALSE)*100) -> 2.751984351 | AG48: 2.587588906 | AH48: =IF(ISNA(VLOOKUP($AA48,Escalation!$A$7:$R$54,MATCH(AH$7,Escalation!$6:$6,0),FALSE)*100),VLOOKUP(CONCATENATE("Post ",MAX(Escalation!$A:$A)),Escalation!$A$7:$R$54,MATCH(AH$7,Escalation!$6:$6,0),FALSE)*100,VLOOKUP($AA48,Escalation!$A$7:$R$54,MATCH(AH$7,Escalation!$6:$6,0),FALSE)*100) -> 3 | AI48: 2.813862454 | AL48: 2054 | AM48: =IF(ISNA(VLOOKUP($AA48,Escalation!$A$7:$R$54,MATCH(AM$8,Escalation!$6:$6,0),FALSE)*100),VLOOKUP(CONCATENATE("Post ",MAX(Escalation!$A:$A)),Escalation!$A$7:$R$54,MATCH(AM$8,Escalation!$6:$6,0),FALSE)*100,VLOOKUP($AA48,Escalation!$A$7:$R$54,MATCH(AM$8,Escalation!$6:$6,0),FALSE)*100) -> 2.007937402 | AN48: 2.009767327 | AO48: =IF(ISNA(VLOOKUP($AA48,Escalation!$A$7:$R$54,MATCH(AO$8,Escalation!$6:$6,0),FALSE)*100),VLOOKUP(CONCATENATE("Post ",MAX(Escalation!$A:$A)),Escalation!$A$7:$R$54,MATCH(AO$8,Escalation!$6:$6,0),FALSE)*100,VLOOKUP($AA48,Escalation!$A$7:$R$54,MATCH(AO$8,Escalation!$6:$6,0),FALSE)*100) -> 2.864337138 | AP48: 2.692886918 | AQ48: =IF(ISNA(VLOOKUP($AA48,Escalation!$A$7:$R$54,MATCH(AQ$8,Escalation!$6:$6,0),FALSE)*100),VLOOKUP(CONCATENATE("Post ",MAX(Escalation!$A:$A)),Escalation!$A$7:$R$54,MATCH(AQ$8,Escalation!$6:$6,0),FALSE)*100,VLOOKUP($AA48,Escalation!$A$7:$R$54,MATCH(AQ$8,Escalation!$6:$6,0),FALSE)*100) -> 2.864337138 | AR48: 2.692886918 | AS48: =IF(ISNA(VLOOKUP($AA48,Escalation!$A$7:$R$54,MATCH(AS$8,Escalation!$6:$6,0),FALSE)*100),VLOOKUP(CONCATENATE("Post ",MAX(Escalation!$A:$A)),Escalation!$A$7:$R$54,MATCH(AS$8,Escalation!$6:$6,0),FALSE)*100,VLOOKUP($AA48,Escalation!$A$7:$R$54,MATCH(AS$8,Escalation!$6:$6,0),FALSE)*100) -> 2.707462966 | AT48: 2.552821844 | AU48: =IF(ISNA(VLOOKUP($AA48,Escalation!$A$7:$R$54,MATCH(AU$8,Escalation!$6:$6,0),FALSE)*100),VLOOKUP(CONCATENATE("Post ",MAX(Escalation!$A:$A)),Escalation!$A$7:$R$54,MATCH(AU$8,Escalation!$6:$6,0),FALSE)*100,VLOOKUP($AA48,Escalation!$A$7:$R$54,MATCH(AU$8,Escalation!$6:$6,0),FALSE)*100) -> 2.586782034 | AV48: 2.449913849 | AW48: =IF(ISNA(VLOOKUP($AA48,Escalation!$A$7:$R$54,MATCH(AW$8,Escalation!$6:$6,0),FALSE)*100),VLOOKUP(CONCATENATE("Post ",MAX(Escalation!$A:$A)),Escalation!$A$7:$R$54,MATCH(AW$8,Escalation!$6:$6,0),FALSE)*100,VLOOKUP($AA48,Escalation!$A$7:$R$54,MATCH(AW$8,Escalation!$6:$6,0),FALSE)*100) -> 1.98544152 | AX48: 1.99102464 | AY48: =IF(ISNA(VLOOKUP($AA48,Escalation!$A$7:$R$54,MATCH(AY$8,Escalation!$6:$6,0),FALSE)*100),VLOOKUP(CONCATENATE("Post ",MAX(Escalation!$A:$A)),Escalation!$A$7:$R$54,MATCH(AY$8,Escalation!$6:$6,0),FALSE)*100,VLOOKUP($AA48,Escalation!$A$7:$R$54,MATCH(AY$8,Escalation!$6:$6,0),FALSE)*100) -> 1.98544152 | AZ48: 1.99102464
AA49: 2055 | AB49: =IF(ISNA(VLOOKUP($AA49,Escalation!$A$7:$R$54,MATCH(AB$7,Escalation!$6:$6,0),FALSE)*100),VLOOKUP(CONCATENATE("Post ",MAX(Escalation!$A:$A)),Escalation!$A$7:$R$54,MATCH(AB$7,Escalation!$6:$6,0),FALSE)*100,VLOOKUP($AA49,Escalation!$A$7:$R$54,MATCH(AB$7,Escalation!$6:$6,0),FALSE)*100) -> 2.255953052 | AC49: 2.236174874 | AD49: =IF(ISNA(VLOOKUP($AA49,Escalation!$A$7:$R$54,MATCH(AD$7,Escalation!$6:$6,0),FALSE)*100),VLOOKUP(CONCATENATE("Post ",MAX(Escalation!$A:$A)),Escalation!$A$7:$R$54,MATCH(AD$7,Escalation!$6:$6,0),FALSE)*100,VLOOKUP($AA49,Escalation!$A$7:$R$54,MATCH(AD$7,Escalation!$6:$6,0),FALSE)*100) -> 2.503968701 | AE49: 2.438601675 | AF49: =IF(ISNA(VLOOKUP($AA49,Escalation!$A$7:$R$54,MATCH(AF$7,Escalation!$6:$6,0),FALSE)*100),VLOOKUP(CONCATENATE("Post ",MAX(Escalation!$A:$A)),Escalation!$A$7:$R$54,MATCH(AF$7,Escalation!$6:$6,0),FALSE)*100,VLOOKUP($AA49,Escalation!$A$7:$R$54,MATCH(AF$7,Escalation!$6:$6,0),FALSE)*100) -> 2.751984351 | AG49: 2.658798948 | AH49: =IF(ISNA(VLOOKUP($AA49,Escalation!$A$7:$R$54,MATCH(AH$7,Escalation!$6:$6,0),FALSE)*100),VLOOKUP(CONCATENATE("Post ",MAX(Escalation!$A:$A)),Escalation!$A$7:$R$54,MATCH(AH$7,Escalation!$6:$6,0),FALSE)*100,VLOOKUP($AA49,Escalation!$A$7:$R$54,MATCH(AH$7,Escalation!$6:$6,0),FALSE)*100) -> 3 | AI49: 2.898278328 | AL49: 2055 | AM49: =IF(ISNA(VLOOKUP($AA49,Escalation!$A$7:$R$54,MATCH(AM$8,Escalation!$6:$6,0),FALSE)*100),VLOOKUP(CONCATENATE("Post ",MAX(Escalation!$A:$A)),Escalation!$A$7:$R$54,MATCH(AM$8,Escalation!$6:$6,0),FALSE)*100,VLOOKUP($AA49,Escalation!$A$7:$R$54,MATCH(AM$8,Escalation!$6:$6,0),FALSE)*100) -> 2.007937402 | AN49: 2.050122197 | AO49: =IF(ISNA(VLOOKUP($AA49,Escalation!$A$7:$R$54,MATCH(AO$8,Escalation!$6:$6,0),FALSE)*100),VLOOKUP(CONCATENATE("Post ",MAX(Escalation!$A:$A)),Escalation!$A$7:$R$54,MATCH(AO$8,Escalation!$6:$6,0),FALSE)*100,VLOOKUP($AA49,Escalation!$A$7:$R$54,MATCH(AO$8,Escalation!$6:$6,0),FALSE)*100) -> 2.864337138 | AP49: 2.770020278 | AQ49: =IF(ISNA(VLOOKUP($AA49,Escalation!$A$7:$R$54,MATCH(AQ$8,Escalation!$6:$6,0),FALSE)*100),VLOOKUP(CONCATENATE("Post ",MAX(Escalation!$A:$A)),Escalation!$A$7:$R$54,MATCH(AQ$8,Escalation!$6:$6,0),FALSE)*100,VLOOKUP($AA49,Escalation!$A$7:$R$54,MATCH(AQ$8,Escalation!$6:$6,0),FALSE)*100) -> 2.864337138 | AR49: 2.770020278 | AS49: =IF(ISNA(VLOOKUP($AA49,Escalation!$A$7:$R$54,MATCH(AS$8,Escalation!$6:$6,0),FALSE)*100),VLOOKUP(CONCATENATE("Post ",MAX(Escalation!$A:$A)),Escalation!$A$7:$R$54,MATCH(AS$8,Escalation!$6:$6,0),FALSE)*100,VLOOKUP($AA49,Escalation!$A$7:$R$54,MATCH(AS$8,Escalation!$6:$6,0),FALSE)*100) -> 2.707462966 | AT49: 2.62193855 | AU49: =IF(ISNA(VLOOKUP($AA49,Escalation!$A$7:$R$54,MATCH(AU$8,Escalation!$6:$6,0),FALSE)*100),VLOOKUP(CONCATENATE("Post ",MAX(Escalation!$A:$A)),Escalation!$A$7:$R$54,MATCH(AU$8,Escalation!$6:$6,0),FALSE)*100,VLOOKUP($AA49,Escalation!$A$7:$R$54,MATCH(AU$8,Escalation!$6:$6,0),FALSE)*100) -> 2.586782034 | AV49: 2.51328778 | AW49: =IF(ISNA(VLOOKUP($AA49,Escalation!$A$7:$R$54,MATCH(AW$8,Escalation!$6:$6,0),FALSE)*100),VLOOKUP(CONCATENATE("Post ",MAX(Escalation!$A:$A)),Escalation!$A$7:$R$54,MATCH(AW$8,Escalation!$6:$6,0),FALSE)*100,VLOOKUP($AA49,Escalation!$A$7:$R$54,MATCH(AW$8,Escalation!$6:$6,0),FALSE)*100) -> 1.98544152 | AX49: 2.03055527 | AY49: =IF(ISNA(VLOOKUP($AA49,Escalation!$A$7:$R$54,MATCH(AY$8,Escalation!$6:$6,0),FALSE)*100),VLOOKUP(CONCATENATE("Post ",MAX(Escalation!$A:$A)),Escalation!$A$7:$R$54,MATCH(AY$8,Escalation!$6:$6,0),FALSE)*100,VLOOKUP($AA49,Escalation!$A$7:$R$54,MATCH(AY$8,Escalation!$6:$6,0),FALSE)*100) -> 1.98544152 | AZ49: 2.03055527
AA50: 2056 | AB50: =IF(ISNA(VLOOKUP($AA50,Escalation!$A$7:$R$54,MATCH(AB$7,Escalation!$6:$6,0),FALSE)*100),VLOOKUP(CONCATENATE("Post ",MAX(Escalation!$A:$A)),Escalation!$A$7:$R$54,MATCH(AB$7,Escalation!$6:$6,0),FALSE)*100,VLOOKUP($AA50,Escalation!$A$7:$R$54,MATCH(AB$7,Escalation!$6:$6,0),FALSE)*100) -> 2.255953052 | AC50: 2.28662193 | AD50: =IF(ISNA(VLOOKUP($AA50,Escalation!$A$7:$R$54,MATCH(AD$7,Escalation!$6:$6,0),FALSE)*100),VLOOKUP(CONCATENATE("Post ",MAX(Escalation!$A:$A)),Escalation!$A$7:$R$54,MATCH(AD$7,Escalation!$6:$6,0),FALSE)*100,VLOOKUP($AA50,Escalation!$A$7:$R$54,MATCH(AD$7,Escalation!$6:$6,0),FALSE)*100) -> 2.503968701 | AE50: 2.499663498 | AF50: =IF(ISNA(VLOOKUP($AA50,Escalation!$A$7:$R$54,MATCH(AF$7,Escalation!$6:$6,0),FALSE)*100),VLOOKUP(CONCATENATE("Post ",MAX(Escalation!$A:$A)),Escalation!$A$7:$R$54,MATCH(AF$7,Escalation!$6:$6,0),FALSE)*100,VLOOKUP($AA50,Escalation!$A$7:$R$54,MATCH(AF$7,Escalation!$6:$6,0),FALSE)*100) -> 2.751984351 | AG50: 2.731968679 | AH50: =IF(ISNA(VLOOKUP($AA50,Escalation!$A$7:$R$54,MATCH(AH$7,Escalation!$6:$6,0),FALSE)*100),VLOOKUP(CONCATENATE("Post ",MAX(Escalation!$A:$A)),Escalation!$A$7:$R$54,MATCH(AH$7,Escalation!$6:$6,0),FALSE)*100,VLOOKUP($AA50,Escalation!$A$7:$R$54,MATCH(AH$7,Escalation!$6:$6,0),FALSE)*100) -> 3 | AI50: 2.985226678 | AL50: 2056 | AM50: =IF(ISNA(VLOOKUP($AA50,Escalation!$A$7:$R$54,MATCH(AM$8,Escalation!$6:$6,0),FALSE)*100),VLOOKUP(CONCATENATE("Post ",MAX(Escalation!$A:$A)),Escalation!$A$7:$R$54,MATCH(AM$8,Escalation!$6:$6,0),FALSE)*100,VLOOKUP($AA50,Escalation!$A$7:$R$54,MATCH(AM$8,Escalation!$6:$6,0),FALSE)*100) -> 2.007937402 | AN50: 2.091287367 | AO50: =IF(ISNA(VLOOKUP($AA50,Escalation!$A$7:$R$54,MATCH(AO$8,Escalation!$6:$6,0),FALSE)*100),VLOOKUP(CONCATENATE("Post ",MAX(Escalation!$A:$A)),Escalation!$A$7:$R$54,MATCH(AO$8,Escalation!$6:$6,0),FALSE)*100,VLOOKUP($AA50,Escalation!$A$7:$R$54,MATCH(AO$8,Escalation!$6:$6,0),FALSE)*100) -> 2.864337138 | AP50: 2.849362998 | AQ50: =IF(ISNA(VLOOKUP($AA50,Escalation!$A$7:$R$54,MATCH(AQ$8,Escalation!$6:$6,0),FALSE)*100),VLOOKUP(CONCATENATE("Post ",MAX(Escalation!$A:$A)),Escalation!$A$7:$R$54,MATCH(AQ$8,Escalation!$6:$6,0),FALSE)*100,VLOOKUP($AA50,Escalation!$A$7:$R$54,MATCH(AQ$8,Escalation!$6:$6,0),FALSE)*100) -> 2.864337138 | AR50: 2.849362998 | AS50: =IF(ISNA(VLOOKUP($AA50,Escalation!$A$7:$R$54,MATCH(AS$8,Escalation!$6:$6,0),FALSE)*100),VLOOKUP(CONCATENATE("Post ",MAX(Escalation!$A:$A)),Escalation!$A$7:$R$54,MATCH(AS$8,Escalation!$6:$6,0),FALSE)*100,VLOOKUP($AA50,Escalation!$A$7:$R$54,MATCH(AS$8,Escalation!$6:$6,0),FALSE)*100) -> 2.707462966 | AT50: 2.692926565 | AU50: =IF(ISNA(VLOOKUP($AA50,Escalation!$A$7:$R$54,MATCH(AU$8,Escalation!$6:$6,0),FALSE)*100),VLOOKUP(CONCATENATE("Post ",MAX(Escalation!$A:$A)),Escalation!$A$7:$R$54,MATCH(AU$8,Escalation!$6:$6,0),FALSE)*100,VLOOKUP($AA50,Escalation!$A$7:$R$54,MATCH(AU$8,Escalation!$6:$6,0),FALSE)*100) -> 2.586782034 | AV50: 2.578301057 | AW50: =IF(ISNA(VLOOKUP($AA50,Escalation!$A$7:$R$54,MATCH(AW$8,Escalation!$6:$6,0),FALSE)*100),VLOOKUP(CONCATENATE("Post ",MAX(Escalation!$A:$A)),Escalation!$A$7:$R$54,MATCH(AW$8,Escalation!$6:$6,0),FALSE)*100,VLOOKUP($AA50,Escalation!$A$7:$R$54,MATCH(AW$8,Escalation!$6:$6,0),FALSE)*100) -> 1.98544152 | AX50: 2.070870758 | AY50: =IF(ISNA(VLOOKUP($AA50,Escalation!$A$7:$R$54,MATCH(AY$8,Escalation!$6:$6,0),FALSE)*100),VLOOKUP(CONCATENATE("Post ",MAX(Escalation!$A:$A)),Escalation!$A$7:$R$54,MATCH(AY$8,Escalation!$6:$6,0),FALSE)*100,VLOOKUP($AA50,Escalation!$A$7:$R$54,MATCH(AY$8,Escalation!$6:$6,0),FALSE)*100) -> 1.98544152 | AZ50: 2.070870758
AA51: 2057 | AB51: =IF(ISNA(VLOOKUP($AA51,Escalation!$A$7:$R$54,MATCH(AB$7,Escalation!$6:$6,0),FALSE)*100),VLOOKUP(CONCATENATE("Post ",MAX(Escalation!$A:$A)),Escalation!$A$7:$R$54,MATCH(AB$7,Escalation!$6:$6,0),FALSE)*100,VLOOKUP($AA51,Escalation!$A$7:$R$54,MATCH(AB$7,Escalation!$6:$6,0),FALSE)*100) -> 2.255953052 | AC51: 2.338207047 | AD51: =IF(ISNA(VLOOKUP($AA51,Escalation!$A$7:$R$54,MATCH(AD$7,Escalation!$6:$6,0),FALSE)*100),VLOOKUP(CONCATENATE("Post ",MAX(Escalation!$A:$A)),Escalation!$A$7:$R$54,MATCH(AD$7,Escalation!$6:$6,0),FALSE)*100,VLOOKUP($AA51,Escalation!$A$7:$R$54,MATCH(AD$7,Escalation!$6:$6,0),FALSE)*100) -> 2.503968701 | AE51: 2.562254289 | AF51: =IF(ISNA(VLOOKUP($AA51,Escalation!$A$7:$R$54,MATCH(AF$7,Escalation!$6:$6,0),FALSE)*100),VLOOKUP(CONCATENATE("Post ",MAX(Escalation!$A:$A)),Escalation!$A$7:$R$54,MATCH(AF$7,Escalation!$6:$6,0),FALSE)*100,VLOOKUP($AA51,Escalation!$A$7:$R$54,MATCH(AF$7,Escalation!$6:$6,0),FALSE)*100) -> 2.751984351 | AG51: 2.80715203 | AH51: =IF(ISNA(VLOOKUP($AA51,Escalation!$A$7:$R$54,MATCH(AH$7,Escalation!$6:$6,0),FALSE)*100),VLOOKUP(CONCATENATE("Post ",MAX(Escalation!$A:$A)),Escalation!$A$7:$R$54,MATCH(AH$7,Escalation!$6:$6,0),FALSE)*100,VLOOKUP($AA51,Escalation!$A$7:$R$54,MATCH(AH$7,Escalation!$6:$6,0),FALSE)*100) -> 3 | AI51: 3.074783478 | AL51: 2057 | AM51: =IF(ISNA(VLOOKUP($AA51,Escalation!$A$7:$R$54,MATCH(AM$8,Escalation!$6:$6,0),FALSE)*100),VLOOKUP(CONCATENATE("Post ",MAX(Escalation!$A:$A)),Escalation!$A$7:$R$54,MATCH(AM$8,Escalation!$6:$6,0),FALSE)*100,VLOOKUP($AA51,Escalation!$A$7:$R$54,MATCH(AM$8,Escalation!$6:$6,0),FALSE)*100) -> 2.007937402 | AN51: 2.133279108 | AO51: =IF(ISNA(VLOOKUP($AA51,Escalation!$A$7:$R$54,MATCH(AO$8,Escalation!$6:$6,0),FALSE)*100),VLOOKUP(CONCATENATE("Post ",MAX(Escalation!$A:$A)),Escalation!$A$7:$R$54,MATCH(AO$8,Escalation!$6:$6,0),FALSE)*100,VLOOKUP($AA51,Escalation!$A$7:$R$54,MATCH(AO$8,Escalation!$6:$6,0),FALSE)*100) -> 2.864337138 | AP51: 2.930978361 | AQ51: =IF(ISNA(VLOOKUP($AA51,Escalation!$A$7:$R$54,MATCH(AQ$8,Escalation!$6:$6,0),FALSE)*100),VLOOKUP(CONCATENATE("Post ",MAX(Escalation!$A:$A)),Escalation!$A$7:$R$54,MATCH(AQ$8,Escalation!$6:$6,0),FALSE)*100,VLOOKUP($AA51,Escalation!$A$7:$R$54,MATCH(AQ$8,Escalation!$6:$6,0),FALSE)*100) -> 2.864337138 | AR51: 2.930978361 | AS51: =IF(ISNA(VLOOKUP($AA51,Escalation!$A$7:$R$54,MATCH(AS$8,Escalation!$6:$6,0),FALSE)*100),VLOOKUP(CONCATENATE("Post ",MAX(Escalation!$A:$A)),Escalation!$A$7:$R$54,MATCH(AS$8,Escalation!$6:$6,0),FALSE)*100,VLOOKUP($AA51,Escalation!$A$7:$R$54,MATCH(AS$8,Escalation!$6:$6,0),FALSE)*100) -> 2.707462966 | AT51: 2.765836555 | AU51: =IF(ISNA(VLOOKUP($AA51,Escalation!$A$7:$R$54,MATCH(AU$8,Escalation!$6:$6,0),FALSE)*100),VLOOKUP(CONCATENATE("Post ",MAX(Escalation!$A:$A)),Escalation!$A$7:$R$54,MATCH(AU$8,Escalation!$6:$6,0),FALSE)*100,VLOOKUP($AA51,Escalation!$A$7:$R$54,MATCH(AU$8,Escalation!$6:$6,0),FALSE)*100) -> 2.586782034 | AV51: 2.644996086 | AW51: =IF(ISNA(VLOOKUP($AA51,Escalation!$A$7:$R$54,MATCH(AW$8,Escalation!$6:$6,0),FALSE)*100),VLOOKUP(CONCATENATE("Post ",MAX(Escalation!$A:$A)),Escalation!$A$7:$R$54,MATCH(AW$8,Escalation!$6:$6,0),FALSE)*100,VLOOKUP($AA51,Escalation!$A$7:$R$54,MATCH(AW$8,Escalation!$6:$6,0),FALSE)*100) -> 1.98544152 | AX51: 2.111986685 | AY51: =IF(ISNA(VLOOKUP($AA51,Escalation!$A$7:$R$54,MATCH(AY$8,Escalation!$6:$6,0),FALSE)*100),VLOOKUP(CONCATENATE("Post ",MAX(Escalation!$A:$A)),Escalation!$A$7:$R$54,MATCH(AY$8,Escalation!$6:$6,0),FALSE)*100,VLOOKUP($AA51,Escalation!$A$7:$R$54,MATCH(AY$8,Escalation!$6:$6,0),FALSE)*100) -> 1.98544152 | AZ51: 2.111986685
AA52: 2058 | AB52: =IF(ISNA(VLOOKUP($AA52,Escalation!$A$7:$R$54,MATCH(AB$7,Escalation!$6:$6,0),FALSE)*100),VLOOKUP(CONCATENATE("Post ",MAX(Escalation!$A:$A)),Escalation!$A$7:$R$54,MATCH(AB$7,Escalation!$6:$6,0),FALSE)*100,VLOOKUP($AA52,Escalation!$A$7:$R$54,MATCH(AB$7,Escalation!$6:$6,0),FALSE)*100) -> 2.255953052 | AC52: 2.3909559 | AD52: =IF(ISNA(VLOOKUP($AA52,Escalation!$A$7:$R$54,MATCH(AD$7,Escalation!$6:$6,0),FALSE)*100),VLOOKUP(CONCATENATE("Post ",MAX(Escalation!$A:$A)),Escalation!$A$7:$R$54,MATCH(AD$7,Escalation!$6:$6,0),FALSE)*100,VLOOKUP($AA52,Escalation!$A$7:$R$54,MATCH(AD$7,Escalation!$6:$6,0),FALSE)*100) -> 2.503968701 | AE52: 2.626412335 | AF52: =IF(ISNA(VLOOKUP($AA52,Escalation!$A$7:$R$54,MATCH(AF$7,Escalation!$6:$6,0),FALSE)*100),VLOOKUP(CONCATENATE("Post ",MAX(Escalation!$A:$A)),Escalation!$A$7:$R$54,MATCH(AF$7,Escalation!$6:$6,0),FALSE)*100,VLOOKUP($AA52,Escalation!$A$7:$R$54,MATCH(AF$7,Escalation!$6:$6,0),FALSE)*100) -> 2.751984351 | AG52: 2.884404414 | AH52: =IF(ISNA(VLOOKUP($AA52,Escalation!$A$7:$R$54,MATCH(AH$7,Escalation!$6:$6,0),FALSE)*100),VLOOKUP(CONCATENATE("Post ",MAX(Escalation!$A:$A)),Escalation!$A$7:$R$54,MATCH(AH$7,Escalation!$6:$6,0),FALSE)*100,VLOOKUP($AA52,Escalation!$A$7:$R$54,MATCH(AH$7,Escalation!$6:$6,0),FALSE)*100) -> 3 | AI52: 3.167026983 | AL52: 2058 | AM52: =IF(ISNA(VLOOKUP($AA52,Escalation!$A$7:$R$54,MATCH(AM$8,Escalation!$6:$6,0),FALSE)*100),VLOOKUP(CONCATENATE("Post ",MAX(Escalation!$A:$A)),Escalation!$A$7:$R$54,MATCH(AM$8,Escalation!$6:$6,0),FALSE)*100,VLOOKUP($AA52,Escalation!$A$7:$R$54,MATCH(AM$8,Escalation!$6:$6,0),FALSE)*100) -> 2.007937402 | AN52: 2.176114018 | AO52: =IF(ISNA(VLOOKUP($AA52,Escalation!$A$7:$R$54,MATCH(AO$8,Escalation!$6:$6,0),FALSE)*100),VLOOKUP(CONCATENATE("Post ",MAX(Escalation!$A:$A)),Escalation!$A$7:$R$54,MATCH(AO$8,Escalation!$6:$6,0),FALSE)*100,VLOOKUP($AA52,Escalation!$A$7:$R$54,MATCH(AO$8,Escalation!$6:$6,0),FALSE)*100) -> 2.864337138 | AP52: 3.014931462 | AQ52: =IF(ISNA(VLOOKUP($AA52,Escalation!$A$7:$R$54,MATCH(AQ$8,Escalation!$6:$6,0),FALSE)*100),VLOOKUP(CONCATENATE("Post ",MAX(Escalation!$A:$A)),Escalation!$A$7:$R$54,MATCH(AQ$8,Escalation!$6:$6,0),FALSE)*100,VLOOKUP($AA52,Escalation!$A$7:$R$54,MATCH(AQ$8,Escalation!$6:$6,0),FALSE)*100) -> 2.864337138 | AR52: 3.014931462 | AS52: =IF(ISNA(VLOOKUP($AA52,Escalation!$A$7:$R$54,MATCH(AS$8,Escalation!$6:$6,0),FALSE)*100),VLOOKUP(CONCATENATE("Post ",MAX(Escalation!$A:$A)),Escalation!$A$7:$R$54,MATCH(AS$8,Escalation!$6:$6,0),FALSE)*100,VLOOKUP($AA52,Escalation!$A$7:$R$54,MATCH(AS$8,Escalation!$6:$6,0),FALSE)*100) -> 2.707462966 | AT52: 2.840720555 | AU52: =IF(ISNA(VLOOKUP($AA52,Escalation!$A$7:$R$54,MATCH(AU$8,Escalation!$6:$6,0),FALSE)*100),VLOOKUP(CONCATENATE("Post ",MAX(Escalation!$A:$A)),Escalation!$A$7:$R$54,MATCH(AU$8,Escalation!$6:$6,0),FALSE)*100,VLOOKUP($AA52,Escalation!$A$7:$R$54,MATCH(AU$8,Escalation!$6:$6,0),FALSE)*100) -> 2.586782034 | AV52: 2.713416369 | AW52: =IF(ISNA(VLOOKUP($AA52,Escalation!$A$7:$R$54,MATCH(AW$8,Escalation!$6:$6,0),FALSE)*100),VLOOKUP(CONCATENATE("Post ",MAX(Escalation!$A:$A)),Escalation!$A$7:$R$54,MATCH(AW$8,Escalation!$6:$6,0),FALSE)*100,VLOOKUP($AA52,Escalation!$A$7:$R$54,MATCH(AW$8,Escalation!$6:$6,0),FALSE)*100) -> 1.98544152 | AX52: 2.153918946 | AY52: =IF(ISNA(VLOOKUP($AA52,Escalation!$A$7:$R$54,MATCH(AY$8,Escalation!$6:$6,0),FALSE)*100),VLOOKUP(CONCATENATE("Post ",MAX(Escalation!$A:$A)),Escalation!$A$7:$R$54,MATCH(AY$8,Escalation!$6:$6,0),FALSE)*100,VLOOKUP($AA52,Escalation!$A$7:$R$54,MATCH(AY$8,Escalation!$6:$6,0),FALSE)*100) -> 1.98544152 | AZ52: 2.153918946
AA53: 2059 | AB53: =IF(ISNA(VLOOKUP($AA53,Escalation!$A$7:$R$54,MATCH(AB$7,Escalation!$6:$6,0),FALSE)*100),VLOOKUP(CONCATENATE("Post ",MAX(Escalation!$A:$A)),Escalation!$A$7:$R$54,MATCH(AB$7,Escalation!$6:$6,0),FALSE)*100,VLOOKUP($AA53,Escalation!$A$7:$R$54,MATCH(AB$7,Escalation!$6:$6,0),FALSE)*100) -> 2.255953052 | AC53: 2.444894743 | AD53: =IF(ISNA(VLOOKUP($AA53,Escalation!$A$7:$R$54,MATCH(AD$7,Escalation!$6:$6,0),FALSE)*100),VLOOKUP(CONCATENATE("Post ",MAX(Escalation!$A:$A)),Escalation!$A$7:$R$54,MATCH(AD$7,Escalation!$6:$6,0),FALSE)*100,VLOOKUP($AA53,Escalation!$A$7:$R$54,MATCH(AD$7,Escalation!$6:$6,0),FALSE)*100) -> 2.503968701 | AE53: 2.692176878 | AF53: =IF(ISNA(VLOOKUP($AA53,Escalation!$A$7:$R$54,MATCH(AF$7,Escalation!$6:$6,0),FALSE)*100),VLOOKUP(CONCATENATE("Post ",MAX(Escalation!$A:$A)),Escalation!$A$7:$R$54,MATCH(AF$7,Escalation!$6:$6,0),FALSE)*100,VLOOKUP($AA53,Escalation!$A$7:$R$54,MATCH(AF$7,Escalation!$6:$6,0),FALSE)*100) -> 2.751984351 | AG53: 2.963782772 | AH53: =IF(ISNA(VLOOKUP($AA53,Escalation!$A$7:$R$54,MATCH(AH$7,Escalation!$6:$6,0),FALSE)*100),VLOOKUP(CONCATENATE("Post ",MAX(Escalation!$A:$A)),Escalation!$A$7:$R$54,MATCH(AH$7,Escalation!$6:$6,0),FALSE)*100,VLOOKUP($AA53,Escalation!$A$7:$R$54,MATCH(AH$7,Escalation!$6:$6,0),FALSE)*100) -> 3 | AI53: 3.262037792 | AL53: 2059 | AM53: =IF(ISNA(VLOOKUP($AA53,Escalation!$A$7:$R$54,MATCH(AM$8,Escalation!$6:$6,0),FALSE)*100),VLOOKUP(CONCATENATE("Post ",MAX(Escalation!$A:$A)),Escalation!$A$7:$R$54,MATCH(AM$8,Escalation!$6:$6,0),FALSE)*100,VLOOKUP($AA53,Escalation!$A$7:$R$54,MATCH(AM$8,Escalation!$6:$6,0),FALSE)*100) -> 2.007937402 | AN53: 2.219809025 | AO53: =IF(ISNA(VLOOKUP($AA53,Escalation!$A$7:$R$54,MATCH(AO$8,Escalation!$6:$6,0),FALSE)*100),VLOOKUP(CONCATENATE("Post ",MAX(Escalation!$A:$A)),Escalation!$A$7:$R$54,MATCH(AO$8,Escalation!$6:$6,0),FALSE)*100,VLOOKUP($AA53,Escalation!$A$7:$R$54,MATCH(AO$8,Escalation!$6:$6,0),FALSE)*100) -> 2.864337138 | AP53: 3.101289264 | AQ53: =IF(ISNA(VLOOKUP($AA53,Escalation!$A$7:$R$54,MATCH(AQ$8,Escalation!$6:$6,0),FALSE)*100),VLOOKUP(CONCATENATE("Post ",MAX(Escalation!$A:$A)),Escalation!$A$7:$R$54,MATCH(AQ$8,Escalation!$6:$6,0),FALSE)*100,VLOOKUP($AA53,Escalation!$A$7:$R$54,MATCH(AQ$8,Escalation!$6:$6,0),FALSE)*100) -> 2.864337138 | AR53: 3.101289264 | AS53: =IF(ISNA(VLOOKUP($AA53,Escalation!$A$7:$R$54,MATCH(AS$8,Escalation!$6:$6,0),FALSE)*100),VLOOKUP(CONCATENATE("Post ",MAX(Escalation!$A:$A)),Escalation!$A$7:$R$54,MATCH(AS$8,Escalation!$6:$6,0),FALSE)*100,VLOOKUP($AA53,Escalation!$A$7:$R$54,MATCH(AS$8,Escalation!$6:$6,0),FALSE)*100) -> 2.707462966 | AT53: 2.917632012 | AU53: =IF(ISNA(VLOOKUP($AA53,Escalation!$A$7:$R$54,MATCH(AU$8,Escalation!$6:$6,0),FALSE)*100),VLOOKUP(CONCATENATE("Post ",MAX(Escalation!$A:$A)),Escalation!$A$7:$R$54,MATCH(AU$8,Escalation!$6:$6,0),FALSE)*100,VLOOKUP($AA53,Escalation!$A$7:$R$54,MATCH(AU$8,Escalation!$6:$6,0),FALSE)*100) -> 2.586782034 | AV53: 2.783606536 | AW53: =IF(ISNA(VLOOKUP($AA53,Escalation!$A$7:$R$54,MATCH(AW$8,Escalation!$6:$6,0),FALSE)*100),VLOOKUP(CONCATENATE("Post ",MAX(Escalation!$A:$A)),Escalation!$A$7:$R$54,MATCH(AW$8,Escalation!$6:$6,0),FALSE)*100,VLOOKUP($AA53,Escalation!$A$7:$R$54,MATCH(AW$8,Escalation!$6:$6,0),FALSE)*100) -> 1.98544152 | AX53: 2.196683747 | AY53: =IF(ISNA(VLOOKUP($AA53,Escalation!$A$7:$R$54,MATCH(AY$8,Escalation!$6:$6,0),FALSE)*100),VLOOKUP(CONCATENATE("Post ",MAX(Escalation!$A:$A)),Escalation!$A$7:$R$54,MATCH(AY$8,Escalation!$6:$6,0),FALSE)*100,VLOOKUP($AA53,Escalation!$A$7:$R$54,MATCH(AY$8,Escalation!$6:$6,0),FALSE)*100) -> 1.98544152 | AZ53: 2.196683747
AA54: =AA53+1 -> 2060 | AB54: =IF(ISNA(VLOOKUP($AA54,Escalation!$A$7:$R$54,MATCH(AB$7,Escalation!$6:$6,0),FALSE)*100),VLOOKUP(CONCATENATE("Post ",MAX(Escalation!$A:$A)),Escalation!$A$7:$R$54,MATCH(AB$7,Escalation!$6:$6,0),FALSE)*100,VLOOKUP($AA54,Escalation!$A$7:$R$54,MATCH(AB$7,Escalation!$6:$6,0),FALSE)*100) -> 2.255953052 | AC54: 2.50005042 | AD54: =IF(ISNA(VLOOKUP($AA54,Escalation!$A$7:$R$54,MATCH(AD$7,Escalation!$6:$6,0),FALSE)*100),VLOOKUP(CONCATENATE("Post ",MAX(Escalation!$A:$A)),Escalation!$A$7:$R$54,MATCH(AD$7,Escalation!$6:$6,0),FALSE)*100,VLOOKUP($AA54,Escalation!$A$7:$R$54,MATCH(AD$7,Escalation!$6:$6,0),FALSE)*100) -> 2.503968701 | AE54: =(1+AD54/100)*AE53 -> 2.759588144 | AF54: =IF(ISNA(VLOOKUP($AA54,Escalation!$A$7:$R$54,MATCH(AF$7,Escalation!$6:$6,0),FALSE)*100),VLOOKUP(CONCATENATE("Post ",MAX(Escalation!$A:$A)),Escalation!$A$7:$R$54,MATCH(AF$7,Escalation!$6:$6,0),FALSE)*100,VLOOKUP($AA54,Escalation!$A$7:$R$54,MATCH(AF$7,Escalation!$6:$6,0),FALSE)*100) -> 2.751984351 | AG54: =(1+AF54/100)*AG53 -> 3.04534561 | AH54: =IF(ISNA(VLOOKUP($AA54,Escalation!$A$7:$R$54,MATCH(AH$7,Escalation!$6:$6,0),FALSE)*100),VLOOKUP(CONCATENATE("Post ",MAX(Escalation!$A:$A)),Escalation!$A$7:$R$54,MATCH(AH$7,Escalation!$6:$6,0),FALSE)*100,VLOOKUP($AA54,Escalation!$A$7:$R$54,MATCH(AH$7,Escalation!$6:$6,0),FALSE)*100) -> 3 | AI54: =(1+AH54/100)*AI53 -> 3.359898926 | AL54: 2060 | AM54: =IF(ISNA(VLOOKUP($AA54,Escalation!$A$7:$R$54,MATCH(AM$8,Escalation!$6:$6,0),FALSE)*100),VLOOKUP(CONCATENATE("Post ",MAX(Escalation!$A:$A)),Escalation!$A$7:$R$54,MATCH(AM$8,Escalation!$6:$6,0),FALSE)*100,VLOOKUP($AA54,Escalation!$A$7:$R$54,MATCH(AM$8,Escalation!$6:$6,0),FALSE)*100) -> 2.007937402 | AN54: =(1+AM54/100)*AN53 -> 2.264381401 | AO54: =IF(ISNA(VLOOKUP($AA54,Escalation!$A$7:$R$54,MATCH(AO$8,Escalation!$6:$6,0),FALSE)*100),VLOOKUP(CONCATENATE("Post ",MAX(Escalation!$A:$A)),Escalation!$A$7:$R$54,MATCH(AO$8,Escalation!$6:$6,0),FALSE)*100,VLOOKUP($AA54,Escalation!$A$7:$R$54,MATCH(AO$8,Escalation!$6:$6,0),FALSE)*100) -> 2.864337138 | AP54: =(1+AO54/100)*AP53 -> 3.190120644 | AQ54: =IF(ISNA(VLOOKUP($AA54,Escalation!$A$7:$R$54,MATCH(AQ$8,Escalation!$6:$6,0),FALSE)*100),VLOOKUP(CONCATENATE("Post ",MAX(Escalation!$A:$A)),Escalation!$A$7:$R$54,MATCH(AQ$8,Escalation!$6:$6,0),FALSE)*100,VLOOKUP($AA54,Escalation!$A$7:$R$54,MATCH(AQ$8,Escalation!$6:$6,0),FALSE)*100) -> 2.864337138 | AR54: =(1+AQ54/100)*AR53 -> 3.190120644 | AS54: =IF(ISNA(VLOOKUP($AA54,Escalation!$A$7:$R$54,MATCH(AS$8,Escalation!$6:$6,0),FALSE)*100),VLOOKUP(CONCATENATE("Post ",MAX(Escalation!$A:$A)),Escalation!$A$7:$R$54,MATCH(AS$8,Escalation!$6:$6,0),FALSE)*100,VLOOKUP($AA54,Escalation!$A$7:$R$54,MATCH(AS$8,Escalation!$6:$6,0),FALSE)*100) -> 2.707462966 | AT54: =(1+AS54/100)*AT53 -> 2.996625818 | AU54: =IF(ISNA(VLOOKUP($AA54,Escalation!$A$7:$R$54,MATCH(AU$8,Escalation!$6:$6,0),FALSE)*100),VLOOKUP(CONCATENATE("Post ",MAX(Escalation!$A:$A)),Escalation!$A$7:$R$54,MATCH(AU$8,Escalation!$6:$6,0),FALSE)*100,VLOOKUP($AA54,Escalation!$A$7:$R$54,MATCH(AU$8,Escalation!$6:$6,0),FALSE)*100) -> 2.586782034 | AV54: =(1+AU54/100)*AV53 -> 2.85561237 | AW54: =IF(ISNA(VLOOKUP($AA54,Escalation!$A$7:$R$54,MATCH(AW$8,Escalation!$6:$6,0),FALSE)*100),VLOOKUP(CONCATENATE("Post ",MAX(Escalation!$A:$A)),Escalation!$A$7:$R$54,MATCH(AW$8,Escalation!$6:$6,0),FALSE)*100,VLOOKUP($AA54,Escalation!$A$7:$R$54,MATCH(AW$8,Escalation!$6:$6,0),FALSE)*100) -> 1.98544152 | AX54: =(1+AW54/100)*AX53 -> 2.240297618 | AY54: =IF(ISNA(VLOOKUP($AA54,Escalation!$A$7:$R$54,MATCH(AY$8,Escalation!$6:$6,0),FALSE)*100),VLOOKUP(CONCATENATE("Post ",MAX(Escalation!$A:$A)),Escalation!$A$7:$R$54,MATCH(AY$8,Escalation!$6:$6,0),FALSE)*100,VLOOKUP($AA54,Escalation!$A$7:$R$54,MATCH(AY$8,Escalation!$6:$6,0),FALSE)*100) -> 1.98544152 | AZ54: =(1+AY54/100)*AZ53 -> 2.240297618
AA55: =AA54+1 -> 2061 | AB55: =IF(ISNA(VLOOKUP($AA55,Escalation!$A$7:$R$54,MATCH(AB$7,Escalation!$6:$6,0),FALSE)*100),VLOOKUP(CONCATENATE("Post ",MAX(Escalation!$A:$A)),Escalation!$A$7:$R$54,MATCH(AB$7,Escalation!$6:$6,0),FALSE)*100,VLOOKUP($AA55,Escalation!$A$7:$R$54,MATCH(AB$7,Escalation!$6:$6,0),FALSE)*100) -> 2.255953052 | AC55: =(1+AB55/100)*AC54 -> 2.556450384 | AD55: =IF(ISNA(VLOOKUP($AA55,Escalation!$A$7:$R$54,MATCH(AD$7,Escalation!$6:$6,0),FALSE)*100),VLOOKUP(CONCATENATE("Post ",MAX(Escalation!$A:$A)),Escalation!$A$7:$R$54,MATCH(AD$7,Escalation!$6:$6,0),FALSE)*100,VLOOKUP($AA55,Escalation!$A$7:$R$54,MATCH(AD$7,Escalation!$6:$6,0),FALSE)*100) -> 2.503968701 | AE55: =(1+AD55/100)*AE54 -> 2.828687367 | AF55: =IF(ISNA(VLOOKUP($AA55,Escalation!$A$7:$R$54,MATCH(AF$7,Escalation!$6:$6,0),FALSE)*100),VLOOKUP(CONCATENATE("Post ",MAX(Escalation!$A:$A)),Escalation!$A$7:$R$54,MATCH(AF$7,Escalation!$6:$6,0),FALSE)*100,VLOOKUP($AA55,Escalation!$A$7:$R$54,MATCH(AF$7,Escalation!$6:$6,0),FALSE)*100) -> 2.751984351 | AG55: =(1+AF55/100)*AG54 -> 3.129153045 | AH55: =IF(ISNA(VLOOKUP($AA55,Escalation!$A$7:$R$54,MATCH(AH$7,Escalation!$6:$6,0),FALSE)*100),VLOOKUP(CONCATENATE("Post ",MAX(Escalation!$A:$A)),Escalation!$A$7:$R$54,MATCH(AH$7,Escalation!$6:$6,0),FALSE)*100,VLOOKUP($AA55,Escalation!$A$7:$R$54,MATCH(AH$7,Escalation!$6:$6,0),FALSE)*100) -> 3 | AI55: =(1+AH55/100)*AI54 -> 3.460695894 | AL55: 2061 | AM55: =IF(ISNA(VLOOKUP($AA55,Escalation!$A$7:$R$54,MATCH(AM$8,Escalation!$6:$6,0),FALSE)*100),VLOOKUP(CONCATENATE("Post ",MAX(Escalation!$A:$A)),Escalation!$A$7:$R$54,MATCH(AM$8,Escalation!$6:$6,0),FALSE)*100,VLOOKUP($AA55,Escalation!$A$7:$R$54,MATCH(AM$8,Escalation!$6:$6,0),FALSE)*100) -> 2.007937402 | AN55: =(1+AM55/100)*AN54 -> 2.309848762 | AO55: =IF(ISNA(VLOOKUP($AA55,Escalation!$A$7:$R$54,MATCH(AO$8,Escalation!$6:$6,0),FALSE)*100),VLOOKUP(CONCATENATE("Post ",MAX(Escalation!$A:$A)),Escalation!$A$7:$R$54,MATCH(AO$8,Escalation!$6:$6,0),FALSE)*100,VLOOKUP($AA55,Escalation!$A$7:$R$54,MATCH(AO$8,Escalation!$6:$6,0),FALSE)*100) -> 2.864337138 | AP55: =(1+AO55/100)*AP54 -> 3.281496454 | AQ55: =IF(ISNA(VLOOKUP($AA55,Escalation!$A$7:$R$54,MATCH(AQ$8,Escalation!$6:$6,0),FALSE)*100),VLOOKUP(CONCATENATE("Post ",MAX(Escalation!$A:$A)),Escalation!$A$7:$R$54,MATCH(AQ$8,Escalation!$6:$6,0),FALSE)*100,VLOOKUP($AA55,Escalation!$A$7:$R$54,MATCH(AQ$8,Escalation!$6:$6,0),FALSE)*100) -> 2.864337138 | AR55: =(1+AQ55/100)*AR54 -> 3.281496454 | AS55: =IF(ISNA(VLOOKUP($AA55,Escalation!$A$7:$R$54,MATCH(AS$8,Escalation!$6:$6,0),FALSE)*100),VLOOKUP(CONCATENATE("Post ",MAX(Escalation!$A:$A)),Escalation!$A$7:$R$54,MATCH(AS$8,Escalation!$6:$6,0),FALSE)*100,VLOOKUP($AA55,Escalation!$A$7:$R$54,MATCH(AS$8,Escalation!$6:$6,0),FALSE)*100) -> 2.707462966 | AT55: =(1+AS55/100)*AT54 -> 3.077758353 | AU55: =IF(ISNA(VLOOKUP($AA55,Escalation!$A$7:$R$54,MATCH(AU$8,Escalation!$6:$6,0),FALSE)*100),VLOOKUP(CONCATENATE("Post ",MAX(Escalation!$A:$A)),Escalation!$A$7:$R$54,MATCH(AU$8,Escalation!$6:$6,0),FALSE)*100,VLOOKUP($AA55,Escalation!$A$7:$R$54,MATCH(AU$8,Escalation!$6:$6,0),FALSE)*100) -> 2.586782034 | AV55: =(1+AU55/100)*AV54 -> 2.929480838 | AW55: =IF(ISNA(VLOOKUP($AA55,Escalation!$A$7:$R$54,MATCH(AW$8,Escalation!$6:$6,0),FALSE)*100),VLOOKUP(CONCATENATE("Post ",MAX(Escalation!$A:$A)),Escalation!$A$7:$R$54,MATCH(AW$8,Escalation!$6:$6,0),FALSE)*100,VLOOKUP($AA55,Escalation!$A$7:$R$54,MATCH(AW$8,Escalation!$6:$6,0),FALSE)*100) -> 1.98544152 | AX55: =(1+AW55/100)*AX54 -> 2.284777417 | AY55: =IF(ISNA(VLOOKUP($AA55,Escalation!$A$7:$R$54,MATCH(AY$8,Escalation!$6:$6,0),FALSE)*100),VLOOKUP(CONCATENATE("Post ",MAX(Escalation!$A:$A)),Escalation!$A$7:$R$54,MATCH(AY$8,Escalation!$6:$6,0),FALSE)*100,VLOOKUP($AA55,Escalation!$A$7:$R$54,MATCH(AY$8,Escalation!$6:$6,0),FALSE)*100) -> 1.98544152 | AZ55: =(1+AY55/100)*AZ54 -> 2.284777417
AA56: =AA55+1 -> 2062 | AB56: =IF(ISNA(VLOOKUP($AA56,Escalation!$A$7:$R$54,MATCH(AB$7,Escalation!$6:$6,0),FALSE)*100),VLOOKUP(CONCATENATE("Post ",MAX(Escalation!$A:$A)),Escalation!$A$7:$R$54,MATCH(AB$7,Escalation!$6:$6,0),FALSE)*100,VLOOKUP($AA56,Escalation!$A$7:$R$54,MATCH(AB$7,Escalation!$6:$6,0),FALSE)*100) -> 2.255953052 | AC56: =(1+AB56/100)*AC55 -> 2.614122704 | AD56: =IF(ISNA(VLOOKUP($AA56,Escalation!$A$7:$R$54,MATCH(AD$7,Escalation!$6:$6,0),FALSE)*100),VLOOKUP(CONCATENATE("Post ",MAX(Escalation!$A:$A)),Escalation!$A$7:$R$54,MATCH(AD$7,Escalation!$6:$6,0),FALSE)*100,VLOOKUP($AA56,Escalation!$A$7:$R$54,MATCH(AD$7,Escalation!$6:$6,0),FALSE)*100) -> 2.503968701 | AE56: =(1+AD56/100)*AE55 -> 2.899516814 | AF56: =IF(ISNA(VLOOKUP($AA56,Escalation!$A$7:$R$54,MATCH(AF$7,Escalation!$6:$6,0),FALSE)*100),VLOOKUP(CONCATENATE("Post ",MAX(Escalation!$A:$A)),Escalation!$A$7:$R$54,MATCH(AF$7,Escalation!$6:$6,0),FALSE)*100,VLOOKUP($AA56,Escalation!$A$7:$R$54,MATCH(AF$7,Escalation!$6:$6,0),FALSE)*100) -> 2.751984351 | AG56: =(1+AF56/100)*AG55 -> 3.215266847 | AH56: =IF(ISNA(VLOOKUP($AA56,Escalation!$A$7:$R$54,MATCH(AH$7,Escalation!$6:$6,0),FALSE)*100),VLOOKUP(CONCATENATE("Post ",MAX(Escalation!$A:$A)),Escalation!$A$7:$R$54,MATCH(AH$7,Escalation!$6:$6,0),FALSE)*100,VLOOKUP($AA56,Escalation!$A$7:$R$54,MATCH(AH$7,Escalation!$6:$6,0),FALSE)*100) -> 3 | AI56: =(1+AH56/100)*AI55 -> 3.56451677 | AL56: 2062 | AM56: =IF(ISNA(VLOOKUP($AA56,Escalation!$A$7:$R$54,MATCH(AM$8,Escalation!$6:$6,0),FALSE)*100),VLOOKUP(CONCATENATE("Post ",MAX(Escalation!$A:$A)),Escalation!$A$7:$R$54,MATCH(AM$8,Escalation!$6:$6,0),FALSE)*100,VLOOKUP($AA56,Escalation!$A$7:$R$54,MATCH(AM$8,Escalation!$6:$6,0),FALSE)*100) -> 2.007937402 | AN56: =(1+AM56/100)*AN55 -> 2.356229079 | AO56: =IF(ISNA(VLOOKUP($AA56,Escalation!$A$7:$R$54,MATCH(AO$8,Escalation!$6:$6,0),FALSE)*100),VLOOKUP(CONCATENATE("Post ",MAX(Escalation!$A:$A)),Escalation!$A$7:$R$54,MATCH(AO$8,Escalation!$6:$6,0),FALSE)*100,VLOOKUP($AA56,Escalation!$A$7:$R$54,MATCH(AO$8,Escalation!$6:$6,0),FALSE)*100) -> 2.864337138 | AP56: =(1+AO56/100)*AP55 -> 3.375489576 | AQ56: =IF(ISNA(VLOOKUP($AA56,Escalation!$A$7:$R$54,MATCH(AQ$8,Escalation!$6:$6,0),FALSE)*100),VLOOKUP(CONCATENATE("Post ",MAX(Escalation!$A:$A)),Escalation!$A$7:$R$54,MATCH(AQ$8,Escalation!$6:$6,0),FALSE)*100,VLOOKUP($AA56,Escalation!$A$7:$R$54,MATCH(AQ$8,Escalation!$6:$6,0),FALSE)*100) -> 2.864337138 | AR56: =(1+AQ56/100)*AR55 -> 3.375489576 | AS56: =IF(ISNA(VLOOKUP($AA56,Escalation!$A$7:$R$54,MATCH(AS$8,Escalation!$6:$6,0),FALSE)*100),VLOOKUP(CONCATENATE("Post ",MAX(Escalation!$A:$A)),Escalation!$A$7:$R$54,MATCH(AS$8,Escalation!$6:$6,0),FALSE)*100,VLOOKUP($AA56,Escalation!$A$7:$R$54,MATCH(AS$8,Escalation!$6:$6,0),FALSE)*100) -> 2.707462966 | AT56: =(1+AS56/100)*AT55 -> 3.16108752 | AU56: =IF(ISNA(VLOOKUP($AA56,Escalation!$A$7:$R$54,MATCH(AU$8,Escalation!$6:$6,0),FALSE)*100),VLOOKUP(CONCATENATE("Post ",MAX(Escalation!$A:$A)),Escalation!$A$7:$R$54,MATCH(AU$8,Escalation!$6:$6,0),FALSE)*100,VLOOKUP($AA56,Escalation!$A$7:$R$54,MATCH(AU$8,Escalation!$6:$6,0),FALSE)*100) -> 2.586782034 | AV56: =(1+AU56/100)*AV55 -> 3.005260122 | AW56: =IF(ISNA(VLOOKUP($AA56,Escalation!$A$7:$R$54,MATCH(AW$8,Escalation!$6:$6,0),FALSE)*100),VLOOKUP(CONCATENATE("Post ",MAX(Escalation!$A:$A)),Escalation!$A$7:$R$54,MATCH(AW$8,Escalation!$6:$6,0),FALSE)*100,VLOOKUP($AA56,Escalation!$A$7:$R$54,MATCH(AW$8,Escalation!$6:$6,0),FALSE)*100) -> 1.98544152 | AX56: =(1+AW56/100)*AX55 -> 2.330140337 | AY56: =IF(ISNA(VLOOKUP($AA56,Escalation!$A$7:$R$54,MATCH(AY$8,Escalation!$6:$6,0),FALSE)*100),VLOOKUP(CONCATENATE("Post ",MAX(Escalation!$A:$A)),Escalation!$A$7:$R$54,MATCH(AY$8,Escalation!$6:$6,0),FALSE)*100,VLOOKUP($AA56,Escalation!$A$7:$R$54,MATCH(AY$8,Escalation!$6:$6,0),FALSE)*100) -> 1.98544152 | AZ56: =(1+AY56/100)*AZ55 -> 2.330140337
AA57: 2063 | AB57: =IF(ISNA(VLOOKUP($AA57,Escalation!$A$7:$R$54,MATCH(AB$7,Escalation!$6:$6,0),FALSE)*100),VLOOKUP(CONCATENATE("Post ",MAX(Escalation!$A:$A)),Escalation!$A$7:$R$54,MATCH(AB$7,Escalation!$6:$6,0),FALSE)*100,VLOOKUP($AA57,Escalation!$A$7:$R$54,MATCH(AB$7,Escalation!$6:$6,0),FALSE)*100) -> 2.255953052 | AC57: 2.673096085 | AD57: =IF(ISNA(VLOOKUP($AA57,Escalation!$A$7:$R$54,MATCH(AD$7,Escalation!$6:$6,0),FALSE)*100),VLOOKUP(CONCATENATE("Post ",MAX(Escalation!$A:$A)),Escalation!$A$7:$R$54,MATCH(AD$7,Escalation!$6:$6,0),FALSE)*100,VLOOKUP($AA57,Escalation!$A$7:$R$54,MATCH(AD$7,Escalation!$6:$6,0),FALSE)*100) -> 2.503968701 | AE57: 2.972119807 | AF57: =IF(ISNA(VLOOKUP($AA57,Escalation!$A$7:$R$54,MATCH(AF$7,Escalation!$6:$6,0),FALSE)*100),VLOOKUP(CONCATENATE("Post ",MAX(Escalation!$A:$A)),Escalation!$A$7:$R$54,MATCH(AF$7,Escalation!$6:$6,0),FALSE)*100,VLOOKUP($AA57,Escalation!$A$7:$R$54,MATCH(AF$7,Escalation!$6:$6,0),FALSE)*100) -> 2.751984351 | AG57: 3.303750488 | AH57: =IF(ISNA(VLOOKUP($AA57,Escalation!$A$7:$R$54,MATCH(AH$7,Escalation!$6:$6,0),FALSE)*100),VLOOKUP(CONCATENATE("Post ",MAX(Escalation!$A:$A)),Escalation!$A$7:$R$54,MATCH(AH$7,Escalation!$6:$6,0),FALSE)*100,VLOOKUP($AA57,Escalation!$A$7:$R$54,MATCH(AH$7,Escalation!$6:$6,0),FALSE)*100) -> 3 | AI57: 3.671452273 | AL57: 2063 | AM57: =IF(ISNA(VLOOKUP($AA57,Escalation!$A$7:$R$54,MATCH(AM$8,Escalation!$6:$6,0),FALSE)*100),VLOOKUP(CONCATENATE("Post ",MAX(Escalation!$A:$A)),Escalation!$A$7:$R$54,MATCH(AM$8,Escalation!$6:$6,0),FALSE)*100,VLOOKUP($AA57,Escalation!$A$7:$R$54,MATCH(AM$8,Escalation!$6:$6,0),FALSE)*100) -> 2.007937402 | AN57: 2.403540684 | AO57: =IF(ISNA(VLOOKUP($AA57,Escalation!$A$7:$R$54,MATCH(AO$8,Escalation!$6:$6,0),FALSE)*100),VLOOKUP(CONCATENATE("Post ",MAX(Escalation!$A:$A)),Escalation!$A$7:$R$54,MATCH(AO$8,Escalation!$6:$6,0),FALSE)*100,VLOOKUP($AA57,Escalation!$A$7:$R$54,MATCH(AO$8,Escalation!$6:$6,0),FALSE)*100) -> 2.864337138 | AP57: 3.472174977 | AQ57: =IF(ISNA(VLOOKUP($AA57,Escalation!$A$7:$R$54,MATCH(AQ$8,Escalation!$6:$6,0),FALSE)*100),VLOOKUP(CONCATENATE("Post ",MAX(Escalation!$A:$A)),Escalation!$A$7:$R$54,MATCH(AQ$8,Escalation!$6:$6,0),FALSE)*100,VLOOKUP($AA57,Escalation!$A$7:$R$54,MATCH(AQ$8,Escalation!$6:$6,0),FALSE)*100) -> 2.864337138 | AR57: 3.472174977 | AS57: =IF(ISNA(VLOOKUP($AA57,Escalation!$A$7:$R$54,MATCH(AS$8,Escalation!$6:$6,0),FALSE)*100),VLOOKUP(CONCATENATE("Post ",MAX(Escalation!$A:$A)),Escalation!$A$7:$R$54,MATCH(AS$8,Escalation!$6:$6,0),FALSE)*100,VLOOKUP($AA57,Escalation!$A$7:$R$54,MATCH(AS$8,Escalation!$6:$6,0),FALSE)*100) -> 2.707462966 | AT57: 3.246672794 | AU57: =IF(ISNA(VLOOKUP($AA57,Escalation!$A$7:$R$54,MATCH(AU$8,Escalation!$6:$6,0),FALSE)*100),VLOOKUP(CONCATENATE("Post ",MAX(Escalation!$A:$A)),Escalation!$A$7:$R$54,MATCH(AU$8,Escalation!$6:$6,0),FALSE)*100,VLOOKUP($AA57,Escalation!$A$7:$R$54,MATCH(AU$8,Escalation!$6:$6,0),FALSE)*100) -> 2.586782034 | AV57: 3.082999651 | AW57: =IF(ISNA(VLOOKUP($AA57,Escalation!$A$7:$R$54,MATCH(AW$8,Escalation!$6:$6,0),FALSE)*100),VLOOKUP(CONCATENATE("Post ",MAX(Escalation!$A:$A)),Escalation!$A$7:$R$54,MATCH(AW$8,Escalation!$6:$6,0),FALSE)*100,VLOOKUP($AA57,Escalation!$A$7:$R$54,MATCH(AW$8,Escalation!$6:$6,0),FALSE)*100) -> 1.98544152 | AX57: 2.376403911 | AY57: =IF(ISNA(VLOOKUP($AA57,Escalation!$A$7:$R$54,MATCH(AY$8,Escalation!$6:$6,0),FALSE)*100),VLOOKUP(CONCATENATE("Post ",MAX(Escalation!$A:$A)),Escalation!$A$7:$R$54,MATCH(AY$8,Escalation!$6:$6,0),FALSE)*100,VLOOKUP($AA57,Escalation!$A$7:$R$54,MATCH(AY$8,Escalation!$6:$6,0),FALSE)*100) -> 1.98544152 | AZ57: 2.376403911
AA58: 2064 | AB58: =IF(ISNA(VLOOKUP($AA58,Escalation!$A$7:$R$54,MATCH(AB$7,Escalation!$6:$6,0),FALSE)*100),VLOOKUP(CONCATENATE("Post ",MAX(Escalation!$A:$A)),Escalation!$A$7:$R$54,MATCH(AB$7,Escalation!$6:$6,0),FALSE)*100,VLOOKUP($AA58,Escalation!$A$7:$R$54,MATCH(AB$7,Escalation!$6:$6,0),FALSE)*100) -> 2.255953052 | AC58: 2.733399878 | AD58: =IF(ISNA(VLOOKUP($AA58,Escalation!$A$7:$R$54,MATCH(AD$7,Escalation!$6:$6,0),FALSE)*100),VLOOKUP(CONCATENATE("Post ",MAX(Escalation!$A:$A)),Escalation!$A$7:$R$54,MATCH(AD$7,Escalation!$6:$6,0),FALSE)*100,VLOOKUP($AA58,Escalation!$A$7:$R$54,MATCH(AD$7,Escalation!$6:$6,0),FALSE)*100) -> 2.503968701 | AE58: 3.046540757 | AF58: =IF(ISNA(VLOOKUP($AA58,Escalation!$A$7:$R$54,MATCH(AF$7,Escalation!$6:$6,0),FALSE)*100),VLOOKUP(CONCATENATE("Post ",MAX(Escalation!$A:$A)),Escalation!$A$7:$R$54,MATCH(AF$7,Escalation!$6:$6,0),FALSE)*100,VLOOKUP($AA58,Escalation!$A$7:$R$54,MATCH(AF$7,Escalation!$6:$6,0),FALSE)*100) -> 2.751984351 | AG58: 3.394669184 | AH58: =IF(ISNA(VLOOKUP($AA58,Escalation!$A$7:$R$54,MATCH(AH$7,Escalation!$6:$6,0),FALSE)*100),VLOOKUP(CONCATENATE("Post ",MAX(Escalation!$A:$A)),Escalation!$A$7:$R$54,MATCH(AH$7,Escalation!$6:$6,0),FALSE)*100,VLOOKUP($AA58,Escalation!$A$7:$R$54,MATCH(AH$7,Escalation!$6:$6,0),FALSE)*100) -> 3 | AI58: 3.781595842 | AL58: 2064 | AM58: =IF(ISNA(VLOOKUP($AA58,Escalation!$A$7:$R$54,MATCH(AM$8,Escalation!$6:$6,0),FALSE)*100),VLOOKUP(CONCATENATE("Post ",MAX(Escalation!$A:$A)),Escalation!$A$7:$R$54,MATCH(AM$8,Escalation!$6:$6,0),FALSE)*100,VLOOKUP($AA58,Escalation!$A$7:$R$54,MATCH(AM$8,Escalation!$6:$6,0),FALSE)*100) -> 2.007937402 | AN58: 2.451802276 | AO58: =IF(ISNA(VLOOKUP($AA58,Escalation!$A$7:$R$54,MATCH(AO$8,Escalation!$6:$6,0),FALSE)*100),VLOOKUP(CONCATENATE("Post ",MAX(Escalation!$A:$A)),Escalation!$A$7:$R$54,MATCH(AO$8,Escalation!$6:$6,0),FALSE)*100,VLOOKUP($AA58,Escalation!$A$7:$R$54,MATCH(AO$8,Escalation!$6:$6,0),FALSE)*100) -> 2.864337138 | AP58: 3.571629775 | AQ58: =IF(ISNA(VLOOKUP($AA58,Escalation!$A$7:$R$54,MATCH(AQ$8,Escalation!$6:$6,0),FALSE)*100),VLOOKUP(CONCATENATE("Post ",MAX(Escalation!$A:$A)),Escalation!$A$7:$R$54,MATCH(AQ$8,Escalation!$6:$6,0),FALSE)*100,VLOOKUP($AA58,Escalation!$A$7:$R$54,MATCH(AQ$8,Escalation!$6:$6,0),FALSE)*100) -> 2.864337138 | AR58: 3.571629775 | AS58: =IF(ISNA(VLOOKUP($AA58,Escalation!$A$7:$R$54,MATCH(AS$8,Escalation!$6:$6,0),FALSE)*100),VLOOKUP(CONCATENATE("Post ",MAX(Escalation!$A:$A)),Escalation!$A$7:$R$54,MATCH(AS$8,Escalation!$6:$6,0),FALSE)*100,VLOOKUP($AA58,Escalation!$A$7:$R$54,MATCH(AS$8,Escalation!$6:$6,0),FALSE)*100) -> 2.707462966 | AT58: 3.334575258 | AU58: =IF(ISNA(VLOOKUP($AA58,Escalation!$A$7:$R$54,MATCH(AU$8,Escalation!$6:$6,0),FALSE)*100),VLOOKUP(CONCATENATE("Post ",MAX(Escalation!$A:$A)),Escalation!$A$7:$R$54,MATCH(AU$8,Escalation!$6:$6,0),FALSE)*100,VLOOKUP($AA58,Escalation!$A$7:$R$54,MATCH(AU$8,Escalation!$6:$6,0),FALSE)*100) -> 2.586782034 | AV58: 3.162750132 | AW58: =IF(ISNA(VLOOKUP($AA58,Escalation!$A$7:$R$54,MATCH(AW$8,Escalation!$6:$6,0),FALSE)*100),VLOOKUP(CONCATENATE("Post ",MAX(Escalation!$A:$A)),Escalation!$A$7:$R$54,MATCH(AW$8,Escalation!$6:$6,0),FALSE)*100,VLOOKUP($AA58,Escalation!$A$7:$R$54,MATCH(AW$8,Escalation!$6:$6,0),FALSE)*100) -> 1.98544152 | AX58: 2.42358602 | AY58: =IF(ISNA(VLOOKUP($AA58,Escalation!$A$7:$R$54,MATCH(AY$8,Escalation!$6:$6,0),FALSE)*100),VLOOKUP(CONCATENATE("Post ",MAX(Escalation!$A:$A)),Escalation!$A$7:$R$54,MATCH(AY$8,Escalation!$6:$6,0),FALSE)*100,VLOOKUP($AA58,Escalation!$A$7:$R$54,MATCH(AY$8,Escalation!$6:$6,0),FALSE)*100) -> 1.98544152 | AZ58: 2.42358602
AA59: 2065 | AB59: =IF(ISNA(VLOOKUP($AA59,Escalation!$A$7:$R$54,MATCH(AB$7,Escalation!$6:$6,0),FALSE)*100),VLOOKUP(CONCATENATE("Post ",MAX(Escalation!$A:$A)),Escalation!$A$7:$R$54,MATCH(AB$7,Escalation!$6:$6,0),FALSE)*100,VLOOKUP($AA59,Escalation!$A$7:$R$54,MATCH(AB$7,Escalation!$6:$6,0),FALSE)*100) -> 2.255953052 | AC59: 2.795064096 | AD59: =IF(ISNA(VLOOKUP($AA59,Escalation!$A$7:$R$54,MATCH(AD$7,Escalation!$6:$6,0),FALSE)*100),VLOOKUP(CONCATENATE("Post ",MAX(Escalation!$A:$A)),Escalation!$A$7:$R$54,MATCH(AD$7,Escalation!$6:$6,0),FALSE)*100,VLOOKUP($AA59,Escalation!$A$7:$R$54,MATCH(AD$7,Escalation!$6:$6,0),FALSE)*100) -> 2.503968701 | AE59: 3.122825184 | AF59: =IF(ISNA(VLOOKUP($AA59,Escalation!$A$7:$R$54,MATCH(AF$7,Escalation!$6:$6,0),FALSE)*100),VLOOKUP(CONCATENATE("Post ",MAX(Escalation!$A:$A)),Escalation!$A$7:$R$54,MATCH(AF$7,Escalation!$6:$6,0),FALSE)*100,VLOOKUP($AA59,Escalation!$A$7:$R$54,MATCH(AF$7,Escalation!$6:$6,0),FALSE)*100) -> 2.751984351 | AG59: 3.488089949 | AH59: =IF(ISNA(VLOOKUP($AA59,Escalation!$A$7:$R$54,MATCH(AH$7,Escalation!$6:$6,0),FALSE)*100),VLOOKUP(CONCATENATE("Post ",MAX(Escalation!$A:$A)),Escalation!$A$7:$R$54,MATCH(AH$7,Escalation!$6:$6,0),FALSE)*100,VLOOKUP($AA59,Escalation!$A$7:$R$54,MATCH(AH$7,Escalation!$6:$6,0),FALSE)*100) -> 3 | AI59: 3.895043717 | AL59: 2065 | AM59: =IF(ISNA(VLOOKUP($AA59,Escalation!$A$7:$R$54,MATCH(AM$8,Escalation!$6:$6,0),FALSE)*100),VLOOKUP(CONCATENATE("Post ",MAX(Escalation!$A:$A)),Escalation!$A$7:$R$54,MATCH(AM$8,Escalation!$6:$6,0),FALSE)*100,VLOOKUP($AA59,Escalation!$A$7:$R$54,MATCH(AM$8,Escalation!$6:$6,0),FALSE)*100) -> 2.007937402 | AN59: 2.501032931 | AO59: =IF(ISNA(VLOOKUP($AA59,Escalation!$A$7:$R$54,MATCH(AO$8,Escalation!$6:$6,0),FALSE)*100),VLOOKUP(CONCATENATE("Post ",MAX(Escalation!$A:$A)),Escalation!$A$7:$R$54,MATCH(AO$8,Escalation!$6:$6,0),FALSE)*100,VLOOKUP($AA59,Escalation!$A$7:$R$54,MATCH(AO$8,Escalation!$6:$6,0),FALSE)*100) -> 2.864337138 | AP59: 3.673933293 | AQ59: =IF(ISNA(VLOOKUP($AA59,Escalation!$A$7:$R$54,MATCH(AQ$8,Escalation!$6:$6,0),FALSE)*100),VLOOKUP(CONCATENATE("Post ",MAX(Escalation!$A:$A)),Escalation!$A$7:$R$54,MATCH(AQ$8,Escalation!$6:$6,0),FALSE)*100,VLOOKUP($AA59,Escalation!$A$7:$R$54,MATCH(AQ$8,Escalation!$6:$6,0),FALSE)*100) -> 2.864337138 | AR59: 3.673933293 | AS59: =IF(ISNA(VLOOKUP($AA59,Escalation!$A$7:$R$54,MATCH(AS$8,Escalation!$6:$6,0),FALSE)*100),VLOOKUP(CONCATENATE("Post ",MAX(Escalation!$A:$A)),Escalation!$A$7:$R$54,MATCH(AS$8,Escalation!$6:$6,0),FALSE)*100,VLOOKUP($AA59,Escalation!$A$7:$R$54,MATCH(AS$8,Escalation!$6:$6,0),FALSE)*100) -> 2.707462966 | AT59: 3.424857648 | AU59: =IF(ISNA(VLOOKUP($AA59,Escalation!$A$7:$R$54,MATCH(AU$8,Escalation!$6:$6,0),FALSE)*100),VLOOKUP(CONCATENATE("Post ",MAX(Escalation!$A:$A)),Escalation!$A$7:$R$54,MATCH(AU$8,Escalation!$6:$6,0),FALSE)*100,VLOOKUP($AA59,Escalation!$A$7:$R$54,MATCH(AU$8,Escalation!$6:$6,0),FALSE)*100) -> 2.586782034 | AV59: 3.244563584 | AW59: =IF(ISNA(VLOOKUP($AA59,Escalation!$A$7:$R$54,MATCH(AW$8,Escalation!$6:$6,0),FALSE)*100),VLOOKUP(CONCATENATE("Post ",MAX(Escalation!$A:$A)),Escalation!$A$7:$R$54,MATCH(AW$8,Escalation!$6:$6,0),FALSE)*100,VLOOKUP($AA59,Escalation!$A$7:$R$54,MATCH(AW$8,Escalation!$6:$6,0),FALSE)*100) -> 1.98544152 | AX59: 2.471704904 | AY59: =IF(ISNA(VLOOKUP($AA59,Escalation!$A$7:$R$54,MATCH(AY$8,Escalation!$6:$6,0),FALSE)*100),VLOOKUP(CONCATENATE("Post ",MAX(Escalation!$A:$A)),Escalation!$A$7:$R$54,MATCH(AY$8,Escalation!$6:$6,0),FALSE)*100,VLOOKUP($AA59,Escalation!$A$7:$R$54,MATCH(AY$8,Escalation!$6:$6,0),FALSE)*100) -> 1.98544152 | AZ59: 2.471704904
AA60: 2066 | AB60: =IF(ISNA(VLOOKUP($AA60,Escalation!$A$7:$R$54,MATCH(AB$7,Escalation!$6:$6,0),FALSE)*100),VLOOKUP(CONCATENATE("Post ",MAX(Escalation!$A:$A)),Escalation!$A$7:$R$54,MATCH(AB$7,Escalation!$6:$6,0),FALSE)*100,VLOOKUP($AA60,Escalation!$A$7:$R$54,MATCH(AB$7,Escalation!$6:$6,0),FALSE)*100) -> 2.255953052 | AC60: 2.85811943 | AD60: =IF(ISNA(VLOOKUP($AA60,Escalation!$A$7:$R$54,MATCH(AD$7,Escalation!$6:$6,0),FALSE)*100),VLOOKUP(CONCATENATE("Post ",MAX(Escalation!$A:$A)),Escalation!$A$7:$R$54,MATCH(AD$7,Escalation!$6:$6,0),FALSE)*100,VLOOKUP($AA60,Escalation!$A$7:$R$54,MATCH(AD$7,Escalation!$6:$6,0),FALSE)*100) -> 2.503968701 | AE60: 3.201019749 | AF60: =IF(ISNA(VLOOKUP($AA60,Escalation!$A$7:$R$54,MATCH(AF$7,Escalation!$6:$6,0),FALSE)*100),VLOOKUP(CONCATENATE("Post ",MAX(Escalation!$A:$A)),Escalation!$A$7:$R$54,MATCH(AF$7,Escalation!$6:$6,0),FALSE)*100,VLOOKUP($AA60,Escalation!$A$7:$R$54,MATCH(AF$7,Escalation!$6:$6,0),FALSE)*100) -> 2.751984351 | AG60: 3.584081638 | AH60: =IF(ISNA(VLOOKUP($AA60,Escalation!$A$7:$R$54,MATCH(AH$7,Escalation!$6:$6,0),FALSE)*100),VLOOKUP(CONCATENATE("Post ",MAX(Escalation!$A:$A)),Escalation!$A$7:$R$54,MATCH(AH$7,Escalation!$6:$6,0),FALSE)*100,VLOOKUP($AA60,Escalation!$A$7:$R$54,MATCH(AH$7,Escalation!$6:$6,0),FALSE)*100) -> 3 | AI60: 4.011895028 | AL60: 2066 | AM60: =IF(ISNA(VLOOKUP($AA60,Escalation!$A$7:$R$54,MATCH(AM$8,Escalation!$6:$6,0),FALSE)*100),VLOOKUP(CONCATENATE("Post ",MAX(Escalation!$A:$A)),Escalation!$A$7:$R$54,MATCH(AM$8,Escalation!$6:$6,0),FALSE)*100,VLOOKUP($AA60,Escalation!$A$7:$R$54,MATCH(AM$8,Escalation!$6:$6,0),FALSE)*100) -> 2.007937402 | AN60: 2.551252107 | AO60: =IF(ISNA(VLOOKUP($AA60,Escalation!$A$7:$R$54,MATCH(AO$8,Escalation!$6:$6,0),FALSE)*100),VLOOKUP(CONCATENATE("Post ",MAX(Escalation!$A:$A)),Escalation!$A$7:$R$54,MATCH(AO$8,Escalation!$6:$6,0),FALSE)*100,VLOOKUP($AA60,Escalation!$A$7:$R$54,MATCH(AO$8,Escalation!$6:$6,0),FALSE)*100) -> 2.864337138 | AP60: 3.779167128 | AQ60: =IF(ISNA(VLOOKUP($AA60,Escalation!$A$7:$R$54,MATCH(AQ$8,Escalation!$6:$6,0),FALSE)*100),VLOOKUP(CONCATENATE("Post ",MAX(Escalation!$A:$A)),Escalation!$A$7:$R$54,MATCH(AQ$8,Escalation!$6:$6,0),FALSE)*100,VLOOKUP($AA60,Escalation!$A$7:$R$54,MATCH(AQ$8,Escalation!$6:$6,0),FALSE)*100) -> 2.864337138 | AR60: 3.779167128 | AS60: =IF(ISNA(VLOOKUP($AA60,Escalation!$A$7:$R$54,MATCH(AS$8,Escalation!$6:$6,0),FALSE)*100),VLOOKUP(CONCATENATE("Post ",MAX(Escalation!$A:$A)),Escalation!$A$7:$R$54,MATCH(AS$8,Escalation!$6:$6,0),FALSE)*100,VLOOKUP($AA60,Escalation!$A$7:$R$54,MATCH(AS$8,Escalation!$6:$6,0),FALSE)*100) -> 2.707462966 | AT60: 3.5175844 | AU60: =IF(ISNA(VLOOKUP($AA60,Escalation!$A$7:$R$54,MATCH(AU$8,Escalation!$6:$6,0),FALSE)*100),VLOOKUP(CONCATENATE("Post ",MAX(Escalation!$A:$A)),Escalation!$A$7:$R$54,MATCH(AU$8,Escalation!$6:$6,0),FALSE)*100,VLOOKUP($AA60,Escalation!$A$7:$R$54,MATCH(AU$8,Escalation!$6:$6,0),FALSE)*100) -> 2.586782034 | AV60: 3.328493372 | AW60: =IF(ISNA(VLOOKUP($AA60,Escalation!$A$7:$R$54,MATCH(AW$8,Escalation!$6:$6,0),FALSE)*100),VLOOKUP(CONCATENATE("Post ",MAX(Escalation!$A:$A)),Escalation!$A$7:$R$54,MATCH(AW$8,Escalation!$6:$6,0),FALSE)*100,VLOOKUP($AA60,Escalation!$A$7:$R$54,MATCH(AW$8,Escalation!$6:$6,0),FALSE)*100) -> 1.98544152 | AX60: 2.520779159 | AY60: =IF(ISNA(VLOOKUP($AA60,Escalation!$A$7:$R$54,MATCH(AY$8,Escalation!$6:$6,0),FALSE)*100),VLOOKUP(CONCATENATE("Post ",MAX(Escalation!$A:$A)),Escalation!$A$7:$R$54,MATCH(AY$8,Escalation!$6:$6,0),FALSE)*100,VLOOKUP($AA60,Escalation!$A$7:$R$54,MATCH(AY$8,Escalation!$6:$6,0),FALSE)*100) -> 1.98544152 | AZ60: 2.520779159
AA61: 2067 | AB61: =IF(ISNA(VLOOKUP($AA61,Escalation!$A$7:$R$54,MATCH(AB$7,Escalation!$6:$6,0),FALSE)*100),VLOOKUP(CONCATENATE("Post ",MAX(Escalation!$A:$A)),Escalation!$A$7:$R$54,MATCH(AB$7,Escalation!$6:$6,0),FALSE)*100,VLOOKUP($AA61,Escalation!$A$7:$R$54,MATCH(AB$7,Escalation!$6:$6,0),FALSE)*100) -> 2.255953052 | AC61: 2.922597262 | AD61: =IF(ISNA(VLOOKUP($AA61,Escalation!$A$7:$R$54,MATCH(AD$7,Escalation!$6:$6,0),FALSE)*100),VLOOKUP(CONCATENATE("Post ",MAX(Escalation!$A:$A)),Escalation!$A$7:$R$54,MATCH(AD$7,Escalation!$6:$6,0),FALSE)*100,VLOOKUP($AA61,Escalation!$A$7:$R$54,MATCH(AD$7,Escalation!$6:$6,0),FALSE)*100) -> 2.503968701 | AE61: 3.281172282 | AF61: =IF(ISNA(VLOOKUP($AA61,Escalation!$A$7:$R$54,MATCH(AF$7,Escalation!$6:$6,0),FALSE)*100),VLOOKUP(CONCATENATE("Post ",MAX(Escalation!$A:$A)),Escalation!$A$7:$R$54,MATCH(AF$7,Escalation!$6:$6,0),FALSE)*100,VLOOKUP($AA61,Escalation!$A$7:$R$54,MATCH(AF$7,Escalation!$6:$6,0),FALSE)*100) -> 2.751984351 | AG61: 3.682715004 | AH61: =IF(ISNA(VLOOKUP($AA61,Escalation!$A$7:$R$54,MATCH(AH$7,Escalation!$6:$6,0),FALSE)*100),VLOOKUP(CONCATENATE("Post ",MAX(Escalation!$A:$A)),Escalation!$A$7:$R$54,MATCH(AH$7,Escalation!$6:$6,0),FALSE)*100,VLOOKUP($AA61,Escalation!$A$7:$R$54,MATCH(AH$7,Escalation!$6:$6,0),FALSE)*100) -> 3 | AI61: 4.132251879 | AL61: 2067 | AM61: =IF(ISNA(VLOOKUP($AA61,Escalation!$A$7:$R$54,MATCH(AM$8,Escalation!$6:$6,0),FALSE)*100),VLOOKUP(CONCATENATE("Post ",MAX(Escalation!$A:$A)),Escalation!$A$7:$R$54,MATCH(AM$8,Escalation!$6:$6,0),FALSE)*100,VLOOKUP($AA61,Escalation!$A$7:$R$54,MATCH(AM$8,Escalation!$6:$6,0),FALSE)*100) -> 2.007937402 | AN61: 2.602479652 | AO61: =IF(ISNA(VLOOKUP($AA61,Escalation!$A$7:$R$54,MATCH(AO$8,Escalation!$6:$6,0),FALSE)*100),VLOOKUP(CONCATENATE("Post ",MAX(Escalation!$A:$A)),Escalation!$A$7:$R$54,MATCH(AO$8,Escalation!$6:$6,0),FALSE)*100,VLOOKUP($AA61,Escalation!$A$7:$R$54,MATCH(AO$8,Escalation!$6:$6,0),FALSE)*100) -> 2.864337138 | AP61: 3.887415216 | AQ61: =IF(ISNA(VLOOKUP($AA61,Escalation!$A$7:$R$54,MATCH(AQ$8,Escalation!$6:$6,0),FALSE)*100),VLOOKUP(CONCATENATE("Post ",MAX(Escalation!$A:$A)),Escalation!$A$7:$R$54,MATCH(AQ$8,Escalation!$6:$6,0),FALSE)*100,VLOOKUP($AA61,Escalation!$A$7:$R$54,MATCH(AQ$8,Escalation!$6:$6,0),FALSE)*100) -> 2.864337138 | AR61: 3.887415216 | AS61: =IF(ISNA(VLOOKUP($AA61,Escalation!$A$7:$R$54,MATCH(AS$8,Escalation!$6:$6,0),FALSE)*100),VLOOKUP(CONCATENATE("Post ",MAX(Escalation!$A:$A)),Escalation!$A$7:$R$54,MATCH(AS$8,Escalation!$6:$6,0),FALSE)*100,VLOOKUP($AA61,Escalation!$A$7:$R$54,MATCH(AS$8,Escalation!$6:$6,0),FALSE)*100) -> 2.707462966 | AT61: 3.612821695 | AU61: =IF(ISNA(VLOOKUP($AA61,Escalation!$A$7:$R$54,MATCH(AU$8,Escalation!$6:$6,0),FALSE)*100),VLOOKUP(CONCATENATE("Post ",MAX(Escalation!$A:$A)),Escalation!$A$7:$R$54,MATCH(AU$8,Escalation!$6:$6,0),FALSE)*100,VLOOKUP($AA61,Escalation!$A$7:$R$54,MATCH(AU$8,Escalation!$6:$6,0),FALSE)*100) -> 2.586782034 | AV61: 3.41459424 | AW61: =IF(ISNA(VLOOKUP($AA61,Escalation!$A$7:$R$54,MATCH(AW$8,Escalation!$6:$6,0),FALSE)*100),VLOOKUP(CONCATENATE("Post ",MAX(Escalation!$A:$A)),Escalation!$A$7:$R$54,MATCH(AW$8,Escalation!$6:$6,0),FALSE)*100,VLOOKUP($AA61,Escalation!$A$7:$R$54,MATCH(AW$8,Escalation!$6:$6,0),FALSE)*100) -> 1.98544152 | AX61: 2.570827755 | AY61: =IF(ISNA(VLOOKUP($AA61,Escalation!$A$7:$R$54,MATCH(AY$8,Escalation!$6:$6,0),FALSE)*100),VLOOKUP(CONCATENATE("Post ",MAX(Escalation!$A:$A)),Escalation!$A$7:$R$54,MATCH(AY$8,Escalation!$6:$6,0),FALSE)*100,VLOOKUP($AA61,Escalation!$A$7:$R$54,MATCH(AY$8,Escalation!$6:$6,0),FALSE)*100) -> 1.98544152 | AZ61: 2.570827755
AA62: 2068 | AB62: =IF(ISNA(VLOOKUP($AA62,Escalation!$A$7:$R$54,MATCH(AB$7,Escalation!$6:$6,0),FALSE)*100),VLOOKUP(CONCATENATE("Post ",MAX(Escalation!$A:$A)),Escalation!$A$7:$R$54,MATCH(AB$7,Escalation!$6:$6,0),FALSE)*100,VLOOKUP($AA62,Escalation!$A$7:$R$54,MATCH(AB$7,Escalation!$6:$6,0),FALSE)*100) -> 2.255953052 | AC62: 2.988529684 | AD62: =IF(ISNA(VLOOKUP($AA62,Escalation!$A$7:$R$54,MATCH(AD$7,Escalation!$6:$6,0),FALSE)*100),VLOOKUP(CONCATENATE("Post ",MAX(Escalation!$A:$A)),Escalation!$A$7:$R$54,MATCH(AD$7,Escalation!$6:$6,0),FALSE)*100,VLOOKUP($AA62,Escalation!$A$7:$R$54,MATCH(AD$7,Escalation!$6:$6,0),FALSE)*100) -> 2.503968701 | AE62: 3.363331809 | AF62: =IF(ISNA(VLOOKUP($AA62,Escalation!$A$7:$R$54,MATCH(AF$7,Escalation!$6:$6,0),FALSE)*100),VLOOKUP(CONCATENATE("Post ",MAX(Escalation!$A:$A)),Escalation!$A$7:$R$54,MATCH(AF$7,Escalation!$6:$6,0),FALSE)*100,VLOOKUP($AA62,Escalation!$A$7:$R$54,MATCH(AF$7,Escalation!$6:$6,0),FALSE)*100) -> 2.751984351 | AG62: 3.784062745 | AH62: =IF(ISNA(VLOOKUP($AA62,Escalation!$A$7:$R$54,MATCH(AH$7,Escalation!$6:$6,0),FALSE)*100),VLOOKUP(CONCATENATE("Post ",MAX(Escalation!$A:$A)),Escalation!$A$7:$R$54,MATCH(AH$7,Escalation!$6:$6,0),FALSE)*100,VLOOKUP($AA62,Escalation!$A$7:$R$54,MATCH(AH$7,Escalation!$6:$6,0),FALSE)*100) -> 3 | AI62: 4.256219436 | AL62: 2068 | AM62: =IF(ISNA(VLOOKUP($AA62,Escalation!$A$7:$R$54,MATCH(AM$8,Escalation!$6:$6,0),FALSE)*100),VLOOKUP(CONCATENATE("Post ",MAX(Escalation!$A:$A)),Escalation!$A$7:$R$54,MATCH(AM$8,Escalation!$6:$6,0),FALSE)*100,VLOOKUP($AA62,Escalation!$A$7:$R$54,MATCH(AM$8,Escalation!$6:$6,0),FALSE)*100) -> 2.007937402 | AN62: 2.654735814 | AO62: =IF(ISNA(VLOOKUP($AA62,Escalation!$A$7:$R$54,MATCH(AO$8,Escalation!$6:$6,0),FALSE)*100),VLOOKUP(CONCATENATE("Post ",MAX(Escalation!$A:$A)),Escalation!$A$7:$R$54,MATCH(AO$8,Escalation!$6:$6,0),FALSE)*100,VLOOKUP($AA62,Escalation!$A$7:$R$54,MATCH(AO$8,Escalation!$6:$6,0),FALSE)*100) -> 2.864337138 | AP62: 3.998763894 | AQ62: =IF(ISNA(VLOOKUP($AA62,Escalation!$A$7:$R$54,MATCH(AQ$8,Escalation!$6:$6,0),FALSE)*100),VLOOKUP(CONCATENATE("Post ",MAX(Escalation!$A:$A)),Escalation!$A$7:$R$54,MATCH(AQ$8,Escalation!$6:$6,0),FALSE)*100,VLOOKUP($AA62,Escalation!$A$7:$R$54,MATCH(AQ$8,Escalation!$6:$6,0),FALSE)*100) -> 2.864337138 | AR62: 3.998763894 | AS62: =IF(ISNA(VLOOKUP($AA62,Escalation!$A$7:$R$54,MATCH(AS$8,Escalation!$6:$6,0),FALSE)*100),VLOOKUP(CONCATENATE("Post ",MAX(Escalation!$A:$A)),Escalation!$A$7:$R$54,MATCH(AS$8,Escalation!$6:$6,0),FALSE)*100,VLOOKUP($AA62,Escalation!$A$7:$R$54,MATCH(AS$8,Escalation!$6:$6,0),FALSE)*100) -> 2.707462966 | AT62: 3.710637505 | AU62: =IF(ISNA(VLOOKUP($AA62,Escalation!$A$7:$R$54,MATCH(AU$8,Escalation!$6:$6,0),FALSE)*100),VLOOKUP(CONCATENATE("Post ",MAX(Escalation!$A:$A)),Escalation!$A$7:$R$54,MATCH(AU$8,Escalation!$6:$6,0),FALSE)*100,VLOOKUP($AA62,Escalation!$A$7:$R$54,MATCH(AU$8,Escalation!$6:$6,0),FALSE)*100) -> 2.586782034 | AV62: 3.502922351 | AW62: =IF(ISNA(VLOOKUP($AA62,Escalation!$A$7:$R$54,MATCH(AW$8,Escalation!$6:$6,0),FALSE)*100),VLOOKUP(CONCATENATE("Post ",MAX(Escalation!$A:$A)),Escalation!$A$7:$R$54,MATCH(AW$8,Escalation!$6:$6,0),FALSE)*100,VLOOKUP($AA62,Escalation!$A$7:$R$54,MATCH(AW$8,Escalation!$6:$6,0),FALSE)*100) -> 1.98544152 | AX62: 2.621870037 | AY62: =IF(ISNA(VLOOKUP($AA62,Escalation!$A$7:$R$54,MATCH(AY$8,Escalation!$6:$6,0),FALSE)*100),VLOOKUP(CONCATENATE("Post ",MAX(Escalation!$A:$A)),Escalation!$A$7:$R$54,MATCH(AY$8,Escalation!$6:$6,0),FALSE)*100,VLOOKUP($AA62,Escalation!$A$7:$R$54,MATCH(AY$8,Escalation!$6:$6,0),FALSE)*100) -> 1.98544152 | AZ62: 2.621870037
AA63: 2069 | AB63: =IF(ISNA(VLOOKUP($AA63,Escalation!$A$7:$R$54,MATCH(AB$7,Escalation!$6:$6,0),FALSE)*100),VLOOKUP(CONCATENATE("Post ",MAX(Escalation!$A:$A)),Escalation!$A$7:$R$54,MATCH(AB$7,Escalation!$6:$6,0),FALSE)*100,VLOOKUP($AA63,Escalation!$A$7:$R$54,MATCH(AB$7,Escalation!$6:$6,0),FALSE)*100) -> 2.255953052 | AC63: 3.055949511 | AD63: =IF(ISNA(VLOOKUP($AA63,Escalation!$A$7:$R$54,MATCH(AD$7,Escalation!$6:$6,0),FALSE)*100),VLOOKUP(CONCATENATE("Post ",MAX(Escalation!$A:$A)),Escalation!$A$7:$R$54,MATCH(AD$7,Escalation!$6:$6,0),FALSE)*100,VLOOKUP($AA63,Escalation!$A$7:$R$54,MATCH(AD$7,Escalation!$6:$6,0),FALSE)*100) -> 2.503968701 | AE63: 3.447548585 | AF63: =IF(ISNA(VLOOKUP($AA63,Escalation!$A$7:$R$54,MATCH(AF$7,Escalation!$6:$6,0),FALSE)*100),VLOOKUP(CONCATENATE("Post ",MAX(Escalation!$A:$A)),Escalation!$A$7:$R$54,MATCH(AF$7,Escalation!$6:$6,0),FALSE)*100,VLOOKUP($AA63,Escalation!$A$7:$R$54,MATCH(AF$7,Escalation!$6:$6,0),FALSE)*100) -> 2.751984351 | AG63: 3.888199559 | AH63: =IF(ISNA(VLOOKUP($AA63,Escalation!$A$7:$R$54,MATCH(AH$7,Escalation!$6:$6,0),FALSE)*100),VLOOKUP(CONCATENATE("Post ",MAX(Escalation!$A:$A)),Escalation!$A$7:$R$54,MATCH(AH$7,Escalation!$6:$6,0),FALSE)*100,VLOOKUP($AA63,Escalation!$A$7:$R$54,MATCH(AH$7,Escalation!$6:$6,0),FALSE)*100) -> 3 | AI63: 4.383906019 | AL63: 2069 | AM63: =IF(ISNA(VLOOKUP($AA63,Escalation!$A$7:$R$54,MATCH(AM$8,Escalation!$6:$6,0),FALSE)*100),VLOOKUP(CONCATENATE("Post ",MAX(Escalation!$A:$A)),Escalation!$A$7:$R$54,MATCH(AM$8,Escalation!$6:$6,0),FALSE)*100,VLOOKUP($AA63,Escalation!$A$7:$R$54,MATCH(AM$8,Escalation!$6:$6,0),FALSE)*100) -> 2.007937402 | AN63: 2.708041248 | AO63: =IF(ISNA(VLOOKUP($AA63,Escalation!$A$7:$R$54,MATCH(AO$8,Escalation!$6:$6,0),FALSE)*100),VLOOKUP(CONCATENATE("Post ",MAX(Escalation!$A:$A)),Escalation!$A$7:$R$54,MATCH(AO$8,Escalation!$6:$6,0),FALSE)*100,VLOOKUP($AA63,Escalation!$A$7:$R$54,MATCH(AO$8,Escalation!$6:$6,0),FALSE)*100) -> 2.864337138 | AP63: 4.113301973 | AQ63: =IF(ISNA(VLOOKUP($AA63,Escalation!$A$7:$R$54,MATCH(AQ$8,Escalation!$6:$6,0),FALSE)*100),VLOOKUP(CONCATENATE("Post ",MAX(Escalation!$A:$A)),Escalation!$A$7:$R$54,MATCH(AQ$8,Escalation!$6:$6,0),FALSE)*100,VLOOKUP($AA63,Escalation!$A$7:$R$54,MATCH(AQ$8,Escalation!$6:$6,0),FALSE)*100) -> 2.864337138 | AR63: 4.113301973 | AS63: =IF(ISNA(VLOOKUP($AA63,Escalation!$A$7:$R$54,MATCH(AS$8,Escalation!$6:$6,0),FALSE)*100),VLOOKUP(CONCATENATE("Post ",MAX(Escalation!$A:$A)),Escalation!$A$7:$R$54,MATCH(AS$8,Escalation!$6:$6,0),FALSE)*100,VLOOKUP($AA63,Escalation!$A$7:$R$54,MATCH(AS$8,Escalation!$6:$6,0),FALSE)*100) -> 2.707462966 | AT63: 3.811101641 | AU63: =IF(ISNA(VLOOKUP($AA63,Escalation!$A$7:$R$54,MATCH(AU$8,Escalation!$6:$6,0),FALSE)*100),VLOOKUP(CONCATENATE("Post ",MAX(Escalation!$A:$A)),Escalation!$A$7:$R$54,MATCH(AU$8,Escalation!$6:$6,0),FALSE)*100,VLOOKUP($AA63,Escalation!$A$7:$R$54,MATCH(AU$8,Escalation!$6:$6,0),FALSE)*100) -> 2.586782034 | AV63: 3.593535317 | AW63: =IF(ISNA(VLOOKUP($AA63,Escalation!$A$7:$R$54,MATCH(AW$8,Escalation!$6:$6,0),FALSE)*100),VLOOKUP(CONCATENATE("Post ",MAX(Escalation!$A:$A)),Escalation!$A$7:$R$54,MATCH(AW$8,Escalation!$6:$6,0),FALSE)*100,VLOOKUP($AA63,Escalation!$A$7:$R$54,MATCH(AW$8,Escalation!$6:$6,0),FALSE)*100) -> 1.98544152 | AX63: 2.673925733 | AY63: =IF(ISNA(VLOOKUP($AA63,Escalation!$A$7:$R$54,MATCH(AY$8,Escalation!$6:$6,0),FALSE)*100),VLOOKUP(CONCATENATE("Post ",MAX(Escalation!$A:$A)),Escalation!$A$7:$R$54,MATCH(AY$8,Escalation!$6:$6,0),FALSE)*100,VLOOKUP($AA63,Escalation!$A$7:$R$54,MATCH(AY$8,Escalation!$6:$6,0),FALSE)*100) -> 1.98544152 | AZ63: 2.673925733
AA64: 2070 | AB64: =IF(ISNA(VLOOKUP($AA64,Escalation!$A$7:$R$54,MATCH(AB$7,Escalation!$6:$6,0),FALSE)*100),VLOOKUP(CONCATENATE("Post ",MAX(Escalation!$A:$A)),Escalation!$A$7:$R$54,MATCH(AB$7,Escalation!$6:$6,0),FALSE)*100,VLOOKUP($AA64,Escalation!$A$7:$R$54,MATCH(AB$7,Escalation!$6:$6,0),FALSE)*100) -> 2.255953052 | AC64: 3.124890297 | AD64: =IF(ISNA(VLOOKUP($AA64,Escalation!$A$7:$R$54,MATCH(AD$7,Escalation!$6:$6,0),FALSE)*100),VLOOKUP(CONCATENATE("Post ",MAX(Escalation!$A:$A)),Escalation!$A$7:$R$54,MATCH(AD$7,Escalation!$6:$6,0),FALSE)*100,VLOOKUP($AA64,Escalation!$A$7:$R$54,MATCH(AD$7,Escalation!$6:$6,0),FALSE)*100) -> 2.503968701 | AE64: 3.533874122 | AF64: =IF(ISNA(VLOOKUP($AA64,Escalation!$A$7:$R$54,MATCH(AF$7,Escalation!$6:$6,0),FALSE)*100),VLOOKUP(CONCATENATE("Post ",MAX(Escalation!$A:$A)),Escalation!$A$7:$R$54,MATCH(AF$7,Escalation!$6:$6,0),FALSE)*100,VLOOKUP($AA64,Escalation!$A$7:$R$54,MATCH(AF$7,Escalation!$6:$6,0),FALSE)*100) -> 2.751984351 | AG64: 3.995202203 | AH64: =IF(ISNA(VLOOKUP($AA64,Escalation!$A$7:$R$54,MATCH(AH$7,Escalation!$6:$6,0),FALSE)*100),VLOOKUP(CONCATENATE("Post ",MAX(Escalation!$A:$A)),Escalation!$A$7:$R$54,MATCH(AH$7,Escalation!$6:$6,0),FALSE)*100,VLOOKUP($AA64,Escalation!$A$7:$R$54,MATCH(AH$7,Escalation!$6:$6,0),FALSE)*100) -> 3 | AI64: 4.515423199 | AL64: 2070 | AM64: =IF(ISNA(VLOOKUP($AA64,Escalation!$A$7:$R$54,MATCH(AM$8,Escalation!$6:$6,0),FALSE)*100),VLOOKUP(CONCATENATE("Post ",MAX(Escalation!$A:$A)),Escalation!$A$7:$R$54,MATCH(AM$8,Escalation!$6:$6,0),FALSE)*100,VLOOKUP($AA64,Escalation!$A$7:$R$54,MATCH(AM$8,Escalation!$6:$6,0),FALSE)*100) -> 2.007937402 | AN64: 2.762417021 | AO64: =IF(ISNA(VLOOKUP($AA64,Escalation!$A$7:$R$54,MATCH(AO$8,Escalation!$6:$6,0),FALSE)*100),VLOOKUP(CONCATENATE("Post ",MAX(Escalation!$A:$A)),Escalation!$A$7:$R$54,MATCH(AO$8,Escalation!$6:$6,0),FALSE)*100,VLOOKUP($AA64,Escalation!$A$7:$R$54,MATCH(AO$8,Escalation!$6:$6,0),FALSE)*100) -> 2.864337138 | AP64: 4.231120809 | AQ64: =IF(ISNA(VLOOKUP($AA64,Escalation!$A$7:$R$54,MATCH(AQ$8,Escalation!$6:$6,0),FALSE)*100),VLOOKUP(CONCATENATE("Post ",MAX(Escalation!$A:$A)),Escalation!$A$7:$R$54,MATCH(AQ$8,Escalation!$6:$6,0),FALSE)*100,VLOOKUP($AA64,Escalation!$A$7:$R$54,MATCH(AQ$8,Escalation!$6:$6,0),FALSE)*100) -> 2.864337138 | AR64: 4.231120809 | AS64: =IF(ISNA(VLOOKUP($AA64,Escalation!$A$7:$R$54,MATCH(AS$8,Escalation!$6:$6,0),FALSE)*100),VLOOKUP(CONCATENATE("Post ",MAX(Escalation!$A:$A)),Escalation!$A$7:$R$54,MATCH(AS$8,Escalation!$6:$6,0),FALSE)*100,VLOOKUP($AA64,Escalation!$A$7:$R$54,MATCH(AS$8,Escalation!$6:$6,0),FALSE)*100) -> 2.707462966 | AT64: 3.914285806 | AU64: =IF(ISNA(VLOOKUP($AA64,Escalation!$A$7:$R$54,MATCH(AU$8,Escalation!$6:$6,0),FALSE)*100),VLOOKUP(CONCATENATE("Post ",MAX(Escalation!$A:$A)),Escalation!$A$7:$R$54,MATCH(AU$8,Escalation!$6:$6,0),FALSE)*100,VLOOKUP($AA64,Escalation!$A$7:$R$54,MATCH(AU$8,Escalation!$6:$6,0),FALSE)*100) -> 2.586782034 | AV64: 3.686492243 | AW64: =IF(ISNA(VLOOKUP($AA64,Escalation!$A$7:$R$54,MATCH(AW$8,Escalation!$6:$6,0),FALSE)*100),VLOOKUP(CONCATENATE("Post ",MAX(Escalation!$A:$A)),Escalation!$A$7:$R$54,MATCH(AW$8,Escalation!$6:$6,0),FALSE)*100,VLOOKUP($AA64,Escalation!$A$7:$R$54,MATCH(AW$8,Escalation!$6:$6,0),FALSE)*100) -> 1.98544152 | AX64: 2.727014965 | AY64: =IF(ISNA(VLOOKUP($AA64,Escalation!$A$7:$R$54,MATCH(AY$8,Escalation!$6:$6,0),FALSE)*100),VLOOKUP(CONCATENATE("Post ",MAX(Escalation!$A:$A)),Escalation!$A$7:$R$54,MATCH(AY$8,Escalation!$6:$6,0),FALSE)*100,VLOOKUP($AA64,Escalation!$A$7:$R$54,MATCH(AY$8,Escalation!$6:$6,0),FALSE)*100) -> 1.98544152 | AZ64: 2.727014965
AA65: =AA64+1 -> 2071 | AB65: =IF(ISNA(VLOOKUP($AA65,Escalation!$A$7:$R$54,MATCH(AB$7,Escalation!$6:$6,0),FALSE)*100),VLOOKUP(CONCATENATE("Post ",MAX(Escalation!$A:$A)),Escalation!$A$7:$R$54,MATCH(AB$7,Escalation!$6:$6,0),FALSE)*100,VLOOKUP($AA65,Escalation!$A$7:$R$54,MATCH(AB$7,Escalation!$6:$6,0),FALSE)*100) -> 2.255953052 | AC65: =(1+AB65/100)*AC64 -> 3.195386355 | AD65: =IF(ISNA(VLOOKUP($AA65,Escalation!$A$7:$R$54,MATCH(AD$7,Escalation!$6:$6,0),FALSE)*100),VLOOKUP(CONCATENATE("Post ",MAX(Escalation!$A:$A)),Escalation!$A$7:$R$54,MATCH(AD$7,Escalation!$6:$6,0),FALSE)*100,VLOOKUP($AA65,Escalation!$A$7:$R$54,MATCH(AD$7,Escalation!$6:$6,0),FALSE)*100) -> 2.503968701 | AE65: =(1+AD65/100)*AE64 -> 3.622361224 | AF65: =IF(ISNA(VLOOKUP($AA65,Escalation!$A$7:$R$54,MATCH(AF$7,Escalation!$6:$6,0),FALSE)*100),VLOOKUP(CONCATENATE("Post ",MAX(Escalation!$A:$A)),Escalation!$A$7:$R$54,MATCH(AF$7,Escalation!$6:$6,0),FALSE)*100,VLOOKUP($AA65,Escalation!$A$7:$R$54,MATCH(AF$7,Escalation!$6:$6,0),FALSE)*100) -> 2.751984351 | AG65: =(1+AF65/100)*AG64 -> 4.105149542 | AH65: =IF(ISNA(VLOOKUP($AA65,Escalation!$A$7:$R$54,MATCH(AH$7,Escalation!$6:$6,0),FALSE)*100),VLOOKUP(CONCATENATE("Post ",MAX(Escalation!$A:$A)),Escalation!$A$7:$R$54,MATCH(AH$7,Escalation!$6:$6,0),FALSE)*100,VLOOKUP($AA65,Escalation!$A$7:$R$54,MATCH(AH$7,Escalation!$6:$6,0),FALSE)*100) -> 3 | AI65: =(1+AH65/100)*AI64 -> 4.650885895 | AL65: 2071 | AM65: =IF(ISNA(VLOOKUP($AA65,Escalation!$A$7:$R$54,MATCH(AM$8,Escalation!$6:$6,0),FALSE)*100),VLOOKUP(CONCATENATE("Post ",MAX(Escalation!$A:$A)),Escalation!$A$7:$R$54,MATCH(AM$8,Escalation!$6:$6,0),FALSE)*100,VLOOKUP($AA65,Escalation!$A$7:$R$54,MATCH(AM$8,Escalation!$6:$6,0),FALSE)*100) -> 2.007937402 | AN65: =(1+AM65/100)*AN64 -> 2.817884625 | AO65: =IF(ISNA(VLOOKUP($AA65,Escalation!$A$7:$R$54,MATCH(AO$8,Escalation!$6:$6,0),FALSE)*100),VLOOKUP(CONCATENATE("Post ",MAX(Escalation!$A:$A)),Escalation!$A$7:$R$54,MATCH(AO$8,Escalation!$6:$6,0),FALSE)*100,VLOOKUP($AA65,Escalation!$A$7:$R$54,MATCH(AO$8,Escalation!$6:$6,0),FALSE)*100) -> 2.864337138 | AP65: =(1+AO65/100)*AP64 -> 4.352314374 | AQ65: =IF(ISNA(VLOOKUP($AA65,Escalation!$A$7:$R$54,MATCH(AQ$8,Escalation!$6:$6,0),FALSE)*100),VLOOKUP(CONCATENATE("Post ",MAX(Escalation!$A:$A)),Escalation!$A$7:$R$54,MATCH(AQ$8,Escalation!$6:$6,0),FALSE)*100,VLOOKUP($AA65,Escalation!$A$7:$R$54,MATCH(AQ$8,Escalation!$6:$6,0),FALSE)*100) -> 2.864337138 | AR65: =(1+AQ65/100)*AR64 -> 4.352314374 | AS65: =IF(ISNA(VLOOKUP($AA65,Escalation!$A$7:$R$54,MATCH(AS$8,Escalation!$6:$6,0),FALSE)*100),VLOOKUP(CONCATENATE("Post ",MAX(Escalation!$A:$A)),Escalation!$A$7:$R$54,MATCH(AS$8,Escalation!$6:$6,0),FALSE)*100,VLOOKUP($AA65,Escalation!$A$7:$R$54,MATCH(AS$8,Escalation!$6:$6,0),FALSE)*100) -> 2.707462966 | AT65: =(1+AS65/100)*AT64 -> 4.020263645 | AU65: =IF(ISNA(VLOOKUP($AA65,Escalation!$A$7:$R$54,MATCH(AU$8,Escalation!$6:$6,0),FALSE)*100),VLOOKUP(CONCATENATE("Post ",MAX(Escalation!$A:$A)),Escalation!$A$7:$R$54,MATCH(AU$8,Escalation!$6:$6,0),FALSE)*100,VLOOKUP($AA65,Escalation!$A$7:$R$54,MATCH(AU$8,Escalation!$6:$6,0),FALSE)*100) -> 2.586782034 | AV65: =(1+AU65/100)*AV64 -> 3.781853762 | AW65: =IF(ISNA(VLOOKUP($AA65,Escalation!$A$7:$R$54,MATCH(AW$8,Escalation!$6:$6,0),FALSE)*100),VLOOKUP(CONCATENATE("Post ",MAX(Escalation!$A:$A)),Escalation!$A$7:$R$54,MATCH(AW$8,Escalation!$6:$6,0),FALSE)*100,VLOOKUP($AA65,Escalation!$A$7:$R$54,MATCH(AW$8,Escalation!$6:$6,0),FALSE)*100) -> 1.98544152 | AX65: =(1+AW65/100)*AX64 -> 2.781158252 | AY65: =IF(ISNA(VLOOKUP($AA65,Escalation!$A$7:$R$54,MATCH(AY$8,Escalation!$6:$6,0),FALSE)*100),VLOOKUP(CONCATENATE("Post ",MAX(Escalation!$A:$A)),Escalation!$A$7:$R$54,MATCH(AY$8,Escalation!$6:$6,0),FALSE)*100,VLOOKUP($AA65,Escalation!$A$7:$R$54,MATCH(AY$8,Escalation!$6:$6,0),FALSE)*100) -> 1.98544152 | AZ65: =(1+AY65/100)*AZ64 -> 2.781158252
AA66: =AA65+1 -> 2072 | AB66: =IF(ISNA(VLOOKUP($AA66,Escalation!$A$7:$R$54,MATCH(AB$7,Escalation!$6:$6,0),FALSE)*100),VLOOKUP(CONCATENATE("Post ",MAX(Escalation!$A:$A)),Escalation!$A$7:$R$54,MATCH(AB$7,Escalation!$6:$6,0),FALSE)*100,VLOOKUP($AA66,Escalation!$A$7:$R$54,MATCH(AB$7,Escalation!$6:$6,0),FALSE)*100) -> 2.255953052 | AC66: =(1+AB66/100)*AC65 -> 3.267472771 | AD66: =IF(ISNA(VLOOKUP($AA66,Escalation!$A$7:$R$54,MATCH(AD$7,Escalation!$6:$6,0),FALSE)*100),VLOOKUP(CONCATENATE("Post ",MAX(Escalation!$A:$A)),Escalation!$A$7:$R$54,MATCH(AD$7,Escalation!$6:$6,0),FALSE)*100,VLOOKUP($AA66,Escalation!$A$7:$R$54,MATCH(AD$7,Escalation!$6:$6,0),FALSE)*100) -> 2.503968701 | AE66: =(1+AD66/100)*AE65 -> 3.713064015 | AF66: =IF(ISNA(VLOOKUP($AA66,Escalation!$A$7:$R$54,MATCH(AF$7,Escalation!$6:$6,0),FALSE)*100),VLOOKUP(CONCATENATE("Post ",MAX(Escalation!$A:$A)),Escalation!$A$7:$R$54,MATCH(AF$7,Escalation!$6:$6,0),FALSE)*100,VLOOKUP($AA66,Escalation!$A$7:$R$54,MATCH(AF$7,Escalation!$6:$6,0),FALSE)*100) -> 2.751984351 | AG66: =(1+AF66/100)*AG65 -> 4.218122615 | AH66: =IF(ISNA(VLOOKUP($AA66,Escalation!$A$7:$R$54,MATCH(AH$7,Escalation!$6:$6,0),FALSE)*100),VLOOKUP(CONCATENATE("Post ",MAX(Escalation!$A:$A)),Escalation!$A$7:$R$54,MATCH(AH$7,Escalation!$6:$6,0),FALSE)*100,VLOOKUP($AA66,Escalation!$A$7:$R$54,MATCH(AH$7,Escalation!$6:$6,0),FALSE)*100) -> 3 | AI66: =(1+AH66/100)*AI65 -> 4.790412472 | AL66: 2072 | AM66: =IF(ISNA(VLOOKUP($AA66,Escalation!$A$7:$R$54,MATCH(AM$8,Escalation!$6:$6,0),FALSE)*100),VLOOKUP(CONCATENATE("Post ",MAX(Escalation!$A:$A)),Escalation!$A$7:$R$54,MATCH(AM$8,Escalation!$6:$6,0),FALSE)*100,VLOOKUP($AA66,Escalation!$A$7:$R$54,MATCH(AM$8,Escalation!$6:$6,0),FALSE)*100) -> 2.007937402 | AN66: =(1+AM66/100)*AN65 -> 2.874465985 | AO66: =IF(ISNA(VLOOKUP($AA66,Escalation!$A$7:$R$54,MATCH(AO$8,Escalation!$6:$6,0),FALSE)*100),VLOOKUP(CONCATENATE("Post ",MAX(Escalation!$A:$A)),Escalation!$A$7:$R$54,MATCH(AO$8,Escalation!$6:$6,0),FALSE)*100,VLOOKUP($AA66,Escalation!$A$7:$R$54,MATCH(AO$8,Escalation!$6:$6,0),FALSE)*100) -> 2.864337138 | AP66: =(1+AO66/100)*AP65 -> 4.476979331 | AQ66: =IF(ISNA(VLOOKUP($AA66,Escalation!$A$7:$R$54,MATCH(AQ$8,Escalation!$6:$6,0),FALSE)*100),VLOOKUP(CONCATENATE("Post ",MAX(Escalation!$A:$A)),Escalation!$A$7:$R$54,MATCH(AQ$8,Escalation!$6:$6,0),FALSE)*100,VLOOKUP($AA66,Escalation!$A$7:$R$54,MATCH(AQ$8,Escalation!$6:$6,0),FALSE)*100) -> 2.864337138 | AR66: =(1+AQ66/100)*AR65 -> 4.476979331 | AS66: =IF(ISNA(VLOOKUP($AA66,Escalation!$A$7:$R$54,MATCH(AS$8,Escalation!$6:$6,0),FALSE)*100),VLOOKUP(CONCATENATE("Post ",MAX(Escalation!$A:$A)),Escalation!$A$7:$R$54,MATCH(AS$8,Escalation!$6:$6,0),FALSE)*100,VLOOKUP($AA66,Escalation!$A$7:$R$54,MATCH(AS$8,Escalation!$6:$6,0),FALSE)*100) -> 2.707462966 | AT66: =(1+AS66/100)*AT65 -> 4.129110794 | AU66: =IF(ISNA(VLOOKUP($AA66,Escalation!$A$7:$R$54,MATCH(AU$8,Escalation!$6:$6,0),FALSE)*100),VLOOKUP(CONCATENATE("Post ",MAX(Escalation!$A:$A)),Escalation!$A$7:$R$54,MATCH(AU$8,Escalation!$6:$6,0),FALSE)*100,VLOOKUP($AA66,Escalation!$A$7:$R$54,MATCH(AU$8,Escalation!$6:$6,0),FALSE)*100) -> 2.586782034 | AV66: =(1+AU66/100)*AV65 -> 3.879682076 | AW66: =IF(ISNA(VLOOKUP($AA66,Escalation!$A$7:$R$54,MATCH(AW$8,Escalation!$6:$6,0),FALSE)*100),VLOOKUP(CONCATENATE("Post ",MAX(Escalation!$A:$A)),Escalation!$A$7:$R$54,MATCH(AW$8,Escalation!$6:$6,0),FALSE)*100,VLOOKUP($AA66,Escalation!$A$7:$R$54,MATCH(AW$8,Escalation!$6:$6,0),FALSE)*100) -> 1.98544152 | AX66: =(1+AW66/100)*AX65 -> 2.836376523 | AY66: =IF(ISNA(VLOOKUP($AA66,Escalation!$A$7:$R$54,MATCH(AY$8,Escalation!$6:$6,0),FALSE)*100),VLOOKUP(CONCATENATE("Post ",MAX(Escalation!$A:$A)),Escalation!$A$7:$R$54,MATCH(AY$8,Escalation!$6:$6,0),FALSE)*100,VLOOKUP($AA66,Escalation!$A$7:$R$54,MATCH(AY$8,Escalation!$6:$6,0),FALSE)*100) -> 1.98544152 | AZ66: =(1+AY66/100)*AZ65 -> 2.836376523
AA67: =AA66+1 -> 2073 | AB67: =IF(ISNA(VLOOKUP($AA67,Escalation!$A$7:$R$54,MATCH(AB$7,Escalation!$6:$6,0),FALSE)*100),VLOOKUP(CONCATENATE("Post ",MAX(Escalation!$A:$A)),Escalation!$A$7:$R$54,MATCH(AB$7,Escalation!$6:$6,0),FALSE)*100,VLOOKUP($AA67,Escalation!$A$7:$R$54,MATCH(AB$7,Escalation!$6:$6,0),FALSE)*100) -> 2.255953052 | AC67: =(1+AB67/100)*AC66 -> 3.341185423 | AD67: =IF(ISNA(VLOOKUP($AA67,Escalation!$A$7:$R$54,MATCH(AD$7,Escalation!$6:$6,0),FALSE)*100),VLOOKUP(CONCATENATE("Post ",MAX(Escalation!$A:$A)),Escalation!$A$7:$R$54,MATCH(AD$7,Escalation!$6:$6,0),FALSE)*100,VLOOKUP($AA67,Escalation!$A$7:$R$54,MATCH(AD$7,Escalation!$6:$6,0),FALSE)*100) -> 2.503968701 | AE67: =(1+AD67/100)*AE66 -> 3.806037976 | AF67: =IF(ISNA(VLOOKUP($AA67,Escalation!$A$7:$R$54,MATCH(AF$7,Escalation!$6:$6,0),FALSE)*100),VLOOKUP(CONCATENATE("Post ",MAX(Escalation!$A:$A)),Escalation!$A$7:$R$54,MATCH(AF$7,Escalation!$6:$6,0),FALSE)*100,VLOOKUP($AA67,Escalation!$A$7:$R$54,MATCH(AF$7,Escalation!$6:$6,0),FALSE)*100) -> 2.751984351 | AG67: =(1+AF67/100)*AG66 -> 4.334204689 | AH67: =IF(ISNA(VLOOKUP($AA67,Escalation!$A$7:$R$54,MATCH(AH$7,Escalation!$6:$6,0),FALSE)*100),VLOOKUP(CONCATENATE("Post ",MAX(Escalation!$A:$A)),Escalation!$A$7:$R$54,MATCH(AH$7,Escalation!$6:$6,0),FALSE)*100,VLOOKUP($AA67,Escalation!$A$7:$R$54,MATCH(AH$7,Escalation!$6:$6,0),FALSE)*100) -> 3 | AI67: =(1+AH67/100)*AI66 -> 4.934124846 | AL67: 2073 | AM67: =IF(ISNA(VLOOKUP($AA67,Escalation!$A$7:$R$54,MATCH(AM$8,Escalation!$6:$6,0),FALSE)*100),VLOOKUP(CONCATENATE("Post ",MAX(Escalation!$A:$A)),Escalation!$A$7:$R$54,MATCH(AM$8,Escalation!$6:$6,0),FALSE)*100,VLOOKUP($AA67,Escalation!$A$7:$R$54,MATCH(AM$8,Escalation!$6:$6,0),FALSE)*100) -> 2.007937402 | AN67: =(1+AM67/100)*AN66 -> 2.932183462 | AO67: =IF(ISNA(VLOOKUP($AA67,Escalation!$A$7:$R$54,MATCH(AO$8,Escalation!$6:$6,0),FALSE)*100),VLOOKUP(CONCATENATE("Post ",MAX(Escalation!$A:$A)),Escalation!$A$7:$R$54,MATCH(AO$8,Escalation!$6:$6,0),FALSE)*100,VLOOKUP($AA67,Escalation!$A$7:$R$54,MATCH(AO$8,Escalation!$6:$6,0),FALSE)*100) -> 2.864337138 | AP67: =(1+AO67/100)*AP66 -> 4.605215112 | AQ67: =IF(ISNA(VLOOKUP($AA67,Escalation!$A$7:$R$54,MATCH(AQ$8,Escalation!$6:$6,0),FALSE)*100),VLOOKUP(CONCATENATE("Post ",MAX(Escalation!$A:$A)),Escalation!$A$7:$R$54,MATCH(AQ$8,Escalation!$6:$6,0),FALSE)*100,VLOOKUP($AA67,Escalation!$A$7:$R$54,MATCH(AQ$8,Escalation!$6:$6,0),FALSE)*100) -> 2.864337138 | AR67: =(1+AQ67/100)*AR66 -> 4.605215112 | AS67: =IF(ISNA(VLOOKUP($AA67,Escalation!$A$7:$R$54,MATCH(AS$8,Escalation!$6:$6,0),FALSE)*100),VLOOKUP(CONCATENATE("Post ",MAX(Escalation!$A:$A)),Escalation!$A$7:$R$54,MATCH(AS$8,Escalation!$6:$6,0),FALSE)*100,VLOOKUP($AA67,Escalation!$A$7:$R$54,MATCH(AS$8,Escalation!$6:$6,0),FALSE)*100) -> 2.707462966 | AT67: =(1+AS67/100)*AT66 -> 4.24090494 | AU67: =IF(ISNA(VLOOKUP($AA67,Escalation!$A$7:$R$54,MATCH(AU$8,Escalation!$6:$6,0),FALSE)*100),VLOOKUP(CONCATENATE("Post ",MAX(Escalation!$A:$A)),Escalation!$A$7:$R$54,MATCH(AU$8,Escalation!$6:$6,0),FALSE)*100,VLOOKUP($AA67,Escalation!$A$7:$R$54,MATCH(AU$8,Escalation!$6:$6,0),FALSE)*100) -> 2.586782034 | AV67: =(1+AU67/100)*AV66 -> 3.980040995 | AW67: =IF(ISNA(VLOOKUP($AA67,Escalation!$A$7:$R$54,MATCH(AW$8,Escalation!$6:$6,0),FALSE)*100),VLOOKUP(CONCATENATE("Post ",MAX(Escalation!$A:$A)),Escalation!$A$7:$R$54,MATCH(AW$8,Escalation!$6:$6,0),FALSE)*100,VLOOKUP($AA67,Escalation!$A$7:$R$54,MATCH(AW$8,Escalation!$6:$6,0),FALSE)*100) -> 1.98544152 | AX67: =(1+AW67/100)*AX66 -> 2.89269112 | AY67: =IF(ISNA(VLOOKUP($AA67,Escalation!$A$7:$R$54,MATCH(AY$8,Escalation!$6:$6,0),FALSE)*100),VLOOKUP(CONCATENATE("Post ",MAX(Escalation!$A:$A)),Escalation!$A$7:$R$54,MATCH(AY$8,Escalation!$6:$6,0),FALSE)*100,VLOOKUP($AA67,Escalation!$A$7:$R$54,MATCH(AY$8,Escalation!$6:$6,0),FALSE)*100) -> 1.98544152 | AZ67: =(1+AY67/100)*AZ66 -> 2.89269112

Sheet Alt. 1
AM2: PROJECT COST / BENEFIT ANALYSIS TEMPLATE
AM3: ='Home Page'!G10 -> Labrador East - Network Addition Policy - 10 MW Addition
AM4: Baseline
AP5: Note: Costs are shown as positive values; Benefits as negative values
AT7: Current Year | AU7: ='Home Page'!G6 -> 2019
AT8: Present Worth Year | AU8: ='Home Page'!G18 -> 2019
H9: Scratch Pad area for Annual O&M costs | AT9: Number of Years in Study | AU9: ='Home Page'!G14 -> 25
AT10: Discount Rate | AU10: ='Home Page'!G16 -> 0.065
H11: This area is used to enter O&M costs associated with the project. | AT11: Total In-service Project Cost | AU11: 1e-06
H12: Columns 3,4,5,6,7 & 8 can be used to do some calculations if preferred. | AT12: In-service Year | AU12: ='Home Page'!G12 -> 2019
H13: The determined O&M costs for each year must be entered into column 9 as constant year dollar values, | AT13: Other Project Cost after In-service (if applicable)
H14: that is, the values in this year's dollars. | AT14: Other Project Year (if applicable)
H15: The entered values will be automatically escalated to current year dollar values in column 10 | AT15: Replacement Cost (if applicable) | AU15: 0
H16: that is, the costs in their respective years as shown in column 2. | AT16: Replacement Year (if applicable)
H17: NOTE: Annual O&M costs are assumed to start in the in-service year. | AT17: Project cost in Ending (E) or Beginning (B) Year $$ | AU17: B
AT18: O&M costs - Escalation based on mixture of Materials & Labour | AU18: More Material Less Labour
B20: 1 | C20: 2 | D20: 3 | E20: 4 | F20: 5 | G20: 6 | H20: 7 | I20: 8 | J20: 9 | K20: 10 | L20: 11 | N20: 12 | O20: 13
AM21: A B | AO21: C | AP21: D | AQ21: E | AR21: F | AS21: G | AT21: H | AU21: I | AV21: J | AW21: K | AX21: L
D22: Working Area Below (if required) | K22: Annual | N22: User Chosen | O22: Cumulative | AO22: Annual O&M | AP22: Annual Fuel | AQ22: Annual Fuel | AR22: Other | AS22: Total | AT22: Benefit 1 | AU22: Benefit 2 | AW22: P.W. | AX22: Cumulative
B23: Year | J23: O&M costs | K23: O&M costs | L23: Comments / Explanations | N23: Annual % | O23: Change | AM23: Year | AO23: Cost | AP23: Price | AQ23: Cost | AR23: Cost | AS23: Costs | AT23: (specify) | AU23: (specify) | AV23: NET | AW23: January | AX23: Present
J24: (Constant $$) | K24: (Current $$) | N24: Change | O24: Factor | AO24: $ | AP24: (if applicable) | AQ24: $ | AR24: $ | AS24: $ | AT24: $ | AU24: $ | AV24: $ | AW24: =$AU$8 -> 2019 | AX24: Worth
B26: 0 | C26: =$AU$7 -> 2019 | K26: =IF(J26 = "", "",IF($AU$18 = " User Defined",(J26*O26),J26*(VLOOKUP(C26,Index,$BC$37,FALSE)))) ->  | O26: 1 | AM26: 0 | AN26: =AU7 -> 2019 | AO26: =IF(AM26="","",IF($AU$12>AN26,0,K26)) ->  | AQ26: =IF(AM26="","",IF($AU$12>AN26,0,J135)) -> 0 | AR26: =IF(AM26="","",IF($AU$12>AN26,0,L238)) -> 0 | AS26: =IF(AN26=$AU$12,SUM(AO26:AR26)-AP26+$AU$11,SUM(AO26:AR26)-AP26) -> 1e-06 | AT26: =IF(AM26="","",IF($AU$12>AN26,0,-L339)) -> 0 | AU26: =IF(AM26="","",IF($AU$12>AN26,0,-L440)) -> 0 | AV26: =AS26+SUM(AT26:AU26) -> 1e-06 | AW26: =IF(AV26=0,0,IF(AV26=SUM(AO26:AR26)+SUM(AT26:AU26),AV26/(1+$AU$10)^(AN26-$AU$8+1),IF($AU$17="E",AV26/(1+$AU$10)^(AN26-$AU$8+1),(AV26-SUM(AO26:AR26)-SUM(AT26:AU26))/(1+$AU$10)^(AN26-$AU$8)+(SUM(AO26:AR26)+SUM(AT26:AU26))/(1+$AU$10)^(AN26-$AU$8+1)))) -> 1e-06 | AX26: =AX25+AW26 -> 1e-06
B27: =B26+1 -> 1 | C27: =C26+1 -> 2020 | O27: =1+N27/100 -> 1 | AM27: =IF(AM26="","",IF($AU$9-AM26<=0,"",AM26+1)) -> 1 | AN27: =IF(AM27="","",AN26+1) -> 2020 | AQ27: 0 | AR27: 0 | AS27: =IF(AN27=$AU$12,SUM(AO27:AR27)-AP27+$AU$11,IF(AN27=$AU$16,SUM(AO27:AR27)-AP27+$AU$15,IF(AN27=$AU$14,SUM(AO27:AR27)-AP27+$AU$13,SUM(AO27:AR27)-AP27))) -> 0 | AT27: 0 | AU27: 0 | AV27: =AS27+SUM(AT27:AU27) -> 0 | AW27: =IF(AV27=0,0,IF(AV27=SUM(AO27:AR27)+SUM(AT27:AU27),AV27/(1+$AU$10)^(AN27-$AU$8+1),IF($AU$17="E",AV27/(1+$AU$10)^(AN27-$AU$8+1),(AV27-SUM(AO27:AR27)-SUM(AT27:AU27))/(1+$AU$10)^(AN27-$AU$8)+(SUM(AO27:AR27)+SUM(AT27:AU27))/(1+$AU$10)^(AN27-$AU$8+1)))) -> 0 | AX27: =IF(AN27="",0,IF(AW27=0,AX26,AX26+AW27)) -> 1e-06 | BD27: =IF(AM27=$AU$9,AX27,0) -> 0 | BF27: =IF(AM27=$AU$9,AN27,0) -> 0
B28: =B27+1 -> 2 | C28: 2021 | O28: =(1+N28/100)*O27 -> 1 | AM28: =IF(AM27="","",IF($AU$9-AM27<=0,"",AM27+1)) -> 2 | AN28: =IF(AM28="","",AN27+1) -> 2021 | AQ28: 0 | AR28: 0 | AS28: =IF(AN28=$AU$12,SUM(AO28:AR28)-AP28+$AU$11,IF(AN28=$AU$16,SUM(AO28:AR28)-AP28+$AU$15,IF(AN28=$AU$14,SUM(AO28:AR28)-AP28+$AU$13,SUM(AO28:AR28)-AP28))) -> 0 | AT28: 0 | AU28: 0 | AV28: 0 | AW28: =IF(AV28=0,0,IF(AV28=SUM(AO28:AR28)+SUM(AT28:AU28),AV28/(1+$AU$10)^(AN28-$AU$8+1),IF($AU$17="E",AV28/(1+$AU$10)^(AN28-$AU$8+1),(AV28-SUM(AO28:AR28)-SUM(AT28:AU28))/(1+$AU$10)^(AN28-$AU$8)+(SUM(AO28:AR28)+SUM(AT28:AU28))/(1+$AU$10)^(AN28-$AU$8+1)))) -> 0 | AX28: =IF(AN28="",0,IF(AW28=0,AX27,AX27+AW28)) -> 1e-06 | BB28: E | BD28: =IF(AM28=$AU$9,AX28,0) -> 0 | BF28: =IF(AM28=$AU$9,AN28,0) -> 0
B29: 3 | C29: 2022 | O29: =(1+N29/100)*O28 -> 1 | AM29: 3 | AN29: 2022 | AQ29: 0 | AR29: 0 | AS29: =IF(AN29=$AU$12,SUM(AO29:AR29)-AP29+$AU$11,IF(AN29=$AU$16,SUM(AO29:AR29)-AP29+$AU$15,IF(AN29=$AU$14,SUM(AO29:AR29)-AP29+$AU$13,SUM(AO29:AR29)-AP29))) -> 0 | AT29: 0 | AU29: 0 | AV29: 0 | AW29: 0 | AX29: 1e-06 | BB29: B | BD29: =IF(AM29=$AU$9,AX29,0) -> 0 | BF29: =IF(AM29=$AU$9,AN29,0) -> 0
B30: 4 | C30: 2023 | O30: 1 | AM30: 4 | AN30: 2023 | AQ30: 0 | AR30: 0 | AS30: 0 | AT30: 0 | AU30: 0 | AV30: 0 | AW30: 0 | AX30: 1e-06 | BD30: 0 | BF30: 0
B31: 5 | C31: 2024 | O31: 1 | AM31: 5 | AN31: 2024 | AQ31: 0 | AR31: 0 | AS31: 0 | AT31: 0 | AU31: 0 | AV31: 0 | AW31: 0 | AX31: 1e-06 | BB31: More Material Less Labour | BC31: 3 | BD31: 0 | BF31: 0
B32: 6 | C32: 2025 | O32: 1 | AM32: 6 | AN32: 2025 | AQ32: 0 | AR32: 0 | AS32: 0 | AT32: 0 | AU32: 0 | AV32: 0 | AW32: 0 | AX32: 1e-06 | BB32: Same Material Same Labour | BC32: 5 | BD32: 0 | BF32: 0
B33: 7 | C33: 2026 | O33: 1 | AM33: 7 | AN33: 2026 | AQ33: 0 | AR33: 0 | AS33: 0 | AT33: 0 | AU33: 0 | AV33: 0 | AW33: 0 | AX33: 1e-06 | BB33: More Labour Less Material | BC33: 7 | BD33: 0 | BF33: 0
B34: 8 | C34: 2027 | O34: 1 | AM34: 8 | AN34: 2027 | AQ34: 0 | AR34: 0 | AS34: 0 | AT34: 0 | AU34: 0 | AV34: 0 | AW34: 0 | AX34: 1e-06 | BB34: Labour Only | BC34: 9 | BD34: 0 | BF34: 0
B35: 9 | C35: 2028 | O35: 1 | AM35: 9 | AN35: 2028 | AQ35: 0 | AR35: 0 | AS35: 0 | AT35: 0 | AU35: 0 | AV35: 0 | AW35: 0 | AX35: 1e-06 | BB35: User Defined | BC35: 11 | BD35: 0 | BF35: 0
B36: 10 | C36: 2029 | O36: 1 | AM36: 10 | AN36: 2029 | AQ36: 0 | AR36: 0 | AS36: 0 | AT36: 0 | AU36: 0 | AV36: 0 | AW36: 0 | AX36: 1e-06 | BD36: 0 | BF36: 0
B37: 11 | C37: 2030 | O37: 1 | AM37: 11 | AN37: =IF(AM37="","",AN36+1) -> 2030 | AO37: =IF(AM37="","",IF($AU$12>AN37,0,K37)) ->  | AQ37: 0 | AR37: 0 | AS37: =IF(AN37=$AU$12,SUM(AO37:AR37)-AP37+$AU$11,IF(AN37=$AU$16,SUM(AO37:AR37)-AP37+$AU$15,IF(AN37=$AU$14,SUM(AO37:AR37)-AP37+$AU$13,SUM(AO37:AR37)-AP37))) -> 0 | AT37: 0 | AU37: 0 | AV37: =AS37+SUM(AT37:AU37) -> 0 | AW37: =IF(AV37=0,0,IF(AV37=SUM(AO37:AR37)+SUM(AT37:AU37),AV37/(1+$AU$10)^(AN37-$AU$8+1),IF($AU$17="E",AV37/(1+$AU$10)^(AN37-$AU$8+1),(AV37-SUM(AO37:AR37)-SUM(AT37:AU37))/(1+$AU$10)^(AN37-$AU$8)+(SUM(AO37:AR37)+SUM(AT37:AU37))/(1+$AU$10)^(AN37-$AU$8+1)))) -> 0 | AX37: =IF(AN37="",0,IF(AW37=0,AX36,AX36+AW37)) -> 1e-06 | BC37: =IF(AU18 = "","",VLOOKUP(AU18,BB31:BC36,2,FALSE)) -> 3 | BD37: 0 | BF37: 0
B38: 12 | C38: 2031 | O38: 1 | AM38: 12 | AN38: 2031 | AQ38: 0 | AR38: 0 | AS38: 0 | AT38: 0 | AU38: 0 | AV38: 0 | AW38: 0 | AX38: 1e-06 | BB38: =MAX(AM26:AM78) -> 25 | BD38: 0 | BF38: 0
B39: 13 | C39: 2032 | O39: 1 | AM39: 13 | AN39: 2032 | AQ39: 0 | AR39: 0 | AS39: 0 | AT39: 0 | AU39: 0 | AV39: 0 | AW39: 0 | AX39: 1e-06 | BD39: 0 | BF39: 0
B40: 14 | C40: 2033 | O40: 1 | AM40: 14 | AN40: 2033 | AQ40: 0 | AR40: 0 | AS40: 0 | AT40: 0 | AU40: 0 | AV40: 0 | AW40: 0 | AX40: 1e-06 | BB40: =IF(MAX(BD26:BD78)=0,MIN(BD26:BD78),MAX(BD26:BD78)) -> 1e-06 | BD40: 0 | BF40: 0
B41: 15 | C41: 2034 | O41: 1 | AM41: 15 | AN41: 2034 | AQ41: 0 | AR41: 0 | AS41: 0 | AT41: 0 | AU41: 0 | AV41: 0 | AW41: 0 | AX41: 1e-06 | BD41: 0 | BF41: 0
B42: 16 | C42: 2035 | O42: 1 | AM42: 16 | AN42: 2035 | AQ42: 0 | AR42: 0 | AS42: 0 | AT42: 0 | AU42: 0 | AV42: 0 | AW42: 0 | AX42: 1e-06 | BB42: =MAX(BF26:BF78) -> 2044 | BD42: 0 | BF42: 0
B43: 17 | C43: 2036 | O43: 1 | AM43: 17 | AN43: 2036 | AQ43: 0 | AR43: 0 | AS43: 0 | AT43: 0 | AU43: 0 | AV43: 0 | AW43: 0 | AX43: 1e-06 | BD43: 0 | BF43: 0
B44: 18 | C44: 2037 | O44: 1 | AM44: 18 | AN44: 2037 | AQ44: 0 | AR44: 0 | AS44: 0 | AT44: 0 | AU44: 0 | AV44: 0 | AW44: 0 | AX44: 1e-06 | BD44: 0 | BF44: 0
B45: 19 | C45: 2038 | O45: 1 | AM45: 19 | AN45: 2038 | AQ45: 0 | AR45: 0 | AS45: 0 | AT45: 0 | AU45: 0 | AV45: 0 | AW45: 0 | AX45: 1e-06 | BD45: 0 | BF45: 0
B46: 20 | C46: 2039 | O46: 1 | AM46: 20 | AN46: 2039 | AQ46: 0 | AR46: 0 | AS46: 0 | AT46: 0 | AU46: 0 | AV46: 0 | AW46: 0 | AX46: 1e-06 | BD46: 0 | BF46: 0
B47: 21 | C47: 2040 | O47: 1 | AM47: 21 | AN47: 2040 | AQ47: 0 | AR47: 0 | AS47: 0 | AT47: 0 | AU47: 0 | AV47: 0 | AW47: 0 | AX47: 1e-06 | BD47: 0 | BF47: 0
B48: 22 | C48: 2041 | O48: 1 | AM48: 22 | AN48: 2041 | AQ48: 0 | AR48: 0 | AS48: 0 | AT48: 0 | AU48: 0 | AV48: 0 | AW48: 0 | AX48: 1e-06 | BD48: 0 | BF48: 0
B49: 23 | C49: 2042 | O49: 1 | AM49: 23 | AN49: 2042 | AQ49: 0 | AR49: 0 | AS49: 0 | AT49: 0 | AU49: 0 | AV49: 0 | AW49: 0 | AX49: 1e-06 | BD49: 0 | BF49: 0
B50: 24 | C50: 2043 | O50: 1 | AM50: 24 | AN50: 2043 | AQ50: 0 | AR50: 0 | AS50: 0 | AT50: 0 | AU50: 0 | AV50: 0 | AW50: 0 | AX50: 1e-06 | BD50: 0 | BF50: 0
B51: 25 | C51: 2044 | O51: 1 | AM51: 25 | AN51: 2044 | AQ51: 0 | AR51: 0 | AS51: 0 | AT51: 0 | AU51: 0 | AV51: 0 | AW51: 0 | AX51: 1e-06 | BD51: 1e-06 | BF51: 2044
B52: 26 | C52: 2045 | O52: 1 | AS52: 0 | AV52: 0 | AW52: 0 | AX52: 0 | BD52: 0 | BF52: 0
B53: 27 | C53: 2046 | O53: 1 | AS53: 0 | AV53: 0 | AW53: 0 | AX53: 0 | BD53: 0 | BF53: 0
B54: 28 | C54: 2047 | O54: 1 | AS54: 0 | AV54: 0 | AW54: 0 | AX54: 0 | BD54: 0 | BF54: 0
B55: 29 | C55: 2048 | O55: 1 | AS55: 0 | AV55: 0 | AW55: 0 | AX55: 0 | BD55: 0 | BF55: 0
B56: 30 | C56: 2049 | O56: 1 | AS56: 0 | AV56: 0 | AW56: 0 | AX56: 0 | BD56: 0 | BF56: 0
B57: 31 | C57: 2050 | O57: 1 | AS57: 0 | AV57: 0 | AW57: 0 | AX57: 0 | BD57: 0 | BF57: 0
B58: 32 | C58: 2051 | O58: 1 | AS58: 0 | AV58: 0 | AW58: 0 | AX58: 0 | BD58: 0 | BF58: 0
B59: 33 | C59: 2052 | O59: 1 | AS59: 0 | AV59: 0 | AW59: 0 | AX59: 0 | BD59: 0 | BF59: 0
B60: 34 | C60: 2053 | O60: 1 | AS60: 0 | AV60: 0 | AW60: 0 | AX60: 0 | BD60: 0 | BF60: 0
B61: 35 | C61: 2054 | O61: 1 | AS61: 0 | AV61: 0 | AW61: 0 | AX61: 0 | BD61: 0 | BF61: 0
B62: 36 | C62: 2055 | O62: 1 | AS62: 0 | AV62: 0 | AW62: 0 | AX62: 0 | BD62: 0 | BF62: 0
B63: 37 | C63: 2056 | O63: 1 | AS63: 0 | AV63: 0 | AW63: 0 | AX63: 0 | BD63: 0 | BF63: 0
B64: 38 | C64: 2057 | O64: 1 | AS64: 0 | AV64: 0 | AW64: 0 | AX64: 0 | BD64: 0 | BF64: 0
B65: 39 | C65: 2058 | O65: 1 | AS65: 0 | AV65: 0 | AW65: 0 | AX65: 0 | BD65: 0 | BF65: 0
B66: 40 | C66: 2059 | O66: 1 | AS66: 0 | AV66: 0 | AW66: 0 | AX66: 0 | BD66: =IF(AM66=$AU$9,AX66,0) -> 0 | BF66: =IF(AM66=$AU$9,AN66,0) -> 0
B67: =B66+1 -> 41 | C67: 2060 | K67: =IF(J67 = "", "",IF($AU$18 = " User Defined",(J67*O67),J67*(VLOOKUP(C67,Index,$BC$37,FALSE)))) ->  | O67: =(1+N67/100)*O66 -> 1 | AN67: =IF(AM67="","",AN66+1) ->  | AO67: =IF(AM67="","",IF($AU$12>AN67,0,K67)) ->  | AQ67: =IF(AM67="","",IF($AU$12>AN67,0,J176)) ->  | AR67: =IF(AM67="","",IF($AU$12>AN67,0,L279)) ->  | AS67: =IF(AN67=$AU$12,SUM(AO67:AR67)-AP67+$AU$11,IF(AN67=$AU$16,SUM(AO67:AR67)-AP67+$AU$15,IF(AN67=$AU$14,SUM(AO67:AR67)-AP67+$AU$13,SUM(AO67:AR67)-AP67))) -> 0 | AT67: =IF(AM67="","",IF($AU$12>AN67,0,-L380)) ->  | AU67: =IF(AM67="","",IF($AU$12>AN67,0,-L481)) ->  | AV67: =AS67+SUM(AT67:AU67) -> 0 | AW67: =IF(AV67=0,0,IF(AV67=SUM(AO67:AR67)+SUM(AT67:AU67),AV67/(1+$AU$10)^(AN67-$AU$8+1),IF($AU$17="E",AV67/(1+$AU$10)^(AN67-$AU$8+1),(AV67-SUM(AO67:AR67)-SUM(AT67:AU67))/(1+$AU$10)^(AN67-$AU$8)+(SUM(AO67:AR67)+SUM(AT67:AU67))/(1+$AU$10)^(AN67-$AU$8+1)))) -> 0 | AX67: =IF(AN67="",0,IF(AW67=0,AX66,AX66+AW67)) -> 0 | BD67: =IF(AM67=$AU$9,AX67,0) -> 0
B68: =B67+1 -> 42 | C68: 2061 | O68: 1 | AS68: 0 | AV68: 0 | AW68: 0 | AX68: 0 | BD68: 0
B69: =B68+1 -> 43 | C69: 2062 | O69: 1 | AS69: 0 | AV69: 0 | AW69: 0 | AX69: 0 | BD69: 0
B70: =B69+1 -> 44 | C70: 2063 | O70: 1 | AS70: 0 | AV70: 0 | AW70: 0 | AX70: 0 | BD70: 0
B71: =B70+1 -> 45 | C71: 2064 | O71: 1 | AS71: 0 | AV71: 0 | AW71: 0 | AX71: 0 | BD71: 0
B72: =B71+1 -> 46 | C72: 2065 | O72: 1 | AS72: 0 | AV72: 0 | AW72: 0 | AX72: 0 | BD72: 0
B73: =B72+1 -> 47 | C73: 2066 | O73: 1 | AS73: 0 | AV73: 0 | AW73: 0 | AX73: 0 | BD73: 0
B74: =B73+1 -> 48 | C74: 2067 | O74: 1 | AS74: 0 | AV74: 0 | AW74: 0 | AX74: 0 | BD74: 0
B75: =B74+1 -> 49 | C75: 2068 | O75: 1 | AS75: 0 | AV75: 0 | AW75: 0 | AX75: 0 | BD75: 0
B76: =B75+1 -> 50 | C76: 2069 | O76: 1 | AS76: 0 | AV76: 0 | AW76: 0 | AX76: 0 | BD76: 0
AM78: Assumptions & Notes:
AW79: 2017-01-16T13:57:49 | AX79: 2017-01-16T13:57:49
AV88: Date Revised
AV89: Date Printed
G119: Scratch Pad area for Annual Fuel costs
G120: This area is used to enter Fuel costs associated with the project. NOTE: Fuel Prices are to be entered in Column D in Main Table
G121: Market Analysis section of System Planning prepares various fuel price forecasts for numerous delivery points.
G122: Please reference the appropriate forecast and enter the values in Column D in Main Table.
G123: Columns 3 below picks up the fuel prices from the main table. Columns 4,5,6,7 & 8 can be used to do some calculations if preferred.
G124: Necessary calculations can be performed to determine each current year dollar value of the annual fuel costs.
G125: The respective annual costs are to be entered in column 9.
G126: NOTE: Annual Fuel costs (if applicable) may start in the in-service year .
B129: 1 | C129: 2 | D129: 3 | E129: 4 | F129: 5 | G129: 6 | H129: 7 | I129: 8 | J129: 9 | K129: 10
D131: Annual | E131: Working Area Below (if required) | J131: Annual
B132: Year | D132: Fuel price | J132: Fuel costs | K132: Comments / Explanations
D133: =AP24 -> (if applicable) | J133: (Current $$)
B135: 0 | C135: =$AU$7 -> 2019 | D135: =AP26 -> 0
B136: =B135+1 -> 1 | C136: =C135+1 -> 2020 | D136: 0
B137: =B136+1 -> 2 | C137: 2021 | D137: 0
B138: 3 | C138: 2022 | D138: =AP29 -> 0
B139: 4 | C139: 2023 | D139: 0
B140: 5 | C140: 2024 | D140: 0
B141: 6 | C141: 2025 | D141: 0
B142: 7 | C142: 2026 | D142: 0
B143: 8 | C143: 2027 | D143: 0
B144: 9 | C144: 2028 | D144: 0
B145: 10 | C145: 2029 | D145: 0
B146: 11 | C146: 2030 | D146: 0
B147: 12 | C147: 2031 | D147: 0
B148: 13 | C148: 2032 | D148: 0
B149: 14 | C149: 2033 | D149: 0
B150: 15 | C150: 2034 | D150: 0
B151: 16 | C151: 2035 | D151: 0
B152: 17 | C152: 2036 | D152: 0
B153: 18 | C153: 2037 | D153: 0
B154: 19 | C154: 2038 | D154: 0
B155: 20 | C155: 2039 | D155: 0
B156: 21 | C156: 2040 | D156: 0
B157: 22 | C157: 2041 | D157: 0
B158: 23 | C158: 2042 | D158: 0
B159: 24 | C159: 2043 | D159: 0
B160: 25 | C160: 2044 | D160: 0
B161: 26 | C161: 2045 | D161: 0
B162: 27 | C162: 2046 | D162: 0
B163: 28 | C163: 2047 | D163: 0
B164: 29 | C164: 2048 | D164: 0
B165: 30 | C165: 2049 | D165: 0
B166: 31 | C166: 2050 | D166: 0
B167: 32 | C167: 2051 | D167: 0
B168: 33 | C168: 2052 | D168: 0
B169: 34 | C169: 2053 | D169: 0
B170: 35 | C170: 2054 | D170: 0
B171: 36 | C171: 2055 | D171: 0
B172: 37 | C172: 2056 | D172: 0
B173: 38 | C173: 2057 | D173: 0
B174: 39 | C174: 2058 | D174: 0
B175: 40 | C175: 2059 | D175: 0
B176: =B175+1 -> 41 | C176: 2060 | D176: =AP67 -> 0
B177: =B176+1 -> 42 | C177: 2061 | D177: 0
B178: =B177+1 -> 43 | C178: 2062 | D178: 0
B179: =B178+1 -> 44 | C179: 2063 | D179: 0
B180: =B179+1 -> 45 | C180: 2064 | D180: 0
B181: =B180+1 -> 46 | C181: 2065 | D181: 0
B182: =B181+1 -> 47 | C182: 2066 | D182: 0
B183: =B182+1 -> 48 | C183: 2067 | D183: 0
B184: =B183+1 -> 49 | C184: 2068 | D184: 0
B185: =B184+1 -> 50 | C185: 2069 | D185: 0
G218: Scratch Pad area for Other costs
G219: This area is used to enter Other costs associated with the project.
G220: Use Column 3 below if GDP Price Deflator indices are required.
G221: Use Column 4 below if Combustion Turbine indices are required.
G222: Use Column 5 below if Combined Cycle Combustion Turbine indices are required.
G223: Use Column 6 below if Hydraulic indices are required.
G224: Use Column 7 below if Transmission indices are required.
G225: Use Column 8 below if Transformer indices are required.
G226: Use Column 9 below if Distribution indices are required.
G227: Use Column 10 below if No Escalation is required.
G228: Benefits must be entered as constant year dollars, that is, the values in this year's dollars.
G229: The entered values will be automatically escalated to current year dollar values in Column 11,
G230: that is, the costs in their respective years as shown in column 2.
B232: 1 | C232: 2 | D232: 3 | E232: 4 | F232: 5 | G232: 6 | H232: 7 | I232: 8 | J232: 9 | K232: 10 | L232: 11 | M232: 12
D234: For | E234: For | F234: For | G234: For | H234: For | I234: For | J234: For | K234: With | L234: Other
B235: Year | D235: GDP | E235: Combustion Turbine | F235: CCCT | G235: Hydraulic | H235: Transmission | I235: Transformer | J235: Distribution | K235: No | L235: Costs | M235: Comments / Explanations | R235: Extra work Area if needed
D236: Escalation | E236: Escalation | F236: Escalation | G236: Escalation | H236: Escalation | I236: Escalation | J236: Escalation | K236: Escalation | L236: (Current $$)
B238: 0 | C238: =$AU$7 -> 2019 | L238: =D238*(VLOOKUP(C238,Index,14,FALSE))+E238*(VLOOKUP(C238,Index,16,FALSE))+F238*(VLOOKUP(C238,Index,18,FALSE))+G238*(VLOOKUP(C238,Index,20,FALSE))+ H238*(VLOOKUP(C238,Index,22,FALSE)) + I238*(VLOOKUP(C238,Index,24,FALSE)) + J238*(VLOOKUP(C238,Index,26,FALSE)) + K238 -> 0
B239: =B238+1 -> 1 | C239: =C238+1 -> 2020 | L239: 0
B240: =B239+1 -> 2 | C240: 2021 | L240: =D240*(VLOOKUP(C240,Index,14,FALSE))+E240*(VLOOKUP(C240,Index,16,FALSE))+F240*(VLOOKUP(C240,Index,18,FALSE))+G240*(VLOOKUP(C240,Index,20,FALSE))+ H240*(VLOOKUP(C240,Index,22,FALSE)) + I240*(VLOOKUP(C240,Index,24,FALSE)) + J240*(VLOOKUP(C240,Index,26,FALSE)) + K240 -> 0
B241: 3 | C241: 2022 | L241: 0
B242: 4 | C242: 2023 | L242: 0
B243: 5 | C243: 2024 | L243: 0
B244: 6 | C244: 2025 | L244: 0
B245: 7 | C245: 2026 | L245: 0
B246: 8 | C246: 2027 | L246: 0
B247: 9 | C247: 2028 | L247: 0
B248: 10 | C248: 2029 | L248: 0
B249: 11 | C249: 2030 | L249: 0
B250: 12 | C250: 2031 | L250: 0
B251: 13 | C251: 2032 | L251: 0
B252: 14 | C252: 2033 | L252: 0
B253: 15 | C253: 2034 | L253: 0
B254: 16 | C254: 2035 | L254: 0
B255: 17 | C255: 2036 | L255: 0
B256: 18 | C256: 2037 | L256: 0
B257: 19 | C257: 2038 | L257: 0
B258: 20 | C258: 2039 | L258: 0
B259: 21 | C259: 2040 | L259: 0
B260: 22 | C260: 2041 | L260: 0
B261: 23 | C261: 2042 | L261: 0
B262: 24 | C262: 2043 | L262: 0
B263: 25 | C263: 2044 | L263: 0
B264: 26 | C264: 2045 | L264: 0
B265: 27 | C265: 2046 | L265: 0
B266: 28 | C266: 2047 | L266: 0
B267: 29 | C267: 2048 | L267: 0
B268: 30 | C268: 2049 | L268: 0
B269: 31 | C269: 2050 | L269: 0
B270: 32 | C270: 2051 | L270: 0
B271: 33 | C271: 2052 | L271: 0
B272: 34 | C272: 2053 | L272: 0
B273: 35 | C273: 2054 | L273: 0
B274: 36 | C274: 2055 | L274: 0
B275: 37 | C275: 2056 | L275: 0
B276: 38 | C276: 2057 | L276: 0
B277: 39 | C277: 2058 | L277: 0
B278: 40 | C278: 2059 | L278: 0
B279: =B278+1 -> 41 | C279: 2060 | L279: =D279*(VLOOKUP(C279,Index,14,FALSE))+E279*(VLOOKUP(C279,Index,16,FALSE))+F279*(VLOOKUP(C279,Index,18,FALSE))+G279*(VLOOKUP(C279,Index,20,FALSE))+ H279*(VLOOKUP(C279,Index,22,FALSE)) + I279*(VLOOKUP(C279,Index,24,FALSE)) + J279*(VLOOKUP(C279,Index,26,FALSE)) + K279 -> 0
B280: =B279+1 -> 42 | C280: 2061 | L280: 0
B281: =B280+1 -> 43 | C281: 2062 | L281: 0
... 143 more rows

Sheet Alt. 2
AM2: PROJECT COST / BENEFIT ANALYSIS TEMPLATE
AM3: ='Home Page'!G10 -> Labrador East - Network Addition Policy - 10 MW Addition
AM4: Accelerated
AP5: Note: Costs are shown as positive values; Benefits as negative values
AT7: Current Year | AU7: ='Home Page'!G6 -> 2019
AT8: Present Worth Year | AU8: ='Home Page'!G18 -> 2019
H9: Scratch Pad area for Annual O&M costs | AT9: Number of Years in Study | AU9: ='Home Page'!G14 -> 25
AT10: Discount Rate | AU10: ='Home Page'!G16 -> 0.065
H11: This area is used to enter O&M costs associated with the project. | AT11: Total In-service Project Cost
H12: Columns 3,4,5,6,7 & 8 can be used to do some calculations if preferred. | AT12: In-service Year | AU12: ='Home Page'!G12 -> 2019
H13: The determined O&M costs for each year must be entered into column 9 as constant year dollar values, | AT13: Other Project Cost after In-service (if applicable)
H14: that is, the values in this year's dollars. | AT14: Other Project Year (if applicable)
H15: The entered values will be automatically escalated to current year dollar values in column 10 | AT15: Replacement Cost (if applicable) | AU15: 0
H16: that is, the costs in their respective years as shown in column 2. | AT16: Replacement Year (if applicable)
H17: NOTE: Annual O&M costs are assumed to start in the in-service year. | AT17: Project cost in Ending (E) or Beginning (B) Year $$ | AU17: B
AT18: O&M costs - Escalation based on mixture of Materials & Labour | AU18: More Material Less Labour
B20: 1 | C20: 2 | D20: 3 | E20: 4 | F20: 5 | G20: 6 | H20: 7 | I20: 8 | J20: 9 | K20: 10 | L20: 11 | N20: 12 | O20: 13
AM21: A B | AO21: C | AP21: D | AQ21: E | AR21: F | AS21: G | AT21: H | AU21: I | AV21: J | AW21: K | AX21: L
D22: Working Area Below (if required) | J22: Annual | K22: Annual | N22: User Chosen | O22: Cumulative | AO22: Annual O&M | AP22: Annual Fuel | AQ22: Annual Fuel | AR22: Other | AS22: Total | AT22: Benefit 1 | AU22: Benefit 2 | AW22: P.W. | AX22: Cumulative
B23: Year | J23: O&M costs | K23: O&M costs | L23: Comments / Explanations | N23: Annual % | O23: Change | AM23: Year | AO23: Cost | AP23: Price | AQ23: Cost | AR23: Cost | AS23: Costs | AT23: (specify) | AU23: (specify) | AV23: NET | AW23: January | AX23: Present
J24: (Constant $$) | K24: (Current $$) | N24: Change | O24: Factor | AO24: $ | AP24: (if applicable) | AQ24: $ | AR24: $ | AS24: $ | AT24: $ | AU24: $ | AV24: $ | AW24: =$AU$8 -> 2019 | AX24: Worth
B26: 0 | C26: =$AU$7 -> 2019 | J26: 250000 | K26: =IF(J26 = "", "",IF($AU$18 = " User Defined",(J26*O26),J26*(VLOOKUP(C26,Index,$BC$37,FALSE)))) -> 250000 | L26: Assumed a $250,000/yr for temp. | O26: 1 | AM26: 0 | AN26: =AU7 -> 2019 | AO26: =IF(AM26="","",IF($AU$12>AN26,0,K26)) -> 250000 | AP26: 1.347 | AQ26: =IF(AM26="","",IF($AU$12>AN26,0,J135)) -> 0 | AR26: =IF(AM26="","",IF($AU$12>AN26,0,L238)) -> 0 | AS26: =IF(AN26=$AU$12,SUM(AO26:AR26)-AP26+$AU$11,SUM(AO26:AR26)-AP26) -> 250000 | AT26: =IF(AM26="","",IF($AU$12>AN26,0,-L339)) -> 0 | AU26: =IF(AM26="","",IF($AU$12>AN26,0,-L440)) -> 0 | AV26: =AS26+SUM(AT26:AU26) -> 250000 | AW26: =IF(AV26=0,0,IF(AV26=SUM(AO26:AR26)+SUM(AT26:AU26),AV26/(1+$AU$10)^(AN26-$AU$8+1),IF($AU$17="E",AV26/(1+$AU$10)^(AN26-$AU$8+1),(AV26-SUM(AO26:AR26)-SUM(AT26:AU26))/(1+$AU$10)^(AN26-$AU$8)+(SUM(AO26:AR26)+SUM(AT26:AU26))/(1+$AU$10)^(AN26-$AU$8+1)))) -> 234741.7018 | AX26: =AX25+AW26 -> 234741.7018
B27: =B26+1 -> 1 | C27: =C26+1 -> 2020 | J27: 250000 | K27: 256004.0226 | L27: generation (5 x 2 MW) | O27: =1+N27/100 -> 1 | AM27: =IF(AM26="","",IF($AU$9-AM26<=0,"",AM26+1)) -> 1 | AN27: =IF(AM27="","",AN26+1) -> 2020 | AO27: 256004.0226 | AP27: 1.495 | AQ27: 0 | AR27: 0 | AS27: =IF(AN27=$AU$12,SUM(AO27:AR27)-AP27+$AU$11,IF(AN27=$AU$16,SUM(AO27:AR27)-AP27+$AU$15,IF(AN27=$AU$14,SUM(AO27:AR27)-AP27+$AU$13,SUM(AO27:AR27)-AP27))) -> 256004.0226 | AT27: 0 | AU27: 0 | AV27: 256004.0226 | AW27: 225708.2373 | AX27: =IF(AN27="",0,IF(AW27=0,AX26,AX26+AW27)) -> 460449.9391 | BD27: =IF(AM27=$AU$9,AX27,0) -> 0 | BF27: =IF(AM27=$AU$9,AN27,0) -> 0
B28: 2 | C28: 2021 | J28: 250000 | K28: 261844.2453 | O28: =(1+N28/100)*O27 -> 1 | AM28: 2 | AN28: 2021 | AO28: 261844.2453 | AP28: 1.405 | AQ28: 7486.931011 | AR28: 0 | AS28: 269331.1763 | AT28: 0 | AU28: 0 | AV28: 269331.1763 | AW28: 222965.4941 | AX28: 683415.4332 | BB28: E | BD28: 0 | BF28: 0
B29: 3 | C29: 2022 | J29: 250000 | K29: 267745.3551 | O29: 1 | AM29: 3 | AN29: 2022 | AO29: 267745.3551 | AP29: 1.355 | AQ29: 7657.592404 | AR29: 0 | AS29: 275402.9475 | AT29: 0 | AU29: 0 | AV29: 275402.9475 | AW29: 214077.002 | AX29: 897492.4352 | BB29: B | BD29: 0 | BF29: 0
B30: 4 | C30: 2023 | J30: 250000 | K30: 273785.5646 | O30: 1 | AM30: 4 | AN30: 2023 | AO30: 273785.5646 | AP30: 1.345 | AQ30: 8264.496455 | AR30: 0 | AS30: 282050.0611 | AT30: 0 | AU30: 0 | AV30: 282050.0611 | AW30: 205862.8707 | AX30: 1103355.306 | BD30: 0 | BF30: 0
B31: 5 | C31: 2024 | J31: 250000 | K31: 279962.0384 | O31: 1 | AM31: 5 | AN31: 2024 | AO31: 279962.0384 | AP31: 1.365 | AQ31: 10003.77571 | AR31: 0 | AS31: 289965.8142 | AT31: 0 | AU31: 0 | AV31: 289965.8142 | AW31: 198723.4049 | AX31: 1302078.711 | BB31: More Material Less Labour | BC31: 3 | BD31: 0 | BF31: 0
B32: 6 | C32: 2025 | J32: 250000 | K32: 286277.8506 | O32: 1 | AM32: 6 | AN32: 2025 | AO32: 286277.8506 | AP32: 1.38 | AQ32: 11790.46121 | AR32: 0 | AS32: 298068.3118 | AT32: 0 | AU32: 0 | AV32: 298068.3118 | AW32: 191808.7534 | AX32: 1493887.464 | BB32: Same Material Same Labour | BC32: 5 | BD32: 0 | BF32: 0
B33: 7 | C33: 2026 | J33: 250000 | K33: 292736.1445 | O33: 1 | AM33: 7 | AN33: 2026 | AO33: 292736.1445 | AP33: 1.405 | AQ33: 13934.0153 | AR33: 0 | AS33: 306670.1598 | AT33: 0 | AU33: 0 | AV33: 306670.1598 | AW33: 185299.6197 | AX33: 1679187.084 | BB33: More Labour Less Material | BC33: 7 | BD33: 0 | BF33: 0
B34: 8 | C34: 2027 | J34: 250000 | K34: 299340.1345 | O34: 1 | AM34: 8 | AN34: 2027 | AO34: 299340.1345 | AP34: 1.435 | AQ34: 16362.41752 | AR34: 0 | AS34: 315702.552 | AT34: 0 | AU34: 0 | AV34: 315702.552 | AW34: 179114.809 | AX34: 1858301.893 | BB34: Labour Only | BC34: 9 | BD34: 0 | BF34: 0
B35: 9 | C35: 2028 | J35: 250000 | K35: 306093.1074 | O35: 1 | AM35: 9 | AN35: 2028 | AO35: 306093.1074 | AP35: 1.455 | AQ35: 18917.0065 | AR35: 0 | AS35: 325010.1139 | AT35: 0 | AU35: 0 | AV35: 325010.1139 | AW35: 173141.2991 | AX35: 2031443.192 | BB35: User Defined | BC35: 11 | BD35: 0 | BF35: 0
B36: 10 | C36: 2029 | J36: 250000 | K36: 312998.4242 | O36: 1 | AM36: 10 | AN36: 2029 | AO36: 312998.4242 | AP36: 1.48 | AQ36: 22243.24211 | AR36: 0 | AS36: 335241.6663 | AT36: 0 | AU36: 0 | AV36: 335241.6663 | AW36: 167691.9367 | AX36: 2199135.129 | BD36: 0 | BF36: 0
B37: 11 | C37: 2030 | J37: 250000 | K37: 320059.5217 | O37: 1 | AM37: 11 | AN37: =IF(AM37="","",AN36+1) -> 2030 | AO37: =IF(AM37="","",IF($AU$12>AN37,0,K37)) -> 320059.5217 | AP37: 1.51 | AQ37: 25435.22353 | AR37: 0 | AS37: =IF(AN37=$AU$12,SUM(AO37:AR37)-AP37+$AU$11,IF(AN37=$AU$16,SUM(AO37:AR37)-AP37+$AU$15,IF(AN37=$AU$14,SUM(AO37:AR37)-AP37+$AU$13,SUM(AO37:AR37)-AP37))) -> 345494.7452 | AT37: 0 | AU37: 0 | AV37: =AS37+SUM(AT37:AU37) -> 345494.7452 | AW37: =IF(AV37=0,0,IF(AV37=SUM(AO37:AR37)+SUM(AT37:AU37),AV37/(1+$AU$10)^(AN37-$AU$8+1),IF($AU$17="E",AV37/(1+$AU$10)^(AN37-$AU$8+1),(AV37-SUM(AO37:AR37)-SUM(AT37:AU37))/(1+$AU$10)^(AN37-$AU$8)+(SUM(AO37:AR37)+SUM(AT37:AU37))/(1+$AU$10)^(AN37-$AU$8+1)))) -> 162272.912 | AX37: =IF(AN37="",0,IF(AW37=0,AX36,AX36+AW37)) -> 2361408.041 | BC37: =IF(AU18 = "","",VLOOKUP(AU18,BB31:BC36,2,FALSE)) -> 3 | BD37: 0 | BF37: 0
B38: 12 | C38: 2031 | J38: 250000 | K38: 327279.9142 | O38: 1 | AM38: 12 | AN38: 2031 | AO38: 327279.9142 | AP38: 1.535 | AQ38: 28699.20635 | AR38: 0 | AS38: 355979.1206 | AT38: 0 | AU38: 0 | AV38: 355979.1206 | AW38: 156992.7161 | AX38: 2518400.757 | BB38: =MAX(AM26:AM78) -> 25 | BD38: 0 | BF38: 0
B39: 13 | C39: 2032 | J39: 250000 | K39: 334663.1954 | O39: 1 | AM39: 13 | AN39: 2032 | AO39: 334663.1954 | AP39: 1.565 | AQ39: 32158.53372 | AR39: 0 | AS39: 366821.7292 | AT39: 0 | AU39: 0 | AV39: 366821.7292 | AW39: 151900.9271 | AX39: 2670301.684 | BD39: 0 | BF39: 0
B40: 14 | C40: 2033 | J40: 250000 | K40: 342213.04 | O40: 1 | AM40: 14 | AN40: 2033 | AO40: 342213.04 | AP40: 1.59 | AQ40: 36267.73678 | AR40: 0 | AS40: 378480.7768 | AT40: 0 | AU40: 0 | AV40: 378480.7768 | AW40: 147163.3248 | AX40: 2817465.009 | BB40: =IF(MAX(BD26:BD78)=0,MIN(BD26:BD78),MAX(BD26:BD78)) -> 4418162.131 | BD40: 0 | BF40: 0
B41: 15 | C41: 2034 | J41: 250000 | K41: 349933.2055 | O41: 1 | AM41: 15 | AN41: 2034 | AO41: 349933.2055 | AP41: 1.62 | AQ41: 40015.20038 | AR41: 0 | AS41: 389948.4059 | AT41: 0 | AU41: 0 | AV41: 389948.4059 | AW41: 142368.3028 | AX41: 2959833.311 | BD41: 0 | BF41: 0
B42: 16 | C42: 2035 | J42: 250000 | K42: 357827.5344 | O42: 1 | AM42: 16 | AN42: 2035 | AO42: 357827.5344 | AP42: 1.65 | AQ42: 43876.1146 | AR42: 0 | AS42: 401703.649 | AT42: 0 | AU42: 0 | AV42: 401703.649 | AW42: 137709.0013 | AX42: 3097542.313 | BB42: =MAX(BF26:BF78) -> 2044 | BD42: 0 | BF42: 0
B43: 17 | C43: 2036 | J43: 250000 | K43: 365899.9555 | O43: 1 | AM43: 17 | AN43: 2036 | AO43: 365899.9555 | AP43: 1.68 | AQ43: 47850.47944 | AR43: 0 | AS43: 413750.435 | AT43: 0 | AU43: 0 | AV43: 413750.435 | AW43: 133181.9621 | AX43: 3230724.275 | BD43: 0 | BF43: 0
B44: 18 | C44: 2037 | J44: 250000 | K44: 374154.4868 | O44: 1 | AM44: 18 | AN44: 2037 | AO44: 374154.4868 | AP44: 1.705 | AQ44: 52447.88016 | AR44: 0 | AS44: 426602.3669 | AT44: 0 | AU44: 0 | AV44: 426602.3669 | AW44: 128937.9022 | AX44: 3359662.177 | BD44: 0 | BF44: 0
B45: 19 | C45: 2038 | J45: 250000 | K45: 382595.2363 | O45: 1 | AM45: 19 | AN45: 2038 | AO45: 382595.2363 | AP45: 1.735 | AQ45: 56717.02918 | AR45: 0 | AS45: 439312.2655 | AT45: 0 | AU45: 0 | AV45: 439312.2655 | AW45: 124675.4837 | AX45: 3484337.661 | BD45: 0 | BF45: 0
B46: 20 | C46: 2039 | J46: 250000 | K46: 391226.4052 | O46: 1 | AM46: 20 | AN46: 2039 | AO46: 391226.4052 | AP46: 1.765 | AQ46: 61146.6286 | AR46: 0 | AS46: 452373.0338 | AT46: 0 | AU46: 0 | AV46: 452373.0338 | AW46: 120546.5638 | AX46: 3604884.224 | BD46: 0 | BF46: 0
B47: 21 | C47: 2040 | J47: 250000 | K47: 400052.2893 | O47: 1 | AM47: 21 | AN47: 2040 | AO47: 400052.2893 | AP47: 1.8 | AQ47: 66627.44219 | AR47: 0 | AS47: 466679.7314 | AT47: 0 | AU47: 0 | AV47: 466679.7314 | AW47: 116768.9727 | AX47: 3721653.197 | BD47: 0 | BF47: 0
B48: 22 | C48: 2041 | J48: 250000 | K48: 409077.2811 | O48: 1 | AM48: 22 | AN48: 2041 | AO48: 409077.2811 | AP48: 1.835 | AQ48: 71611.32396 | AR48: 0 | AS48: 480688.605 | AT48: 0 | AU48: 0 | AV48: 480688.605 | AW48: 112933.4877 | AX48: 3834586.685 | BD48: 0 | BF48: 0
B49: 23 | C49: 2042 | J49: 250000 | K49: 418305.8725 | O49: 1 | AM49: 23 | AN49: 2042 | AO49: 418305.8725 | AP49: 1.87 | AQ49: 76841.54638 | AR49: 7863003.595 | AS49: 8358151.014 | AT49: 0 | AU49: 0 | AV49: 8358151.014 | AW49: 1843824.667 | AX49: 5678411.352 | BD49: 0 | BF49: 0
B50: 24 | C50: 2043 | J50: 250000 | K50: 427742.6566 | O50: 1 | AM50: 24 | AN50: 2043 | AO50: 427742.6566 | AP50: 1.91 | AQ50: 82453.54232 | AR50: 0 | AS50: 510196.1989 | AT50: 0 | AU50: 0 | AV50: 510196.1989 | AW50: 105681.0011 | AX50: 5784092.353 | BD50: 0 | BF50: 0
B51: 25 | C51: 2044 | J51: 250000 | K51: 437392.3301 | O51: 1 | AM51: 25 | AN51: 2044 | AO51: 437392.3301 | AP51: 1.945 | AQ51: 88161.62691 | AR51: 0 | AS51: 525553.957 | AT51: -7548483.451 | AU51: 0 | AV51: -7022929.494 | AW51: -1365930.222 | AX51: 4418162.131 | BD51: 4418162.131 | BF51: 2044
B52: 26 | C52: 2045 | O52: 1 | AS52: 0 | AV52: 0 | AW52: 0 | AX52: 0 | BD52: 0 | BF52: 0
B53: 27 | C53: 2046 | O53: 1 | AS53: 0 | AV53: 0 | AW53: 0 | AX53: 0 | BD53: 0 | BF53: 0
B54: 28 | C54: 2047 | O54: 1 | AS54: 0 | AV54: 0 | AW54: 0 | AX54: 0 | BD54: 0 | BF54: 0
B55: 29 | C55: 2048 | O55: 1 | AS55: 0 | AV55: 0 | AW55: 0 | AX55: 0 | BD55: 0 | BF55: 0
B56: 30 | C56: 2049 | O56: 1 | AS56: 0 | AV56: 0 | AW56: 0 | AX56: 0 | BD56: 0 | BF56: 0
B57: 31 | C57: 2050 | O57: 1 | AS57: 0 | AV57: 0 | AW57: 0 | AX57: 0 | BD57: 0 | BF57: 0
B58: 32 | C58: 2051 | O58: 1 | AS58: 0 | AV58: 0 | AW58: 0 | AX58: 0 | BD58: 0 | BF58: 0
B59: 33 | C59: 2052 | O59: 1 | AS59: 0 | AV59: 0 | AW59: 0 | AX59: 0 | BD59: 0 | BF59: 0
B60: 34 | C60: 2053 | O60: 1 | AS60: 0 | AV60: 0 | AW60: 0 | AX60: 0 | BD60: 0 | BF60: 0
B61: 35 | C61: 2054 | O61: 1 | AS61: 0 | AV61: 0 | AW61: 0 | AX61: 0 | BD61: 0 | BF61: 0
B62: 36 | C62: 2055 | O62: 1 | AS62: 0 | AV62: 0 | AW62: 0 | AX62: 0 | BD62: 0 | BF62: 0
B63: 37 | C63: 2056 | O63: 1 | AS63: 0 | AV63: 0 | AW63: 0 | AX63: 0 | BD63: 0 | BF63: 0
B64: 38 | C64: 2057 | O64: 1 | AS64: 0 | AV64: 0 | AW64: 0 | AX64: 0 | BD64: 0 | BF64: 0
B65: 39 | C65: 2058 | O65: 1 | AS65: 0 | AV65: 0 | AW65: 0 | AX65: 0 | BD65: 0 | BF65: 0
B66: 40 | C66: 2059 | O66: 1 | AS66: 0 | AV66: 0 | AW66: 0 | AX66: 0 | BD66: 0 | BF66: 0
B67: 41 | C67: 2060 | K67: =IF(J67 = "", "",IF($AU$18 = " User Defined",(J67*O67),J67*(VLOOKUP(C67,Index,$BC$37,FALSE)))) ->  | O67: =(1+N67/100)*O66 -> 1 | AN67: =IF(AM67="","",AN66+1) ->  | AO67: =IF(AM67="","",IF($AU$12>AN67,0,K67)) ->  | AQ67: =IF(AM67="","",IF($AU$12>AN67,0,J176)) ->  | AR67: =IF(AM67="","",IF($AU$12>AN67,0,L279)) ->  | AS67: =IF(AN67=$AU$12,SUM(AO67:AR67)-AP67+$AU$11,IF(AN67=$AU$16,SUM(AO67:AR67)-AP67+$AU$15,IF(AN67=$AU$14,SUM(AO67:AR67)-AP67+$AU$13,SUM(AO67:AR67)-AP67))) -> 0 | AT67: =IF(AM67="","",IF($AU$12>AN67,0,-L380)) ->  | AU67: =IF(AM67="","",IF($AU$12>AN67,0,-L481)) ->  | AV67: =AS67+SUM(AT67:AU67) -> 0 | AW67: =IF(AV67=0,0,IF(AV67=SUM(AO67:AR67)+SUM(AT67:AU67),AV67/(1+$AU$10)^(AN67-$AU$8+1),IF($AU$17="E",AV67/(1+$AU$10)^(AN67-$AU$8+1),(AV67-SUM(AO67:AR67)-SUM(AT67:AU67))/(1+$AU$10)^(AN67-$AU$8)+(SUM(AO67:AR67)+SUM(AT67:AU67))/(1+$AU$10)^(AN67-$AU$8+1)))) -> 0 | AX67: =IF(AN67="",0,IF(AW67=0,AX66,AX66+AW67)) -> 0 | BD67: 0
B68: 42 | C68: 2061 | O68: 1 | AS68: 0 | AV68: 0 | AW68: 0 | AX68: 0 | BD68: 0
B69: 43 | C69: 2062 | O69: 1 | AS69: 0 | AV69: 0 | AW69: 0 | AX69: 0 | BD69: 0
B70: 44 | C70: 2063 | O70: 1 | AS70: 0 | AV70: 0 | AW70: 0 | AX70: 0 | BD70: 0
B71: 45 | C71: 2064 | O71: 1 | AS71: 0 | AV71: 0 | AW71: 0 | AX71: 0 | BD71: 0
B72: 46 | C72: 2065 | O72: 1 | AS72: 0 | AV72: 0 | AW72: 0 | AX72: 0 | BD72: 0
B73: 47 | C73: 2066 | O73: 1 | AS73: 0 | AV73: 0 | AW73: 0 | AX73: 0 | BD73: 0
B74: 48 | C74: 2067 | O74: 1 | AS74: 0 | AV74: 0 | AW74: 0 | AX74: 0 | BD74: 0
B75: 49 | C75: 2068 | O75: 1 | AS75: 0 | AV75: 0 | AW75: 0 | AX75: 0 | BD75: 0
B76: 50 | C76: 2069 | O76: 1 | AS76: 0 | AV76: 0 | AW76: 0 | AX76: 0 | BD76: 0
AM78: Assumptions & Notes:
AW79: 2017-01-16T14:04:40 | AX79: 2017-01-16T14:04:40
AV88: Date Revised
AV89: Date Printed | AW89: 2014-03-07T15:35:47 | AX89: 41705.64985
G119: Scratch Pad area for Annual Fuel costs
G120: This area is used to enter Fuel costs associated with the project. NOTE: Fuel Prices are to be entered in Column D in Main Table
G121: Market Analysis section of System Planning prepares various fuel price forecasts for numerous delivery points.
G122: Please reference the appropriate forecast and enter the values in Column D in Main Table.
G123: Columns 3 below picks up the fuel prices from the main table. Columns 4,5,6,7 & 8 can be used to do some calculations if preferred.
G124: Necessary calculations can be performed to determine each current year dollar value of the annual fuel costs.
G125: The respective annual costs are to be entered in column 9.
G126: NOTE: Annual Fuel costs (if applicable) may start in the in-service year .
B129: 1 | C129: 2 | D129: 3 | E129: 4 | F129: 5 | G129: 6 | H129: 7 | I129: 8 | J129: 9 | K129: 10
D131: Annual | E131: Working Area Below (if required) | J131: Annual
B132: Year | D132: Fuel price | J132: Fuel costs | K132: Comments / Explanations
D133: =AP24 -> (if applicable) | E133: Energy (MWh) | F133: Energy (kWh) | G133: Fuel Consumed (L) | J133: (Current $$)
B135: 0 | C135: =$AU$7 -> 2019 | D135: =AP26 -> 1.347 | E135: 0 | F135: =E135*1000 -> 0 | G135: =F13:F135/3.25 -> 0 | J135: =D135*G135 -> 0 | L135: Every year there is a ~3 day outage during the summer
B136: =B135+1 -> 1 | C136: =C135+1 -> 2020 | D136: 1.495 | E136: 0 | F136: =E136*1000 -> 0 | G136: =F14:F136/3.25 -> 0 | J136: =D136*G136 -> 0 | L136: for maintenance to L1302 (from MFA TS2 to HVY).
B137: 2 | C137: 2021 | D137: 1.405 | E137: 17.31852369 | F137: 17318.52369 | G137: 5328.77652 | J137: 7486.931011 | L137: Historically the HVY-GT was used to supply the summer
B138: 3 | C138: 2022 | D138: 1.355 | E138: 18.36691905 | F138: 18366.91905 | G138: 5651.359708 | J138: 7657.592404 | L138: demand. However, the addition of 10 MW would
B139: 4 | C139: 2023 | D139: 1.345 | E139: 19.96997285 | F139: 19969.97285 | G139: 6144.607029 | J139: 8264.496455 | L139: increase the minimum system demand above 25MW,
B140: 5 | C140: 2024 | D140: 1.365 | E140: 23.8185136 | F140: 23818.5136 | G140: 7328.773414 | J140: 10003.77571 | L140: which is more than the capacity of the HVY-GT.
B141: 6 | C141: 2025 | D141: 1.38 | E141: 27.76739053 | F141: 27767.39053 | G141: 8543.812471 | J141: 11790.46121
B142: 7 | C142: 2026 | D142: 1.405 | E142: 32.23170799 | F142: 32231.70799 | G142: 9917.448612 | J142: 13934.0153
B143: 8 | C143: 2027 | D143: 1.435 | E143: 37.05774002 | F143: 37057.74002 | G143: 11402.38154 | J143: 16362.41752
B144: 9 | C144: 2028 | D144: 1.455 | E144: 42.25448187 | F144: 42254.48187 | G144: 13001.37904 | J144: 18917.0065
B145: 10 | C145: 2029 | D145: 1.48 | E145: 48.84495735 | F145: 48844.95735 | G145: 15029.21764 | J145: 22243.24211
B146: 11 | C146: 2030 | D146: 1.51 | E146: 54.74468641 | F146: 54744.68641 | G146: 16844.5189 | J146: 25435.22353
B147: 12 | C147: 2031 | D147: 1.535 | E147: 60.76379196 | F147: 60763.79196 | G147: 18696.55137 | J147: 28699.20635
B148: 13 | C148: 2032 | D148: 1.565 | E148: 66.7828975 | F148: 66782.8975 | G148: 20548.58385 | J148: 32158.53372
B149: 14 | C149: 2033 | D149: 1.59 | E149: 74.13216638 | F149: 74132.16638 | G149: 22809.89735 | J149: 36267.73678
B150: 15 | C150: 2034 | D150: 1.62 | E150: 80.27740818 | F150: 80277.40818 | G150: 24700.74098 | J150: 40015.20038
B151: 16 | C151: 2035 | D151: 1.65 | E151: 86.42264998 | F151: 86422.64998 | G151: 26591.58461 | J151: 43876.1146
B152: 17 | C152: 2036 | D152: 1.68 | E152: 92.56789178 | F152: 92567.89178 | G152: 28482.42824 | J152: 47850.47944
B153: 18 | C153: 2037 | D153: 1.705 | E153: 99.97396511 | F153: 99973.96511 | G153: 30761.22003 | J153: 52447.88016
B154: 19 | C154: 2038 | D154: 1.735 | E154: 106.2422737 | F154: 106242.2737 | G154: 32689.93036 | J154: 56717.02918
B155: 20 | C155: 2039 | D155: 1.765 | E155: 112.5929422 | F155: 112592.9422 | G155: 34643.98221 | J155: 61146.6286
B156: 21 | C156: 2040 | D156: 1.8 | E156: 120.2995484 | F156: 120299.5484 | G156: 37015.24566 | J156: 66627.44219
B157: 22 | C157: 2041 | D157: 1.835 | E157: 126.8320452 | F157: 126832.0452 | G157: 39025.24466 | J157: 71611.32396
B158: 23 | C158: 2042 | D158: 1.87 | E158: 133.5481421 | F158: 133548.1421 | G158: 41091.73603 | J158: 76841.54638
B159: 24 | C159: 2043 | D159: 1.91 | E159: 140.3005301 | F159: 140300.5301 | G159: 43169.39389 | J159: 82453.54232
B160: 25 | C160: 2044 | D160: 1.945 | E160: 147.3137725 | F160: 147313.7725 | G160: 45327.31461 | J160: 88161.62691
B161: 26 | C161: 2045 | D161: 0
B162: 27 | C162: 2046 | D162: 0
B163: 28 | C163: 2047 | D163: 0
B164: 29 | C164: 2048 | D164: 0
B165: 30 | C165: 2049 | D165: 0
B166: 31 | C166: 2050 | D166: 0
B167: 32 | C167: 2051 | D167: 0
B168: 33 | C168: 2052 | D168: 0
B169: 34 | C169: 2053 | D169: 0
B170: 35 | C170: 2054 | D170: 0
B171: 36 | C171: 2055 | D171: 0
B172: 37 | C172: 2056 | D172: 0
B173: 38 | C173: 2057 | D173: 0
B174: 39 | C174: 2058 | D174: 0
B175: 40 | C175: 2059 | D175: 0
B176: 41 | C176: 2060 | D176: =AP67 -> 0
B177: 42 | C177: 2061 | D177: 0
B178: 43 | C178: 2062 | D178: 0
B179: 44 | C179: 2063 | D179: 0
B180: 45 | C180: 2064 | D180: 0
B181: 46 | C181: 2065 | D181: 0
B182: 47 | C182: 2066 | D182: 0
B183: 48 | C183: 2067 | D183: 0
B184: 49 | C184: 2068 | D184: 0
B185: 50 | C185: 2069 | D185: 0
G218: Scratch Pad area for Other costs
G219: This area is used to enter Other costs associated with the project.
G220: Use Column 3 below if GDP Price Deflator indices are required.
G221: Use Column 4 below if Combustion Turbine indices are required.
G222: Use Column 5 below if Combined Cycle Combustion Turbine indices are required.
G223: Use Column 6 below if Hydraulic indices are required.
G224: Use Column 7 below if Transmission indices are required.
G225: Use Column 8 below if Transformer indices are required.
G226: Use Column 9 below if Distribution indices are required.
G227: Use Column 10 below if No Escalation is required.
G228: Benefits must be entered as constant year dollars, that is, the values in this year's dollars.
G229: The entered values will be automatically escalated to current year dollar values in Column 11,
G230: that is, the costs in their respective years as shown in column 2.
B232: 1 | C232: 2 | D232: 3 | E232: 4 | F232: 5 | G232: 6 | H232: 7 | I232: 8 | J232: 9 | K232: 10 | L232: 11 | M232: 12
D234: For | E234: For | F234: For | G234: For | H234: For | I234: For | J234: For | K234: With | L234: Other
B235: Year | D235: GDP | E235: Combustion Turbine | F235: CCCT | G235: Hydraulic | H235: Transmission | I235: Transformer | J235: Distribution | K235: No | L235: Costs | M235: Comments / Explanations | R235: Extra work Area if needed
D236: Escalation | E236: Escalation | F236: Escalation | G236: Escalation | H236: Escalation | I236: Escalation | J236: Escalation | K236: Escalation | L236: (Current $$)
B238: 0 | C238: =$AU$7 -> 2019 | L238: =D238*(VLOOKUP(C238,Index,14,FALSE))+E238*(VLOOKUP(C238,Index,16,FALSE))+F238*(VLOOKUP(C238,Index,18,FALSE))+G238*(VLOOKUP(C238,Index,20,FALSE))+ H238*(VLOOKUP(C238,Index,22,FALSE)) + I238*(VLOOKUP(C238,Index,24,FALSE)) + J238*(VLOOKUP(C238,Index,26,FALSE)) + K238 -> 0
B239: =B238+1 -> 1 | C239: =C238+1 -> 2020 | L239: 0
B240: 2 | C240: 2021 | L240: 0
B241: 3 | C241: 2022 | L241: 0
B242: 4 | C242: 2023 | L242: 0
B243: 5 | C243: 2024 | L243: 0
B244: 6 | C244: 2025 | L244: 0
B245: 7 | C245: 2026 | L245: 0
B246: 8 | C246: 2027 | L246: 0
B247: 9 | C247: 2028 | L247: 0
B248: 10 | C248: 2029 | L248: 0
B249: 11 | C249: 2030 | L249: 0
B250: 12 | C250: 2031 | L250: 0
B251: 13 | C251: 2032 | L251: 0
B252: 14 | C252: 2033 | L252: 0
B253: 15 | C253: 2034 | L253: 0
B254: 16 | C254: 2035 | L254: 0
B255: 17 | C255: 2036 | L255: 0
B256: 18 | C256: 2037 | L256: 0
B257: 19 | C257: 2038 | L257: 0
B258: 20 | C258: 2039 | L258: 0
B259: 21 | C259: 2040 | L259: 0
B260: 22 | C260: 2041 | L260: 0
B261: 23 | C261: 2042 | I261: 5000000 | L261: 7863003.595 | M261: Capacity Upgrade (Phase 2) was advanced from
B262: 24 | C262: 2043 | L262: 0 | M262: not being in the baseline plan to Year 2042
B263: 25 | C263: 2044 | L263: 0
B264: 26 | C264: 2045 | L264: 0
B265: 27 | C265: 2046 | L265: 0
B266: 28 | C266: 2047 | L266: 0
B267: 29 | C267: 2048 | L267: 0
B268: 30 | C268: 2049 | L268: 0
B269: 31 | C269: 2050 | L269: 0
B270: 32 | C270: 2051 | L270: 0
B271: 33 | C271: 2052 | L271: 0
B272: 34 | C272: 2053 | L272: 0
B273: 35 | C273: 2054 | L273: 0
B274: 36 | C274: 2055 | L274: 0
B275: 37 | C275: 2056 | L275: 0
B276: 38 | C276: 2057 | L276: 0
B277: 39 | C277: 2058 | L277: 0
B278: 40 | C278: 2059 | L278: 0
B279: 41 | C279: 2060 | L279: =D279*(VLOOKUP(C279,Index,14,FALSE))+E279*(VLOOKUP(C279,Index,16,FALSE))+F279*(VLOOKUP(C279,Index,18,FALSE))+G279*(VLOOKUP(C279,Index,20,FALSE))+ H279*(VLOOKUP(C279,Index,22,FALSE)) + I279*(VLOOKUP(C279,Index,24,FALSE)) + J279*(VLOOKUP(C279,Index,26,FALSE)) + K279 -> 0
B280: 42 | C280: 2061 | L280: 0
B281: 43 | C281: 2062 | L281: 0
... 143 more rows

Sheet Alt. 3
AM2: PROJECT COST / BENEFIT ANALYSIS TEMPLATE
AM3: ='Home Page'!G10 -> Labrador East - Network Addition Policy - 10 MW Addition
AM4: [Enter Alternative Title]
AP5: Note: Costs are shown as positive values; Benefits as negative values
AT7: Current Year | AU7: ='Home Page'!G6 -> 2019
AT8: Present Worth Year | AU8: ='Home Page'!G18 -> 2019
H9: Scratch Pad area for Annual O&M costs | AT9: Number of Years in Study | AU9: ='Home Page'!G14 -> 25
AT10: Discount Rate | AU10: ='Home Page'!G16 -> 0.065
H11: This area is used to enter O&M costs associated with the project. | AT11: Total In-service Project Cost
H12: Columns 3,4,5,6,7 & 8 can be used to do some calculations if preferred. | AT12: In-service Year | AU12: ='Home Page'!G12 -> 2019
H13: The determined O&M costs for each year must be entered into column 9 as constant year dollar values, | AT13: Other Project Cost after In-service (if applicable)
H14: that is, the values in this year's dollars. | AT14: Other Project Year (if applicable)
H15: The entered values will be automatically escalated to current year dollar values in column 10 | AT15: Replacement Cost (if applicable) | AU15: 0
H16: that is, the costs in their respective years as shown in column 2. | AT16: Replacement Year (if applicable)
H17: NOTE: Annual O&M costs are assumed to start in the in-service year. | AT17: Project cost in Ending (E) or Beginning (B) Year $$ | AU17: B
AT18: O&M costs - Escalation based on mixture of Materials & Labour | AU18: More Material Less Labour
B20: 1 | C20: 2 | D20: 3 | E20: 4 | F20: 5 | G20: 6 | H20: 7 | I20: 8 | J20: 9 | K20: 10 | L20: 11 | N20: 12 | O20: 13
AM21: A B | AO21: C | AP21: D | AQ21: E | AR21: F | AS21: G | AT21: H | AU21: I | AV21: J | AW21: K | AX21: L
D22: Working Area Below (if required) | J22: Annual | K22: Annual | N22: User Chosen | O22: Cumulative | AO22: Annual O&M | AP22: Annual Fuel | AQ22: Annual Fuel | AR22: Other | AS22: Total | AT22: Benefit 1 | AU22: Benefit 2 | AW22: P.W. | AX22: Cumulative
B23: Year | J23: O&M costs | K23: O&M costs | L23: Comments / Explanations | N23: Annual % | O23: Change | AM23: Year | AO23: Cost | AP23: Price | AQ23: Cost | AR23: Cost | AS23: Costs | AT23: (specify) | AU23: (specify) | AV23: NET | AW23: January | AX23: Present
J24: (Constant $$) | K24: (Current $$) | N24: Change | O24: Factor | AO24: $ | AP24: (if applicable) | AQ24: $ | AR24: $ | AS24: $ | AT24: $ | AU24: $ | AV24: $ | AW24: =$AU$8 -> 2019 | AX24: Worth
B26: 0 | C26: =$AU$7 -> 2019 | K26: =IF(J26 = "", "",IF($AU$18 = " User Defined",(J26*O26),J26*(VLOOKUP(C26,Index,$BC$37,FALSE)))) ->  | O26: 1 | AM26: 0 | AN26: =AU7 -> 2019 | AO26: =IF(AM26="","",IF($AU$12>AN26,0,K26)) ->  | AQ26: =IF(AM26="","",IF($AU$12>AN26,0,J135)) -> 0 | AR26: =IF(AM26="","",IF($AU$12>AN26,0,L238)) -> 0 | AS26: =IF(AN26=$AU$12,SUM(AO26:AR26)-AP26+$AU$11,SUM(AO26:AR26)-AP26) -> 0 | AT26: =IF(AM26="","",IF($AU$12>AN26,0,-L339)) -> 0 | AU26: =IF(AM26="","",IF($AU$12>AN26,0,-L440)) -> 0 | AV26: =AS26+SUM(AT26:AU26) -> 0 | AW26: =IF(AV26=0,0,IF(AV26=SUM(AO26:AR26)+SUM(AT26:AU26),AV26/(1+$AU$10)^(AN26-$AU$8+1),IF($AU$17="E",AV26/(1+$AU$10)^(AN26-$AU$8+1),(AV26-SUM(AO26:AR26)-SUM(AT26:AU26))/(1+$AU$10)^(AN26-$AU$8)+(SUM(AO26:AR26)+SUM(AT26:AU26))/(1+$AU$10)^(AN26-$AU$8+1)))) -> 0 | AX26: =AX25+AW26 -> 0
B27: =B26+1 -> 1 | C27: =C26+1 -> 2020 | O27: =1+N27/100 -> 1 | AM27: =IF(AM26="","",IF($AU$9-AM26<=0,"",AM26+1)) -> 1 | AN27: =IF(AM27="","",AN26+1) -> 2020 | AQ27: 0 | AR27: 0 | AS27: =IF(AN27=$AU$12,SUM(AO27:AR27)-AP27+$AU$11,IF(AN27=$AU$16,SUM(AO27:AR27)-AP27+$AU$15,IF(AN27=$AU$14,SUM(AO27:AR27)-AP27+$AU$13,SUM(AO27:AR27)-AP27))) -> 0 | AT27: 0 | AU27: 0 | AV27: 0 | AW27: 0 | AX27: =IF(AN27="",0,IF(AW27=0,AX26,AX26+AW27)) -> 0 | BD27: =IF(AM27=$AU$9,AX27,0) -> 0 | BF27: =IF(AM27=$AU$9,AN27,0) -> 0
B28: 2 | C28: 2021 | O28: =(1+N28/100)*O27 -> 1 | AM28: 2 | AN28: 2021 | AQ28: 0 | AR28: 0 | AS28: 0 | AT28: 0 | AU28: 0 | AV28: 0 | AW28: 0 | AX28: 0 | BB28: E | BD28: 0 | BF28: 0
B29: 3 | C29: 2022 | O29: 1 | AM29: 3 | AN29: 2022 | AQ29: 0 | AR29: 0 | AS29: 0 | AT29: 0 | AU29: 0 | AV29: 0 | AW29: 0 | AX29: 0 | BB29: B | BD29: 0 | BF29: 0
B30: 4 | C30: 2023 | O30: 1 | AM30: 4 | AN30: 2023 | AQ30: 0 | AR30: 0 | AS30: 0 | AT30: 0 | AU30: 0 | AV30: 0 | AW30: 0 | AX30: 0 | BD30: 0 | BF30: 0
B31: 5 | C31: 2024 | O31: 1 | AM31: 5 | AN31: 2024 | AQ31: 0 | AR31: 0 | AS31: 0 | AT31: 0 | AU31: 0 | AV31: 0 | AW31: 0 | AX31: 0 | BB31: More Material Less Labour | BC31: 3 | BD31: 0 | BF31: 0
B32: 6 | C32: 2025 | O32: 1 | AM32: 6 | AN32: 2025 | AQ32: 0 | AR32: 0 | AS32: 0 | AT32: 0 | AU32: 0 | AV32: 0 | AW32: 0 | AX32: 0 | BB32: Same Material Same Labour | BC32: 5 | BD32: 0 | BF32: 0
B33: 7 | C33: 2026 | O33: 1 | AM33: 7 | AN33: 2026 | AQ33: 0 | AR33: 0 | AS33: 0 | AT33: 0 | AU33: 0 | AV33: 0 | AW33: 0 | AX33: 0 | BB33: More Labour Less Material | BC33: 7 | BD33: 0 | BF33: 0
B34: 8 | C34: 2027 | O34: 1 | AM34: 8 | AN34: 2027 | AQ34: 0 | AR34: 0 | AS34: 0 | AT34: 0 | AU34: 0 | AV34: 0 | AW34: 0 | AX34: 0 | BB34: Labour Only | BC34: 9 | BD34: 0 | BF34: 0
B35: 9 | C35: 2028 | O35: 1 | AM35: 9 | AN35: 2028 | AQ35: 0 | AR35: 0 | AS35: 0 | AT35: 0 | AU35: 0 | AV35: 0 | AW35: 0 | AX35: 0 | BB35: User Defined | BC35: 11 | BD35: 0 | BF35: 0
B36: 10 | C36: 2029 | O36: 1 | AM36: 10 | AN36: 2029 | AQ36: 0 | AR36: 0 | AS36: 0 | AT36: 0 | AU36: 0 | AV36: 0 | AW36: 0 | AX36: 0 | BD36: 0 | BF36: 0
B37: 11 | C37: 2030 | O37: 1 | AM37: 11 | AN37: 2030 | AQ37: 0 | AR37: 0 | AS37: 0 | AT37: 0 | AU37: 0 | AV37: 0 | AW37: 0 | AX37: 0 | BC37: =IF(AU18 = "","",VLOOKUP(AU18,BB31:BC36,2,FALSE)) -> 3 | BD37: 0 | BF37: 0
B38: 12 | C38: 2031 | O38: 1 | AM38: 12 | AN38: 2031 | AQ38: 0 | AR38: 0 | AS38: 0 | AT38: 0 | AU38: 0 | AV38: 0 | AW38: 0 | AX38: 0 | BB38: =MAX(AM26:AM78) -> 25 | BD38: 0 | BF38: 0
B39: 13 | C39: 2032 | O39: 1 | AM39: 13 | AN39: 2032 | AQ39: 0 | AR39: 0 | AS39: 0 | AT39: 0 | AU39: 0 | AV39: 0 | AW39: 0 | AX39: 0 | BD39: 0 | BF39: 0
B40: 14 | C40: 2033 | O40: 1 | AM40: 14 | AN40: 2033 | AQ40: 0 | AR40: 0 | AS40: 0 | AT40: 0 | AU40: 0 | AV40: 0 | AW40: 0 | AX40: 0 | BB40: =IF(MAX(BD26:BD78)=0,MIN(BD26:BD78),MAX(BD26:BD78)) -> 0 | BD40: 0 | BF40: 0
B41: 15 | C41: 2034 | O41: 1 | AM41: 15 | AN41: 2034 | AQ41: 0 | AR41: 0 | AS41: 0 | AT41: 0 | AU41: 0 | AV41: 0 | AW41: 0 | AX41: 0 | BD41: 0 | BF41: 0
B42: 16 | C42: 2035 | O42: 1 | AM42: 16 | AN42: 2035 | AQ42: 0 | AR42: 0 | AS42: 0 | AT42: 0 | AU42: 0 | AV42: 0 | AW42: 0 | AX42: 0 | BB42: =MAX(BF26:BF78) -> 2044 | BD42: 0 | BF42: 0
B43: 17 | C43: 2036 | O43: 1 | AM43: 17 | AN43: 2036 | AQ43: 0 | AR43: 0 | AS43: 0 | AT43: 0 | AU43: 0 | AV43: 0 | AW43: 0 | AX43: 0 | BD43: 0 | BF43: 0
B44: 18 | C44: 2037 | O44: 1 | AM44: 18 | AN44: 2037 | AQ44: 0 | AR44: 0 | AS44: 0 | AT44: 0 | AU44: 0 | AV44: 0 | AW44: 0 | AX44: 0 | BD44: 0 | BF44: 0
B45: 19 | C45: 2038 | O45: 1 | AM45: 19 | AN45: 2038 | AQ45: 0 | AR45: 0 | AS45: 0 | AT45: 0 | AU45: 0 | AV45: 0 | AW45: 0 | AX45: 0 | BD45: 0 | BF45: 0
B46: 20 | C46: 2039 | O46: 1 | AM46: 20 | AN46: 2039 | AQ46: 0 | AR46: 0 | AS46: 0 | AT46: 0 | AU46: 0 | AV46: 0 | AW46: 0 | AX46: 0 | BD46: 0 | BF46: 0
B47: 21 | C47: 2040 | O47: 1 | AM47: 21 | AN47: 2040 | AQ47: 0 | AR47: 0 | AS47: 0 | AT47: 0 | AU47: 0 | AV47: 0 | AW47: 0 | AX47: 0 | BD47: 0 | BF47: 0
B48: 22 | C48: 2041 | O48: 1 | AM48: 22 | AN48: 2041 | AQ48: 0 | AR48: 0 | AS48: 0 | AT48: 0 | AU48: 0 | AV48: =AS48+SUM(AT48:AU48) -> 0 | AW48: =IF(AV48=0,0,IF(AV48=SUM(AO48:AR48)+SUM(AT48:AU48),AV48/(1+$AU$10)^(AN48-$AU$8+1),IF($AU$17="E",AV48/(1+$AU$10)^(AN48-$AU$8+1),(AV48-SUM(AO48:AR48)-SUM(AT48:AU48))/(1+$AU$10)^(AN48-$AU$8)+(SUM(AO48:AR48)+SUM(AT48:AU48))/(1+$AU$10)^(AN48-$AU$8+1)))) -> 0 | AX48: =IF(AN48="",0,IF(AW48=0,AX47,AX47+AW48)) -> 0 | BD48: 0 | BF48: 0
B49: 23 | C49: 2042 | O49: 1 | AM49: 23 | AN49: 2042 | AQ49: 0 | AR49: 0 | AS49: 0 | AT49: 0 | AU49: 0 | AV49: 0 | AW49: 0 | AX49: 0 | BD49: 0 | BF49: 0
B50: 24 | C50: 2043 | O50: 1 | AM50: 24 | AN50: 2043 | AQ50: 0 | AR50: 0 | AS50: 0 | AT50: 0 | AU50: 0 | AV50: 0 | AW50: 0 | AX50: 0 | BD50: 0 | BF50: 0
B51: 25 | C51: 2044 | O51: 1 | AM51: 25 | AN51: 2044 | AQ51: 0 | AR51: 0 | AS51: 0 | AT51: 0 | AU51: 0 | AV51: 0 | AW51: 0 | AX51: 0 | BD51: 0 | BF51: 2044
B52: 26 | C52: 2045 | O52: 1 | AS52: 0 | AV52: 0 | AW52: 0 | AX52: 0 | BD52: 0 | BF52: 0
B53: 27 | C53: 2046 | O53: 1 | AS53: 0 | AV53: 0 | AW53: 0 | AX53: 0 | BD53: 0 | BF53: 0
B54: 28 | C54: 2047 | O54: 1 | AS54: 0 | AV54: 0 | AW54: 0 | AX54: 0 | BD54: 0 | BF54: 0
B55: 29 | C55: 2048 | O55: 1 | AS55: 0 | AV55: 0 | AW55: 0 | AX55: 0 | BD55: 0 | BF55: 0
B56: 30 | C56: 2049 | O56: 1 | AS56: 0 | AV56: 0 | AW56: 0 | AX56: 0 | BD56: 0 | BF56: 0
B57: 31 | C57: 2050 | O57: 1 | AS57: 0 | AV57: 0 | AW57: 0 | AX57: 0 | BD57: 0 | BF57: 0
B58: 32 | C58: 2051 | O58: 1 | AS58: 0 | AV58: 0 | AW58: 0 | AX58: 0 | BD58: 0 | BF58: 0
B59: 33 | C59: 2052 | O59: 1 | AN59: =IF(AM59="","",AN58+1) ->  | AO59: =IF(AM59="","",IF($AU$12>AN59,0,K59)) ->  | AS59: 0 | AV59: 0 | AW59: 0 | AX59: 0 | BD59: 0 | BF59: 0
B60: 34 | C60: 2053 | O60: 1 | AS60: 0 | AV60: 0 | AW60: 0 | AX60: 0 | BD60: 0 | BF60: 0
B61: 35 | C61: 2054 | O61: 1 | AS61: 0 | AV61: 0 | AW61: 0 | AX61: 0 | BD61: 0 | BF61: 0
B62: 36 | C62: 2055 | O62: 1 | AS62: 0 | AV62: 0 | AW62: 0 | AX62: 0 | BD62: 0 | BF62: 0
B63: 37 | C63: 2056 | O63: 1 | AS63: 0 | AV63: 0 | AW63: 0 | AX63: 0 | BD63: 0 | BF63: 0
B64: 38 | C64: 2057 | O64: 1 | AS64: 0 | AV64: 0 | AW64: 0 | AX64: 0 | BD64: 0 | BF64: 0
B65: 39 | C65: 2058 | O65: 1 | AS65: 0 | AV65: 0 | AW65: 0 | AX65: 0 | BD65: 0 | BF65: 0
B66: 40 | C66: 2059 | O66: 1 | AS66: 0 | AV66: 0 | AW66: 0 | AX66: 0 | BD66: 0 | BF66: 0
B67: 41 | C67: 2060 | K67: =IF(J67 = "", "",IF($AU$18 = " User Defined",(J67*O67),J67*(VLOOKUP(C67,Index,$BC$37,FALSE)))) ->  | O67: =(1+N67/100)*O66 -> 1 | AN67: =IF(AM67="","",AN66+1) ->  | AO67: =IF(AM67="","",IF($AU$12>AN67,0,K67)) ->  | AQ67: =IF(AM67="","",IF($AU$12>AN67,0,J176)) ->  | AR67: =IF(AM67="","",IF($AU$12>AN67,0,L279)) ->  | AS67: =IF(AN67=$AU$12,SUM(AO67:AR67)-AP67+$AU$11,IF(AN67=$AU$16,SUM(AO67:AR67)-AP67+$AU$15,IF(AN67=$AU$14,SUM(AO67:AR67)-AP67+$AU$13,SUM(AO67:AR67)-AP67))) -> 0 | AT67: =IF(AM67="","",IF($AU$12>AN67,0,-L380)) ->  | AU67: =IF(AM67="","",IF($AU$12>AN67,0,-L481)) ->  | AV67: =AS67+SUM(AT67:AU67) -> 0 | AW67: =IF(AV67=0,0,IF(AV67=SUM(AO67:AR67)+SUM(AT67:AU67),AV67/(1+$AU$10)^(AN67-$AU$8+1),IF($AU$17="E",AV67/(1+$AU$10)^(AN67-$AU$8+1),(AV67-SUM(AO67:AR67)-SUM(AT67:AU67))/(1+$AU$10)^(AN67-$AU$8)+(SUM(AO67:AR67)+SUM(AT67:AU67))/(1+$AU$10)^(AN67-$AU$8+1)))) -> 0 | AX67: =IF(AN67="",0,IF(AW67=0,AX66,AX66+AW67)) -> 0 | BD67: 0
B68: 42 | C68: 2061 | O68: 1 | AS68: 0 | AV68: 0 | AW68: 0 | AX68: 0 | BD68: 0
B69: 43 | C69: 2062 | O69: 1 | AS69: 0 | AV69: 0 | AW69: 0 | AX69: 0 | BD69: 0
B70: 44 | C70: 2063 | O70: 1 | AS70: 0 | AV70: 0 | AW70: 0 | AX70: 0 | BD70: 0
B71: 45 | C71: 2064 | O71: 1 | AS71: 0 | AV71: 0 | AW71: 0 | AX71: 0 | BD71: 0
B72: 46 | C72: 2065 | O72: 1 | AS72: 0 | AV72: 0 | AW72: 0 | AX72: 0 | BD72: 0
B73: 47 | C73: 2066 | O73: 1 | AS73: 0 | AV73: 0 | AW73: 0 | AX73: 0 | BD73: 0
B74: 48 | C74: 2067 | O74: 1 | AS74: 0 | AV74: 0 | AW74: 0 | AX74: 0 | BD74: 0
B75: 49 | C75: 2068 | O75: 1 | AS75: 0 | AV75: 0 | AW75: 0 | AX75: 0 | BD75: 0
B76: 50 | C76: 2069 | O76: 1 | AS76: 0 | AV76: 0 | AW76: 0 | AX76: 0 | BD76: 0
AM78: Assumptions & Notes:
AV88: Date Revised
AV89: Date Printed | AW89: 2014-03-07T15:35:56 | AX89: 41705.64995
G119: Scratch Pad area for Annual Fuel costs
G120: This area is used to enter Fuel costs associated with the project. NOTE: Fuel Prices are to be entered in Column D in Main Table
G121: Market Analysis section of System Planning prepares various fuel price forecasts for numerous delivery points.
G122: Please reference the appropriate forecast and enter the values in Column D in Main Table.
G123: Columns 3 below picks up the fuel prices from the main table. Columns 4,5,6,7 & 8 can be used to do some calculations if preferred.
G124: Necessary calculations can be performed to determine each current year dollar value of the annual fuel costs.
G125: The respective annual costs are to be entered in column 9.
G126: NOTE: Annual Fuel costs (if applicable) may start in the in-service year .
B129: 1 | C129: 2 | D129: 3 | E129: 4 | F129: 5 | G129: 6 | H129: 7 | I129: 8 | J129: 9 | K129: 10
D131: Annual | E131: Working Area Below (if required) | J131: Annual
B132: Year | D132: Fuel price | J132: Fuel costs | K132: Comments / Explanations
D133: =AP24 -> (if applicable) | J133: (Current $$)
B135: 0 | C135: =$AU$7 -> 2019 | D135: =AP26 -> 0
B136: =B135+1 -> 1 | C136: =C135+1 -> 2020 | D136: 0
B137: 2 | C137: 2021 | D137: 0
B138: 3 | C138: 2022 | D138: 0
B139: 4 | C139: 2023 | D139: 0
B140: 5 | C140: 2024 | D140: 0
B141: 6 | C141: 2025 | D141: 0
B142: 7 | C142: 2026 | D142: 0
B143: 8 | C143: 2027 | D143: 0
B144: 9 | C144: 2028 | D144: 0
B145: 10 | C145: 2029 | D145: 0
B146: 11 | C146: 2030 | D146: 0
B147: 12 | C147: 2031 | D147: 0
B148: 13 | C148: 2032 | D148: 0
B149: 14 | C149: 2033 | D149: 0
B150: 15 | C150: 2034 | D150: 0
B151: 16 | C151: 2035 | D151: 0
B152: 17 | C152: 2036 | D152: 0
B153: 18 | C153: 2037 | D153: 0
B154: 19 | C154: 2038 | D154: 0
B155: 20 | C155: 2039 | D155: 0
B156: 21 | C156: 2040 | D156: 0
B157: 22 | C157: 2041 | D157: 0
B158: 23 | C158: 2042 | D158: 0
B159: 24 | C159: 2043 | D159: 0
B160: 25 | C160: 2044 | D160: 0
B161: 26 | C161: 2045 | D161: 0
B162: 27 | C162: 2046 | D162: 0
B163: 28 | C163: 2047 | D163: 0
B164: 29 | C164: 2048 | D164: 0
B165: 30 | C165: 2049 | D165: 0
B166: 31 | C166: 2050 | D166: 0
B167: 32 | C167: 2051 | D167: 0
B168: 33 | C168: 2052 | D168: 0
B169: 34 | C169: 2053 | D169: 0
B170: 35 | C170: 2054 | D170: 0
B171: 36 | C171: 2055 | D171: 0
B172: 37 | C172: 2056 | D172: 0
B173: 38 | C173: 2057 | D173: 0
B174: 39 | C174: 2058 | D174: 0
B175: 40 | C175: 2059 | D175: 0
B176: 41 | C176: 2060 | D176: =AP67 -> 0
B177: 42 | C177: 2061 | D177: 0
B178: 43 | C178: 2062 | D178: 0
B179: 44 | C179: 2063 | D179: 0
B180: 45 | C180: 2064 | D180: 0
B181: 46 | C181: 2065 | D181: 0
B182: 47 | C182: 2066 | D182: 0
B183: 48 | C183: 2067 | D183: 0
B184: 49 | C184: 2068 | D184: 0
B185: 50 | C185: 2069 | D185: 0
G218: Scratch Pad area for Other costs
G219: This area is used to enter Other costs associated with the project.
G220: Use Column 3 below if GDP Price Deflator indices are required.
G221: Use Column 4 below if Combustion Turbine indices are required.
G222: Use Column 5 below if Combined Cycle Combustion Turbine indices are required.
G223: Use Column 6 below if Hydraulic indices are required.
G224: Use Column 7 below if Transmission indices are required.
G225: Use Column 8 below if Transformer indices are required.
G226: Use Column 9 below if Distribution indices are required.
G227: Use Column 10 below if No Escalation is required.
G228: Benefits must be entered as constant year dollars, that is, the values in this year's dollars.
G229: The entered values will be automatically escalated to current year dollar values in Column 11,
G230: that is, the costs in their respective years as shown in column 2.
B232: 1 | C232: 2 | D232: 3 | E232: 4 | F232: 5 | G232: 6 | H232: 7 | I232: 8 | J232: 9 | K232: 10 | L232: 11 | M232: 12
D234: For | E234: For | F234: For | G234: For | H234: For | I234: For | J234: For | K234: With | L234: Other
B235: Year | D235: GDP | E235: Combustion Turbine | F235: CCCT | G235: Hydraulic | H235: Transmission | I235: Transformer | J235: Distribution | K235: No | L235: Costs | M235: Comments / Explanations | R235: Extra work Area if needed
D236: Escalation | E236: Escalation | F236: Escalation | G236: Escalation | H236: Escalation | I236: Escalation | J236: Escalation | K236: Escalation | L236: (Current $$)
B238: 0 | C238: =$AU$7 -> 2019 | L238: =D238*(VLOOKUP(C238,Index,14,FALSE))+E238*(VLOOKUP(C238,Index,16,FALSE))+F238*(VLOOKUP(C238,Index,18,FALSE))+G238*(VLOOKUP(C238,Index,20,FALSE))+ H238*(VLOOKUP(C238,Index,22,FALSE)) + I238*(VLOOKUP(C238,Index,24,FALSE)) + J238*(VLOOKUP(C238,Index,26,FALSE)) + K238 -> 0
B239: =B238+1 -> 1 | C239: =C238+1 -> 2020 | L239: 0
B240: 2 | C240: 2021 | L240: 0
B241: 3 | C241: 2022 | L241: 0
B242: 4 | C242: 2023 | L242: 0
B243: 5 | C243: 2024 | L243: 0
B244: 6 | C244: 2025 | L244: 0
B245: 7 | C245: 2026 | L245: 0
B246: 8 | C246: 2027 | L246: 0
B247: 9 | C247: 2028 | L247: 0
B248: 10 | C248: 2029 | L248: 0
B249: 11 | C249: 2030 | L249: 0
B250: 12 | C250: 2031 | L250: 0
B251: 13 | C251: 2032 | L251: 0
B252: 14 | C252: 2033 | L252: 0
B253: 15 | C253: 2034 | L253: 0
B254: 16 | C254: 2035 | L254: 0
B255: 17 | C255: 2036 | L255: 0
B256: 18 | C256: 2037 | L256: 0
B257: 19 | C257: 2038 | L257: 0
B258: 20 | C258: 2039 | L258: 0
B259: 21 | C259: 2040 | L259: 0
B260: 22 | C260: 2041 | L260: 0
B261: 23 | C261: 2042 | L261: 0
B262: 24 | C262: 2043 | L262: 0
B263: 25 | C263: 2044 | L263: 0
B264: 26 | C264: 2045 | L264: 0
B265: 27 | C265: 2046 | L265: 0
B266: 28 | C266: 2047 | L266: 0
B267: 29 | C267: 2048 | L267: 0
B268: 30 | C268: 2049 | L268: 0
B269: 31 | C269: 2050 | L269: 0
B270: 32 | C270: 2051 | L270: 0
B271: 33 | C271: 2052 | L271: 0
B272: 34 | C272: 2053 | L272: 0
B273: 35 | C273: 2054 | L273: 0
B274: 36 | C274: 2055 | L274: 0
B275: 37 | C275: 2056 | L275: 0
B276: 38 | C276: 2057 | L276: 0
B277: 39 | C277: 2058 | L277: 0
B278: 40 | C278: 2059 | L278: 0
B279: 41 | C279: 2060 | L279: =D279*(VLOOKUP(C279,Index,14,FALSE))+E279*(VLOOKUP(C279,Index,16,FALSE))+F279*(VLOOKUP(C279,Index,18,FALSE))+G279*(VLOOKUP(C279,Index,20,FALSE))+ H279*(VLOOKUP(C279,Index,22,FALSE)) + I279*(VLOOKUP(C279,Index,24,FALSE)) + J279*(VLOOKUP(C279,Index,26,FALSE)) + K279 -> 0
B280: 42 | C280: 2061 | L280: 0
B281: 43 | C281: 2062 | L281: 0
B282: 44 | C282: 2063 | L282: 0
... 142 more rows

Sheet Alt. 4
AM2: PROJECT COST / BENEFIT ANALYSIS TEMPLATE
AM3: ='Home Page'!G10 -> Labrador East - Network Addition Policy - 10 MW Addition
AM4: [Enter Alternative Title]
AP5: Note: Costs are shown as positive values; Benefits as negative values
AT7: Current Year | AU7: ='Home Page'!G6 -> 2019
AT8: Present Worth Year | AU8: ='Home Page'!G18 -> 2019
H9: Scratch Pad area for Annual O&M costs | AT9: Number of Years in Study | AU9: ='Home Page'!G14 -> 25
AT10: Discount Rate | AU10: ='Home Page'!G16 -> 0.065
H11: This area is used to enter O&M costs associated with the project. | AT11: Total In-service Project Cost
H12: Columns 3,4,5,6,7 & 8 can be used to do some calculations if preferred. | AT12: In-service Year | AU12: ='Home Page'!G12 -> 2019
H13: The determined O&M costs for each year must be entered into column 9 as constant year dollar values, | AT13: Other Project Cost after In-service (if applicable)
H14: that is, the values in this year's dollars. | AT14: Other Project Year (if applicable)
H15: The entered values will be automatically escalated to current year dollar values in column 10 | AT15: Replacement Cost (if applicable) | AU15: 0
H16: that is, the costs in their respective years as shown in column 2. | AT16: Replacement Year (if applicable)
H17: NOTE: Annual O&M costs are assumed to start in the in-service year. | AT17: Project cost in Ending (E) or Beginning (B) Year $$ | AU17: B
AT18: O&M costs - Escalation based on mixture of Materials & Labour | AU18: More Material Less Labour
B20: 1 | C20: 2 | D20: 3 | E20: 4 | F20: 5 | G20: 6 | H20: 7 | I20: 8 | J20: 9 | K20: 10 | L20: 11 | N20: 12 | O20: 13
AM21: A B | AO21: C | AP21: D | AQ21: E | AR21: F | AS21: G | AT21: H | AU21: I | AV21: J | AW21: K | AX21: L
D22: Working Area Below (if required) | J22: Annual | K22: Annual | N22: User Chosen | O22: Cumulative | AO22: Annual O&M | AP22: Annual Fuel | AQ22: Annual Fuel | AR22: Other | AS22: Total | AT22: Benefit 1 | AU22: Benefit 2 | AW22: P.W. | AX22: Cumulative
B23: Year | J23: O&M costs | K23: O&M costs | L23: Comments / Explanations | N23: Annual % | O23: Change | AM23: Year | AO23: Cost | AP23: Price | AQ23: Cost | AR23: Cost | AS23: Costs | AT23: (specify) | AU23: (specify) | AV23: NET | AW23: January | AX23: Present
J24: (Constant $$) | K24: (Current $$) | N24: Change | O24: Factor | AO24: $ | AP24: (if applicable) | AQ24: $ | AR24: $ | AS24: $ | AT24: $ | AU24: $ | AV24: $ | AW24: =$AU$8 -> 2019 | AX24: Worth
B26: 0 | C26: =$AU$7 -> 2019 | K26: =IF(J26 = "", "",IF($AU$18 = " User Defined",(J26*O26),J26*(VLOOKUP(C26,Index,$BC$37,FALSE)))) ->  | O26: 1 | AM26: 0 | AN26: =AU7 -> 2019 | AO26: =IF(AM26="","",IF($AU$12>AN26,0,K26)) ->  | AQ26: =IF(AM26="","",IF($AU$12>AN26,0,J135)) -> 0 | AR26: =IF(AM26="","",IF($AU$12>AN26,0,L238)) -> 0 | AS26: =IF(AN26=$AU$12,SUM(AO26:AR26)-AP26+$AU$11,SUM(AO26:AR26)-AP26) -> 0 | AT26: =IF(AM26="","",IF($AU$12>AN26,0,-L339)) -> 0 | AU26: =IF(AM26="","",IF($AU$12>AN26,0,-L440)) -> 0 | AV26: =AS26+SUM(AT26:AU26) -> 0 | AW26: =IF(AV26=0,0,IF(AV26=SUM(AO26:AR26)+SUM(AT26:AU26),AV26/(1+$AU$10)^(AN26-$AU$8+1),IF($AU$17="E",AV26/(1+$AU$10)^(AN26-$AU$8+1),(AV26-SUM(AO26:AR26)-SUM(AT26:AU26))/(1+$AU$10)^(AN26-$AU$8)+(SUM(AO26:AR26)+SUM(AT26:AU26))/(1+$AU$10)^(AN26-$AU$8+1)))) -> 0 | AX26: =AX25+AW26 -> 0
B27: =B26+1 -> 1 | C27: =C26+1 -> 2020 | O27: =1+N27/100 -> 1 | AM27: =IF(AM26="","",IF($AU$9-AM26<=0,"",AM26+1)) -> 1 | AN27: =IF(AM27="","",AN26+1) -> 2020 | AQ27: 0 | AR27: 0 | AS27: =IF(AN27=$AU$12,SUM(AO27:AR27)-AP27+$AU$11,IF(AN27=$AU$16,SUM(AO27:AR27)-AP27+$AU$15,IF(AN27=$AU$14,SUM(AO27:AR27)-AP27+$AU$13,SUM(AO27:AR27)-AP27))) -> 0 | AT27: 0 | AU27: 0 | AV27: 0 | AW27: 0 | AX27: =IF(AN27="",0,IF(AW27=0,AX26,AX26+AW27)) -> 0 | BD27: =IF(AM27=$AU$9,AX27,0) -> 0 | BF27: =IF(AM27=$AU$9,AN27,0) -> 0
B28: 2 | C28: 2021 | O28: =(1+N28/100)*O27 -> 1 | AM28: 2 | AN28: 2021 | AQ28: 0 | AR28: 0 | AS28: 0 | AT28: 0 | AU28: 0 | AV28: 0 | AW28: 0 | AX28: 0 | BB28: E | BD28: 0 | BF28: 0
B29: 3 | C29: 2022 | O29: 1 | AM29: 3 | AN29: 2022 | AQ29: 0 | AR29: 0 | AS29: 0 | AT29: 0 | AU29: 0 | AV29: 0 | AW29: 0 | AX29: 0 | BB29: B | BD29: 0 | BF29: 0
B30: 4 | C30: 2023 | O30: 1 | AM30: 4 | AN30: 2023 | AQ30: 0 | AR30: 0 | AS30: 0 | AT30: 0 | AU30: 0 | AV30: 0 | AW30: 0 | AX30: 0 | BD30: 0 | BF30: 0
B31: 5 | C31: 2024 | O31: 1 | AM31: 5 | AN31: 2024 | AQ31: 0 | AR31: 0 | AS31: 0 | AT31: 0 | AU31: 0 | AV31: 0 | AW31: 0 | AX31: 0 | BB31: More Material Less Labour | BC31: 3 | BD31: 0 | BF31: 0
B32: 6 | C32: 2025 | O32: 1 | AM32: 6 | AN32: 2025 | AQ32: 0 | AR32: 0 | AS32: 0 | AT32: 0 | AU32: 0 | AV32: 0 | AW32: 0 | AX32: 0 | BB32: Same Material Same Labour | BC32: 5 | BD32: 0 | BF32: 0
B33: 7 | C33: 2026 | O33: 1 | AM33: 7 | AN33: 2026 | AQ33: 0 | AR33: 0 | AS33: 0 | AT33: 0 | AU33: 0 | AV33: 0 | AW33: 0 | AX33: 0 | BB33: More Labour Less Material | BC33: 7 | BD33: 0 | BF33: 0
B34: 8 | C34: 2027 | O34: 1 | AM34: 8 | AN34: 2027 | AQ34: 0 | AR34: 0 | AS34: 0 | AT34: 0 | AU34: 0 | AV34: 0 | AW34: 0 | AX34: 0 | BB34: Labour Only | BC34: 9 | BD34: 0 | BF34: 0
B35: 9 | C35: 2028 | O35: 1 | AM35: 9 | AN35: 2028 | AQ35: 0 | AR35: 0 | AS35: 0 | AT35: 0 | AU35: 0 | AV35: 0 | AW35: 0 | AX35: 0 | BB35: User Defined | BC35: 11 | BD35: 0 | BF35: 0
B36: 10 | C36: 2029 | O36: 1 | AM36: 10 | AN36: 2029 | AQ36: 0 | AR36: 0 | AS36: 0 | AT36: 0 | AU36: 0 | AV36: 0 | AW36: 0 | AX36: 0 | BD36: 0 | BF36: 0
B37: 11 | C37: 2030 | O37: 1 | AM37: 11 | AN37: 2030 | AQ37: 0 | AR37: 0 | AS37: 0 | AT37: 0 | AU37: 0 | AV37: 0 | AW37: 0 | AX37: 0 | BC37: =IF(AU18 = "","",VLOOKUP(AU18,BB31:BC36,2,FALSE)) -> 3 | BD37: 0 | BF37: 0
B38: 12 | C38: 2031 | O38: 1 | AM38: 12 | AN38: 2031 | AQ38: 0 | AR38: 0 | AS38: 0 | AT38: 0 | AU38: 0 | AV38: 0 | AW38: 0 | AX38: 0 | BB38: =MAX(AM26:AM78) -> 25 | BD38: 0 | BF38: 0
B39: 13 | C39: 2032 | O39: 1 | AM39: 13 | AN39: 2032 | AQ39: 0 | AR39: 0 | AS39: 0 | AT39: 0 | AU39: 0 | AV39: 0 | AW39: 0 | AX39: 0 | BD39: 0 | BF39: 0
B40: 14 | C40: 2033 | O40: 1 | AM40: 14 | AN40: 2033 | AQ40: 0 | AR40: 0 | AS40: 0 | AT40: 0 | AU40: 0 | AV40: 0 | AW40: 0 | AX40: 0 | BB40: =IF(MAX(BD26:BD78)=0,MIN(BD26:BD78),MAX(BD26:BD78)) -> 0 | BD40: 0 | BF40: 0
B41: 15 | C41: 2034 | O41: 1 | AM41: 15 | AN41: 2034 | AQ41: 0 | AR41: 0 | AS41: 0 | AT41: 0 | AU41: 0 | AV41: 0 | AW41: 0 | AX41: 0 | BD41: 0 | BF41: 0
B42: 16 | C42: 2035 | O42: 1 | AM42: 16 | AN42: 2035 | AQ42: 0 | AR42: 0 | AS42: 0 | AT42: 0 | AU42: 0 | AV42: 0 | AW42: 0 | AX42: 0 | BB42: =MAX(BF26:BF78) -> 2044 | BD42: 0 | BF42: 0
B43: 17 | C43: 2036 | O43: 1 | AM43: 17 | AN43: 2036 | AQ43: 0 | AR43: 0 | AS43: 0 | AT43: 0 | AU43: 0 | AV43: 0 | AW43: 0 | AX43: 0 | BD43: 0 | BF43: 0
B44: 18 | C44: 2037 | O44: 1 | AM44: 18 | AN44: 2037 | AQ44: 0 | AR44: 0 | AS44: 0 | AT44: 0 | AU44: 0 | AV44: 0 | AW44: 0 | AX44: 0 | BD44: 0 | BF44: 0
B45: 19 | C45: 2038 | O45: 1 | AM45: 19 | AN45: 2038 | AQ45: 0 | AR45: 0 | AS45: 0 | AT45: 0 | AU45: 0 | AV45: 0 | AW45: 0 | AX45: 0 | BD45: 0 | BF45: 0
B46: 20 | C46: 2039 | O46: 1 | AM46: 20 | AN46: 2039 | AQ46: 0 | AR46: 0 | AS46: 0 | AT46: 0 | AU46: 0 | AV46: 0 | AW46: 0 | AX46: 0 | BD46: 0 | BF46: 0
B47: 21 | C47: 2040 | O47: 1 | AM47: 21 | AN47: 2040 | AQ47: 0 | AR47: 0 | AS47: 0 | AT47: 0 | AU47: 0 | AV47: 0 | AW47: 0 | AX47: 0 | BD47: 0 | BF47: 0
B48: 22 | C48: 2041 | O48: 1 | AM48: 22 | AN48: 2041 | AQ48: 0 | AR48: 0 | AS48: 0 | AT48: 0 | AU48: 0 | AV48: 0 | AW48: 0 | AX48: 0 | BD48: 0 | BF48: 0
B49: 23 | C49: 2042 | O49: 1 | AM49: 23 | AN49: 2042 | AQ49: 0 | AR49: 0 | AS49: 0 | AT49: 0 | AU49: 0 | AV49: 0 | AW49: 0 | AX49: 0 | BD49: 0 | BF49: 0
B50: 24 | C50: 2043 | O50: 1 | AM50: 24 | AN50: 2043 | AQ50: 0 | AR50: 0 | AS50: 0 | AT50: 0 | AU50: 0 | AV50: 0 | AW50: 0 | AX50: 0 | BD50: 0 | BF50: 0
B51: 25 | C51: 2044 | O51: 1 | AM51: 25 | AN51: 2044 | AQ51: 0 | AR51: 0 | AS51: 0 | AT51: 0 | AU51: 0 | AV51: 0 | AW51: 0 | AX51: 0 | BD51: 0 | BF51: 2044
B52: 26 | C52: 2045 | O52: 1 | AS52: 0 | AV52: 0 | AW52: 0 | AX52: 0 | BD52: 0 | BF52: 0
B53: 27 | C53: 2046 | O53: 1 | AS53: 0 | AV53: 0 | AW53: 0 | AX53: 0 | BD53: 0 | BF53: 0
B54: 28 | C54: 2047 | O54: 1 | AS54: 0 | AV54: 0 | AW54: 0 | AX54: 0 | BD54: 0 | BF54: 0
B55: 29 | C55: 2048 | O55: 1 | AS55: 0 | AV55: 0 | AW55: 0 | AX55: 0 | BD55: 0 | BF55: 0
B56: 30 | C56: 2049 | O56: 1 | AS56: 0 | AV56: 0 | AW56: 0 | AX56: 0 | BD56: 0 | BF56: 0
B57: 31 | C57: 2050 | O57: 1 | AS57: 0 | AV57: 0 | AW57: 0 | AX57: 0 | BD57: 0 | BF57: 0
B58: 32 | C58: 2051 | O58: 1 | AS58: 0 | AV58: 0 | AW58: 0 | AX58: 0 | BD58: 0 | BF58: 0
B59: 33 | C59: 2052 | O59: 1 | AS59: 0 | AV59: 0 | AW59: 0 | AX59: 0 | BD59: 0 | BF59: 0
B60: 34 | C60: 2053 | O60: 1 | AS60: 0 | AV60: 0 | AW60: 0 | AX60: 0 | BD60: 0 | BF60: 0
B61: 35 | C61: 2054 | O61: 1 | AS61: 0 | AV61: 0 | AW61: 0 | AX61: 0 | BD61: 0 | BF61: 0
B62: 36 | C62: 2055 | O62: 1 | AS62: 0 | AV62: 0 | AW62: 0 | AX62: 0 | BD62: 0 | BF62: 0
B63: 37 | C63: 2056 | O63: 1 | AS63: 0 | AV63: 0 | AW63: 0 | AX63: 0 | BD63: 0 | BF63: 0
B64: 38 | C64: 2057 | O64: 1 | AS64: 0 | AV64: 0 | AW64: 0 | AX64: 0 | BD64: 0 | BF64: 0
B65: 39 | C65: 2058 | O65: 1 | AS65: 0 | AV65: 0 | AW65: 0 | AX65: 0 | BD65: 0 | BF65: 0
B66: 40 | C66: 2059 | O66: 1 | AS66: 0 | AV66: 0 | AW66: 0 | AX66: 0 | BD66: 0 | BF66: 0
B67: 41 | C67: 2060 | K67: =IF(J67 = "", "",IF($AU$18 = " User Defined",(J67*O67),J67*(VLOOKUP(C67,Index,$BC$37,FALSE)))) ->  | O67: =(1+N67/100)*O66 -> 1 | AN67: =IF(AM67="","",AN66+1) ->  | AO67: =IF(AM67="","",IF($AU$12>AN67,0,K67)) ->  | AQ67: =IF(AM67="","",IF($AU$12>AN67,0,J176)) ->  | AR67: =IF(AM67="","",IF($AU$12>AN67,0,L279)) ->  | AS67: =IF(AN67=$AU$12,SUM(AO67:AR67)-AP67+$AU$11,IF(AN67=$AU$16,SUM(AO67:AR67)-AP67+$AU$15,IF(AN67=$AU$14,SUM(AO67:AR67)-AP67+$AU$13,SUM(AO67:AR67)-AP67))) -> 0 | AT67: =IF(AM67="","",IF($AU$12>AN67,0,-L380)) ->  | AU67: =IF(AM67="","",IF($AU$12>AN67,0,-L481)) ->  | AV67: =AS67+SUM(AT67:AU67) -> 0 | AW67: =IF(AV67=0,0,IF(AV67=SUM(AO67:AR67)+SUM(AT67:AU67),AV67/(1+$AU$10)^(AN67-$AU$8+1),IF($AU$17="E",AV67/(1+$AU$10)^(AN67-$AU$8+1),(AV67-SUM(AO67:AR67)-SUM(AT67:AU67))/(1+$AU$10)^(AN67-$AU$8)+(SUM(AO67:AR67)+SUM(AT67:AU67))/(1+$AU$10)^(AN67-$AU$8+1)))) -> 0 | AX67: =IF(AN67="",0,IF(AW67=0,AX66,AX66+AW67)) -> 0 | BD67: 0
B68: 42 | C68: 2061 | O68: 1 | AS68: 0 | AV68: 0 | AW68: 0 | AX68: 0 | BD68: 0
B69: 43 | C69: 2062 | O69: 1 | AS69: 0 | AV69: 0 | AW69: 0 | AX69: 0 | BD69: 0
B70: 44 | C70: 2063 | O70: 1 | AS70: 0 | AV70: 0 | AW70: 0 | AX70: 0 | BD70: 0
B71: 45 | C71: 2064 | O71: 1 | AS71: 0 | AV71: 0 | AW71: 0 | AX71: 0 | BD71: 0
B72: 46 | C72: 2065 | O72: 1 | AS72: 0 | AV72: 0 | AW72: 0 | AX72: 0 | BD72: 0
B73: 47 | C73: 2066 | O73: 1 | AS73: 0 | AV73: 0 | AW73: 0 | AX73: 0 | BD73: 0
B74: 48 | C74: 2067 | O74: 1 | AS74: 0 | AV74: 0 | AW74: 0 | AX74: 0 | BD74: 0
B75: 49 | C75: 2068 | O75: 1 | AS75: 0 | AV75: 0 | AW75: 0 | AX75: 0 | BD75: 0
B76: 50 | C76: 2069 | O76: 1 | AS76: 0 | AV76: 0 | AW76: 0 | AX76: 0 | BD76: 0
AM78: Assumptions & Notes:
AV88: Date Revised
AV89: Date Printed | AW89: 2014-03-07T15:36:06 | AX89: 41705.65007
G119: Scratch Pad area for Annual Fuel costs
G120: This area is used to enter Fuel costs associated with the project. NOTE: Fuel Prices are to be entered in Column D in Main Table
G121: Market Analysis section of System Planning prepares various fuel price forecasts for numerous delivery points.
G122: Please reference the appropriate forecast and enter the values in Column D in Main Table.
G123: Columns 3 below picks up the fuel prices from the main table. Columns 4,5,6,7 & 8 can be used to do some calculations if preferred.
G124: Necessary calculations can be performed to determine each current year dollar value of the annual fuel costs.
G125: The respective annual costs are to be entered in column 9.
G126: NOTE: Annual Fuel costs (if applicable) may start in the in-service year .
B129: 1 | C129: 2 | D129: 3 | E129: 4 | F129: 5 | G129: 6 | H129: 7 | I129: 8 | J129: 9 | K129: 10
D131: Annual | E131: Working Area Below (if required) | J131: Annual
B132: Year | D132: Fuel price | J132: Fuel costs | K132: Comments / Explanations
D133: =AP24 -> (if applicable) | J133: (Current $$)
B135: 0 | C135: =$AU$7 -> 2019 | D135: =AP26 -> 0
B136: =B135+1 -> 1 | C136: =C135+1 -> 2020 | D136: 0
B137: 2 | C137: 2021 | D137: 0
B138: 3 | C138: 2022 | D138: 0
B139: 4 | C139: 2023 | D139: 0
B140: 5 | C140: 2024 | D140: 0
B141: 6 | C141: 2025 | D141: 0
B142: 7 | C142: 2026 | D142: 0
B143: 8 | C143: 2027 | D143: 0
B144: 9 | C144: 2028 | D144: 0
B145: 10 | C145: 2029 | D145: 0
B146: 11 | C146: 2030 | D146: 0
B147: 12 | C147: 2031 | D147: 0
B148: 13 | C148: 2032 | D148: 0
B149: 14 | C149: 2033 | D149: 0
B150: 15 | C150: 2034 | D150: 0
B151: 16 | C151: 2035 | D151: 0
B152: 17 | C152: 2036 | D152: 0
B153: 18 | C153: 2037 | D153: 0
B154: 19 | C154: 2038 | D154: 0
B155: 20 | C155: 2039 | D155: 0
B156: 21 | C156: 2040 | D156: 0
B157: 22 | C157: 2041 | D157: 0
B158: 23 | C158: 2042 | D158: 0
B159: 24 | C159: 2043 | D159: 0
B160: 25 | C160: 2044 | D160: 0
B161: 26 | C161: 2045 | D161: 0
B162: 27 | C162: 2046 | D162: 0
B163: 28 | C163: 2047 | D163: 0
B164: 29 | C164: 2048 | D164: 0
B165: 30 | C165: 2049 | D165: 0
B166: 31 | C166: 2050 | D166: 0
B167: 32 | C167: 2051 | D167: 0
B168: 33 | C168: 2052 | D168: 0
B169: 34 | C169: 2053 | D169: 0
B170: 35 | C170: 2054 | D170: 0
B171: 36 | C171: 2055 | D171: 0
B172: 37 | C172: 2056 | D172: 0
B173: 38 | C173: 2057 | D173: 0
B174: 39 | C174: 2058 | D174: 0
B175: 40 | C175: 2059 | D175: 0
B176: 41 | C176: 2060 | D176: =AP67 -> 0
B177: 42 | C177: 2061 | D177: 0
B178: 43 | C178: 2062 | D178: 0
B179: 44 | C179: 2063 | D179: 0
B180: 45 | C180: 2064 | D180: 0
B181: 46 | C181: 2065 | D181: 0
B182: 47 | C182: 2066 | D182: 0
B183: 48 | C183: 2067 | D183: 0
B184: 49 | C184: 2068 | D184: 0
B185: 50 | C185: 2069 | D185: 0
G218: Scratch Pad area for Other costs
G219: This area is used to enter Other costs associated with the project.
G220: Use Column 3 below if GDP Price Deflator indices are required.
G221: Use Column 4 below if Combustion Turbine indices are required.
G222: Use Column 5 below if Combined Cycle Combustion Turbine indices are required.
G223: Use Column 6 below if Hydraulic indices are required.
G224: Use Column 7 below if Transmission indices are required.
G225: Use Column 8 below if Transformer indices are required.
G226: Use Column 9 below if Distribution indices are required.
G227: Use Column 10 below if No Escalation is required.
G228: Benefits must be entered as constant year dollars, that is, the values in this year's dollars.
G229: The entered values will be automatically escalated to current year dollar values in Column 11,
G230: that is, the costs in their respective years as shown in column 2.
B232: 1 | C232: 2 | D232: 3 | E232: 4 | F232: 5 | G232: 6 | H232: 7 | I232: 8 | J232: 9 | K232: 10 | L232: 11 | M232: 12
D234: For | E234: For | F234: For | G234: For | H234: For | I234: For | J234: For | K234: With | L234: Other
B235: Year | D235: GDP | E235: Combustion Turbine | F235: CCCT | G235: Hydraulic | H235: Transmission | I235: Transformer | J235: Distribution | K235: No | L235: Costs | M235: Comments / Explanations | R235: Extra work Area if needed
D236: Escalation | E236: Escalation | F236: Escalation | G236: Escalation | H236: Escalation | I236: Escalation | J236: Escalation | K236: Escalation | L236: (Current $$)
B238: 0 | C238: =$AU$7 -> 2019 | L238: =D238*(VLOOKUP(C238,Index,14,FALSE))+E238*(VLOOKUP(C238,Index,16,FALSE))+F238*(VLOOKUP(C238,Index,18,FALSE))+G238*(VLOOKUP(C238,Index,20,FALSE))+ H238*(VLOOKUP(C238,Index,22,FALSE)) + I238*(VLOOKUP(C238,Index,24,FALSE)) + J238*(VLOOKUP(C238,Index,26,FALSE)) + K238 -> 0
B239: =B238+1 -> 1 | C239: =C238+1 -> 2020 | L239: 0
B240: 2 | C240: 2021 | L240: 0
B241: 3 | C241: 2022 | L241: 0
B242: 4 | C242: 2023 | L242: 0
B243: 5 | C243: 2024 | L243: 0
B244: 6 | C244: 2025 | L244: 0
B245: 7 | C245: 2026 | L245: 0
B246: 8 | C246: 2027 | L246: 0
B247: 9 | C247: 2028 | L247: 0
B248: 10 | C248: 2029 | L248: 0
B249: 11 | C249: 2030 | L249: 0
B250: 12 | C250: 2031 | L250: 0
B251: 13 | C251: 2032 | L251: 0
B252: 14 | C252: 2033 | L252: 0
B253: 15 | C253: 2034 | L253: 0
B254: 16 | C254: 2035 | L254: 0
B255: 17 | C255: 2036 | L255: 0
B256: 18 | C256: 2037 | L256: 0
B257: 19 | C257: 2038 | L257: 0
B258: 20 | C258: 2039 | L258: 0
B259: 21 | C259: 2040 | L259: 0
B260: 22 | C260: 2041 | L260: 0
B261: 23 | C261: 2042 | L261: 0
B262: 24 | C262: 2043 | L262: 0
B263: 25 | C263: 2044 | L263: 0
B264: 26 | C264: 2045 | L264: 0
B265: 27 | C265: 2046 | L265: 0
B266: 28 | C266: 2047 | L266: 0
B267: 29 | C267: 2048 | L267: 0
B268: 30 | C268: 2049 | L268: 0
B269: 31 | C269: 2050 | L269: 0
B270: 32 | C270: 2051 | L270: 0
B271: 33 | C271: 2052 | L271: 0
B272: 34 | C272: 2053 | L272: 0
B273: 35 | C273: 2054 | L273: 0
B274: 36 | C274: 2055 | L274: 0
B275: 37 | C275: 2056 | L275: 0
B276: 38 | C276: 2057 | L276: 0
B277: 39 | C277: 2058 | L277: 0
B278: 40 | C278: 2059 | L278: 0
B279: 41 | C279: 2060 | L279: =D279*(VLOOKUP(C279,Index,14,FALSE))+E279*(VLOOKUP(C279,Index,16,FALSE))+F279*(VLOOKUP(C279,Index,18,FALSE))+G279*(VLOOKUP(C279,Index,20,FALSE))+ H279*(VLOOKUP(C279,Index,22,FALSE)) + I279*(VLOOKUP(C279,Index,24,FALSE)) + J279*(VLOOKUP(C279,Index,26,FALSE)) + K279 -> 0
B280: 42 | C280: 2061 | L280: 0
B281: 43 | C281: 2062 | L281: 0
B282: 44 | C282: 2063 | L282: 0
... 142 more rows

Sheet Alt. 5
AM2: PROJECT COST / BENEFIT ANALYSIS TEMPLATE
AM3: ='Home Page'!G10 -> Labrador East - Network Addition Policy - 10 MW Addition
AM4: [Enter Alternative Title]
AP5: Note: Costs are shown as positive values; Benefits as negative values
AT7: Current Year | AU7: ='Home Page'!G6 -> 2019
AT8: Present Worth Year | AU8: ='Home Page'!G18 -> 2019
H9: Scratch Pad area for Annual O&M costs | AT9: Number of Years in Study | AU9: ='Home Page'!G14 -> 25
AT10: Discount Rate | AU10: ='Home Page'!G16 -> 0.065
H11: This area is used to enter O&M costs associated with the project. | AT11: Total In-service Project Cost
H12: Columns 3,4,5,6,7 & 8 can be used to do some calculations if preferred. | AT12: In-service Year | AU12: ='Home Page'!G12 -> 2019
H13: The determined O&M costs for each year must be entered into column 9 as constant year dollar values, | AT13: Other Project Cost after In-service (if applicable)
H14: that is, the values in this year's dollars. | AT14: Other Project Year (if applicable)
H15: The entered values will be automatically escalated to current year dollar values in column 10 | AT15: Replacement Cost (if applicable) | AU15: 0
H16: that is, the costs in their respective years as shown in column 2. | AT16: Replacement Year (if applicable)
H17: NOTE: Annual O&M costs are assumed to start in the in-service year. | AT17: Project cost in Ending (E) or Beginning (B) Year $$ | AU17: B
AT18: O&M costs - Escalation based on mixture of Materials & Labour | AU18: More Material Less Labour
B20: 1 | C20: 2 | D20: 3 | E20: 4 | F20: 5 | G20: 6 | H20: 7 | I20: 8 | J20: 9 | K20: 10 | L20: 11 | N20: 12 | O20: 13
AM21: A B | AO21: C | AP21: D | AQ21: E | AR21: F | AS21: G | AT21: H | AU21: I | AV21: J | AW21: K | AX21: L
D22: Working Area Below (if required) | J22: Annual | K22: Annual | N22: User Chosen | O22: Cumulative | AO22: Annual O&M | AP22: Annual Fuel | AQ22: Annual Fuel | AR22: Other | AS22: Total | AT22: Benefit 1 | AU22: Benefit 2 | AW22: P.W. | AX22: Cumulative
B23: Year | J23: O&M costs | K23: O&M costs | L23: Comments / Explanations | N23: Annual % | O23: Change | AM23: Year | AO23: Cost | AP23: Price | AQ23: Cost | AR23: Cost | AS23: Costs | AT23: (specify) | AU23: (specify) | AV23: NET | AW23: January | AX23: Present
J24: (Constant $$) | K24: (Current $$) | N24: Change | O24: Factor | AO24: $ | AP24: (if applicable) | AQ24: $ | AR24: $ | AS24: $ | AT24: $ | AU24: $ | AV24: $ | AW24: =$AU$8 -> 2019 | AX24: Worth
B26: 0 | C26: =$AU$7 -> 2019 | K26: =IF(J26 = "", "",IF($AU$18 = " User Defined",(J26*O26),J26*(VLOOKUP(C26,Index,$BC$37,FALSE)))) ->  | O26: 1 | AM26: 0 | AN26: =AU7 -> 2019 | AO26: =IF(AM26="","",IF($AU$12>AN26,0,K26)) ->  | AQ26: =IF(AM26="","",IF($AU$12>AN26,0,J135)) -> 0 | AR26: =IF(AM26="","",IF($AU$12>AN26,0,L238)) -> 0 | AS26: =IF(AN26=$AU$12,SUM(AO26:AR26)-AP26+$AU$11,SUM(AO26:AR26)-AP26) -> 0 | AT26: =IF(AM26="","",IF($AU$12>AN26,0,-L339)) -> 0 | AU26: =IF(AM26="","",IF($AU$12>AN26,0,-L440)) -> 0 | AV26: =AS26+SUM(AT26:AU26) -> 0 | AW26: =IF(AV26=0,0,IF(AV26=SUM(AO26:AR26)+SUM(AT26:AU26),AV26/(1+$AU$10)^(AN26-$AU$8+1),IF($AU$17="E",AV26/(1+$AU$10)^(AN26-$AU$8+1),(AV26-SUM(AO26:AR26)-SUM(AT26:AU26))/(1+$AU$10)^(AN26-$AU$8)+(SUM(AO26:AR26)+SUM(AT26:AU26))/(1+$AU$10)^(AN26-$AU$8+1)))) -> 0 | AX26: =AX25+AW26 -> 0
B27: =B26+1 -> 1 | C27: 2020 | O27: =1+N27/100 -> 1 | AM27: =IF(AM26="","",IF($AU$9-AM26<=0,"",AM26+1)) -> 1 | AN27: =IF(AM27="","",AN26+1) -> 2020 | AQ27: 0 | AR27: 0 | AS27: =IF(AN27=$AU$12,SUM(AO27:AR27)-AP27+$AU$11,IF(AN27=$AU$16,SUM(AO27:AR27)-AP27+$AU$15,IF(AN27=$AU$14,SUM(AO27:AR27)-AP27+$AU$13,SUM(AO27:AR27)-AP27))) -> 0 | AT27: 0 | AU27: 0 | AV27: 0 | AW27: 0 | AX27: =IF(AN27="",0,IF(AW27=0,AX26,AX26+AW27)) -> 0 | BD27: =IF(AM27=$AU$9,AX27,0) -> 0 | BF27: =IF(AM27=$AU$9,AN27,0) -> 0
B28: 2 | C28: 2021 | O28: =(1+N28/100)*O27 -> 1 | AM28: 2 | AN28: 2021 | AQ28: 0 | AR28: 0 | AS28: 0 | AT28: 0 | AU28: 0 | AV28: 0 | AW28: 0 | AX28: 0 | BB28: E | BD28: 0 | BF28: 0
B29: 3 | C29: 2022 | O29: 1 | AM29: 3 | AN29: 2022 | AQ29: 0 | AR29: 0 | AS29: 0 | AT29: 0 | AU29: 0 | AV29: 0 | AW29: 0 | AX29: 0 | BB29: B | BD29: 0 | BF29: 0
B30: 4 | C30: 2023 | O30: 1 | AM30: 4 | AN30: 2023 | AQ30: 0 | AR30: 0 | AS30: 0 | AT30: 0 | AU30: 0 | AV30: 0 | AW30: 0 | AX30: 0 | BD30: 0 | BF30: 0
B31: 5 | C31: 2024 | O31: 1 | AM31: 5 | AN31: 2024 | AQ31: 0 | AR31: 0 | AS31: 0 | AT31: 0 | AU31: 0 | AV31: 0 | AW31: 0 | AX31: 0 | BB31: More Material Less Labour | BC31: 3 | BD31: 0 | BF31: 0
B32: 6 | C32: 2025 | O32: 1 | AM32: 6 | AN32: 2025 | AQ32: 0 | AR32: 0 | AS32: 0 | AT32: 0 | AU32: 0 | AV32: 0 | AW32: 0 | AX32: 0 | BB32: Same Material Same Labour | BC32: 5 | BD32: 0 | BF32: 0
B33: 7 | C33: 2026 | O33: 1 | AM33: 7 | AN33: 2026 | AQ33: 0 | AR33: 0 | AS33: 0 | AT33: 0 | AU33: 0 | AV33: 0 | AW33: 0 | AX33: 0 | BB33: More Labour Less Material | BC33: 7 | BD33: 0 | BF33: 0
B34: 8 | C34: 2027 | O34: 1 | AM34: 8 | AN34: 2027 | AQ34: 0 | AR34: 0 | AS34: 0 | AT34: 0 | AU34: 0 | AV34: 0 | AW34: 0 | AX34: 0 | BB34: Labour Only | BC34: 9 | BD34: 0 | BF34: 0
B35: 9 | C35: 2028 | O35: 1 | AM35: 9 | AN35: 2028 | AQ35: 0 | AR35: 0 | AS35: 0 | AT35: 0 | AU35: 0 | AV35: 0 | AW35: 0 | AX35: 0 | BB35: User Defined | BC35: 11 | BD35: 0 | BF35: 0
B36: 10 | C36: 2029 | O36: 1 | AM36: 10 | AN36: 2029 | AQ36: 0 | AR36: 0 | AS36: 0 | AT36: 0 | AU36: 0 | AV36: 0 | AW36: 0 | AX36: 0 | BD36: 0 | BF36: 0
B37: 11 | C37: 2030 | O37: 1 | AM37: 11 | AN37: 2030 | AQ37: 0 | AR37: 0 | AS37: 0 | AT37: 0 | AU37: 0 | AV37: 0 | AW37: 0 | AX37: 0 | BC37: =IF(AU18 = "","",VLOOKUP(AU18,BB31:BC36,2,FALSE)) -> 3 | BD37: 0 | BF37: 0
B38: 12 | C38: 2031 | O38: 1 | AM38: 12 | AN38: 2031 | AQ38: 0 | AR38: 0 | AS38: 0 | AT38: 0 | AU38: 0 | AV38: 0 | AW38: 0 | AX38: 0 | BB38: =MAX(AM26:AM78) -> 25 | BD38: 0 | BF38: 0
B39: 13 | C39: 2032 | O39: 1 | AM39: 13 | AN39: 2032 | AQ39: 0 | AR39: 0 | AS39: 0 | AT39: 0 | AU39: 0 | AV39: 0 | AW39: 0 | AX39: 0 | BD39: 0 | BF39: 0
B40: 14 | C40: 2033 | O40: 1 | AM40: 14 | AN40: 2033 | AQ40: 0 | AR40: 0 | AS40: 0 | AT40: 0 | AU40: 0 | AV40: 0 | AW40: 0 | AX40: 0 | BB40: =IF(MAX(BD26:BD78)=0,MIN(BD26:BD78),MAX(BD26:BD78)) -> 0 | BD40: 0 | BF40: 0
B41: 15 | C41: 2034 | O41: 1 | AM41: 15 | AN41: 2034 | AQ41: 0 | AR41: 0 | AS41: 0 | AT41: 0 | AU41: 0 | AV41: 0 | AW41: 0 | AX41: 0 | BD41: 0 | BF41: 0
B42: 16 | C42: 2035 | O42: 1 | AM42: 16 | AN42: 2035 | AQ42: 0 | AR42: 0 | AS42: 0 | AT42: 0 | AU42: 0 | AV42: 0 | AW42: 0 | AX42: 0 | BB42: =MAX(BF26:BF78) -> 2044 | BD42: 0 | BF42: 0
B43: =B42+1 -> 17 | C43: 2036 | O43: 1 | AM43: 17 | AN43: 2036 | AQ43: 0 | AR43: 0 | AS43: 0 | AT43: 0 | AU43: 0 | AV43: 0 | AW43: 0 | AX43: 0 | BD43: 0 | BF43: 0
B44: 18 | C44: 2037 | O44: 1 | AM44: 18 | AN44: 2037 | AQ44: 0 | AR44: 0 | AS44: 0 | AT44: 0 | AU44: 0 | AV44: 0 | AW44: 0 | AX44: 0 | BD44: 0 | BF44: 0
B45: 19 | C45: 2038 | O45: 1 | AM45: 19 | AN45: 2038 | AQ45: 0 | AR45: 0 | AS45: 0 | AT45: 0 | AU45: 0 | AV45: 0 | AW45: 0 | AX45: 0 | BD45: 0 | BF45: 0
B46: 20 | C46: 2039 | O46: 1 | AM46: 20 | AN46: 2039 | AQ46: 0 | AR46: 0 | AS46: 0 | AT46: 0 | AU46: 0 | AV46: 0 | AW46: 0 | AX46: 0 | BD46: 0 | BF46: 0
B47: 21 | C47: 2040 | O47: 1 | AM47: 21 | AN47: 2040 | AQ47: 0 | AR47: 0 | AS47: 0 | AT47: 0 | AU47: 0 | AV47: 0 | AW47: 0 | AX47: 0 | BD47: 0 | BF47: 0
B48: 22 | C48: 2041 | O48: 1 | AM48: 22 | AN48: 2041 | AQ48: 0 | AR48: 0 | AS48: 0 | AT48: 0 | AU48: 0 | AV48: 0 | AW48: 0 | AX48: 0 | BD48: 0 | BF48: 0
B49: 23 | C49: 2042 | O49: 1 | AM49: 23 | AN49: 2042 | AQ49: 0 | AR49: 0 | AS49: 0 | AT49: 0 | AU49: 0 | AV49: 0 | AW49: 0 | AX49: 0 | BD49: 0 | BF49: 0
B50: 24 | C50: 2043 | O50: 1 | AM50: 24 | AN50: 2043 | AQ50: 0 | AR50: 0 | AS50: 0 | AT50: 0 | AU50: 0 | AV50: 0 | AW50: 0 | AX50: 0 | BD50: 0 | BF50: 0
B51: 25 | C51: 2044 | O51: 1 | AM51: 25 | AN51: 2044 | AQ51: 0 | AR51: 0 | AS51: 0 | AT51: 0 | AU51: 0 | AV51: 0 | AW51: 0 | AX51: 0 | BD51: 0 | BF51: 2044
B52: 26 | C52: 2045 | O52: 1 | AS52: 0 | AV52: 0 | AW52: 0 | AX52: 0 | BD52: 0 | BF52: 0
B53: 27 | C53: 2046 | O53: 1 | AS53: 0 | AV53: 0 | AW53: 0 | AX53: 0 | BD53: 0 | BF53: 0
B54: 28 | C54: 2047 | O54: 1 | AS54: 0 | AV54: 0 | AW54: 0 | AX54: 0 | BD54: 0 | BF54: 0
B55: 29 | C55: 2048 | O55: 1 | AS55: 0 | AV55: 0 | AW55: 0 | AX55: 0 | BD55: 0 | BF55: 0
B56: 30 | C56: 2049 | O56: 1 | AS56: 0 | AV56: 0 | AW56: 0 | AX56: 0 | BD56: 0 | BF56: 0
B57: 31 | C57: 2050 | O57: 1 | AS57: 0 | AV57: 0 | AW57: 0 | AX57: 0 | BD57: 0 | BF57: 0
B58: 32 | C58: 2051 | O58: 1 | AS58: 0 | AV58: 0 | AW58: 0 | AX58: 0 | BD58: 0 | BF58: 0
B59: =B58+1 -> 33 | C59: 2052 | O59: 1 | AS59: 0 | AV59: 0 | AW59: 0 | AX59: 0 | BD59: 0 | BF59: 0
B60: 34 | C60: 2053 | O60: 1 | AS60: 0 | AV60: 0 | AW60: 0 | AX60: 0 | BD60: 0 | BF60: 0
B61: 35 | C61: 2054 | O61: 1 | AS61: 0 | AV61: 0 | AW61: 0 | AX61: 0 | BD61: 0 | BF61: 0
B62: 36 | C62: 2055 | O62: 1 | AS62: 0 | AV62: 0 | AW62: 0 | AX62: 0 | BD62: 0 | BF62: 0
B63: 37 | C63: 2056 | O63: 1 | AS63: 0 | AV63: 0 | AW63: 0 | AX63: 0 | BD63: 0 | BF63: 0
B64: 38 | C64: 2057 | O64: 1 | AS64: 0 | AV64: 0 | AW64: 0 | AX64: 0 | BD64: 0 | BF64: 0
B65: 39 | C65: 2058 | O65: 1 | AS65: 0 | AV65: 0 | AW65: 0 | AX65: 0 | BD65: 0 | BF65: 0
B66: 40 | C66: 2059 | O66: 1 | AS66: 0 | AV66: 0 | AW66: 0 | AX66: 0 | BD66: 0 | BF66: 0
B67: =B66+1 -> 41 | C67: 2060 | K67: =IF(J67 = "", "",IF($AU$18 = " User Defined",(J67*O67),J67*(VLOOKUP(C67,Index,$BC$37,FALSE)))) ->  | O67: =(1+N67/100)*O66 -> 1 | AN67: =IF(AM67="","",AN66+1) ->  | AO67: =IF(AM67="","",IF($AU$12>AN67,0,K67)) ->  | AQ67: =IF(AM67="","",IF($AU$12>AN67,0,J176)) ->  | AR67: =IF(AM67="","",IF($AU$12>AN67,0,L279)) ->  | AS67: =IF(AN67=$AU$12,SUM(AO67:AR67)-AP67+$AU$11,IF(AN67=$AU$16,SUM(AO67:AR67)-AP67+$AU$15,IF(AN67=$AU$14,SUM(AO67:AR67)-AP67+$AU$13,SUM(AO67:AR67)-AP67))) -> 0 | AT67: =IF(AM67="","",IF($AU$12>AN67,0,-L380)) ->  | AU67: =IF(AM67="","",IF($AU$12>AN67,0,-L481)) ->  | AV67: =AS67+SUM(AT67:AU67) -> 0 | AW67: =IF(AV67=0,0,IF(AV67=SUM(AO67:AR67)+SUM(AT67:AU67),AV67/(1+$AU$10)^(AN67-$AU$8+1),IF($AU$17="E",AV67/(1+$AU$10)^(AN67-$AU$8+1),(AV67-SUM(AO67:AR67)-SUM(AT67:AU67))/(1+$AU$10)^(AN67-$AU$8)+(SUM(AO67:AR67)+SUM(AT67:AU67))/(1+$AU$10)^(AN67-$AU$8+1)))) -> 0 | AX67: =IF(AN67="",0,IF(AW67=0,AX66,AX66+AW67)) -> 0 | BD67: 0
B68: =B67+1 -> 42 | C68: 2061 | O68: 1 | AS68: 0 | AV68: 0 | AW68: 0 | AX68: 0 | BD68: 0
B69: =B68+1 -> 43 | C69: 2062 | O69: 1 | AS69: 0 | AV69: 0 | AW69: 0 | AX69: 0 | BD69: 0
B70: =B69+1 -> 44 | C70: 2063 | O70: 1 | AS70: 0 | AV70: 0 | AW70: 0 | AX70: 0 | BD70: 0
B71: =B70+1 -> 45 | C71: 2064 | O71: 1 | AS71: 0 | AV71: 0 | AW71: 0 | AX71: 0 | BD71: 0
B72: =B71+1 -> 46 | C72: 2065 | O72: 1 | AS72: 0 | AV72: 0 | AW72: 0 | AX72: 0 | BD72: 0
B73: =B72+1 -> 47 | C73: 2066 | O73: 1 | AS73: 0 | AV73: 0 | AW73: 0 | AX73: 0 | BD73: 0
B74: =B73+1 -> 48 | C74: 2067 | O74: 1 | AS74: 0 | AV74: 0 | AW74: 0 | AX74: 0 | BD74: 0
B75: =B74+1 -> 49 | C75: 2068 | O75: 1 | AS75: 0 | AV75: 0 | AW75: 0 | AX75: 0 | BD75: 0
B76: =B75+1 -> 50 | C76: 2069 | O76: 1 | AS76: 0 | AV76: 0 | AW76: 0 | AX76: 0 | BD76: 0
AM78: Assumptions & Notes:
AV88: Date Revised
AV89: Date Printed | AW89: 2014-03-07T15:36:17 | AX89: 41705.6502
G119: Scratch Pad area for Annual Fuel costs
G120: This area is used to enter Fuel costs associated with the project. NOTE: Fuel Prices are to be entered in Column D in Main Table
G121: Market Analysis section of System Planning prepares various fuel price forecasts for numerous delivery points.
G122: Please reference the appropriate forecast and enter the values in Column D in Main Table.
G123: Columns 3 below picks up the fuel prices from the main table. Columns 4,5,6,7 & 8 can be used to do some calculations if preferred.
G124: Necessary calculations can be performed to determine each current year dollar value of the annual fuel costs.
G125: The respective annual costs are to be entered in column 9.
G126: NOTE: Annual Fuel costs (if applicable) may start in the in-service year .
B129: 1 | C129: 2 | D129: 3 | E129: 4 | F129: 5 | G129: 6 | H129: 7 | I129: 8 | J129: 9 | K129: 10
D131: Annual | E131: Working Area Below (if required) | J131: Annual
B132: Year | D132: Fuel price | J132: Fuel costs | K132: Comments / Explanations
D133: =AP24 -> (if applicable) | J133: (Current $$)
B135: 0 | C135: =$AU$7 -> 2019 | D135: =AP26 -> 0
B136: =B135+1 -> 1 | C136: 2020 | D136: 0
B137: 2 | C137: 2021 | D137: 0
B138: 3 | C138: 2022 | D138: 0
B139: 4 | C139: 2023 | D139: 0
B140: 5 | C140: 2024 | D140: 0
B141: 6 | C141: 2025 | D141: 0
B142: 7 | C142: 2026 | D142: 0
B143: 8 | C143: 2027 | D143: 0
B144: 9 | C144: 2028 | D144: 0
B145: 10 | C145: 2029 | D145: 0
B146: 11 | C146: 2030 | D146: 0
B147: 12 | C147: 2031 | D147: 0
B148: 13 | C148: 2032 | D148: 0
B149: 14 | C149: 2033 | D149: 0
B150: 15 | C150: 2034 | D150: 0
B151: 16 | C151: 2035 | D151: 0
B152: =B151+1 -> 17 | C152: 2036 | D152: 0
B153: 18 | C153: 2037 | D153: 0
B154: 19 | C154: 2038 | D154: 0
B155: 20 | C155: 2039 | D155: 0
B156: 21 | C156: 2040 | D156: 0
B157: 22 | C157: 2041 | D157: 0
B158: 23 | C158: 2042 | D158: 0
B159: 24 | C159: 2043 | D159: 0
B160: 25 | C160: 2044 | D160: 0
B161: 26 | C161: 2045 | D161: 0
B162: 27 | C162: 2046 | D162: 0
B163: 28 | C163: 2047 | D163: 0
B164: 29 | C164: 2048 | D164: 0
